Workbook

Sheet Ranges (hidden)
B1: Cell Range, or Name of Object | C1: Name 1 | D1: Name 2 | E1: Name 3
A2: AllYears | B2: 2015b05 | C2: 2015
B3: 2020b07 | C3: 2020
B4: 2025b09 | C4: 2025
B5: 2030b11 | C5: 2030
B6: 2035b13 | C6: 2035
B7: 2040b15 | C7: 2040
A8: AllTrucks | B8: SingleShortf05 | C8: Single Unit Short Haul | D8: 1
B9: Gasg06 | C9: G | D9: 1
B10: Dieseli06 | C10: D | D10: 1
B11: SingleLongf07 | C11: Single Unit Long Haul | D11: 2 | E11: D
B12: ComboShortf09 | C12: Combination Unit Short Haul | D12: 3 | E12: D
B13: ComboLongf11 | C13: Combination Unit Long Haul | D13: 4 | E13: D
A14: AllFuels | B14: CNGb05 | C14: CNG
B15: LNGb07 | C15: LNG
B16: RCNGb09 | C16: RCNG
B17: RLNGb11 | C17: RLNG
B18: CNGNOxb13 | C18: CNG+LowNOx
B19: LNGNOxb15 | C19: LNG+LowNOx
B20: RCNGNOxb17 | C20: RCNG+LowNOx
B21: RLNGNOxb19 | C21: RLNG+LowNOx
B22: Propaneb21 | C22: Propane
B23: BDSb23 | C23: B20 (Biodiesel)
B24: RDSb25 | C24: R100 (Renewable Diesel)
B25: Hybridb27 | C25: Hybrid
B26: Electricb29 | C26: Electric
B27: Hybridb05 | C27: Hybrid
B28: Electricb07 | C28: Electric
A29: AllRetrofits | B29: DOCb05 | C29: DOC
B30: DPFb07 | C30: DPF
A31: AllAero | B31: BTLb05 | C31: Boat Tail
B32: TGFb07 | C32: Trailer Gap Fairing
B33: RFSb09 | C33: Roof Fairing
B34: TSFb11 | C34: Tractor Side Fairing
B35: TSSb13 | C35: Trailer Side Skirts
B36: FTSb15 | C36: Fuel Tank Skirts
A37: AllTires | B37: LRRTb05 | C37: Low Rolling Resistance
B38: SWTb07 | C38: Single Wide
B39: TPSb09 | C39: Tire Pressure System
A40: AllTPS | B40: TPMb12 | C40: Tire Pressure Monitor
B41: ATIb14 | C41: Auto Tire Inflation
B42: DTEb16 | C42: Dual Tire Equalizers
B43: CTIb18 | C43: Central Tire Inflation
B44: PTCb20 | C44: Passive Tire Containment
A45: AllIdle | B45: FOHb05 | C45: Fuel Operated Heater
B46: APUb07 | C46: Auxiliary Power Unit
B47: AS&Sb09 | C47: Auto Stop/Start
A48: AllModifications | B48: Fuelk05 | C48: Alternative Fuels
B49: Retrofitk07 | C49: Exhaust Retrofit
B50: Aerodynamick09 | C50: Aerodynamic Devices
B51: Tiresk11 | C51: Tires
B52: Idlek13 | C52: Idle Reduction
B53: Retirementk15 | C53: Accelerated Retirement
B54: Fuelk05 | C54: Alternative Fuels
B55: Aerodynamick07 | C55: Aerodynamic Devices
B56: Idlek09 | C56: Idle Reduction
B57: Retirementk11 | C57: Accelerated Retirement
A58: AllGeographies | B58: Stated05 | C58: State | D58: 1
B59: Countyd09 | C59: County/Municipal | D59: 3
B60: Portd13 | C60: Port | D60: 5
B61: Metrod07 | C61: Metropolitan | D61: 2
B62: Centerd11 | C62: Distribution Center | D62: 4
A63: AllYearReplacements1 | B63: YearReplace1_SingleShortG1
B64: YearReplace2_SingleShortG1
B65: YearReplace3_SingleShortG1
B66: YearReplace4_SingleShortG1
B67: YearReplace1_SingleShortD1
B68: YearReplace2_SingleShortD1
B69: YearReplace3_SingleShortD1
B70: YearReplace4_SingleShortD1
B71: YearReplace1_SingleLong1
B72: YearReplace2_SingleLong1
B73: YearReplace3_SingleLong1
B74: YearReplace4_SingleLong1
B75: YearReplace1_ComboShort1
B76: YearReplace2_ComboShort1
B77: YearReplace3_ComboShort1
B78: YearReplace4_ComboShort1
B79: YearReplace1_ComboLong1
B80: YearReplace2_ComboLong1
B81: YearReplace3_ComboLong1
B82: YearReplace4_ComboLong1
A83: AllDepPart3 | B83: NumTruck_ComboLong1
B84: NumTruck_SingleShortG1
B85: NumTruck_SingleShortD1
B86: NumTruck_SingleLong1
B87: NumTruck_ComboShort1
B88: Data_ComboLong1
B89: Data_SingleShortG1
B90: Data_SingleShortD1
B91: Data_SingleLong1
B92: Data_ComboShort1
B93: Mileage_ComboLong1
B94: Mileage_SingleShortG1
B95: Mileage_SingleShortD1
B96: Mileage_SingleLong1
B97: Mileage_ComboShort1
B98: YearBeg_ComboLong1
B99: YearBeg_SingleShortG1
B100: YearBeg_SingleShortD1
B101: YearBeg_SingleLong1
B102: YearBeg_ComboShort1
B103: YearEnd_ComboLong1
B104: YearEnd_SingleShortG1
B105: YearEnd_SingleShortG1
B106: YearEnd_SingleLong1
B107: YearEnd_ComboShort1
B108: Idle_ComboLong1
A109: AllInvestPart2 | B109: Data_2
B110: Mileage_2
B111: YearBeg_2
B112: YearEnd_2
B113: Idle_2
A114: AllYearReplacements3 | B114: YearRetireBeg_3
B115: YearRetireEnd_3
B116: YearReplaceBeg_3
B117: YearReplaceEnd_3
A118: AllIncentPart3 | B118: NumTruck_3
B119: Data_3
B120: Mileage_3
B121: YearBeg_3
B122: YearEnd_3
B123: Idle_3
A124: AllInvestPart3 | B124: UserFuelCost_2_D | C124: Diesel | D124: UserFuelUnit_2_D
B125: UserFuelCost_2_G | C125: Gasoline | D125: UserFuelUnit_2_G
B126: UserFuelCost_2_CNG | C126: CNG | D126: UserFuelUnit_2_CNG
B127: UserFuelCost_2_LNG | C127: LNG | D127: UserFuelUnit_2_LNG
B128: UserFuelCost_2_RCNG | C128: RCNG | D128: UserFuelUnit_2_RCNG
B129: UserFuelCost_2_RLNG | C129: RLNG | D129: UserFuelUnit_2_RLNG
B130: UserFuelCost_2_Propane | C130: Propane | D130: UserFuelUnit_2_Propane
B131: UserFuelCost_2_Electricity | C131: Electric | D131: UserFuelUnit_2_Electricity
B132: UserFuelUnit_2_D
B133: UserFuelUnit_2_G
B134: UserFuelUnit_2_CNG
B135: UserFuelUnit_2_LNG
B136: UserFuelUnit_2_RCNG
B137: UserFuelUnit_2_RLNG
B138: UserFuelUnit_2_Propane
B139: UserFuelUnit_2_Electricity
B140: UserElectMixRegion_2
B141: UserElectMixValue_2
A142: AllDeployPart4 | B142: UserFuelCost_1_D | C142: Diesel | D142: UserFuelUnit_1_D
B143: UserFuelCost_1_G | C143: Gasoline | D143: UserFuelUnit_1_G
B144: UserFuelCost_1_CNG | C144: CNG | D144: UserFuelUnit_1_CNG
B145: UserFuelCost_1_LNG | C145: LNG | D145: UserFuelUnit_1_LNG
B146: UserFuelCost_1_RCNG | C146: RCNG | D146: UserFuelUnit_1_RCNG
B147: UserFuelCost_1_RLNG | C147: RLNG | D147: UserFuelUnit_1_RLNG
B148: UserFuelCost_1_B20 | C148: B20 (Biodiesel) | D148: UserFuelUnit_1_B20
B149: UserFuelCost_1_R100 | C149: R100 (Renewable Diesel) | D149: UserFuelUnit_1_R100
B150: UserFuelCost_1_Propane | C150: Propane | D150: UserFuelUnit_1_Propane
B151: UserFuelCost_1_Electricity | C151: Electric | D151: UserFuelUnit_1_Electricity
B152: UserFuelUnit_1_D
B153: UserFuelUnit_1_G
B154: UserFuelUnit_1_CNG
B155: UserFuelUnit_1_LNG
B156: UserFuelUnit_1_RCNG
B157: UserFuelUnit_1_RLNG
B158: UserFuelUnit_1_B20
B159: UserFuelUnit_1_R100
B160: UserFuelUnit_1_Propane
B161: UserFuelUnit_1_Electricity
B162: UserElectMixRegion_1
B163: UserElectMixValue_1
A164: AllIncentPart4 | B164: UserFuelCost_3_D | C164: Diesel | D164: UserFuelUnit_3_D
B165: UserFuelCost_3_G | C165: Gasoline | D165: UserFuelUnit_3_G
B166: UserFuelCost_3_Electricity | C166: Electric | D166: UserFuelUnit_3_Electricity
B167: UserFuelUnit_3_D
B168: UserFuelUnit_3_G
B169: UserFuelUnit_3_Electricity
B170: UserElectMixRegion_3
B171: UserElectMixValue_3
A172: InvestOutRowsHide | B172: K18 | C172: 5 | D172: 25
B173: K39 | C173: 26 | D173: 46
B174: K60 | C174: 47 | D174: 67
B175: K81 | C175: 68 | D175: 88
B176: K102 | C176: 89 | D176: 109
B177: K123 | C177: 110 | D177: 130
B178: K144 | C178: 131 | D178: 151
B179: K165 | C179: 152 | D179: 172
B180: K186 | C180: 173 | D180: 193
B181: K207 | C181: 194 | D181: 214
B182: K228 | C182: 215 | D182: 243
B183: K259 | C183: 246 | D183: 265
B184: K279 | C184: 266 | D184: 283
B185: K299 | C185: 286 | D185: 305
B186: K319 | C186: 306 | D186: 325
B187: K339 | C187: 326 | D187: 345
B188: K359 | C188: 346 | D188: 365
B189: K379 | C189: 366 | D189: 385
B190: K399 | C190: 386 | D190: 403
B191: K419 | C191: 406 | D191: 425
B192: K439 | C192: 426 | D192: 445
B193: K459 | C193: 446 | D193: 465
B194: K479 | C194: 466 | D194: 485
B195: K499 | C195: 486 | D195: 505
B196: K519 | C196: 506 | D196: 525
B197: K539 | C197: 526 | D197: 543
B198: K559 | C198: 546 | D198: 565
B199: K579 | C199: 566 | D199: 585
B200: K599 | C200: 586 | D200: 602
... 159 more rows

Sheet Choose Analysis
B3: SELECT ANALYSIS
C4: 1. Truck Deployment Analysis If my agency were to replace X trucks with an advanced technology or alternative fuel, what would be the emissions benefits and the costs?
C7: 2. Funding Impact Analysis If my agency were to invest $Y in clean-truck strategies, which approach and strategy(ies) would yield the greatest emissions benefits?
C10: 3. Incentive Analysis If my agency were to target incentives toward a certain truck type or fuel type, what would be the appropriate level of incentive (per truck) to maximize public benefits?
A14: This tool was developed under NCHRP Project 25-46. The tool is primarily intended for public sector agencies that are considering investment in clean truck strategies. The purpose of the tool is to help agencies better understand the costs and emissions benefits of different clean truck strategies to improve the design of their projects and programs. A separate User Manual provides details on how to use the tool. NCHRP Project 25-46 also created a Clean Truck Strategies Guide, which contains more detailed information on the strategies in this tool as well as information on funding sources, example programs, and other resources.

Sheet 1. Deployment, Part 1 (hidden)
A1: DEPLOYMENT ANALYSIS
B3: SELECT SCOPE
B4: Calendar Year | D4: Area of Interest | F4: Type of Truck | K4: Type of Modification
C5: 2015 | E5: State | G5: Single Unit Short Haul | L5: Alternative Fuel
H6: Gas | J6: Diesel
C7: 2020 | E7: Metropolitan | G7: Single Unit Long Haul | L7: Exhaust Retrofit
L8: (only diesel engines)
C9: 2025 | E9: County/Municipal | G9: Combo Unit Short Haul | L9: Aerodynamic Device
L10: (only long hauls)
C11: 2030 | E11: Distribution Center | G11: Combo Unit Long Haul | L11: Tires
E12: (only combo units)
C13: 2035 | E13: Port | L13: Idle Reduction
E14: (only combo unit short hauls) | L14: (only combo unit long hauls)
C15: 2040 | L15: Accelerated Retirement

Sheet 1. Deployment, Part 2, Fuels (hidden)
A1: DEPLOYMENT ANALYSIS
B3: SELECT MODIFICATIONS
B4: Alternative Fuel(s)
C5: Compressed Natural Gas (CNG)
C7: Liquefied Natural Gas (LNG)
C9: Renewable CNG (RCNG)
C11: Renewable LNG (RLNG)
C13: CNG + Low NOx Engine
C15: LNG + Low NOx Engine
C17: RCNG + Low NOx Engine
C19: RLNG + Low NOx Engine
C21: Propane
C23: Biodiesel
C25: Renewable Diesel
C27: Hybrid
C29: Electric

Sheet 1. Deployment, Part 2, Retro (hidden)
A1: DEPLOYMENT ANALYSIS
B3: SELECT MODIFICATIONS
B4: Exhaust Retrofit(s)
C5: Diesel Oxidation Catalyst
C7: Diesel Particulate Filter

Sheet 1. Deployment, Part 2, Aero (hidden)
A1: DEPLOYMENT ANALYSIS
H2: Illustration of Devices:
B3: SELECT MODIFICATIONS
B4: Aerodynamic Device(s)
C5: Boat Tail
C7: Trailer Gap Fairing
C9: Roof Fairings
C11: Tractor Side Fairings
C13: Trailer Side Skirts
C15: Fuel Tank Skirts

Sheet 1. Deployment, Part 2, Tires (hidden)
A1: DEPLOYMENT ANALYSIS
B3: SELECT MODIFICATIONS
B4: Tires
C5: Low Rolling Resistance Tires
C7: Single Wide Tires
C9: Tire Pressure Systems
B11: Tire Pressure Systems
C12: Tire Pressure Monitoring
C14: Automatic Tire Inflation
C16: Dual Tire Equalizers
C18: Central Tire Inflation
C20: Passive Tire Containment

Sheet 1. Deployment, Part 2, Idle (hidden)
A1: DEPLOYMENT ANALYSIS
B3: SELECT MODIFICATIONS
B4: Idle Reduction
C5: Fuel Operated Heaters
C7: Auxiliary Power Units
C9: Auto Stop/Start

Sheet 1. Deployment, Part 2, Replace (hidden)
B3: MODEL YEARS FOR SCRAP/REPLACEMENT Replace default values with local data if available.
B4: Truck Type | C4: Range of Model Years to Scrap (inclusive) | E4: Range of Model Years of New Trucks (inclusive)
B5: Single Unit Short Haul
B6: Gas
B7: Diesel
B9: Single Unit Long Haul
B11: Combo Unit Short Haul
B13: Combo Unit Long Haul

Sheet 1. Deployment, Part 3 (hidden)
A1: DEPLOYMENT ANALYSIS
B3: VEHICLE DATA Replace default values with local data if available.
B4: Truck Type | C4: Number of Trucks to Be Replaced | D4: Average Annual Mileage Accumulation | E4: Range of Model Years to Modify/Scrap (inclusive) | G4: Long-haul Annual Idle Hours
B5: Single Unit Short Haul
B6: Gas | C6: 100 | D6: 14819 | E6: 2021 | F6: 2020
B7: Diesel | C7: 100 | D7: 14623 | E7: 1995 | F7: 2025
B9: Single Unit Long Haul | C9: 100 | D9: 21601 | E9: 1995 | F9: 2025
B11: Combo Unit Short Haul | C11: 100 | D11: 38775 | E11: 1995 | F11: 2025
B13: Combo Unit Long Haul | C13: 100 | D13: 82936 | E13: 1995 | F13: 2025 | G13: 642

Sheet 1. Deployment, Part 4 (hidden)
A1: DEPLOYMENT ANALYSIS
B3: FUEL COSTS. ELECTRICITY GENERATION MIX IF APPLICABLE. Replace default values with local data if available.
B4: Truck Fuels | E4: Click Button on Map to Select a Default Electricity Generation Emission Rate, or Enter a Rate in the White Cell
B5: Fuel Type | C5: Cost per Unit ($) | D5: Unit (Select from Pulldown)
B6: Diesel | C6: 2.13 | D6: gal
B7: Gasoline | F7: g CO2/kWh:
B8: CNG
B9: LNG
B10: RCNG
B11: RLNG
B12: Propane
B13: B20
B14: R100
B15: Electricity

Sheet 1. Deployment, Part 5 (hidden)
A1: DEPLOYMENT ANALYSIS
B3: PER TRUCK COSTS Device Cost, or New Truck Cost Where Appropriate. Replace default values with local data if available.
B4: Truck | C4: Baseline Fuel | D4: Modification | E4: Cost
B5: =IF(ROW()-ROW($B$5)<(COUNTA(Deployment_TruckTypes)*COUNTA(Deployment_Specific_Modifications)),INDEX(Deployment_TruckTypes,1+MOD(ROW()-ROW($B$5),COUNTA(Deployment_TruckTypes)),1),"-") -> Single Unit Short Haul | C5: =IF(B5="-",B5,IF(INDEX(Deployment_Fuels,1+MOD(ROW()-ROW($B$5),COUNTA(Deployment_Fuels)),1)="D","Diesel",IF(INDEX(Deployment_Fuels,1+MOD(ROW()-ROW($B$5),COUNTA(Deployment_Fuels)),1)="G","Gasoline",INDEX(Deployment_Fuels,1+MOD(ROW()-ROW($B$5),COUNTA(Deployment_Fuels)),1)))) -> Diesel | D5: =IF(B5="-",B5,INDEX(Deployment_Specific_Modifications,1+MOD(FLOOR((ROW()-ROW($B$5))/COUNTA(Deployment_TruckTypes),1),COUNTA(Deployment_Specific_Modifications)),1)) -> DOC | E5: 800 | L5: =IF(B5="-",B5, IF(OR(D5=0,AND(B5<>"Single Unit Short Haul",C5="Gasoline"),AND(OR(D5="B20 (Biodiesel)",D5="R100 (Renewable Diesel)"),C5="Gasoline"),AND(OR(B5="Single Unit Short Haul",B5="Single Unit Long Haul"),Deployment_GeographicScale="Distribution Center"),AND(B5<>"Combination Unit Short Haul",Deployment_GeographicScale="Port"),D5="B20 (Biodiesel)",D5="R100 (Renewable Diesel)",SUMPRODUCT((RRFs!$B$4:$B$35=D5)*OR(RRFs!$C$4:$C$35=IF(C5="Gasoline","G",IF(C5="Diesel","D",C5)),RRFs!$C$4:$C$35="A")*INDIRECT(VLOOKUP(B5&" Incr Cost",RRFs!$AO:$AP,2,FALSE)))=-999999),"N/A", SUMPRODUCT((RRFs!$B$4:$B$35=D5)*OR(RRFs!$C$4:$C$35=IF(C5="Gasoline","G",IF(C5="Diesel","D",C5)),RRFs!$C$4:$C$35="A")*INDIRECT(VLOOKUP(B5&" Incr Cost",RRFs!$AO:$AP,2,FALSE))) + IF(AND(Deployment_Type_of_Modification<>"Alternative Fuels",Deployment_Type_of_Modification<>"Accelerated Retirement"),0, IF(OR(D5="B20 (Biodiesel)",D5="R100 (Renewable Diesel)"),0, SUMPRODUCT((EFs!$A$4:$A$3351=Deployment_Year)*(EFs!$B$4:$B$3351=VLOOKUP(B5,'Store Inputs'!$F:$G,2,FALSE))*(EFs!$C$4:$C$3351=VLOOKUP(Deployment_GeographicScale,'Store Inputs'!$C:$D,2,FALSE))*(EFs!$D$4:$D$3351=Deployment_Year)*(EFs!$E$4:$E$3351=IF(C5="Gasoline","G",IF(C5="Diesel","D",C5)))*EFs!$Q$4:$Q$3351))))) -> 800
B6: =IF(ROW()-ROW($B$5)<(COUNTA(Deployment_TruckTypes)*COUNTA(Deployment_Specific_Modifications)),INDEX(Deployment_TruckTypes,1+MOD(ROW()-ROW($B$5),COUNTA(Deployment_TruckTypes)),1),"-") -> Single Unit Long Haul | C6: Diesel | D6: =IF(B6="-",B6,INDEX(Deployment_Specific_Modifications,1+MOD(FLOOR((ROW()-ROW($B$5))/COUNTA(Deployment_TruckTypes),1),COUNTA(Deployment_Specific_Modifications)),1)) -> DOC | E6: 1000 | L6: =IF(B6="-",B6, IF(OR(D6=0,AND(B6<>"Single Unit Short Haul",C6="Gasoline"),AND(OR(D6="B20 (Biodiesel)",D6="R100 (Renewable Diesel)"),C6="Gasoline"),AND(OR(B6="Single Unit Short Haul",B6="Single Unit Long Haul"),Deployment_GeographicScale="Distribution Center"),AND(B6<>"Combination Unit Short Haul",Deployment_GeographicScale="Port"),D6="B20 (Biodiesel)",D6="R100 (Renewable Diesel)",SUMPRODUCT((RRFs!$B$4:$B$35=D6)*OR(RRFs!$C$4:$C$35=IF(C6="Gasoline","G",IF(C6="Diesel","D",C6)),RRFs!$C$4:$C$35="A")*INDIRECT(VLOOKUP(B6&" Incr Cost",RRFs!$AO:$AP,2,FALSE)))=-999999),"N/A", SUMPRODUCT((RRFs!$B$4:$B$35=D6)*OR(RRFs!$C$4:$C$35=IF(C6="Gasoline","G",IF(C6="Diesel","D",C6)),RRFs!$C$4:$C$35="A")*INDIRECT(VLOOKUP(B6&" Incr Cost",RRFs!$AO:$AP,2,FALSE))) + IF(AND(Deployment_Type_of_Modification<>"Alternative Fuels",Deployment_Type_of_Modification<>"Accelerated Retirement"),0, IF(OR(D6="B20 (Biodiesel)",D6="R100 (Renewable Diesel)"),0, SUMPRODUCT((EFs!$A$4:$A$3351=Deployment_Year)*(EFs!$B$4:$B$3351=VLOOKUP(B6,'Store Inputs'!$F:$G,2,FALSE))*(EFs!$C$4:$C$3351=VLOOKUP(Deployment_GeographicScale,'Store Inputs'!$C:$D,2,FALSE))*(EFs!$D$4:$D$3351=Deployment_Year)*(EFs!$E$4:$E$3351=IF(C6="Gasoline","G",IF(C6="Diesel","D",C6)))*EFs!$Q$4:$Q$3351))))) -> 1000
B7: Combination Unit Short Haul | C7: Diesel | D7: DOC | E7: 1500 | L7: =IF(B7="-",B7, IF(OR(D7=0,AND(B7<>"Single Unit Short Haul",C7="Gasoline"),AND(OR(D7="B20 (Biodiesel)",D7="R100 (Renewable Diesel)"),C7="Gasoline"),AND(OR(B7="Single Unit Short Haul",B7="Single Unit Long Haul"),Deployment_GeographicScale="Distribution Center"),AND(B7<>"Combination Unit Short Haul",Deployment_GeographicScale="Port"),D7="B20 (Biodiesel)",D7="R100 (Renewable Diesel)",SUMPRODUCT((RRFs!$B$4:$B$35=D7)*OR(RRFs!$C$4:$C$35=IF(C7="Gasoline","G",IF(C7="Diesel","D",C7)),RRFs!$C$4:$C$35="A")*INDIRECT(VLOOKUP(B7&" Incr Cost",RRFs!$AO:$AP,2,FALSE)))=-999999),"N/A", SUMPRODUCT((RRFs!$B$4:$B$35=D7)*OR(RRFs!$C$4:$C$35=IF(C7="Gasoline","G",IF(C7="Diesel","D",C7)),RRFs!$C$4:$C$35="A")*INDIRECT(VLOOKUP(B7&" Incr Cost",RRFs!$AO:$AP,2,FALSE))) + IF(AND(Deployment_Type_of_Modification<>"Alternative Fuels",Deployment_Type_of_Modification<>"Accelerated Retirement"),0, IF(OR(D7="B20 (Biodiesel)",D7="R100 (Renewable Diesel)"),0, SUMPRODUCT((EFs!$A$4:$A$3351=Deployment_Year)*(EFs!$B$4:$B$3351=VLOOKUP(B7,'Store Inputs'!$F:$G,2,FALSE))*(EFs!$C$4:$C$3351=VLOOKUP(Deployment_GeographicScale,'Store Inputs'!$C:$D,2,FALSE))*(EFs!$D$4:$D$3351=Deployment_Year)*(EFs!$E$4:$E$3351=IF(C7="Gasoline","G",IF(C7="Diesel","D",C7)))*EFs!$Q$4:$Q$3351))))) -> 1500
B8: Combination Unit Long Haul | C8: Diesel | D8: DOC | E8: 1500 | L8: =IF(B8="-",B8, IF(OR(D8=0,AND(B8<>"Single Unit Short Haul",C8="Gasoline"),AND(OR(D8="B20 (Biodiesel)",D8="R100 (Renewable Diesel)"),C8="Gasoline"),AND(OR(B8="Single Unit Short Haul",B8="Single Unit Long Haul"),Deployment_GeographicScale="Distribution Center"),AND(B8<>"Combination Unit Short Haul",Deployment_GeographicScale="Port"),D8="B20 (Biodiesel)",D8="R100 (Renewable Diesel)",SUMPRODUCT((RRFs!$B$4:$B$35=D8)*OR(RRFs!$C$4:$C$35=IF(C8="Gasoline","G",IF(C8="Diesel","D",C8)),RRFs!$C$4:$C$35="A")*INDIRECT(VLOOKUP(B8&" Incr Cost",RRFs!$AO:$AP,2,FALSE)))=-999999),"N/A", SUMPRODUCT((RRFs!$B$4:$B$35=D8)*OR(RRFs!$C$4:$C$35=IF(C8="Gasoline","G",IF(C8="Diesel","D",C8)),RRFs!$C$4:$C$35="A")*INDIRECT(VLOOKUP(B8&" Incr Cost",RRFs!$AO:$AP,2,FALSE))) + IF(AND(Deployment_Type_of_Modification<>"Alternative Fuels",Deployment_Type_of_Modification<>"Accelerated Retirement"),0, IF(OR(D8="B20 (Biodiesel)",D8="R100 (Renewable Diesel)"),0, SUMPRODUCT((EFs!$A$4:$A$3351=Deployment_Year)*(EFs!$B$4:$B$3351=VLOOKUP(B8,'Store Inputs'!$F:$G,2,FALSE))*(EFs!$C$4:$C$3351=VLOOKUP(Deployment_GeographicScale,'Store Inputs'!$C:$D,2,FALSE))*(EFs!$D$4:$D$3351=Deployment_Year)*(EFs!$E$4:$E$3351=IF(C8="Gasoline","G",IF(C8="Diesel","D",C8)))*EFs!$Q$4:$Q$3351))))) -> 1500
B9: Single Unit Short Haul | C9: Diesel | D9: DPF | E9: 8000 | L9: =IF(B9="-",B9, IF(OR(D9=0,AND(B9<>"Single Unit Short Haul",C9="Gasoline"),AND(OR(D9="B20 (Biodiesel)",D9="R100 (Renewable Diesel)"),C9="Gasoline"),AND(OR(B9="Single Unit Short Haul",B9="Single Unit Long Haul"),Deployment_GeographicScale="Distribution Center"),AND(B9<>"Combination Unit Short Haul",Deployment_GeographicScale="Port"),D9="B20 (Biodiesel)",D9="R100 (Renewable Diesel)",SUMPRODUCT((RRFs!$B$4:$B$35=D9)*OR(RRFs!$C$4:$C$35=IF(C9="Gasoline","G",IF(C9="Diesel","D",C9)),RRFs!$C$4:$C$35="A")*INDIRECT(VLOOKUP(B9&" Incr Cost",RRFs!$AO:$AP,2,FALSE)))=-999999),"N/A", SUMPRODUCT((RRFs!$B$4:$B$35=D9)*OR(RRFs!$C$4:$C$35=IF(C9="Gasoline","G",IF(C9="Diesel","D",C9)),RRFs!$C$4:$C$35="A")*INDIRECT(VLOOKUP(B9&" Incr Cost",RRFs!$AO:$AP,2,FALSE))) + IF(AND(Deployment_Type_of_Modification<>"Alternative Fuels",Deployment_Type_of_Modification<>"Accelerated Retirement"),0, IF(OR(D9="B20 (Biodiesel)",D9="R100 (Renewable Diesel)"),0, SUMPRODUCT((EFs!$A$4:$A$3351=Deployment_Year)*(EFs!$B$4:$B$3351=VLOOKUP(B9,'Store Inputs'!$F:$G,2,FALSE))*(EFs!$C$4:$C$3351=VLOOKUP(Deployment_GeographicScale,'Store Inputs'!$C:$D,2,FALSE))*(EFs!$D$4:$D$3351=Deployment_Year)*(EFs!$E$4:$E$3351=IF(C9="Gasoline","G",IF(C9="Diesel","D",C9)))*EFs!$Q$4:$Q$3351))))) -> 8000
B10: Single Unit Long Haul | C10: Diesel | D10: DPF | E10: 12000 | L10: =IF(B10="-",B10, IF(OR(D10=0,AND(B10<>"Single Unit Short Haul",C10="Gasoline"),AND(OR(D10="B20 (Biodiesel)",D10="R100 (Renewable Diesel)"),C10="Gasoline"),AND(OR(B10="Single Unit Short Haul",B10="Single Unit Long Haul"),Deployment_GeographicScale="Distribution Center"),AND(B10<>"Combination Unit Short Haul",Deployment_GeographicScale="Port"),D10="B20 (Biodiesel)",D10="R100 (Renewable Diesel)",SUMPRODUCT((RRFs!$B$4:$B$35=D10)*OR(RRFs!$C$4:$C$35=IF(C10="Gasoline","G",IF(C10="Diesel","D",C10)),RRFs!$C$4:$C$35="A")*INDIRECT(VLOOKUP(B10&" Incr Cost",RRFs!$AO:$AP,2,FALSE)))=-999999),"N/A", SUMPRODUCT((RRFs!$B$4:$B$35=D10)*OR(RRFs!$C$4:$C$35=IF(C10="Gasoline","G",IF(C10="Diesel","D",C10)),RRFs!$C$4:$C$35="A")*INDIRECT(VLOOKUP(B10&" Incr Cost",RRFs!$AO:$AP,2,FALSE))) + IF(AND(Deployment_Type_of_Modification<>"Alternative Fuels",Deployment_Type_of_Modification<>"Accelerated Retirement"),0, IF(OR(D10="B20 (Biodiesel)",D10="R100 (Renewable Diesel)"),0, SUMPRODUCT((EFs!$A$4:$A$3351=Deployment_Year)*(EFs!$B$4:$B$3351=VLOOKUP(B10,'Store Inputs'!$F:$G,2,FALSE))*(EFs!$C$4:$C$3351=VLOOKUP(Deployment_GeographicScale,'Store Inputs'!$C:$D,2,FALSE))*(EFs!$D$4:$D$3351=Deployment_Year)*(EFs!$E$4:$E$3351=IF(C10="Gasoline","G",IF(C10="Diesel","D",C10)))*EFs!$Q$4:$Q$3351))))) -> 12000
B11: Combination Unit Short Haul | C11: Diesel | D11: DPF | E11: 15000 | L11: =IF(B11="-",B11, IF(OR(D11=0,AND(B11<>"Single Unit Short Haul",C11="Gasoline"),AND(OR(D11="B20 (Biodiesel)",D11="R100 (Renewable Diesel)"),C11="Gasoline"),AND(OR(B11="Single Unit Short Haul",B11="Single Unit Long Haul"),Deployment_GeographicScale="Distribution Center"),AND(B11<>"Combination Unit Short Haul",Deployment_GeographicScale="Port"),D11="B20 (Biodiesel)",D11="R100 (Renewable Diesel)",SUMPRODUCT((RRFs!$B$4:$B$35=D11)*OR(RRFs!$C$4:$C$35=IF(C11="Gasoline","G",IF(C11="Diesel","D",C11)),RRFs!$C$4:$C$35="A")*INDIRECT(VLOOKUP(B11&" Incr Cost",RRFs!$AO:$AP,2,FALSE)))=-999999),"N/A", SUMPRODUCT((RRFs!$B$4:$B$35=D11)*OR(RRFs!$C$4:$C$35=IF(C11="Gasoline","G",IF(C11="Diesel","D",C11)),RRFs!$C$4:$C$35="A")*INDIRECT(VLOOKUP(B11&" Incr Cost",RRFs!$AO:$AP,2,FALSE))) + IF(AND(Deployment_Type_of_Modification<>"Alternative Fuels",Deployment_Type_of_Modification<>"Accelerated Retirement"),0, IF(OR(D11="B20 (Biodiesel)",D11="R100 (Renewable Diesel)"),0, SUMPRODUCT((EFs!$A$4:$A$3351=Deployment_Year)*(EFs!$B$4:$B$3351=VLOOKUP(B11,'Store Inputs'!$F:$G,2,FALSE))*(EFs!$C$4:$C$3351=VLOOKUP(Deployment_GeographicScale,'Store Inputs'!$C:$D,2,FALSE))*(EFs!$D$4:$D$3351=Deployment_Year)*(EFs!$E$4:$E$3351=IF(C11="Gasoline","G",IF(C11="Diesel","D",C11)))*EFs!$Q$4:$Q$3351))))) -> 15000
B12: Combination Unit Long Haul | C12: Diesel | D12: DPF | E12: 15000 | L12: =IF(B12="-",B12, IF(OR(D12=0,AND(B12<>"Single Unit Short Haul",C12="Gasoline"),AND(OR(D12="B20 (Biodiesel)",D12="R100 (Renewable Diesel)"),C12="Gasoline"),AND(OR(B12="Single Unit Short Haul",B12="Single Unit Long Haul"),Deployment_GeographicScale="Distribution Center"),AND(B12<>"Combination Unit Short Haul",Deployment_GeographicScale="Port"),D12="B20 (Biodiesel)",D12="R100 (Renewable Diesel)",SUMPRODUCT((RRFs!$B$4:$B$35=D12)*OR(RRFs!$C$4:$C$35=IF(C12="Gasoline","G",IF(C12="Diesel","D",C12)),RRFs!$C$4:$C$35="A")*INDIRECT(VLOOKUP(B12&" Incr Cost",RRFs!$AO:$AP,2,FALSE)))=-999999),"N/A", SUMPRODUCT((RRFs!$B$4:$B$35=D12)*OR(RRFs!$C$4:$C$35=IF(C12="Gasoline","G",IF(C12="Diesel","D",C12)),RRFs!$C$4:$C$35="A")*INDIRECT(VLOOKUP(B12&" Incr Cost",RRFs!$AO:$AP,2,FALSE))) + IF(AND(Deployment_Type_of_Modification<>"Alternative Fuels",Deployment_Type_of_Modification<>"Accelerated Retirement"),0, IF(OR(D12="B20 (Biodiesel)",D12="R100 (Renewable Diesel)"),0, SUMPRODUCT((EFs!$A$4:$A$3351=Deployment_Year)*(EFs!$B$4:$B$3351=VLOOKUP(B12,'Store Inputs'!$F:$G,2,FALSE))*(EFs!$C$4:$C$3351=VLOOKUP(Deployment_GeographicScale,'Store Inputs'!$C:$D,2,FALSE))*(EFs!$D$4:$D$3351=Deployment_Year)*(EFs!$E$4:$E$3351=IF(C12="Gasoline","G",IF(C12="Diesel","D",C12)))*EFs!$Q$4:$Q$3351))))) -> 15000
B13: - | C13: - | D13: - | E13: - | L13: =IF(B13="-",B13, IF(OR(D13=0,AND(B13<>"Single Unit Short Haul",C13="Gasoline"),AND(OR(D13="B20 (Biodiesel)",D13="R100 (Renewable Diesel)"),C13="Gasoline"),AND(OR(B13="Single Unit Short Haul",B13="Single Unit Long Haul"),Deployment_GeographicScale="Distribution Center"),AND(B13<>"Combination Unit Short Haul",Deployment_GeographicScale="Port"),D13="B20 (Biodiesel)",D13="R100 (Renewable Diesel)",SUMPRODUCT((RRFs!$B$4:$B$35=D13)*OR(RRFs!$C$4:$C$35=IF(C13="Gasoline","G",IF(C13="Diesel","D",C13)),RRFs!$C$4:$C$35="A")*INDIRECT(VLOOKUP(B13&" Incr Cost",RRFs!$AO:$AP,2,FALSE)))=-999999),"N/A", SUMPRODUCT((RRFs!$B$4:$B$35=D13)*OR(RRFs!$C$4:$C$35=IF(C13="Gasoline","G",IF(C13="Diesel","D",C13)),RRFs!$C$4:$C$35="A")*INDIRECT(VLOOKUP(B13&" Incr Cost",RRFs!$AO:$AP,2,FALSE))) + IF(AND(Deployment_Type_of_Modification<>"Alternative Fuels",Deployment_Type_of_Modification<>"Accelerated Retirement"),0, IF(OR(D13="B20 (Biodiesel)",D13="R100 (Renewable Diesel)"),0, SUMPRODUCT((EFs!$A$4:$A$3351=Deployment_Year)*(EFs!$B$4:$B$3351=VLOOKUP(B13,'Store Inputs'!$F:$G,2,FALSE))*(EFs!$C$4:$C$3351=VLOOKUP(Deployment_GeographicScale,'Store Inputs'!$C:$D,2,FALSE))*(EFs!$D$4:$D$3351=Deployment_Year)*(EFs!$E$4:$E$3351=IF(C13="Gasoline","G",IF(C13="Diesel","D",C13)))*EFs!$Q$4:$Q$3351))))) -> -
B14: - | C14: - | D14: - | E14: - | L14: =IF(B14="-",B14, IF(OR(D14=0,AND(B14<>"Single Unit Short Haul",C14="Gasoline"),AND(OR(D14="B20 (Biodiesel)",D14="R100 (Renewable Diesel)"),C14="Gasoline"),AND(OR(B14="Single Unit Short Haul",B14="Single Unit Long Haul"),Deployment_GeographicScale="Distribution Center"),AND(B14<>"Combination Unit Short Haul",Deployment_GeographicScale="Port"),D14="B20 (Biodiesel)",D14="R100 (Renewable Diesel)",SUMPRODUCT((RRFs!$B$4:$B$35=D14)*OR(RRFs!$C$4:$C$35=IF(C14="Gasoline","G",IF(C14="Diesel","D",C14)),RRFs!$C$4:$C$35="A")*INDIRECT(VLOOKUP(B14&" Incr Cost",RRFs!$AO:$AP,2,FALSE)))=-999999),"N/A", SUMPRODUCT((RRFs!$B$4:$B$35=D14)*OR(RRFs!$C$4:$C$35=IF(C14="Gasoline","G",IF(C14="Diesel","D",C14)),RRFs!$C$4:$C$35="A")*INDIRECT(VLOOKUP(B14&" Incr Cost",RRFs!$AO:$AP,2,FALSE))) + IF(AND(Deployment_Type_of_Modification<>"Alternative Fuels",Deployment_Type_of_Modification<>"Accelerated Retirement"),0, IF(OR(D14="B20 (Biodiesel)",D14="R100 (Renewable Diesel)"),0, SUMPRODUCT((EFs!$A$4:$A$3351=Deployment_Year)*(EFs!$B$4:$B$3351=VLOOKUP(B14,'Store Inputs'!$F:$G,2,FALSE))*(EFs!$C$4:$C$3351=VLOOKUP(Deployment_GeographicScale,'Store Inputs'!$C:$D,2,FALSE))*(EFs!$D$4:$D$3351=Deployment_Year)*(EFs!$E$4:$E$3351=IF(C14="Gasoline","G",IF(C14="Diesel","D",C14)))*EFs!$Q$4:$Q$3351))))) -> -
B15: - | C15: - | D15: - | E15: - | L15: =IF(B15="-",B15, IF(OR(D15=0,AND(B15<>"Single Unit Short Haul",C15="Gasoline"),AND(OR(D15="B20 (Biodiesel)",D15="R100 (Renewable Diesel)"),C15="Gasoline"),AND(OR(B15="Single Unit Short Haul",B15="Single Unit Long Haul"),Deployment_GeographicScale="Distribution Center"),AND(B15<>"Combination Unit Short Haul",Deployment_GeographicScale="Port"),D15="B20 (Biodiesel)",D15="R100 (Renewable Diesel)",SUMPRODUCT((RRFs!$B$4:$B$35=D15)*OR(RRFs!$C$4:$C$35=IF(C15="Gasoline","G",IF(C15="Diesel","D",C15)),RRFs!$C$4:$C$35="A")*INDIRECT(VLOOKUP(B15&" Incr Cost",RRFs!$AO:$AP,2,FALSE)))=-999999),"N/A", SUMPRODUCT((RRFs!$B$4:$B$35=D15)*OR(RRFs!$C$4:$C$35=IF(C15="Gasoline","G",IF(C15="Diesel","D",C15)),RRFs!$C$4:$C$35="A")*INDIRECT(VLOOKUP(B15&" Incr Cost",RRFs!$AO:$AP,2,FALSE))) + IF(AND(Deployment_Type_of_Modification<>"Alternative Fuels",Deployment_Type_of_Modification<>"Accelerated Retirement"),0, IF(OR(D15="B20 (Biodiesel)",D15="R100 (Renewable Diesel)"),0, SUMPRODUCT((EFs!$A$4:$A$3351=Deployment_Year)*(EFs!$B$4:$B$3351=VLOOKUP(B15,'Store Inputs'!$F:$G,2,FALSE))*(EFs!$C$4:$C$3351=VLOOKUP(Deployment_GeographicScale,'Store Inputs'!$C:$D,2,FALSE))*(EFs!$D$4:$D$3351=Deployment_Year)*(EFs!$E$4:$E$3351=IF(C15="Gasoline","G",IF(C15="Diesel","D",C15)))*EFs!$Q$4:$Q$3351))))) -> -
B16: - | C16: - | D16: - | E16: - | L16: =IF(B16="-",B16, IF(OR(D16=0,AND(B16<>"Single Unit Short Haul",C16="Gasoline"),AND(OR(D16="B20 (Biodiesel)",D16="R100 (Renewable Diesel)"),C16="Gasoline"),AND(OR(B16="Single Unit Short Haul",B16="Single Unit Long Haul"),Deployment_GeographicScale="Distribution Center"),AND(B16<>"Combination Unit Short Haul",Deployment_GeographicScale="Port"),D16="B20 (Biodiesel)",D16="R100 (Renewable Diesel)",SUMPRODUCT((RRFs!$B$4:$B$35=D16)*OR(RRFs!$C$4:$C$35=IF(C16="Gasoline","G",IF(C16="Diesel","D",C16)),RRFs!$C$4:$C$35="A")*INDIRECT(VLOOKUP(B16&" Incr Cost",RRFs!$AO:$AP,2,FALSE)))=-999999),"N/A", SUMPRODUCT((RRFs!$B$4:$B$35=D16)*OR(RRFs!$C$4:$C$35=IF(C16="Gasoline","G",IF(C16="Diesel","D",C16)),RRFs!$C$4:$C$35="A")*INDIRECT(VLOOKUP(B16&" Incr Cost",RRFs!$AO:$AP,2,FALSE))) + IF(AND(Deployment_Type_of_Modification<>"Alternative Fuels",Deployment_Type_of_Modification<>"Accelerated Retirement"),0, IF(OR(D16="B20 (Biodiesel)",D16="R100 (Renewable Diesel)"),0, SUMPRODUCT((EFs!$A$4:$A$3351=Deployment_Year)*(EFs!$B$4:$B$3351=VLOOKUP(B16,'Store Inputs'!$F:$G,2,FALSE))*(EFs!$C$4:$C$3351=VLOOKUP(Deployment_GeographicScale,'Store Inputs'!$C:$D,2,FALSE))*(EFs!$D$4:$D$3351=Deployment_Year)*(EFs!$E$4:$E$3351=IF(C16="Gasoline","G",IF(C16="Diesel","D",C16)))*EFs!$Q$4:$Q$3351))))) -> -
B17: - | C17: - | D17: - | E17: - | L17: =IF(B17="-",B17, IF(OR(D17=0,AND(B17<>"Single Unit Short Haul",C17="Gasoline"),AND(OR(D17="B20 (Biodiesel)",D17="R100 (Renewable Diesel)"),C17="Gasoline"),AND(OR(B17="Single Unit Short Haul",B17="Single Unit Long Haul"),Deployment_GeographicScale="Distribution Center"),AND(B17<>"Combination Unit Short Haul",Deployment_GeographicScale="Port"),D17="B20 (Biodiesel)",D17="R100 (Renewable Diesel)",SUMPRODUCT((RRFs!$B$4:$B$35=D17)*OR(RRFs!$C$4:$C$35=IF(C17="Gasoline","G",IF(C17="Diesel","D",C17)),RRFs!$C$4:$C$35="A")*INDIRECT(VLOOKUP(B17&" Incr Cost",RRFs!$AO:$AP,2,FALSE)))=-999999),"N/A", SUMPRODUCT((RRFs!$B$4:$B$35=D17)*OR(RRFs!$C$4:$C$35=IF(C17="Gasoline","G",IF(C17="Diesel","D",C17)),RRFs!$C$4:$C$35="A")*INDIRECT(VLOOKUP(B17&" Incr Cost",RRFs!$AO:$AP,2,FALSE))) + IF(AND(Deployment_Type_of_Modification<>"Alternative Fuels",Deployment_Type_of_Modification<>"Accelerated Retirement"),0, IF(OR(D17="B20 (Biodiesel)",D17="R100 (Renewable Diesel)"),0, SUMPRODUCT((EFs!$A$4:$A$3351=Deployment_Year)*(EFs!$B$4:$B$3351=VLOOKUP(B17,'Store Inputs'!$F:$G,2,FALSE))*(EFs!$C$4:$C$3351=VLOOKUP(Deployment_GeographicScale,'Store Inputs'!$C:$D,2,FALSE))*(EFs!$D$4:$D$3351=Deployment_Year)*(EFs!$E$4:$E$3351=IF(C17="Gasoline","G",IF(C17="Diesel","D",C17)))*EFs!$Q$4:$Q$3351))))) -> -
B18: - | C18: - | D18: - | E18: - | L18: =IF(B18="-",B18, IF(OR(D18=0,AND(B18<>"Single Unit Short Haul",C18="Gasoline"),AND(OR(D18="B20 (Biodiesel)",D18="R100 (Renewable Diesel)"),C18="Gasoline"),AND(OR(B18="Single Unit Short Haul",B18="Single Unit Long Haul"),Deployment_GeographicScale="Distribution Center"),AND(B18<>"Combination Unit Short Haul",Deployment_GeographicScale="Port"),D18="B20 (Biodiesel)",D18="R100 (Renewable Diesel)",SUMPRODUCT((RRFs!$B$4:$B$35=D18)*OR(RRFs!$C$4:$C$35=IF(C18="Gasoline","G",IF(C18="Diesel","D",C18)),RRFs!$C$4:$C$35="A")*INDIRECT(VLOOKUP(B18&" Incr Cost",RRFs!$AO:$AP,2,FALSE)))=-999999),"N/A", SUMPRODUCT((RRFs!$B$4:$B$35=D18)*OR(RRFs!$C$4:$C$35=IF(C18="Gasoline","G",IF(C18="Diesel","D",C18)),RRFs!$C$4:$C$35="A")*INDIRECT(VLOOKUP(B18&" Incr Cost",RRFs!$AO:$AP,2,FALSE))) + IF(AND(Deployment_Type_of_Modification<>"Alternative Fuels",Deployment_Type_of_Modification<>"Accelerated Retirement"),0, IF(OR(D18="B20 (Biodiesel)",D18="R100 (Renewable Diesel)"),0, SUMPRODUCT((EFs!$A$4:$A$3351=Deployment_Year)*(EFs!$B$4:$B$3351=VLOOKUP(B18,'Store Inputs'!$F:$G,2,FALSE))*(EFs!$C$4:$C$3351=VLOOKUP(Deployment_GeographicScale,'Store Inputs'!$C:$D,2,FALSE))*(EFs!$D$4:$D$3351=Deployment_Year)*(EFs!$E$4:$E$3351=IF(C18="Gasoline","G",IF(C18="Diesel","D",C18)))*EFs!$Q$4:$Q$3351))))) -> -
B19: - | C19: - | D19: - | E19: - | L19: =IF(B19="-",B19, IF(OR(D19=0,AND(B19<>"Single Unit Short Haul",C19="Gasoline"),AND(OR(D19="B20 (Biodiesel)",D19="R100 (Renewable Diesel)"),C19="Gasoline"),AND(OR(B19="Single Unit Short Haul",B19="Single Unit Long Haul"),Deployment_GeographicScale="Distribution Center"),AND(B19<>"Combination Unit Short Haul",Deployment_GeographicScale="Port"),D19="B20 (Biodiesel)",D19="R100 (Renewable Diesel)",SUMPRODUCT((RRFs!$B$4:$B$35=D19)*OR(RRFs!$C$4:$C$35=IF(C19="Gasoline","G",IF(C19="Diesel","D",C19)),RRFs!$C$4:$C$35="A")*INDIRECT(VLOOKUP(B19&" Incr Cost",RRFs!$AO:$AP,2,FALSE)))=-999999),"N/A", SUMPRODUCT((RRFs!$B$4:$B$35=D19)*OR(RRFs!$C$4:$C$35=IF(C19="Gasoline","G",IF(C19="Diesel","D",C19)),RRFs!$C$4:$C$35="A")*INDIRECT(VLOOKUP(B19&" Incr Cost",RRFs!$AO:$AP,2,FALSE))) + IF(AND(Deployment_Type_of_Modification<>"Alternative Fuels",Deployment_Type_of_Modification<>"Accelerated Retirement"),0, IF(OR(D19="B20 (Biodiesel)",D19="R100 (Renewable Diesel)"),0, SUMPRODUCT((EFs!$A$4:$A$3351=Deployment_Year)*(EFs!$B$4:$B$3351=VLOOKUP(B19,'Store Inputs'!$F:$G,2,FALSE))*(EFs!$C$4:$C$3351=VLOOKUP(Deployment_GeographicScale,'Store Inputs'!$C:$D,2,FALSE))*(EFs!$D$4:$D$3351=Deployment_Year)*(EFs!$E$4:$E$3351=IF(C19="Gasoline","G",IF(C19="Diesel","D",C19)))*EFs!$Q$4:$Q$3351))))) -> -
B20: - | C20: - | D20: - | E20: - | L20: =IF(B20="-",B20, IF(OR(D20=0,AND(B20<>"Single Unit Short Haul",C20="Gasoline"),AND(OR(D20="B20 (Biodiesel)",D20="R100 (Renewable Diesel)"),C20="Gasoline"),AND(OR(B20="Single Unit Short Haul",B20="Single Unit Long Haul"),Deployment_GeographicScale="Distribution Center"),AND(B20<>"Combination Unit Short Haul",Deployment_GeographicScale="Port"),D20="B20 (Biodiesel)",D20="R100 (Renewable Diesel)",SUMPRODUCT((RRFs!$B$4:$B$35=D20)*OR(RRFs!$C$4:$C$35=IF(C20="Gasoline","G",IF(C20="Diesel","D",C20)),RRFs!$C$4:$C$35="A")*INDIRECT(VLOOKUP(B20&" Incr Cost",RRFs!$AO:$AP,2,FALSE)))=-999999),"N/A", SUMPRODUCT((RRFs!$B$4:$B$35=D20)*OR(RRFs!$C$4:$C$35=IF(C20="Gasoline","G",IF(C20="Diesel","D",C20)),RRFs!$C$4:$C$35="A")*INDIRECT(VLOOKUP(B20&" Incr Cost",RRFs!$AO:$AP,2,FALSE))) + IF(AND(Deployment_Type_of_Modification<>"Alternative Fuels",Deployment_Type_of_Modification<>"Accelerated Retirement"),0, IF(OR(D20="B20 (Biodiesel)",D20="R100 (Renewable Diesel)"),0, SUMPRODUCT((EFs!$A$4:$A$3351=Deployment_Year)*(EFs!$B$4:$B$3351=VLOOKUP(B20,'Store Inputs'!$F:$G,2,FALSE))*(EFs!$C$4:$C$3351=VLOOKUP(Deployment_GeographicScale,'Store Inputs'!$C:$D,2,FALSE))*(EFs!$D$4:$D$3351=Deployment_Year)*(EFs!$E$4:$E$3351=IF(C20="Gasoline","G",IF(C20="Diesel","D",C20)))*EFs!$Q$4:$Q$3351))))) -> -
B21: - | C21: - | D21: - | E21: - | L21: =IF(B21="-",B21, IF(OR(D21=0,AND(B21<>"Single Unit Short Haul",C21="Gasoline"),AND(OR(D21="B20 (Biodiesel)",D21="R100 (Renewable Diesel)"),C21="Gasoline"),AND(OR(B21="Single Unit Short Haul",B21="Single Unit Long Haul"),Deployment_GeographicScale="Distribution Center"),AND(B21<>"Combination Unit Short Haul",Deployment_GeographicScale="Port"),D21="B20 (Biodiesel)",D21="R100 (Renewable Diesel)",SUMPRODUCT((RRFs!$B$4:$B$35=D21)*OR(RRFs!$C$4:$C$35=IF(C21="Gasoline","G",IF(C21="Diesel","D",C21)),RRFs!$C$4:$C$35="A")*INDIRECT(VLOOKUP(B21&" Incr Cost",RRFs!$AO:$AP,2,FALSE)))=-999999),"N/A", SUMPRODUCT((RRFs!$B$4:$B$35=D21)*OR(RRFs!$C$4:$C$35=IF(C21="Gasoline","G",IF(C21="Diesel","D",C21)),RRFs!$C$4:$C$35="A")*INDIRECT(VLOOKUP(B21&" Incr Cost",RRFs!$AO:$AP,2,FALSE))) + IF(AND(Deployment_Type_of_Modification<>"Alternative Fuels",Deployment_Type_of_Modification<>"Accelerated Retirement"),0, IF(OR(D21="B20 (Biodiesel)",D21="R100 (Renewable Diesel)"),0, SUMPRODUCT((EFs!$A$4:$A$3351=Deployment_Year)*(EFs!$B$4:$B$3351=VLOOKUP(B21,'Store Inputs'!$F:$G,2,FALSE))*(EFs!$C$4:$C$3351=VLOOKUP(Deployment_GeographicScale,'Store Inputs'!$C:$D,2,FALSE))*(EFs!$D$4:$D$3351=Deployment_Year)*(EFs!$E$4:$E$3351=IF(C21="Gasoline","G",IF(C21="Diesel","D",C21)))*EFs!$Q$4:$Q$3351))))) -> -
B22: - | C22: - | D22: - | E22: - | L22: =IF(B22="-",B22, IF(OR(D22=0,AND(B22<>"Single Unit Short Haul",C22="Gasoline"),AND(OR(D22="B20 (Biodiesel)",D22="R100 (Renewable Diesel)"),C22="Gasoline"),AND(OR(B22="Single Unit Short Haul",B22="Single Unit Long Haul"),Deployment_GeographicScale="Distribution Center"),AND(B22<>"Combination Unit Short Haul",Deployment_GeographicScale="Port"),D22="B20 (Biodiesel)",D22="R100 (Renewable Diesel)",SUMPRODUCT((RRFs!$B$4:$B$35=D22)*OR(RRFs!$C$4:$C$35=IF(C22="Gasoline","G",IF(C22="Diesel","D",C22)),RRFs!$C$4:$C$35="A")*INDIRECT(VLOOKUP(B22&" Incr Cost",RRFs!$AO:$AP,2,FALSE)))=-999999),"N/A", SUMPRODUCT((RRFs!$B$4:$B$35=D22)*OR(RRFs!$C$4:$C$35=IF(C22="Gasoline","G",IF(C22="Diesel","D",C22)),RRFs!$C$4:$C$35="A")*INDIRECT(VLOOKUP(B22&" Incr Cost",RRFs!$AO:$AP,2,FALSE))) + IF(AND(Deployment_Type_of_Modification<>"Alternative Fuels",Deployment_Type_of_Modification<>"Accelerated Retirement"),0, IF(OR(D22="B20 (Biodiesel)",D22="R100 (Renewable Diesel)"),0, SUMPRODUCT((EFs!$A$4:$A$3351=Deployment_Year)*(EFs!$B$4:$B$3351=VLOOKUP(B22,'Store Inputs'!$F:$G,2,FALSE))*(EFs!$C$4:$C$3351=VLOOKUP(Deployment_GeographicScale,'Store Inputs'!$C:$D,2,FALSE))*(EFs!$D$4:$D$3351=Deployment_Year)*(EFs!$E$4:$E$3351=IF(C22="Gasoline","G",IF(C22="Diesel","D",C22)))*EFs!$Q$4:$Q$3351))))) -> -
B23: - | C23: - | D23: - | E23: - | L23: =IF(B23="-",B23, IF(OR(D23=0,AND(B23<>"Single Unit Short Haul",C23="Gasoline"),AND(OR(D23="B20 (Biodiesel)",D23="R100 (Renewable Diesel)"),C23="Gasoline"),AND(OR(B23="Single Unit Short Haul",B23="Single Unit Long Haul"),Deployment_GeographicScale="Distribution Center"),AND(B23<>"Combination Unit Short Haul",Deployment_GeographicScale="Port"),D23="B20 (Biodiesel)",D23="R100 (Renewable Diesel)",SUMPRODUCT((RRFs!$B$4:$B$35=D23)*OR(RRFs!$C$4:$C$35=IF(C23="Gasoline","G",IF(C23="Diesel","D",C23)),RRFs!$C$4:$C$35="A")*INDIRECT(VLOOKUP(B23&" Incr Cost",RRFs!$AO:$AP,2,FALSE)))=-999999),"N/A", SUMPRODUCT((RRFs!$B$4:$B$35=D23)*OR(RRFs!$C$4:$C$35=IF(C23="Gasoline","G",IF(C23="Diesel","D",C23)),RRFs!$C$4:$C$35="A")*INDIRECT(VLOOKUP(B23&" Incr Cost",RRFs!$AO:$AP,2,FALSE))) + IF(AND(Deployment_Type_of_Modification<>"Alternative Fuels",Deployment_Type_of_Modification<>"Accelerated Retirement"),0, IF(OR(D23="B20 (Biodiesel)",D23="R100 (Renewable Diesel)"),0, SUMPRODUCT((EFs!$A$4:$A$3351=Deployment_Year)*(EFs!$B$4:$B$3351=VLOOKUP(B23,'Store Inputs'!$F:$G,2,FALSE))*(EFs!$C$4:$C$3351=VLOOKUP(Deployment_GeographicScale,'Store Inputs'!$C:$D,2,FALSE))*(EFs!$D$4:$D$3351=Deployment_Year)*(EFs!$E$4:$E$3351=IF(C23="Gasoline","G",IF(C23="Diesel","D",C23)))*EFs!$Q$4:$Q$3351))))) -> -
B24: - | C24: - | D24: - | E24: - | L24: =IF(B24="-",B24, IF(OR(D24=0,AND(B24<>"Single Unit Short Haul",C24="Gasoline"),AND(OR(D24="B20 (Biodiesel)",D24="R100 (Renewable Diesel)"),C24="Gasoline"),AND(OR(B24="Single Unit Short Haul",B24="Single Unit Long Haul"),Deployment_GeographicScale="Distribution Center"),AND(B24<>"Combination Unit Short Haul",Deployment_GeographicScale="Port"),D24="B20 (Biodiesel)",D24="R100 (Renewable Diesel)",SUMPRODUCT((RRFs!$B$4:$B$35=D24)*OR(RRFs!$C$4:$C$35=IF(C24="Gasoline","G",IF(C24="Diesel","D",C24)),RRFs!$C$4:$C$35="A")*INDIRECT(VLOOKUP(B24&" Incr Cost",RRFs!$AO:$AP,2,FALSE)))=-999999),"N/A", SUMPRODUCT((RRFs!$B$4:$B$35=D24)*OR(RRFs!$C$4:$C$35=IF(C24="Gasoline","G",IF(C24="Diesel","D",C24)),RRFs!$C$4:$C$35="A")*INDIRECT(VLOOKUP(B24&" Incr Cost",RRFs!$AO:$AP,2,FALSE))) + IF(AND(Deployment_Type_of_Modification<>"Alternative Fuels",Deployment_Type_of_Modification<>"Accelerated Retirement"),0, IF(OR(D24="B20 (Biodiesel)",D24="R100 (Renewable Diesel)"),0, SUMPRODUCT((EFs!$A$4:$A$3351=Deployment_Year)*(EFs!$B$4:$B$3351=VLOOKUP(B24,'Store Inputs'!$F:$G,2,FALSE))*(EFs!$C$4:$C$3351=VLOOKUP(Deployment_GeographicScale,'Store Inputs'!$C:$D,2,FALSE))*(EFs!$D$4:$D$3351=Deployment_Year)*(EFs!$E$4:$E$3351=IF(C24="Gasoline","G",IF(C24="Diesel","D",C24)))*EFs!$Q$4:$Q$3351))))) -> -
B25: - | C25: - | D25: - | E25: - | L25: =IF(B25="-",B25, IF(OR(D25=0,AND(B25<>"Single Unit Short Haul",C25="Gasoline"),AND(OR(D25="B20 (Biodiesel)",D25="R100 (Renewable Diesel)"),C25="Gasoline"),AND(OR(B25="Single Unit Short Haul",B25="Single Unit Long Haul"),Deployment_GeographicScale="Distribution Center"),AND(B25<>"Combination Unit Short Haul",Deployment_GeographicScale="Port"),D25="B20 (Biodiesel)",D25="R100 (Renewable Diesel)",SUMPRODUCT((RRFs!$B$4:$B$35=D25)*OR(RRFs!$C$4:$C$35=IF(C25="Gasoline","G",IF(C25="Diesel","D",C25)),RRFs!$C$4:$C$35="A")*INDIRECT(VLOOKUP(B25&" Incr Cost",RRFs!$AO:$AP,2,FALSE)))=-999999),"N/A", SUMPRODUCT((RRFs!$B$4:$B$35=D25)*OR(RRFs!$C$4:$C$35=IF(C25="Gasoline","G",IF(C25="Diesel","D",C25)),RRFs!$C$4:$C$35="A")*INDIRECT(VLOOKUP(B25&" Incr Cost",RRFs!$AO:$AP,2,FALSE))) + IF(AND(Deployment_Type_of_Modification<>"Alternative Fuels",Deployment_Type_of_Modification<>"Accelerated Retirement"),0, IF(OR(D25="B20 (Biodiesel)",D25="R100 (Renewable Diesel)"),0, SUMPRODUCT((EFs!$A$4:$A$3351=Deployment_Year)*(EFs!$B$4:$B$3351=VLOOKUP(B25,'Store Inputs'!$F:$G,2,FALSE))*(EFs!$C$4:$C$3351=VLOOKUP(Deployment_GeographicScale,'Store Inputs'!$C:$D,2,FALSE))*(EFs!$D$4:$D$3351=Deployment_Year)*(EFs!$E$4:$E$3351=IF(C25="Gasoline","G",IF(C25="Diesel","D",C25)))*EFs!$Q$4:$Q$3351))))) -> -
B26: - | C26: - | D26: - | E26: - | L26: =IF(B26="-",B26, IF(OR(D26=0,AND(B26<>"Single Unit Short Haul",C26="Gasoline"),AND(OR(D26="B20 (Biodiesel)",D26="R100 (Renewable Diesel)"),C26="Gasoline"),AND(OR(B26="Single Unit Short Haul",B26="Single Unit Long Haul"),Deployment_GeographicScale="Distribution Center"),AND(B26<>"Combination Unit Short Haul",Deployment_GeographicScale="Port"),D26="B20 (Biodiesel)",D26="R100 (Renewable Diesel)",SUMPRODUCT((RRFs!$B$4:$B$35=D26)*OR(RRFs!$C$4:$C$35=IF(C26="Gasoline","G",IF(C26="Diesel","D",C26)),RRFs!$C$4:$C$35="A")*INDIRECT(VLOOKUP(B26&" Incr Cost",RRFs!$AO:$AP,2,FALSE)))=-999999),"N/A", SUMPRODUCT((RRFs!$B$4:$B$35=D26)*OR(RRFs!$C$4:$C$35=IF(C26="Gasoline","G",IF(C26="Diesel","D",C26)),RRFs!$C$4:$C$35="A")*INDIRECT(VLOOKUP(B26&" Incr Cost",RRFs!$AO:$AP,2,FALSE))) + IF(AND(Deployment_Type_of_Modification<>"Alternative Fuels",Deployment_Type_of_Modification<>"Accelerated Retirement"),0, IF(OR(D26="B20 (Biodiesel)",D26="R100 (Renewable Diesel)"),0, SUMPRODUCT((EFs!$A$4:$A$3351=Deployment_Year)*(EFs!$B$4:$B$3351=VLOOKUP(B26,'Store Inputs'!$F:$G,2,FALSE))*(EFs!$C$4:$C$3351=VLOOKUP(Deployment_GeographicScale,'Store Inputs'!$C:$D,2,FALSE))*(EFs!$D$4:$D$3351=Deployment_Year)*(EFs!$E$4:$E$3351=IF(C26="Gasoline","G",IF(C26="Diesel","D",C26)))*EFs!$Q$4:$Q$3351))))) -> -
B27: - | C27: - | D27: - | E27: - | L27: =IF(B27="-",B27, IF(OR(D27=0,AND(B27<>"Single Unit Short Haul",C27="Gasoline"),AND(OR(D27="B20 (Biodiesel)",D27="R100 (Renewable Diesel)"),C27="Gasoline"),AND(OR(B27="Single Unit Short Haul",B27="Single Unit Long Haul"),Deployment_GeographicScale="Distribution Center"),AND(B27<>"Combination Unit Short Haul",Deployment_GeographicScale="Port"),D27="B20 (Biodiesel)",D27="R100 (Renewable Diesel)",SUMPRODUCT((RRFs!$B$4:$B$35=D27)*OR(RRFs!$C$4:$C$35=IF(C27="Gasoline","G",IF(C27="Diesel","D",C27)),RRFs!$C$4:$C$35="A")*INDIRECT(VLOOKUP(B27&" Incr Cost",RRFs!$AO:$AP,2,FALSE)))=-999999),"N/A", SUMPRODUCT((RRFs!$B$4:$B$35=D27)*OR(RRFs!$C$4:$C$35=IF(C27="Gasoline","G",IF(C27="Diesel","D",C27)),RRFs!$C$4:$C$35="A")*INDIRECT(VLOOKUP(B27&" Incr Cost",RRFs!$AO:$AP,2,FALSE))) + IF(AND(Deployment_Type_of_Modification<>"Alternative Fuels",Deployment_Type_of_Modification<>"Accelerated Retirement"),0, IF(OR(D27="B20 (Biodiesel)",D27="R100 (Renewable Diesel)"),0, SUMPRODUCT((EFs!$A$4:$A$3351=Deployment_Year)*(EFs!$B$4:$B$3351=VLOOKUP(B27,'Store Inputs'!$F:$G,2,FALSE))*(EFs!$C$4:$C$3351=VLOOKUP(Deployment_GeographicScale,'Store Inputs'!$C:$D,2,FALSE))*(EFs!$D$4:$D$3351=Deployment_Year)*(EFs!$E$4:$E$3351=IF(C27="Gasoline","G",IF(C27="Diesel","D",C27)))*EFs!$Q$4:$Q$3351))))) -> -
B28: - | C28: - | D28: - | E28: - | L28: =IF(B28="-",B28, IF(OR(D28=0,AND(B28<>"Single Unit Short Haul",C28="Gasoline"),AND(OR(D28="B20 (Biodiesel)",D28="R100 (Renewable Diesel)"),C28="Gasoline"),AND(OR(B28="Single Unit Short Haul",B28="Single Unit Long Haul"),Deployment_GeographicScale="Distribution Center"),AND(B28<>"Combination Unit Short Haul",Deployment_GeographicScale="Port"),D28="B20 (Biodiesel)",D28="R100 (Renewable Diesel)",SUMPRODUCT((RRFs!$B$4:$B$35=D28)*OR(RRFs!$C$4:$C$35=IF(C28="Gasoline","G",IF(C28="Diesel","D",C28)),RRFs!$C$4:$C$35="A")*INDIRECT(VLOOKUP(B28&" Incr Cost",RRFs!$AO:$AP,2,FALSE)))=-999999),"N/A", SUMPRODUCT((RRFs!$B$4:$B$35=D28)*OR(RRFs!$C$4:$C$35=IF(C28="Gasoline","G",IF(C28="Diesel","D",C28)),RRFs!$C$4:$C$35="A")*INDIRECT(VLOOKUP(B28&" Incr Cost",RRFs!$AO:$AP,2,FALSE))) + IF(AND(Deployment_Type_of_Modification<>"Alternative Fuels",Deployment_Type_of_Modification<>"Accelerated Retirement"),0, IF(OR(D28="B20 (Biodiesel)",D28="R100 (Renewable Diesel)"),0, SUMPRODUCT((EFs!$A$4:$A$3351=Deployment_Year)*(EFs!$B$4:$B$3351=VLOOKUP(B28,'Store Inputs'!$F:$G,2,FALSE))*(EFs!$C$4:$C$3351=VLOOKUP(Deployment_GeographicScale,'Store Inputs'!$C:$D,2,FALSE))*(EFs!$D$4:$D$3351=Deployment_Year)*(EFs!$E$4:$E$3351=IF(C28="Gasoline","G",IF(C28="Diesel","D",C28)))*EFs!$Q$4:$Q$3351))))) -> -
B29: - | C29: - | D29: - | E29: - | L29: =IF(B29="-",B29, IF(OR(D29=0,AND(B29<>"Single Unit Short Haul",C29="Gasoline"),AND(OR(D29="B20 (Biodiesel)",D29="R100 (Renewable Diesel)"),C29="Gasoline"),AND(OR(B29="Single Unit Short Haul",B29="Single Unit Long Haul"),Deployment_GeographicScale="Distribution Center"),AND(B29<>"Combination Unit Short Haul",Deployment_GeographicScale="Port"),D29="B20 (Biodiesel)",D29="R100 (Renewable Diesel)",SUMPRODUCT((RRFs!$B$4:$B$35=D29)*OR(RRFs!$C$4:$C$35=IF(C29="Gasoline","G",IF(C29="Diesel","D",C29)),RRFs!$C$4:$C$35="A")*INDIRECT(VLOOKUP(B29&" Incr Cost",RRFs!$AO:$AP,2,FALSE)))=-999999),"N/A", SUMPRODUCT((RRFs!$B$4:$B$35=D29)*OR(RRFs!$C$4:$C$35=IF(C29="Gasoline","G",IF(C29="Diesel","D",C29)),RRFs!$C$4:$C$35="A")*INDIRECT(VLOOKUP(B29&" Incr Cost",RRFs!$AO:$AP,2,FALSE))) + IF(AND(Deployment_Type_of_Modification<>"Alternative Fuels",Deployment_Type_of_Modification<>"Accelerated Retirement"),0, IF(OR(D29="B20 (Biodiesel)",D29="R100 (Renewable Diesel)"),0, SUMPRODUCT((EFs!$A$4:$A$3351=Deployment_Year)*(EFs!$B$4:$B$3351=VLOOKUP(B29,'Store Inputs'!$F:$G,2,FALSE))*(EFs!$C$4:$C$3351=VLOOKUP(Deployment_GeographicScale,'Store Inputs'!$C:$D,2,FALSE))*(EFs!$D$4:$D$3351=Deployment_Year)*(EFs!$E$4:$E$3351=IF(C29="Gasoline","G",IF(C29="Diesel","D",C29)))*EFs!$Q$4:$Q$3351))))) -> -
B30: - | C30: - | D30: - | E30: - | L30: =IF(B30="-",B30, IF(OR(D30=0,AND(B30<>"Single Unit Short Haul",C30="Gasoline"),AND(OR(D30="B20 (Biodiesel)",D30="R100 (Renewable Diesel)"),C30="Gasoline"),AND(OR(B30="Single Unit Short Haul",B30="Single Unit Long Haul"),Deployment_GeographicScale="Distribution Center"),AND(B30<>"Combination Unit Short Haul",Deployment_GeographicScale="Port"),D30="B20 (Biodiesel)",D30="R100 (Renewable Diesel)",SUMPRODUCT((RRFs!$B$4:$B$35=D30)*OR(RRFs!$C$4:$C$35=IF(C30="Gasoline","G",IF(C30="Diesel","D",C30)),RRFs!$C$4:$C$35="A")*INDIRECT(VLOOKUP(B30&" Incr Cost",RRFs!$AO:$AP,2,FALSE)))=-999999),"N/A", SUMPRODUCT((RRFs!$B$4:$B$35=D30)*OR(RRFs!$C$4:$C$35=IF(C30="Gasoline","G",IF(C30="Diesel","D",C30)),RRFs!$C$4:$C$35="A")*INDIRECT(VLOOKUP(B30&" Incr Cost",RRFs!$AO:$AP,2,FALSE))) + IF(AND(Deployment_Type_of_Modification<>"Alternative Fuels",Deployment_Type_of_Modification<>"Accelerated Retirement"),0, IF(OR(D30="B20 (Biodiesel)",D30="R100 (Renewable Diesel)"),0, SUMPRODUCT((EFs!$A$4:$A$3351=Deployment_Year)*(EFs!$B$4:$B$3351=VLOOKUP(B30,'Store Inputs'!$F:$G,2,FALSE))*(EFs!$C$4:$C$3351=VLOOKUP(Deployment_GeographicScale,'Store Inputs'!$C:$D,2,FALSE))*(EFs!$D$4:$D$3351=Deployment_Year)*(EFs!$E$4:$E$3351=IF(C30="Gasoline","G",IF(C30="Diesel","D",C30)))*EFs!$Q$4:$Q$3351))))) -> -
B31: - | C31: - | D31: - | E31: - | L31: =IF(B31="-",B31, IF(OR(D31=0,AND(B31<>"Single Unit Short Haul",C31="Gasoline"),AND(OR(D31="B20 (Biodiesel)",D31="R100 (Renewable Diesel)"),C31="Gasoline"),AND(OR(B31="Single Unit Short Haul",B31="Single Unit Long Haul"),Deployment_GeographicScale="Distribution Center"),AND(B31<>"Combination Unit Short Haul",Deployment_GeographicScale="Port"),D31="B20 (Biodiesel)",D31="R100 (Renewable Diesel)",SUMPRODUCT((RRFs!$B$4:$B$35=D31)*OR(RRFs!$C$4:$C$35=IF(C31="Gasoline","G",IF(C31="Diesel","D",C31)),RRFs!$C$4:$C$35="A")*INDIRECT(VLOOKUP(B31&" Incr Cost",RRFs!$AO:$AP,2,FALSE)))=-999999),"N/A", SUMPRODUCT((RRFs!$B$4:$B$35=D31)*OR(RRFs!$C$4:$C$35=IF(C31="Gasoline","G",IF(C31="Diesel","D",C31)),RRFs!$C$4:$C$35="A")*INDIRECT(VLOOKUP(B31&" Incr Cost",RRFs!$AO:$AP,2,FALSE))) + IF(AND(Deployment_Type_of_Modification<>"Alternative Fuels",Deployment_Type_of_Modification<>"Accelerated Retirement"),0, IF(OR(D31="B20 (Biodiesel)",D31="R100 (Renewable Diesel)"),0, SUMPRODUCT((EFs!$A$4:$A$3351=Deployment_Year)*(EFs!$B$4:$B$3351=VLOOKUP(B31,'Store Inputs'!$F:$G,2,FALSE))*(EFs!$C$4:$C$3351=VLOOKUP(Deployment_GeographicScale,'Store Inputs'!$C:$D,2,FALSE))*(EFs!$D$4:$D$3351=Deployment_Year)*(EFs!$E$4:$E$3351=IF(C31="Gasoline","G",IF(C31="Diesel","D",C31)))*EFs!$Q$4:$Q$3351))))) -> -
B32: - | C32: - | D32: - | E32: - | L32: =IF(B32="-",B32, IF(OR(D32=0,AND(B32<>"Single Unit Short Haul",C32="Gasoline"),AND(OR(D32="B20 (Biodiesel)",D32="R100 (Renewable Diesel)"),C32="Gasoline"),AND(OR(B32="Single Unit Short Haul",B32="Single Unit Long Haul"),Deployment_GeographicScale="Distribution Center"),AND(B32<>"Combination Unit Short Haul",Deployment_GeographicScale="Port"),D32="B20 (Biodiesel)",D32="R100 (Renewable Diesel)",SUMPRODUCT((RRFs!$B$4:$B$35=D32)*OR(RRFs!$C$4:$C$35=IF(C32="Gasoline","G",IF(C32="Diesel","D",C32)),RRFs!$C$4:$C$35="A")*INDIRECT(VLOOKUP(B32&" Incr Cost",RRFs!$AO:$AP,2,FALSE)))=-999999),"N/A", SUMPRODUCT((RRFs!$B$4:$B$35=D32)*OR(RRFs!$C$4:$C$35=IF(C32="Gasoline","G",IF(C32="Diesel","D",C32)),RRFs!$C$4:$C$35="A")*INDIRECT(VLOOKUP(B32&" Incr Cost",RRFs!$AO:$AP,2,FALSE))) + IF(AND(Deployment_Type_of_Modification<>"Alternative Fuels",Deployment_Type_of_Modification<>"Accelerated Retirement"),0, IF(OR(D32="B20 (Biodiesel)",D32="R100 (Renewable Diesel)"),0, SUMPRODUCT((EFs!$A$4:$A$3351=Deployment_Year)*(EFs!$B$4:$B$3351=VLOOKUP(B32,'Store Inputs'!$F:$G,2,FALSE))*(EFs!$C$4:$C$3351=VLOOKUP(Deployment_GeographicScale,'Store Inputs'!$C:$D,2,FALSE))*(EFs!$D$4:$D$3351=Deployment_Year)*(EFs!$E$4:$E$3351=IF(C32="Gasoline","G",IF(C32="Diesel","D",C32)))*EFs!$Q$4:$Q$3351))))) -> -
B33: - | C33: - | D33: - | E33: - | L33: =IF(B33="-",B33, IF(OR(D33=0,AND(B33<>"Single Unit Short Haul",C33="Gasoline"),AND(OR(D33="B20 (Biodiesel)",D33="R100 (Renewable Diesel)"),C33="Gasoline"),AND(OR(B33="Single Unit Short Haul",B33="Single Unit Long Haul"),Deployment_GeographicScale="Distribution Center"),AND(B33<>"Combination Unit Short Haul",Deployment_GeographicScale="Port"),D33="B20 (Biodiesel)",D33="R100 (Renewable Diesel)",SUMPRODUCT((RRFs!$B$4:$B$35=D33)*OR(RRFs!$C$4:$C$35=IF(C33="Gasoline","G",IF(C33="Diesel","D",C33)),RRFs!$C$4:$C$35="A")*INDIRECT(VLOOKUP(B33&" Incr Cost",RRFs!$AO:$AP,2,FALSE)))=-999999),"N/A", SUMPRODUCT((RRFs!$B$4:$B$35=D33)*OR(RRFs!$C$4:$C$35=IF(C33="Gasoline","G",IF(C33="Diesel","D",C33)),RRFs!$C$4:$C$35="A")*INDIRECT(VLOOKUP(B33&" Incr Cost",RRFs!$AO:$AP,2,FALSE))) + IF(AND(Deployment_Type_of_Modification<>"Alternative Fuels",Deployment_Type_of_Modification<>"Accelerated Retirement"),0, IF(OR(D33="B20 (Biodiesel)",D33="R100 (Renewable Diesel)"),0, SUMPRODUCT((EFs!$A$4:$A$3351=Deployment_Year)*(EFs!$B$4:$B$3351=VLOOKUP(B33,'Store Inputs'!$F:$G,2,FALSE))*(EFs!$C$4:$C$3351=VLOOKUP(Deployment_GeographicScale,'Store Inputs'!$C:$D,2,FALSE))*(EFs!$D$4:$D$3351=Deployment_Year)*(EFs!$E$4:$E$3351=IF(C33="Gasoline","G",IF(C33="Diesel","D",C33)))*EFs!$Q$4:$Q$3351))))) -> -
B34: - | C34: - | D34: - | E34: - | L34: =IF(B34="-",B34, IF(OR(D34=0,AND(B34<>"Single Unit Short Haul",C34="Gasoline"),AND(OR(D34="B20 (Biodiesel)",D34="R100 (Renewable Diesel)"),C34="Gasoline"),AND(OR(B34="Single Unit Short Haul",B34="Single Unit Long Haul"),Deployment_GeographicScale="Distribution Center"),AND(B34<>"Combination Unit Short Haul",Deployment_GeographicScale="Port"),D34="B20 (Biodiesel)",D34="R100 (Renewable Diesel)",SUMPRODUCT((RRFs!$B$4:$B$35=D34)*OR(RRFs!$C$4:$C$35=IF(C34="Gasoline","G",IF(C34="Diesel","D",C34)),RRFs!$C$4:$C$35="A")*INDIRECT(VLOOKUP(B34&" Incr Cost",RRFs!$AO:$AP,2,FALSE)))=-999999),"N/A", SUMPRODUCT((RRFs!$B$4:$B$35=D34)*OR(RRFs!$C$4:$C$35=IF(C34="Gasoline","G",IF(C34="Diesel","D",C34)),RRFs!$C$4:$C$35="A")*INDIRECT(VLOOKUP(B34&" Incr Cost",RRFs!$AO:$AP,2,FALSE))) + IF(AND(Deployment_Type_of_Modification<>"Alternative Fuels",Deployment_Type_of_Modification<>"Accelerated Retirement"),0, IF(OR(D34="B20 (Biodiesel)",D34="R100 (Renewable Diesel)"),0, SUMPRODUCT((EFs!$A$4:$A$3351=Deployment_Year)*(EFs!$B$4:$B$3351=VLOOKUP(B34,'Store Inputs'!$F:$G,2,FALSE))*(EFs!$C$4:$C$3351=VLOOKUP(Deployment_GeographicScale,'Store Inputs'!$C:$D,2,FALSE))*(EFs!$D$4:$D$3351=Deployment_Year)*(EFs!$E$4:$E$3351=IF(C34="Gasoline","G",IF(C34="Diesel","D",C34)))*EFs!$Q$4:$Q$3351))))) -> -
B35: - | C35: - | D35: - | E35: - | L35: =IF(B35="-",B35, IF(OR(D35=0,AND(B35<>"Single Unit Short Haul",C35="Gasoline"),AND(OR(D35="B20 (Biodiesel)",D35="R100 (Renewable Diesel)"),C35="Gasoline"),AND(OR(B35="Single Unit Short Haul",B35="Single Unit Long Haul"),Deployment_GeographicScale="Distribution Center"),AND(B35<>"Combination Unit Short Haul",Deployment_GeographicScale="Port"),D35="B20 (Biodiesel)",D35="R100 (Renewable Diesel)",SUMPRODUCT((RRFs!$B$4:$B$35=D35)*OR(RRFs!$C$4:$C$35=IF(C35="Gasoline","G",IF(C35="Diesel","D",C35)),RRFs!$C$4:$C$35="A")*INDIRECT(VLOOKUP(B35&" Incr Cost",RRFs!$AO:$AP,2,FALSE)))=-999999),"N/A", SUMPRODUCT((RRFs!$B$4:$B$35=D35)*OR(RRFs!$C$4:$C$35=IF(C35="Gasoline","G",IF(C35="Diesel","D",C35)),RRFs!$C$4:$C$35="A")*INDIRECT(VLOOKUP(B35&" Incr Cost",RRFs!$AO:$AP,2,FALSE))) + IF(AND(Deployment_Type_of_Modification<>"Alternative Fuels",Deployment_Type_of_Modification<>"Accelerated Retirement"),0, IF(OR(D35="B20 (Biodiesel)",D35="R100 (Renewable Diesel)"),0, SUMPRODUCT((EFs!$A$4:$A$3351=Deployment_Year)*(EFs!$B$4:$B$3351=VLOOKUP(B35,'Store Inputs'!$F:$G,2,FALSE))*(EFs!$C$4:$C$3351=VLOOKUP(Deployment_GeographicScale,'Store Inputs'!$C:$D,2,FALSE))*(EFs!$D$4:$D$3351=Deployment_Year)*(EFs!$E$4:$E$3351=IF(C35="Gasoline","G",IF(C35="Diesel","D",C35)))*EFs!$Q$4:$Q$3351))))) -> -
B36: - | C36: - | D36: - | E36: - | L36: =IF(B36="-",B36, IF(OR(D36=0,AND(B36<>"Single Unit Short Haul",C36="Gasoline"),AND(OR(D36="B20 (Biodiesel)",D36="R100 (Renewable Diesel)"),C36="Gasoline"),AND(OR(B36="Single Unit Short Haul",B36="Single Unit Long Haul"),Deployment_GeographicScale="Distribution Center"),AND(B36<>"Combination Unit Short Haul",Deployment_GeographicScale="Port"),D36="B20 (Biodiesel)",D36="R100 (Renewable Diesel)",SUMPRODUCT((RRFs!$B$4:$B$35=D36)*OR(RRFs!$C$4:$C$35=IF(C36="Gasoline","G",IF(C36="Diesel","D",C36)),RRFs!$C$4:$C$35="A")*INDIRECT(VLOOKUP(B36&" Incr Cost",RRFs!$AO:$AP,2,FALSE)))=-999999),"N/A", SUMPRODUCT((RRFs!$B$4:$B$35=D36)*OR(RRFs!$C$4:$C$35=IF(C36="Gasoline","G",IF(C36="Diesel","D",C36)),RRFs!$C$4:$C$35="A")*INDIRECT(VLOOKUP(B36&" Incr Cost",RRFs!$AO:$AP,2,FALSE))) + IF(AND(Deployment_Type_of_Modification<>"Alternative Fuels",Deployment_Type_of_Modification<>"Accelerated Retirement"),0, IF(OR(D36="B20 (Biodiesel)",D36="R100 (Renewable Diesel)"),0, SUMPRODUCT((EFs!$A$4:$A$3351=Deployment_Year)*(EFs!$B$4:$B$3351=VLOOKUP(B36,'Store Inputs'!$F:$G,2,FALSE))*(EFs!$C$4:$C$3351=VLOOKUP(Deployment_GeographicScale,'Store Inputs'!$C:$D,2,FALSE))*(EFs!$D$4:$D$3351=Deployment_Year)*(EFs!$E$4:$E$3351=IF(C36="Gasoline","G",IF(C36="Diesel","D",C36)))*EFs!$Q$4:$Q$3351))))) -> -
B37: =IF(ROW()-ROW($B$5)<(COUNTA(Deployment_TruckTypes)*COUNTA(Deployment_Specific_Modifications)),INDEX(Deployment_TruckTypes,1+MOD(ROW()-ROW($B$5),COUNTA(Deployment_TruckTypes)),1),"-") -> - | C37: =IF(B37="-",B37,IF(INDEX(Deployment_Fuels,1+MOD(ROW()-ROW($B$5),COUNTA(Deployment_Fuels)),1)="D","Diesel",IF(INDEX(Deployment_Fuels,1+MOD(ROW()-ROW($B$5),COUNTA(Deployment_Fuels)),1)="G","Gasoline",INDEX(Deployment_Fuels,1+MOD(ROW()-ROW($B$5),COUNTA(Deployment_Fuels)),1)))) -> - | D37: =IF(B37="-",B37,INDEX(Deployment_Specific_Modifications,1+MOD(FLOOR((ROW()-ROW($B$5))/COUNTA(Deployment_TruckTypes),1),COUNTA(Deployment_Specific_Modifications)),1)) -> - | E37: - | L37: =IF(B37="-",B37, IF(OR(D37=0,AND(B37<>"Single Unit Short Haul",C37="Gasoline"),AND(OR(D37="B20 (Biodiesel)",D37="R100 (Renewable Diesel)"),C37="Gasoline"),AND(OR(B37="Single Unit Short Haul",B37="Single Unit Long Haul"),Deployment_GeographicScale="Distribution Center"),AND(B37<>"Combination Unit Short Haul",Deployment_GeographicScale="Port"),D37="B20 (Biodiesel)",D37="R100 (Renewable Diesel)",SUMPRODUCT((RRFs!$B$4:$B$35=D37)*OR(RRFs!$C$4:$C$35=IF(C37="Gasoline","G",IF(C37="Diesel","D",C37)),RRFs!$C$4:$C$35="A")*INDIRECT(VLOOKUP(B37&" Incr Cost",RRFs!$AO:$AP,2,FALSE)))=-999999),"N/A", SUMPRODUCT((RRFs!$B$4:$B$35=D37)*OR(RRFs!$C$4:$C$35=IF(C37="Gasoline","G",IF(C37="Diesel","D",C37)),RRFs!$C$4:$C$35="A")*INDIRECT(VLOOKUP(B37&" Incr Cost",RRFs!$AO:$AP,2,FALSE))) + IF(AND(Deployment_Type_of_Modification<>"Alternative Fuels",Deployment_Type_of_Modification<>"Accelerated Retirement"),0, IF(OR(D37="B20 (Biodiesel)",D37="R100 (Renewable Diesel)"),0, SUMPRODUCT((EFs!$A$4:$A$3351=Deployment_Year)*(EFs!$B$4:$B$3351=VLOOKUP(B37,'Store Inputs'!$F:$G,2,FALSE))*(EFs!$C$4:$C$3351=VLOOKUP(Deployment_GeographicScale,'Store Inputs'!$C:$D,2,FALSE))*(EFs!$D$4:$D$3351=Deployment_Year)*(EFs!$E$4:$E$3351=IF(C37="Gasoline","G",IF(C37="Diesel","D",C37)))*EFs!$Q$4:$Q$3351))))) -> -
B38: - | C38: - | D38: - | E38: - | L38: =IF(B38="-",B38, IF(OR(D38=0,AND(B38<>"Single Unit Short Haul",C38="Gasoline"),AND(OR(D38="B20 (Biodiesel)",D38="R100 (Renewable Diesel)"),C38="Gasoline"),AND(OR(B38="Single Unit Short Haul",B38="Single Unit Long Haul"),Deployment_GeographicScale="Distribution Center"),AND(B38<>"Combination Unit Short Haul",Deployment_GeographicScale="Port"),D38="B20 (Biodiesel)",D38="R100 (Renewable Diesel)",SUMPRODUCT((RRFs!$B$4:$B$35=D38)*OR(RRFs!$C$4:$C$35=IF(C38="Gasoline","G",IF(C38="Diesel","D",C38)),RRFs!$C$4:$C$35="A")*INDIRECT(VLOOKUP(B38&" Incr Cost",RRFs!$AO:$AP,2,FALSE)))=-999999),"N/A", SUMPRODUCT((RRFs!$B$4:$B$35=D38)*OR(RRFs!$C$4:$C$35=IF(C38="Gasoline","G",IF(C38="Diesel","D",C38)),RRFs!$C$4:$C$35="A")*INDIRECT(VLOOKUP(B38&" Incr Cost",RRFs!$AO:$AP,2,FALSE))) + IF(AND(Deployment_Type_of_Modification<>"Alternative Fuels",Deployment_Type_of_Modification<>"Accelerated Retirement"),0, IF(OR(D38="B20 (Biodiesel)",D38="R100 (Renewable Diesel)"),0, SUMPRODUCT((EFs!$A$4:$A$3351=Deployment_Year)*(EFs!$B$4:$B$3351=VLOOKUP(B38,'Store Inputs'!$F:$G,2,FALSE))*(EFs!$C$4:$C$3351=VLOOKUP(Deployment_GeographicScale,'Store Inputs'!$C:$D,2,FALSE))*(EFs!$D$4:$D$3351=Deployment_Year)*(EFs!$E$4:$E$3351=IF(C38="Gasoline","G",IF(C38="Diesel","D",C38)))*EFs!$Q$4:$Q$3351))))) -> -
B39: - | C39: - | D39: - | E39: - | L39: =IF(B39="-",B39, IF(OR(D39=0,AND(B39<>"Single Unit Short Haul",C39="Gasoline"),AND(OR(D39="B20 (Biodiesel)",D39="R100 (Renewable Diesel)"),C39="Gasoline"),AND(OR(B39="Single Unit Short Haul",B39="Single Unit Long Haul"),Deployment_GeographicScale="Distribution Center"),AND(B39<>"Combination Unit Short Haul",Deployment_GeographicScale="Port"),D39="B20 (Biodiesel)",D39="R100 (Renewable Diesel)",SUMPRODUCT((RRFs!$B$4:$B$35=D39)*OR(RRFs!$C$4:$C$35=IF(C39="Gasoline","G",IF(C39="Diesel","D",C39)),RRFs!$C$4:$C$35="A")*INDIRECT(VLOOKUP(B39&" Incr Cost",RRFs!$AO:$AP,2,FALSE)))=-999999),"N/A", SUMPRODUCT((RRFs!$B$4:$B$35=D39)*OR(RRFs!$C$4:$C$35=IF(C39="Gasoline","G",IF(C39="Diesel","D",C39)),RRFs!$C$4:$C$35="A")*INDIRECT(VLOOKUP(B39&" Incr Cost",RRFs!$AO:$AP,2,FALSE))) + IF(AND(Deployment_Type_of_Modification<>"Alternative Fuels",Deployment_Type_of_Modification<>"Accelerated Retirement"),0, IF(OR(D39="B20 (Biodiesel)",D39="R100 (Renewable Diesel)"),0, SUMPRODUCT((EFs!$A$4:$A$3351=Deployment_Year)*(EFs!$B$4:$B$3351=VLOOKUP(B39,'Store Inputs'!$F:$G,2,FALSE))*(EFs!$C$4:$C$3351=VLOOKUP(Deployment_GeographicScale,'Store Inputs'!$C:$D,2,FALSE))*(EFs!$D$4:$D$3351=Deployment_Year)*(EFs!$E$4:$E$3351=IF(C39="Gasoline","G",IF(C39="Diesel","D",C39)))*EFs!$Q$4:$Q$3351))))) -> -
B40: - | C40: - | D40: - | E40: - | L40: =IF(B40="-",B40, IF(OR(D40=0,AND(B40<>"Single Unit Short Haul",C40="Gasoline"),AND(OR(D40="B20 (Biodiesel)",D40="R100 (Renewable Diesel)"),C40="Gasoline"),AND(OR(B40="Single Unit Short Haul",B40="Single Unit Long Haul"),Deployment_GeographicScale="Distribution Center"),AND(B40<>"Combination Unit Short Haul",Deployment_GeographicScale="Port"),D40="B20 (Biodiesel)",D40="R100 (Renewable Diesel)",SUMPRODUCT((RRFs!$B$4:$B$35=D40)*OR(RRFs!$C$4:$C$35=IF(C40="Gasoline","G",IF(C40="Diesel","D",C40)),RRFs!$C$4:$C$35="A")*INDIRECT(VLOOKUP(B40&" Incr Cost",RRFs!$AO:$AP,2,FALSE)))=-999999),"N/A", SUMPRODUCT((RRFs!$B$4:$B$35=D40)*OR(RRFs!$C$4:$C$35=IF(C40="Gasoline","G",IF(C40="Diesel","D",C40)),RRFs!$C$4:$C$35="A")*INDIRECT(VLOOKUP(B40&" Incr Cost",RRFs!$AO:$AP,2,FALSE))) + IF(AND(Deployment_Type_of_Modification<>"Alternative Fuels",Deployment_Type_of_Modification<>"Accelerated Retirement"),0, IF(OR(D40="B20 (Biodiesel)",D40="R100 (Renewable Diesel)"),0, SUMPRODUCT((EFs!$A$4:$A$3351=Deployment_Year)*(EFs!$B$4:$B$3351=VLOOKUP(B40,'Store Inputs'!$F:$G,2,FALSE))*(EFs!$C$4:$C$3351=VLOOKUP(Deployment_GeographicScale,'Store Inputs'!$C:$D,2,FALSE))*(EFs!$D$4:$D$3351=Deployment_Year)*(EFs!$E$4:$E$3351=IF(C40="Gasoline","G",IF(C40="Diesel","D",C40)))*EFs!$Q$4:$Q$3351))))) -> -
B41: - | C41: - | D41: - | E41: - | L41: =IF(B41="-",B41, IF(OR(D41=0,AND(B41<>"Single Unit Short Haul",C41="Gasoline"),AND(OR(D41="B20 (Biodiesel)",D41="R100 (Renewable Diesel)"),C41="Gasoline"),AND(OR(B41="Single Unit Short Haul",B41="Single Unit Long Haul"),Deployment_GeographicScale="Distribution Center"),AND(B41<>"Combination Unit Short Haul",Deployment_GeographicScale="Port"),D41="B20 (Biodiesel)",D41="R100 (Renewable Diesel)",SUMPRODUCT((RRFs!$B$4:$B$35=D41)*OR(RRFs!$C$4:$C$35=IF(C41="Gasoline","G",IF(C41="Diesel","D",C41)),RRFs!$C$4:$C$35="A")*INDIRECT(VLOOKUP(B41&" Incr Cost",RRFs!$AO:$AP,2,FALSE)))=-999999),"N/A", SUMPRODUCT((RRFs!$B$4:$B$35=D41)*OR(RRFs!$C$4:$C$35=IF(C41="Gasoline","G",IF(C41="Diesel","D",C41)),RRFs!$C$4:$C$35="A")*INDIRECT(VLOOKUP(B41&" Incr Cost",RRFs!$AO:$AP,2,FALSE))) + IF(AND(Deployment_Type_of_Modification<>"Alternative Fuels",Deployment_Type_of_Modification<>"Accelerated Retirement"),0, IF(OR(D41="B20 (Biodiesel)",D41="R100 (Renewable Diesel)"),0, SUMPRODUCT((EFs!$A$4:$A$3351=Deployment_Year)*(EFs!$B$4:$B$3351=VLOOKUP(B41,'Store Inputs'!$F:$G,2,FALSE))*(EFs!$C$4:$C$3351=VLOOKUP(Deployment_GeographicScale,'Store Inputs'!$C:$D,2,FALSE))*(EFs!$D$4:$D$3351=Deployment_Year)*(EFs!$E$4:$E$3351=IF(C41="Gasoline","G",IF(C41="Diesel","D",C41)))*EFs!$Q$4:$Q$3351))))) -> -
B42: - | C42: - | D42: - | E42: - | L42: =IF(B42="-",B42, IF(OR(D42=0,AND(B42<>"Single Unit Short Haul",C42="Gasoline"),AND(OR(D42="B20 (Biodiesel)",D42="R100 (Renewable Diesel)"),C42="Gasoline"),AND(OR(B42="Single Unit Short Haul",B42="Single Unit Long Haul"),Deployment_GeographicScale="Distribution Center"),AND(B42<>"Combination Unit Short Haul",Deployment_GeographicScale="Port"),D42="B20 (Biodiesel)",D42="R100 (Renewable Diesel)",SUMPRODUCT((RRFs!$B$4:$B$35=D42)*OR(RRFs!$C$4:$C$35=IF(C42="Gasoline","G",IF(C42="Diesel","D",C42)),RRFs!$C$4:$C$35="A")*INDIRECT(VLOOKUP(B42&" Incr Cost",RRFs!$AO:$AP,2,FALSE)))=-999999),"N/A", SUMPRODUCT((RRFs!$B$4:$B$35=D42)*OR(RRFs!$C$4:$C$35=IF(C42="Gasoline","G",IF(C42="Diesel","D",C42)),RRFs!$C$4:$C$35="A")*INDIRECT(VLOOKUP(B42&" Incr Cost",RRFs!$AO:$AP,2,FALSE))) + IF(AND(Deployment_Type_of_Modification<>"Alternative Fuels",Deployment_Type_of_Modification<>"Accelerated Retirement"),0, IF(OR(D42="B20 (Biodiesel)",D42="R100 (Renewable Diesel)"),0, SUMPRODUCT((EFs!$A$4:$A$3351=Deployment_Year)*(EFs!$B$4:$B$3351=VLOOKUP(B42,'Store Inputs'!$F:$G,2,FALSE))*(EFs!$C$4:$C$3351=VLOOKUP(Deployment_GeographicScale,'Store Inputs'!$C:$D,2,FALSE))*(EFs!$D$4:$D$3351=Deployment_Year)*(EFs!$E$4:$E$3351=IF(C42="Gasoline","G",IF(C42="Diesel","D",C42)))*EFs!$Q$4:$Q$3351))))) -> -
B43: - | C43: - | D43: - | E43: - | L43: =IF(B43="-",B43, IF(OR(D43=0,AND(B43<>"Single Unit Short Haul",C43="Gasoline"),AND(OR(D43="B20 (Biodiesel)",D43="R100 (Renewable Diesel)"),C43="Gasoline"),AND(OR(B43="Single Unit Short Haul",B43="Single Unit Long Haul"),Deployment_GeographicScale="Distribution Center"),AND(B43<>"Combination Unit Short Haul",Deployment_GeographicScale="Port"),D43="B20 (Biodiesel)",D43="R100 (Renewable Diesel)",SUMPRODUCT((RRFs!$B$4:$B$35=D43)*OR(RRFs!$C$4:$C$35=IF(C43="Gasoline","G",IF(C43="Diesel","D",C43)),RRFs!$C$4:$C$35="A")*INDIRECT(VLOOKUP(B43&" Incr Cost",RRFs!$AO:$AP,2,FALSE)))=-999999),"N/A", SUMPRODUCT((RRFs!$B$4:$B$35=D43)*OR(RRFs!$C$4:$C$35=IF(C43="Gasoline","G",IF(C43="Diesel","D",C43)),RRFs!$C$4:$C$35="A")*INDIRECT(VLOOKUP(B43&" Incr Cost",RRFs!$AO:$AP,2,FALSE))) + IF(AND(Deployment_Type_of_Modification<>"Alternative Fuels",Deployment_Type_of_Modification<>"Accelerated Retirement"),0, IF(OR(D43="B20 (Biodiesel)",D43="R100 (Renewable Diesel)"),0, SUMPRODUCT((EFs!$A$4:$A$3351=Deployment_Year)*(EFs!$B$4:$B$3351=VLOOKUP(B43,'Store Inputs'!$F:$G,2,FALSE))*(EFs!$C$4:$C$3351=VLOOKUP(Deployment_GeographicScale,'Store Inputs'!$C:$D,2,FALSE))*(EFs!$D$4:$D$3351=Deployment_Year)*(EFs!$E$4:$E$3351=IF(C43="Gasoline","G",IF(C43="Diesel","D",C43)))*EFs!$Q$4:$Q$3351))))) -> -
B44: - | C44: - | D44: - | E44: - | L44: =IF(B44="-",B44, IF(OR(D44=0,AND(B44<>"Single Unit Short Haul",C44="Gasoline"),AND(OR(D44="B20 (Biodiesel)",D44="R100 (Renewable Diesel)"),C44="Gasoline"),AND(OR(B44="Single Unit Short Haul",B44="Single Unit Long Haul"),Deployment_GeographicScale="Distribution Center"),AND(B44<>"Combination Unit Short Haul",Deployment_GeographicScale="Port"),D44="B20 (Biodiesel)",D44="R100 (Renewable Diesel)",SUMPRODUCT((RRFs!$B$4:$B$35=D44)*OR(RRFs!$C$4:$C$35=IF(C44="Gasoline","G",IF(C44="Diesel","D",C44)),RRFs!$C$4:$C$35="A")*INDIRECT(VLOOKUP(B44&" Incr Cost",RRFs!$AO:$AP,2,FALSE)))=-999999),"N/A", SUMPRODUCT((RRFs!$B$4:$B$35=D44)*OR(RRFs!$C$4:$C$35=IF(C44="Gasoline","G",IF(C44="Diesel","D",C44)),RRFs!$C$4:$C$35="A")*INDIRECT(VLOOKUP(B44&" Incr Cost",RRFs!$AO:$AP,2,FALSE))) + IF(AND(Deployment_Type_of_Modification<>"Alternative Fuels",Deployment_Type_of_Modification<>"Accelerated Retirement"),0, IF(OR(D44="B20 (Biodiesel)",D44="R100 (Renewable Diesel)"),0, SUMPRODUCT((EFs!$A$4:$A$3351=Deployment_Year)*(EFs!$B$4:$B$3351=VLOOKUP(B44,'Store Inputs'!$F:$G,2,FALSE))*(EFs!$C$4:$C$3351=VLOOKUP(Deployment_GeographicScale,'Store Inputs'!$C:$D,2,FALSE))*(EFs!$D$4:$D$3351=Deployment_Year)*(EFs!$E$4:$E$3351=IF(C44="Gasoline","G",IF(C44="Diesel","D",C44)))*EFs!$Q$4:$Q$3351))))) -> -
B45: - | C45: - | D45: - | E45: - | L45: =IF(B45="-",B45, IF(OR(D45=0,AND(B45<>"Single Unit Short Haul",C45="Gasoline"),AND(OR(D45="B20 (Biodiesel)",D45="R100 (Renewable Diesel)"),C45="Gasoline"),AND(OR(B45="Single Unit Short Haul",B45="Single Unit Long Haul"),Deployment_GeographicScale="Distribution Center"),AND(B45<>"Combination Unit Short Haul",Deployment_GeographicScale="Port"),D45="B20 (Biodiesel)",D45="R100 (Renewable Diesel)",SUMPRODUCT((RRFs!$B$4:$B$35=D45)*OR(RRFs!$C$4:$C$35=IF(C45="Gasoline","G",IF(C45="Diesel","D",C45)),RRFs!$C$4:$C$35="A")*INDIRECT(VLOOKUP(B45&" Incr Cost",RRFs!$AO:$AP,2,FALSE)))=-999999),"N/A", SUMPRODUCT((RRFs!$B$4:$B$35=D45)*OR(RRFs!$C$4:$C$35=IF(C45="Gasoline","G",IF(C45="Diesel","D",C45)),RRFs!$C$4:$C$35="A")*INDIRECT(VLOOKUP(B45&" Incr Cost",RRFs!$AO:$AP,2,FALSE))) + IF(AND(Deployment_Type_of_Modification<>"Alternative Fuels",Deployment_Type_of_Modification<>"Accelerated Retirement"),0, IF(OR(D45="B20 (Biodiesel)",D45="R100 (Renewable Diesel)"),0, SUMPRODUCT((EFs!$A$4:$A$3351=Deployment_Year)*(EFs!$B$4:$B$3351=VLOOKUP(B45,'Store Inputs'!$F:$G,2,FALSE))*(EFs!$C$4:$C$3351=VLOOKUP(Deployment_GeographicScale,'Store Inputs'!$C:$D,2,FALSE))*(EFs!$D$4:$D$3351=Deployment_Year)*(EFs!$E$4:$E$3351=IF(C45="Gasoline","G",IF(C45="Diesel","D",C45)))*EFs!$Q$4:$Q$3351))))) -> -
B46: - | C46: - | D46: - | E46: - | L46: =IF(B46="-",B46, IF(OR(D46=0,AND(B46<>"Single Unit Short Haul",C46="Gasoline"),AND(OR(D46="B20 (Biodiesel)",D46="R100 (Renewable Diesel)"),C46="Gasoline"),AND(OR(B46="Single Unit Short Haul",B46="Single Unit Long Haul"),Deployment_GeographicScale="Distribution Center"),AND(B46<>"Combination Unit Short Haul",Deployment_GeographicScale="Port"),D46="B20 (Biodiesel)",D46="R100 (Renewable Diesel)",SUMPRODUCT((RRFs!$B$4:$B$35=D46)*OR(RRFs!$C$4:$C$35=IF(C46="Gasoline","G",IF(C46="Diesel","D",C46)),RRFs!$C$4:$C$35="A")*INDIRECT(VLOOKUP(B46&" Incr Cost",RRFs!$AO:$AP,2,FALSE)))=-999999),"N/A", SUMPRODUCT((RRFs!$B$4:$B$35=D46)*OR(RRFs!$C$4:$C$35=IF(C46="Gasoline","G",IF(C46="Diesel","D",C46)),RRFs!$C$4:$C$35="A")*INDIRECT(VLOOKUP(B46&" Incr Cost",RRFs!$AO:$AP,2,FALSE))) + IF(AND(Deployment_Type_of_Modification<>"Alternative Fuels",Deployment_Type_of_Modification<>"Accelerated Retirement"),0, IF(OR(D46="B20 (Biodiesel)",D46="R100 (Renewable Diesel)"),0, SUMPRODUCT((EFs!$A$4:$A$3351=Deployment_Year)*(EFs!$B$4:$B$3351=VLOOKUP(B46,'Store Inputs'!$F:$G,2,FALSE))*(EFs!$C$4:$C$3351=VLOOKUP(Deployment_GeographicScale,'Store Inputs'!$C:$D,2,FALSE))*(EFs!$D$4:$D$3351=Deployment_Year)*(EFs!$E$4:$E$3351=IF(C46="Gasoline","G",IF(C46="Diesel","D",C46)))*EFs!$Q$4:$Q$3351))))) -> -
B47: - | C47: - | D47: - | E47: - | L47: =IF(B47="-",B47, IF(OR(D47=0,AND(B47<>"Single Unit Short Haul",C47="Gasoline"),AND(OR(D47="B20 (Biodiesel)",D47="R100 (Renewable Diesel)"),C47="Gasoline"),AND(OR(B47="Single Unit Short Haul",B47="Single Unit Long Haul"),Deployment_GeographicScale="Distribution Center"),AND(B47<>"Combination Unit Short Haul",Deployment_GeographicScale="Port"),D47="B20 (Biodiesel)",D47="R100 (Renewable Diesel)",SUMPRODUCT((RRFs!$B$4:$B$35=D47)*OR(RRFs!$C$4:$C$35=IF(C47="Gasoline","G",IF(C47="Diesel","D",C47)),RRFs!$C$4:$C$35="A")*INDIRECT(VLOOKUP(B47&" Incr Cost",RRFs!$AO:$AP,2,FALSE)))=-999999),"N/A", SUMPRODUCT((RRFs!$B$4:$B$35=D47)*OR(RRFs!$C$4:$C$35=IF(C47="Gasoline","G",IF(C47="Diesel","D",C47)),RRFs!$C$4:$C$35="A")*INDIRECT(VLOOKUP(B47&" Incr Cost",RRFs!$AO:$AP,2,FALSE))) + IF(AND(Deployment_Type_of_Modification<>"Alternative Fuels",Deployment_Type_of_Modification<>"Accelerated Retirement"),0, IF(OR(D47="B20 (Biodiesel)",D47="R100 (Renewable Diesel)"),0, SUMPRODUCT((EFs!$A$4:$A$3351=Deployment_Year)*(EFs!$B$4:$B$3351=VLOOKUP(B47,'Store Inputs'!$F:$G,2,FALSE))*(EFs!$C$4:$C$3351=VLOOKUP(Deployment_GeographicScale,'Store Inputs'!$C:$D,2,FALSE))*(EFs!$D$4:$D$3351=Deployment_Year)*(EFs!$E$4:$E$3351=IF(C47="Gasoline","G",IF(C47="Diesel","D",C47)))*EFs!$Q$4:$Q$3351))))) -> -
B48: - | C48: - | D48: - | E48: - | L48: =IF(B48="-",B48, IF(OR(D48=0,AND(B48<>"Single Unit Short Haul",C48="Gasoline"),AND(OR(D48="B20 (Biodiesel)",D48="R100 (Renewable Diesel)"),C48="Gasoline"),AND(OR(B48="Single Unit Short Haul",B48="Single Unit Long Haul"),Deployment_GeographicScale="Distribution Center"),AND(B48<>"Combination Unit Short Haul",Deployment_GeographicScale="Port"),D48="B20 (Biodiesel)",D48="R100 (Renewable Diesel)",SUMPRODUCT((RRFs!$B$4:$B$35=D48)*OR(RRFs!$C$4:$C$35=IF(C48="Gasoline","G",IF(C48="Diesel","D",C48)),RRFs!$C$4:$C$35="A")*INDIRECT(VLOOKUP(B48&" Incr Cost",RRFs!$AO:$AP,2,FALSE)))=-999999),"N/A", SUMPRODUCT((RRFs!$B$4:$B$35=D48)*OR(RRFs!$C$4:$C$35=IF(C48="Gasoline","G",IF(C48="Diesel","D",C48)),RRFs!$C$4:$C$35="A")*INDIRECT(VLOOKUP(B48&" Incr Cost",RRFs!$AO:$AP,2,FALSE))) + IF(AND(Deployment_Type_of_Modification<>"Alternative Fuels",Deployment_Type_of_Modification<>"Accelerated Retirement"),0, IF(OR(D48="B20 (Biodiesel)",D48="R100 (Renewable Diesel)"),0, SUMPRODUCT((EFs!$A$4:$A$3351=Deployment_Year)*(EFs!$B$4:$B$3351=VLOOKUP(B48,'Store Inputs'!$F:$G,2,FALSE))*(EFs!$C$4:$C$3351=VLOOKUP(Deployment_GeographicScale,'Store Inputs'!$C:$D,2,FALSE))*(EFs!$D$4:$D$3351=Deployment_Year)*(EFs!$E$4:$E$3351=IF(C48="Gasoline","G",IF(C48="Diesel","D",C48)))*EFs!$Q$4:$Q$3351))))) -> -
B49: - | C49: - | D49: - | E49: - | L49: =IF(B49="-",B49, IF(OR(D49=0,AND(B49<>"Single Unit Short Haul",C49="Gasoline"),AND(OR(D49="B20 (Biodiesel)",D49="R100 (Renewable Diesel)"),C49="Gasoline"),AND(OR(B49="Single Unit Short Haul",B49="Single Unit Long Haul"),Deployment_GeographicScale="Distribution Center"),AND(B49<>"Combination Unit Short Haul",Deployment_GeographicScale="Port"),D49="B20 (Biodiesel)",D49="R100 (Renewable Diesel)",SUMPRODUCT((RRFs!$B$4:$B$35=D49)*OR(RRFs!$C$4:$C$35=IF(C49="Gasoline","G",IF(C49="Diesel","D",C49)),RRFs!$C$4:$C$35="A")*INDIRECT(VLOOKUP(B49&" Incr Cost",RRFs!$AO:$AP,2,FALSE)))=-999999),"N/A", SUMPRODUCT((RRFs!$B$4:$B$35=D49)*OR(RRFs!$C$4:$C$35=IF(C49="Gasoline","G",IF(C49="Diesel","D",C49)),RRFs!$C$4:$C$35="A")*INDIRECT(VLOOKUP(B49&" Incr Cost",RRFs!$AO:$AP,2,FALSE))) + IF(AND(Deployment_Type_of_Modification<>"Alternative Fuels",Deployment_Type_of_Modification<>"Accelerated Retirement"),0, IF(OR(D49="B20 (Biodiesel)",D49="R100 (Renewable Diesel)"),0, SUMPRODUCT((EFs!$A$4:$A$3351=Deployment_Year)*(EFs!$B$4:$B$3351=VLOOKUP(B49,'Store Inputs'!$F:$G,2,FALSE))*(EFs!$C$4:$C$3351=VLOOKUP(Deployment_GeographicScale,'Store Inputs'!$C:$D,2,FALSE))*(EFs!$D$4:$D$3351=Deployment_Year)*(EFs!$E$4:$E$3351=IF(C49="Gasoline","G",IF(C49="Diesel","D",C49)))*EFs!$Q$4:$Q$3351))))) -> -
B50: - | C50: - | D50: - | E50: - | L50: =IF(B50="-",B50, IF(OR(D50=0,AND(B50<>"Single Unit Short Haul",C50="Gasoline"),AND(OR(D50="B20 (Biodiesel)",D50="R100 (Renewable Diesel)"),C50="Gasoline"),AND(OR(B50="Single Unit Short Haul",B50="Single Unit Long Haul"),Deployment_GeographicScale="Distribution Center"),AND(B50<>"Combination Unit Short Haul",Deployment_GeographicScale="Port"),D50="B20 (Biodiesel)",D50="R100 (Renewable Diesel)",SUMPRODUCT((RRFs!$B$4:$B$35=D50)*OR(RRFs!$C$4:$C$35=IF(C50="Gasoline","G",IF(C50="Diesel","D",C50)),RRFs!$C$4:$C$35="A")*INDIRECT(VLOOKUP(B50&" Incr Cost",RRFs!$AO:$AP,2,FALSE)))=-999999),"N/A", SUMPRODUCT((RRFs!$B$4:$B$35=D50)*OR(RRFs!$C$4:$C$35=IF(C50="Gasoline","G",IF(C50="Diesel","D",C50)),RRFs!$C$4:$C$35="A")*INDIRECT(VLOOKUP(B50&" Incr Cost",RRFs!$AO:$AP,2,FALSE))) + IF(AND(Deployment_Type_of_Modification<>"Alternative Fuels",Deployment_Type_of_Modification<>"Accelerated Retirement"),0, IF(OR(D50="B20 (Biodiesel)",D50="R100 (Renewable Diesel)"),0, SUMPRODUCT((EFs!$A$4:$A$3351=Deployment_Year)*(EFs!$B$4:$B$3351=VLOOKUP(B50,'Store Inputs'!$F:$G,2,FALSE))*(EFs!$C$4:$C$3351=VLOOKUP(Deployment_GeographicScale,'Store Inputs'!$C:$D,2,FALSE))*(EFs!$D$4:$D$3351=Deployment_Year)*(EFs!$E$4:$E$3351=IF(C50="Gasoline","G",IF(C50="Diesel","D",C50)))*EFs!$Q$4:$Q$3351))))) -> -
B51: - | C51: - | D51: - | E51: - | L51: =IF(B51="-",B51, IF(OR(D51=0,AND(B51<>"Single Unit Short Haul",C51="Gasoline"),AND(OR(D51="B20 (Biodiesel)",D51="R100 (Renewable Diesel)"),C51="Gasoline"),AND(OR(B51="Single Unit Short Haul",B51="Single Unit Long Haul"),Deployment_GeographicScale="Distribution Center"),AND(B51<>"Combination Unit Short Haul",Deployment_GeographicScale="Port"),D51="B20 (Biodiesel)",D51="R100 (Renewable Diesel)",SUMPRODUCT((RRFs!$B$4:$B$35=D51)*OR(RRFs!$C$4:$C$35=IF(C51="Gasoline","G",IF(C51="Diesel","D",C51)),RRFs!$C$4:$C$35="A")*INDIRECT(VLOOKUP(B51&" Incr Cost",RRFs!$AO:$AP,2,FALSE)))=-999999),"N/A", SUMPRODUCT((RRFs!$B$4:$B$35=D51)*OR(RRFs!$C$4:$C$35=IF(C51="Gasoline","G",IF(C51="Diesel","D",C51)),RRFs!$C$4:$C$35="A")*INDIRECT(VLOOKUP(B51&" Incr Cost",RRFs!$AO:$AP,2,FALSE))) + IF(AND(Deployment_Type_of_Modification<>"Alternative Fuels",Deployment_Type_of_Modification<>"Accelerated Retirement"),0, IF(OR(D51="B20 (Biodiesel)",D51="R100 (Renewable Diesel)"),0, SUMPRODUCT((EFs!$A$4:$A$3351=Deployment_Year)*(EFs!$B$4:$B$3351=VLOOKUP(B51,'Store Inputs'!$F:$G,2,FALSE))*(EFs!$C$4:$C$3351=VLOOKUP(Deployment_GeographicScale,'Store Inputs'!$C:$D,2,FALSE))*(EFs!$D$4:$D$3351=Deployment_Year)*(EFs!$E$4:$E$3351=IF(C51="Gasoline","G",IF(C51="Diesel","D",C51)))*EFs!$Q$4:$Q$3351))))) -> -
B52: - | C52: - | D52: - | E52: - | L52: =IF(B52="-",B52, IF(OR(D52=0,AND(B52<>"Single Unit Short Haul",C52="Gasoline"),AND(OR(D52="B20 (Biodiesel)",D52="R100 (Renewable Diesel)"),C52="Gasoline"),AND(OR(B52="Single Unit Short Haul",B52="Single Unit Long Haul"),Deployment_GeographicScale="Distribution Center"),AND(B52<>"Combination Unit Short Haul",Deployment_GeographicScale="Port"),D52="B20 (Biodiesel)",D52="R100 (Renewable Diesel)",SUMPRODUCT((RRFs!$B$4:$B$35=D52)*OR(RRFs!$C$4:$C$35=IF(C52="Gasoline","G",IF(C52="Diesel","D",C52)),RRFs!$C$4:$C$35="A")*INDIRECT(VLOOKUP(B52&" Incr Cost",RRFs!$AO:$AP,2,FALSE)))=-999999),"N/A", SUMPRODUCT((RRFs!$B$4:$B$35=D52)*OR(RRFs!$C$4:$C$35=IF(C52="Gasoline","G",IF(C52="Diesel","D",C52)),RRFs!$C$4:$C$35="A")*INDIRECT(VLOOKUP(B52&" Incr Cost",RRFs!$AO:$AP,2,FALSE))) + IF(AND(Deployment_Type_of_Modification<>"Alternative Fuels",Deployment_Type_of_Modification<>"Accelerated Retirement"),0, IF(OR(D52="B20 (Biodiesel)",D52="R100 (Renewable Diesel)"),0, SUMPRODUCT((EFs!$A$4:$A$3351=Deployment_Year)*(EFs!$B$4:$B$3351=VLOOKUP(B52,'Store Inputs'!$F:$G,2,FALSE))*(EFs!$C$4:$C$3351=VLOOKUP(Deployment_GeographicScale,'Store Inputs'!$C:$D,2,FALSE))*(EFs!$D$4:$D$3351=Deployment_Year)*(EFs!$E$4:$E$3351=IF(C52="Gasoline","G",IF(C52="Diesel","D",C52)))*EFs!$Q$4:$Q$3351))))) -> -
B53: - | C53: - | D53: - | E53: - | L53: =IF(B53="-",B53, IF(OR(D53=0,AND(B53<>"Single Unit Short Haul",C53="Gasoline"),AND(OR(D53="B20 (Biodiesel)",D53="R100 (Renewable Diesel)"),C53="Gasoline"),AND(OR(B53="Single Unit Short Haul",B53="Single Unit Long Haul"),Deployment_GeographicScale="Distribution Center"),AND(B53<>"Combination Unit Short Haul",Deployment_GeographicScale="Port"),D53="B20 (Biodiesel)",D53="R100 (Renewable Diesel)",SUMPRODUCT((RRFs!$B$4:$B$35=D53)*OR(RRFs!$C$4:$C$35=IF(C53="Gasoline","G",IF(C53="Diesel","D",C53)),RRFs!$C$4:$C$35="A")*INDIRECT(VLOOKUP(B53&" Incr Cost",RRFs!$AO:$AP,2,FALSE)))=-999999),"N/A", SUMPRODUCT((RRFs!$B$4:$B$35=D53)*OR(RRFs!$C$4:$C$35=IF(C53="Gasoline","G",IF(C53="Diesel","D",C53)),RRFs!$C$4:$C$35="A")*INDIRECT(VLOOKUP(B53&" Incr Cost",RRFs!$AO:$AP,2,FALSE))) + IF(AND(Deployment_Type_of_Modification<>"Alternative Fuels",Deployment_Type_of_Modification<>"Accelerated Retirement"),0, IF(OR(D53="B20 (Biodiesel)",D53="R100 (Renewable Diesel)"),0, SUMPRODUCT((EFs!$A$4:$A$3351=Deployment_Year)*(EFs!$B$4:$B$3351=VLOOKUP(B53,'Store Inputs'!$F:$G,2,FALSE))*(EFs!$C$4:$C$3351=VLOOKUP(Deployment_GeographicScale,'Store Inputs'!$C:$D,2,FALSE))*(EFs!$D$4:$D$3351=Deployment_Year)*(EFs!$E$4:$E$3351=IF(C53="Gasoline","G",IF(C53="Diesel","D",C53)))*EFs!$Q$4:$Q$3351))))) -> -
B54: - | C54: - | D54: - | E54: - | L54: =IF(B54="-",B54, IF(OR(D54=0,AND(B54<>"Single Unit Short Haul",C54="Gasoline"),AND(OR(D54="B20 (Biodiesel)",D54="R100 (Renewable Diesel)"),C54="Gasoline"),AND(OR(B54="Single Unit Short Haul",B54="Single Unit Long Haul"),Deployment_GeographicScale="Distribution Center"),AND(B54<>"Combination Unit Short Haul",Deployment_GeographicScale="Port"),D54="B20 (Biodiesel)",D54="R100 (Renewable Diesel)",SUMPRODUCT((RRFs!$B$4:$B$35=D54)*OR(RRFs!$C$4:$C$35=IF(C54="Gasoline","G",IF(C54="Diesel","D",C54)),RRFs!$C$4:$C$35="A")*INDIRECT(VLOOKUP(B54&" Incr Cost",RRFs!$AO:$AP,2,FALSE)))=-999999),"N/A", SUMPRODUCT((RRFs!$B$4:$B$35=D54)*OR(RRFs!$C$4:$C$35=IF(C54="Gasoline","G",IF(C54="Diesel","D",C54)),RRFs!$C$4:$C$35="A")*INDIRECT(VLOOKUP(B54&" Incr Cost",RRFs!$AO:$AP,2,FALSE))) + IF(AND(Deployment_Type_of_Modification<>"Alternative Fuels",Deployment_Type_of_Modification<>"Accelerated Retirement"),0, IF(OR(D54="B20 (Biodiesel)",D54="R100 (Renewable Diesel)"),0, SUMPRODUCT((EFs!$A$4:$A$3351=Deployment_Year)*(EFs!$B$4:$B$3351=VLOOKUP(B54,'Store Inputs'!$F:$G,2,FALSE))*(EFs!$C$4:$C$3351=VLOOKUP(Deployment_GeographicScale,'Store Inputs'!$C:$D,2,FALSE))*(EFs!$D$4:$D$3351=Deployment_Year)*(EFs!$E$4:$E$3351=IF(C54="Gasoline","G",IF(C54="Diesel","D",C54)))*EFs!$Q$4:$Q$3351))))) -> -
B55: - | C55: - | D55: - | E55: - | L55: =IF(B55="-",B55, IF(OR(D55=0,AND(B55<>"Single Unit Short Haul",C55="Gasoline"),AND(OR(D55="B20 (Biodiesel)",D55="R100 (Renewable Diesel)"),C55="Gasoline"),AND(OR(B55="Single Unit Short Haul",B55="Single Unit Long Haul"),Deployment_GeographicScale="Distribution Center"),AND(B55<>"Combination Unit Short Haul",Deployment_GeographicScale="Port"),D55="B20 (Biodiesel)",D55="R100 (Renewable Diesel)",SUMPRODUCT((RRFs!$B$4:$B$35=D55)*OR(RRFs!$C$4:$C$35=IF(C55="Gasoline","G",IF(C55="Diesel","D",C55)),RRFs!$C$4:$C$35="A")*INDIRECT(VLOOKUP(B55&" Incr Cost",RRFs!$AO:$AP,2,FALSE)))=-999999),"N/A", SUMPRODUCT((RRFs!$B$4:$B$35=D55)*OR(RRFs!$C$4:$C$35=IF(C55="Gasoline","G",IF(C55="Diesel","D",C55)),RRFs!$C$4:$C$35="A")*INDIRECT(VLOOKUP(B55&" Incr Cost",RRFs!$AO:$AP,2,FALSE))) + IF(AND(Deployment_Type_of_Modification<>"Alternative Fuels",Deployment_Type_of_Modification<>"Accelerated Retirement"),0, IF(OR(D55="B20 (Biodiesel)",D55="R100 (Renewable Diesel)"),0, SUMPRODUCT((EFs!$A$4:$A$3351=Deployment_Year)*(EFs!$B$4:$B$3351=VLOOKUP(B55,'Store Inputs'!$F:$G,2,FALSE))*(EFs!$C$4:$C$3351=VLOOKUP(Deployment_GeographicScale,'Store Inputs'!$C:$D,2,FALSE))*(EFs!$D$4:$D$3351=Deployment_Year)*(EFs!$E$4:$E$3351=IF(C55="Gasoline","G",IF(C55="Diesel","D",C55)))*EFs!$Q$4:$Q$3351))))) -> -
B56: - | C56: - | D56: - | E56: - | L56: =IF(B56="-",B56, IF(OR(D56=0,AND(B56<>"Single Unit Short Haul",C56="Gasoline"),AND(OR(D56="B20 (Biodiesel)",D56="R100 (Renewable Diesel)"),C56="Gasoline"),AND(OR(B56="Single Unit Short Haul",B56="Single Unit Long Haul"),Deployment_GeographicScale="Distribution Center"),AND(B56<>"Combination Unit Short Haul",Deployment_GeographicScale="Port"),D56="B20 (Biodiesel)",D56="R100 (Renewable Diesel)",SUMPRODUCT((RRFs!$B$4:$B$35=D56)*OR(RRFs!$C$4:$C$35=IF(C56="Gasoline","G",IF(C56="Diesel","D",C56)),RRFs!$C$4:$C$35="A")*INDIRECT(VLOOKUP(B56&" Incr Cost",RRFs!$AO:$AP,2,FALSE)))=-999999),"N/A", SUMPRODUCT((RRFs!$B$4:$B$35=D56)*OR(RRFs!$C$4:$C$35=IF(C56="Gasoline","G",IF(C56="Diesel","D",C56)),RRFs!$C$4:$C$35="A")*INDIRECT(VLOOKUP(B56&" Incr Cost",RRFs!$AO:$AP,2,FALSE))) + IF(AND(Deployment_Type_of_Modification<>"Alternative Fuels",Deployment_Type_of_Modification<>"Accelerated Retirement"),0, IF(OR(D56="B20 (Biodiesel)",D56="R100 (Renewable Diesel)"),0, SUMPRODUCT((EFs!$A$4:$A$3351=Deployment_Year)*(EFs!$B$4:$B$3351=VLOOKUP(B56,'Store Inputs'!$F:$G,2,FALSE))*(EFs!$C$4:$C$3351=VLOOKUP(Deployment_GeographicScale,'Store Inputs'!$C:$D,2,FALSE))*(EFs!$D$4:$D$3351=Deployment_Year)*(EFs!$E$4:$E$3351=IF(C56="Gasoline","G",IF(C56="Diesel","D",C56)))*EFs!$Q$4:$Q$3351))))) -> -
B57: - | C57: - | D57: - | E57: - | L57: =IF(B57="-",B57, IF(OR(D57=0,AND(B57<>"Single Unit Short Haul",C57="Gasoline"),AND(OR(D57="B20 (Biodiesel)",D57="R100 (Renewable Diesel)"),C57="Gasoline"),AND(OR(B57="Single Unit Short Haul",B57="Single Unit Long Haul"),Deployment_GeographicScale="Distribution Center"),AND(B57<>"Combination Unit Short Haul",Deployment_GeographicScale="Port"),D57="B20 (Biodiesel)",D57="R100 (Renewable Diesel)",SUMPRODUCT((RRFs!$B$4:$B$35=D57)*OR(RRFs!$C$4:$C$35=IF(C57="Gasoline","G",IF(C57="Diesel","D",C57)),RRFs!$C$4:$C$35="A")*INDIRECT(VLOOKUP(B57&" Incr Cost",RRFs!$AO:$AP,2,FALSE)))=-999999),"N/A", SUMPRODUCT((RRFs!$B$4:$B$35=D57)*OR(RRFs!$C$4:$C$35=IF(C57="Gasoline","G",IF(C57="Diesel","D",C57)),RRFs!$C$4:$C$35="A")*INDIRECT(VLOOKUP(B57&" Incr Cost",RRFs!$AO:$AP,2,FALSE))) + IF(AND(Deployment_Type_of_Modification<>"Alternative Fuels",Deployment_Type_of_Modification<>"Accelerated Retirement"),0, IF(OR(D57="B20 (Biodiesel)",D57="R100 (Renewable Diesel)"),0, SUMPRODUCT((EFs!$A$4:$A$3351=Deployment_Year)*(EFs!$B$4:$B$3351=VLOOKUP(B57,'Store Inputs'!$F:$G,2,FALSE))*(EFs!$C$4:$C$3351=VLOOKUP(Deployment_GeographicScale,'Store Inputs'!$C:$D,2,FALSE))*(EFs!$D$4:$D$3351=Deployment_Year)*(EFs!$E$4:$E$3351=IF(C57="Gasoline","G",IF(C57="Diesel","D",C57)))*EFs!$Q$4:$Q$3351))))) -> -
B58: - | C58: - | D58: - | E58: - | L58: =IF(B58="-",B58, IF(OR(D58=0,AND(B58<>"Single Unit Short Haul",C58="Gasoline"),AND(OR(D58="B20 (Biodiesel)",D58="R100 (Renewable Diesel)"),C58="Gasoline"),AND(OR(B58="Single Unit Short Haul",B58="Single Unit Long Haul"),Deployment_GeographicScale="Distribution Center"),AND(B58<>"Combination Unit Short Haul",Deployment_GeographicScale="Port"),D58="B20 (Biodiesel)",D58="R100 (Renewable Diesel)",SUMPRODUCT((RRFs!$B$4:$B$35=D58)*OR(RRFs!$C$4:$C$35=IF(C58="Gasoline","G",IF(C58="Diesel","D",C58)),RRFs!$C$4:$C$35="A")*INDIRECT(VLOOKUP(B58&" Incr Cost",RRFs!$AO:$AP,2,FALSE)))=-999999),"N/A", SUMPRODUCT((RRFs!$B$4:$B$35=D58)*OR(RRFs!$C$4:$C$35=IF(C58="Gasoline","G",IF(C58="Diesel","D",C58)),RRFs!$C$4:$C$35="A")*INDIRECT(VLOOKUP(B58&" Incr Cost",RRFs!$AO:$AP,2,FALSE))) + IF(AND(Deployment_Type_of_Modification<>"Alternative Fuels",Deployment_Type_of_Modification<>"Accelerated Retirement"),0, IF(OR(D58="B20 (Biodiesel)",D58="R100 (Renewable Diesel)"),0, SUMPRODUCT((EFs!$A$4:$A$3351=Deployment_Year)*(EFs!$B$4:$B$3351=VLOOKUP(B58,'Store Inputs'!$F:$G,2,FALSE))*(EFs!$C$4:$C$3351=VLOOKUP(Deployment_GeographicScale,'Store Inputs'!$C:$D,2,FALSE))*(EFs!$D$4:$D$3351=Deployment_Year)*(EFs!$E$4:$E$3351=IF(C58="Gasoline","G",IF(C58="Diesel","D",C58)))*EFs!$Q$4:$Q$3351))))) -> -
B59: - | C59: - | D59: - | E59: - | L59: =IF(B59="-",B59, IF(OR(D59=0,AND(B59<>"Single Unit Short Haul",C59="Gasoline"),AND(OR(D59="B20 (Biodiesel)",D59="R100 (Renewable Diesel)"),C59="Gasoline"),AND(OR(B59="Single Unit Short Haul",B59="Single Unit Long Haul"),Deployment_GeographicScale="Distribution Center"),AND(B59<>"Combination Unit Short Haul",Deployment_GeographicScale="Port"),D59="B20 (Biodiesel)",D59="R100 (Renewable Diesel)",SUMPRODUCT((RRFs!$B$4:$B$35=D59)*OR(RRFs!$C$4:$C$35=IF(C59="Gasoline","G",IF(C59="Diesel","D",C59)),RRFs!$C$4:$C$35="A")*INDIRECT(VLOOKUP(B59&" Incr Cost",RRFs!$AO:$AP,2,FALSE)))=-999999),"N/A", SUMPRODUCT((RRFs!$B$4:$B$35=D59)*OR(RRFs!$C$4:$C$35=IF(C59="Gasoline","G",IF(C59="Diesel","D",C59)),RRFs!$C$4:$C$35="A")*INDIRECT(VLOOKUP(B59&" Incr Cost",RRFs!$AO:$AP,2,FALSE))) + IF(AND(Deployment_Type_of_Modification<>"Alternative Fuels",Deployment_Type_of_Modification<>"Accelerated Retirement"),0, IF(OR(D59="B20 (Biodiesel)",D59="R100 (Renewable Diesel)"),0, SUMPRODUCT((EFs!$A$4:$A$3351=Deployment_Year)*(EFs!$B$4:$B$3351=VLOOKUP(B59,'Store Inputs'!$F:$G,2,FALSE))*(EFs!$C$4:$C$3351=VLOOKUP(Deployment_GeographicScale,'Store Inputs'!$C:$D,2,FALSE))*(EFs!$D$4:$D$3351=Deployment_Year)*(EFs!$E$4:$E$3351=IF(C59="Gasoline","G",IF(C59="Diesel","D",C59)))*EFs!$Q$4:$Q$3351))))) -> -
B60: - | C60: - | D60: - | E60: - | L60: =IF(B60="-",B60, IF(OR(D60=0,AND(B60<>"Single Unit Short Haul",C60="Gasoline"),AND(OR(D60="B20 (Biodiesel)",D60="R100 (Renewable Diesel)"),C60="Gasoline"),AND(OR(B60="Single Unit Short Haul",B60="Single Unit Long Haul"),Deployment_GeographicScale="Distribution Center"),AND(B60<>"Combination Unit Short Haul",Deployment_GeographicScale="Port"),D60="B20 (Biodiesel)",D60="R100 (Renewable Diesel)",SUMPRODUCT((RRFs!$B$4:$B$35=D60)*OR(RRFs!$C$4:$C$35=IF(C60="Gasoline","G",IF(C60="Diesel","D",C60)),RRFs!$C$4:$C$35="A")*INDIRECT(VLOOKUP(B60&" Incr Cost",RRFs!$AO:$AP,2,FALSE)))=-999999),"N/A", SUMPRODUCT((RRFs!$B$4:$B$35=D60)*OR(RRFs!$C$4:$C$35=IF(C60="Gasoline","G",IF(C60="Diesel","D",C60)),RRFs!$C$4:$C$35="A")*INDIRECT(VLOOKUP(B60&" Incr Cost",RRFs!$AO:$AP,2,FALSE))) + IF(AND(Deployment_Type_of_Modification<>"Alternative Fuels",Deployment_Type_of_Modification<>"Accelerated Retirement"),0, IF(OR(D60="B20 (Biodiesel)",D60="R100 (Renewable Diesel)"),0, SUMPRODUCT((EFs!$A$4:$A$3351=Deployment_Year)*(EFs!$B$4:$B$3351=VLOOKUP(B60,'Store Inputs'!$F:$G,2,FALSE))*(EFs!$C$4:$C$3351=VLOOKUP(Deployment_GeographicScale,'Store Inputs'!$C:$D,2,FALSE))*(EFs!$D$4:$D$3351=Deployment_Year)*(EFs!$E$4:$E$3351=IF(C60="Gasoline","G",IF(C60="Diesel","D",C60)))*EFs!$Q$4:$Q$3351))))) -> -
B61: - | C61: - | D61: - | E61: - | L61: =IF(B61="-",B61, IF(OR(D61=0,AND(B61<>"Single Unit Short Haul",C61="Gasoline"),AND(OR(D61="B20 (Biodiesel)",D61="R100 (Renewable Diesel)"),C61="Gasoline"),AND(OR(B61="Single Unit Short Haul",B61="Single Unit Long Haul"),Deployment_GeographicScale="Distribution Center"),AND(B61<>"Combination Unit Short Haul",Deployment_GeographicScale="Port"),D61="B20 (Biodiesel)",D61="R100 (Renewable Diesel)",SUMPRODUCT((RRFs!$B$4:$B$35=D61)*OR(RRFs!$C$4:$C$35=IF(C61="Gasoline","G",IF(C61="Diesel","D",C61)),RRFs!$C$4:$C$35="A")*INDIRECT(VLOOKUP(B61&" Incr Cost",RRFs!$AO:$AP,2,FALSE)))=-999999),"N/A", SUMPRODUCT((RRFs!$B$4:$B$35=D61)*OR(RRFs!$C$4:$C$35=IF(C61="Gasoline","G",IF(C61="Diesel","D",C61)),RRFs!$C$4:$C$35="A")*INDIRECT(VLOOKUP(B61&" Incr Cost",RRFs!$AO:$AP,2,FALSE))) + IF(AND(Deployment_Type_of_Modification<>"Alternative Fuels",Deployment_Type_of_Modification<>"Accelerated Retirement"),0, IF(OR(D61="B20 (Biodiesel)",D61="R100 (Renewable Diesel)"),0, SUMPRODUCT((EFs!$A$4:$A$3351=Deployment_Year)*(EFs!$B$4:$B$3351=VLOOKUP(B61,'Store Inputs'!$F:$G,2,FALSE))*(EFs!$C$4:$C$3351=VLOOKUP(Deployment_GeographicScale,'Store Inputs'!$C:$D,2,FALSE))*(EFs!$D$4:$D$3351=Deployment_Year)*(EFs!$E$4:$E$3351=IF(C61="Gasoline","G",IF(C61="Diesel","D",C61)))*EFs!$Q$4:$Q$3351))))) -> -
B62: - | C62: - | D62: - | E62: - | L62: =IF(B62="-",B62, IF(OR(D62=0,AND(B62<>"Single Unit Short Haul",C62="Gasoline"),AND(OR(D62="B20 (Biodiesel)",D62="R100 (Renewable Diesel)"),C62="Gasoline"),AND(OR(B62="Single Unit Short Haul",B62="Single Unit Long Haul"),Deployment_GeographicScale="Distribution Center"),AND(B62<>"Combination Unit Short Haul",Deployment_GeographicScale="Port"),D62="B20 (Biodiesel)",D62="R100 (Renewable Diesel)",SUMPRODUCT((RRFs!$B$4:$B$35=D62)*OR(RRFs!$C$4:$C$35=IF(C62="Gasoline","G",IF(C62="Diesel","D",C62)),RRFs!$C$4:$C$35="A")*INDIRECT(VLOOKUP(B62&" Incr Cost",RRFs!$AO:$AP,2,FALSE)))=-999999),"N/A", SUMPRODUCT((RRFs!$B$4:$B$35=D62)*OR(RRFs!$C$4:$C$35=IF(C62="Gasoline","G",IF(C62="Diesel","D",C62)),RRFs!$C$4:$C$35="A")*INDIRECT(VLOOKUP(B62&" Incr Cost",RRFs!$AO:$AP,2,FALSE))) + IF(AND(Deployment_Type_of_Modification<>"Alternative Fuels",Deployment_Type_of_Modification<>"Accelerated Retirement"),0, IF(OR(D62="B20 (Biodiesel)",D62="R100 (Renewable Diesel)"),0, SUMPRODUCT((EFs!$A$4:$A$3351=Deployment_Year)*(EFs!$B$4:$B$3351=VLOOKUP(B62,'Store Inputs'!$F:$G,2,FALSE))*(EFs!$C$4:$C$3351=VLOOKUP(Deployment_GeographicScale,'Store Inputs'!$C:$D,2,FALSE))*(EFs!$D$4:$D$3351=Deployment_Year)*(EFs!$E$4:$E$3351=IF(C62="Gasoline","G",IF(C62="Diesel","D",C62)))*EFs!$Q$4:$Q$3351))))) -> -
B63: - | C63: - | D63: - | E63: - | L63: =IF(B63="-",B63, IF(OR(D63=0,AND(B63<>"Single Unit Short Haul",C63="Gasoline"),AND(OR(D63="B20 (Biodiesel)",D63="R100 (Renewable Diesel)"),C63="Gasoline"),AND(OR(B63="Single Unit Short Haul",B63="Single Unit Long Haul"),Deployment_GeographicScale="Distribution Center"),AND(B63<>"Combination Unit Short Haul",Deployment_GeographicScale="Port"),D63="B20 (Biodiesel)",D63="R100 (Renewable Diesel)",SUMPRODUCT((RRFs!$B$4:$B$35=D63)*OR(RRFs!$C$4:$C$35=IF(C63="Gasoline","G",IF(C63="Diesel","D",C63)),RRFs!$C$4:$C$35="A")*INDIRECT(VLOOKUP(B63&" Incr Cost",RRFs!$AO:$AP,2,FALSE)))=-999999),"N/A", SUMPRODUCT((RRFs!$B$4:$B$35=D63)*OR(RRFs!$C$4:$C$35=IF(C63="Gasoline","G",IF(C63="Diesel","D",C63)),RRFs!$C$4:$C$35="A")*INDIRECT(VLOOKUP(B63&" Incr Cost",RRFs!$AO:$AP,2,FALSE))) + IF(AND(Deployment_Type_of_Modification<>"Alternative Fuels",Deployment_Type_of_Modification<>"Accelerated Retirement"),0, IF(OR(D63="B20 (Biodiesel)",D63="R100 (Renewable Diesel)"),0, SUMPRODUCT((EFs!$A$4:$A$3351=Deployment_Year)*(EFs!$B$4:$B$3351=VLOOKUP(B63,'Store Inputs'!$F:$G,2,FALSE))*(EFs!$C$4:$C$3351=VLOOKUP(Deployment_GeographicScale,'Store Inputs'!$C:$D,2,FALSE))*(EFs!$D$4:$D$3351=Deployment_Year)*(EFs!$E$4:$E$3351=IF(C63="Gasoline","G",IF(C63="Diesel","D",C63)))*EFs!$Q$4:$Q$3351))))) -> -
B64: - | C64: - | D64: - | E64: - | L64: =IF(B64="-",B64, IF(OR(D64=0,AND(B64<>"Single Unit Short Haul",C64="Gasoline"),AND(OR(D64="B20 (Biodiesel)",D64="R100 (Renewable Diesel)"),C64="Gasoline"),AND(OR(B64="Single Unit Short Haul",B64="Single Unit Long Haul"),Deployment_GeographicScale="Distribution Center"),AND(B64<>"Combination Unit Short Haul",Deployment_GeographicScale="Port"),D64="B20 (Biodiesel)",D64="R100 (Renewable Diesel)",SUMPRODUCT((RRFs!$B$4:$B$35=D64)*OR(RRFs!$C$4:$C$35=IF(C64="Gasoline","G",IF(C64="Diesel","D",C64)),RRFs!$C$4:$C$35="A")*INDIRECT(VLOOKUP(B64&" Incr Cost",RRFs!$AO:$AP,2,FALSE)))=-999999),"N/A", SUMPRODUCT((RRFs!$B$4:$B$35=D64)*OR(RRFs!$C$4:$C$35=IF(C64="Gasoline","G",IF(C64="Diesel","D",C64)),RRFs!$C$4:$C$35="A")*INDIRECT(VLOOKUP(B64&" Incr Cost",RRFs!$AO:$AP,2,FALSE))) + IF(AND(Deployment_Type_of_Modification<>"Alternative Fuels",Deployment_Type_of_Modification<>"Accelerated Retirement"),0, IF(OR(D64="B20 (Biodiesel)",D64="R100 (Renewable Diesel)"),0, SUMPRODUCT((EFs!$A$4:$A$3351=Deployment_Year)*(EFs!$B$4:$B$3351=VLOOKUP(B64,'Store Inputs'!$F:$G,2,FALSE))*(EFs!$C$4:$C$3351=VLOOKUP(Deployment_GeographicScale,'Store Inputs'!$C:$D,2,FALSE))*(EFs!$D$4:$D$3351=Deployment_Year)*(EFs!$E$4:$E$3351=IF(C64="Gasoline","G",IF(C64="Diesel","D",C64)))*EFs!$Q$4:$Q$3351))))) -> -
B65: - | C65: - | D65: - | E65: - | L65: =IF(B65="-",B65, IF(OR(D65=0,AND(B65<>"Single Unit Short Haul",C65="Gasoline"),AND(OR(D65="B20 (Biodiesel)",D65="R100 (Renewable Diesel)"),C65="Gasoline"),AND(OR(B65="Single Unit Short Haul",B65="Single Unit Long Haul"),Deployment_GeographicScale="Distribution Center"),AND(B65<>"Combination Unit Short Haul",Deployment_GeographicScale="Port"),D65="B20 (Biodiesel)",D65="R100 (Renewable Diesel)",SUMPRODUCT((RRFs!$B$4:$B$35=D65)*OR(RRFs!$C$4:$C$35=IF(C65="Gasoline","G",IF(C65="Diesel","D",C65)),RRFs!$C$4:$C$35="A")*INDIRECT(VLOOKUP(B65&" Incr Cost",RRFs!$AO:$AP,2,FALSE)))=-999999),"N/A", SUMPRODUCT((RRFs!$B$4:$B$35=D65)*OR(RRFs!$C$4:$C$35=IF(C65="Gasoline","G",IF(C65="Diesel","D",C65)),RRFs!$C$4:$C$35="A")*INDIRECT(VLOOKUP(B65&" Incr Cost",RRFs!$AO:$AP,2,FALSE))) + IF(AND(Deployment_Type_of_Modification<>"Alternative Fuels",Deployment_Type_of_Modification<>"Accelerated Retirement"),0, IF(OR(D65="B20 (Biodiesel)",D65="R100 (Renewable Diesel)"),0, SUMPRODUCT((EFs!$A$4:$A$3351=Deployment_Year)*(EFs!$B$4:$B$3351=VLOOKUP(B65,'Store Inputs'!$F:$G,2,FALSE))*(EFs!$C$4:$C$3351=VLOOKUP(Deployment_GeographicScale,'Store Inputs'!$C:$D,2,FALSE))*(EFs!$D$4:$D$3351=Deployment_Year)*(EFs!$E$4:$E$3351=IF(C65="Gasoline","G",IF(C65="Diesel","D",C65)))*EFs!$Q$4:$Q$3351))))) -> -
B66: - | C66: - | D66: - | E66: - | L66: =IF(B66="-",B66, IF(OR(D66=0,AND(B66<>"Single Unit Short Haul",C66="Gasoline"),AND(OR(D66="B20 (Biodiesel)",D66="R100 (Renewable Diesel)"),C66="Gasoline"),AND(OR(B66="Single Unit Short Haul",B66="Single Unit Long Haul"),Deployment_GeographicScale="Distribution Center"),AND(B66<>"Combination Unit Short Haul",Deployment_GeographicScale="Port"),D66="B20 (Biodiesel)",D66="R100 (Renewable Diesel)",SUMPRODUCT((RRFs!$B$4:$B$35=D66)*OR(RRFs!$C$4:$C$35=IF(C66="Gasoline","G",IF(C66="Diesel","D",C66)),RRFs!$C$4:$C$35="A")*INDIRECT(VLOOKUP(B66&" Incr Cost",RRFs!$AO:$AP,2,FALSE)))=-999999),"N/A", SUMPRODUCT((RRFs!$B$4:$B$35=D66)*OR(RRFs!$C$4:$C$35=IF(C66="Gasoline","G",IF(C66="Diesel","D",C66)),RRFs!$C$4:$C$35="A")*INDIRECT(VLOOKUP(B66&" Incr Cost",RRFs!$AO:$AP,2,FALSE))) + IF(AND(Deployment_Type_of_Modification<>"Alternative Fuels",Deployment_Type_of_Modification<>"Accelerated Retirement"),0, IF(OR(D66="B20 (Biodiesel)",D66="R100 (Renewable Diesel)"),0, SUMPRODUCT((EFs!$A$4:$A$3351=Deployment_Year)*(EFs!$B$4:$B$3351=VLOOKUP(B66,'Store Inputs'!$F:$G,2,FALSE))*(EFs!$C$4:$C$3351=VLOOKUP(Deployment_GeographicScale,'Store Inputs'!$C:$D,2,FALSE))*(EFs!$D$4:$D$3351=Deployment_Year)*(EFs!$E$4:$E$3351=IF(C66="Gasoline","G",IF(C66="Diesel","D",C66)))*EFs!$Q$4:$Q$3351))))) -> -
B67: - | C67: - | D67: - | E67: - | L67: =IF(B67="-",B67, IF(OR(D67=0,AND(B67<>"Single Unit Short Haul",C67="Gasoline"),AND(OR(D67="B20 (Biodiesel)",D67="R100 (Renewable Diesel)"),C67="Gasoline"),AND(OR(B67="Single Unit Short Haul",B67="Single Unit Long Haul"),Deployment_GeographicScale="Distribution Center"),AND(B67<>"Combination Unit Short Haul",Deployment_GeographicScale="Port"),D67="B20 (Biodiesel)",D67="R100 (Renewable Diesel)",SUMPRODUCT((RRFs!$B$4:$B$35=D67)*OR(RRFs!$C$4:$C$35=IF(C67="Gasoline","G",IF(C67="Diesel","D",C67)),RRFs!$C$4:$C$35="A")*INDIRECT(VLOOKUP(B67&" Incr Cost",RRFs!$AO:$AP,2,FALSE)))=-999999),"N/A", SUMPRODUCT((RRFs!$B$4:$B$35=D67)*OR(RRFs!$C$4:$C$35=IF(C67="Gasoline","G",IF(C67="Diesel","D",C67)),RRFs!$C$4:$C$35="A")*INDIRECT(VLOOKUP(B67&" Incr Cost",RRFs!$AO:$AP,2,FALSE))) + IF(AND(Deployment_Type_of_Modification<>"Alternative Fuels",Deployment_Type_of_Modification<>"Accelerated Retirement"),0, IF(OR(D67="B20 (Biodiesel)",D67="R100 (Renewable Diesel)"),0, SUMPRODUCT((EFs!$A$4:$A$3351=Deployment_Year)*(EFs!$B$4:$B$3351=VLOOKUP(B67,'Store Inputs'!$F:$G,2,FALSE))*(EFs!$C$4:$C$3351=VLOOKUP(Deployment_GeographicScale,'Store Inputs'!$C:$D,2,FALSE))*(EFs!$D$4:$D$3351=Deployment_Year)*(EFs!$E$4:$E$3351=IF(C67="Gasoline","G",IF(C67="Diesel","D",C67)))*EFs!$Q$4:$Q$3351))))) -> -
B68: - | C68: - | D68: - | E68: - | L68: =IF(B68="-",B68, IF(OR(D68=0,AND(B68<>"Single Unit Short Haul",C68="Gasoline"),AND(OR(D68="B20 (Biodiesel)",D68="R100 (Renewable Diesel)"),C68="Gasoline"),AND(OR(B68="Single Unit Short Haul",B68="Single Unit Long Haul"),Deployment_GeographicScale="Distribution Center"),AND(B68<>"Combination Unit Short Haul",Deployment_GeographicScale="Port"),D68="B20 (Biodiesel)",D68="R100 (Renewable Diesel)",SUMPRODUCT((RRFs!$B$4:$B$35=D68)*OR(RRFs!$C$4:$C$35=IF(C68="Gasoline","G",IF(C68="Diesel","D",C68)),RRFs!$C$4:$C$35="A")*INDIRECT(VLOOKUP(B68&" Incr Cost",RRFs!$AO:$AP,2,FALSE)))=-999999),"N/A", SUMPRODUCT((RRFs!$B$4:$B$35=D68)*OR(RRFs!$C$4:$C$35=IF(C68="Gasoline","G",IF(C68="Diesel","D",C68)),RRFs!$C$4:$C$35="A")*INDIRECT(VLOOKUP(B68&" Incr Cost",RRFs!$AO:$AP,2,FALSE))) + IF(AND(Deployment_Type_of_Modification<>"Alternative Fuels",Deployment_Type_of_Modification<>"Accelerated Retirement"),0, IF(OR(D68="B20 (Biodiesel)",D68="R100 (Renewable Diesel)"),0, SUMPRODUCT((EFs!$A$4:$A$3351=Deployment_Year)*(EFs!$B$4:$B$3351=VLOOKUP(B68,'Store Inputs'!$F:$G,2,FALSE))*(EFs!$C$4:$C$3351=VLOOKUP(Deployment_GeographicScale,'Store Inputs'!$C:$D,2,FALSE))*(EFs!$D$4:$D$3351=Deployment_Year)*(EFs!$E$4:$E$3351=IF(C68="Gasoline","G",IF(C68="Diesel","D",C68)))*EFs!$Q$4:$Q$3351))))) -> -
B69: - | C69: =IF(B69="-",B69,IF(INDEX(Deployment_Fuels,1+MOD(ROW()-ROW($B$5),COUNTA(Deployment_Fuels)),1)="D","Diesel",IF(INDEX(Deployment_Fuels,1+MOD(ROW()-ROW($B$5),COUNTA(Deployment_Fuels)),1)="G","Gasoline",INDEX(Deployment_Fuels,1+MOD(ROW()-ROW($B$5),COUNTA(Deployment_Fuels)),1)))) -> - | D69: - | E69: - | L69: =IF(B69="-",B69, IF(OR(D69=0,AND(B69<>"Single Unit Short Haul",C69="Gasoline"),AND(OR(D69="B20 (Biodiesel)",D69="R100 (Renewable Diesel)"),C69="Gasoline"),AND(OR(B69="Single Unit Short Haul",B69="Single Unit Long Haul"),Deployment_GeographicScale="Distribution Center"),AND(B69<>"Combination Unit Short Haul",Deployment_GeographicScale="Port"),D69="B20 (Biodiesel)",D69="R100 (Renewable Diesel)",SUMPRODUCT((RRFs!$B$4:$B$35=D69)*OR(RRFs!$C$4:$C$35=IF(C69="Gasoline","G",IF(C69="Diesel","D",C69)),RRFs!$C$4:$C$35="A")*INDIRECT(VLOOKUP(B69&" Incr Cost",RRFs!$AO:$AP,2,FALSE)))=-999999),"N/A", SUMPRODUCT((RRFs!$B$4:$B$35=D69)*OR(RRFs!$C$4:$C$35=IF(C69="Gasoline","G",IF(C69="Diesel","D",C69)),RRFs!$C$4:$C$35="A")*INDIRECT(VLOOKUP(B69&" Incr Cost",RRFs!$AO:$AP,2,FALSE))) + IF(AND(Deployment_Type_of_Modification<>"Alternative Fuels",Deployment_Type_of_Modification<>"Accelerated Retirement"),0, IF(OR(D69="B20 (Biodiesel)",D69="R100 (Renewable Diesel)"),0, SUMPRODUCT((EFs!$A$4:$A$3351=Deployment_Year)*(EFs!$B$4:$B$3351=VLOOKUP(B69,'Store Inputs'!$F:$G,2,FALSE))*(EFs!$C$4:$C$3351=VLOOKUP(Deployment_GeographicScale,'Store Inputs'!$C:$D,2,FALSE))*(EFs!$D$4:$D$3351=Deployment_Year)*(EFs!$E$4:$E$3351=IF(C69="Gasoline","G",IF(C69="Diesel","D",C69)))*EFs!$Q$4:$Q$3351))))) -> -

Sheet 1. Deployment, Out, Fuels (hidden)
A1: Deployment of Alternative Fuels | U1: Lookup Formulas | V1: Lookup Formulas | W1: Companion Sheet: | X1: Deployment Export Table
A2: Tips: Scroll vertically and horizontally as needed to see all results. Where new vehicles are required for the alternative fuel, existing trucks will be scrapped.
D3: Modification: | E3: =INDEX(Deployment_Specific_Modifications,1,1) -> DOC | H3: Running EFs (g/mi) | K3: Fuel | L3: Power Plant EFs for Electric Vehicles | M3: PM2.5 (g/mi) | O3: Extended Idle | S3: Cost
D4: Cost and Units of Alternative Fuel: | E4: =IF(E3="Hybrid", IF(E11="D",VLOOKUP("Diesel",Deployment_Fuel_Type_Cost_and_Unit,2,0), IF(E11="G",VLOOKUP("Gasoline",Deployment_Fuel_Type_Cost_and_Unit,2,0),NA())), IF(VLOOKUP(E6&E11,Deployment_Fuel_by_Truck_and_Fuel_Types,4,0)="D", VLOOKUP(VLOOKUP(E3,FuelCrosswalk,2,FALSE),Deployment_Fuel_Type_Cost_and_Unit,2,0)* (SUMIFS(Defaults!$W:$W,Defaults!$U:$U,VLOOKUP(E3,FuelCrosswalk,2,FALSE),Defaults!$V:$V,"DGE")/ SUMIFS(Defaults!$W:$W,Defaults!$U:$U,VLOOKUP(E3,FuelCrosswalk,2,FALSE),Defaults!$V:$V,VLOOKUP(VLOOKUP(E3,FuelCrosswalk,2,FALSE),Deployment_Fuel_Type_Cost_and_Unit,3,0))), IF(VLOOKUP(E6&E11,Deployment_Fuel_by_Truck_and_Fuel_Types,4,0)="G", VLOOKUP(VLOOKUP(E3,FuelCrosswalk,2,FALSE),Deployment_Fuel_Type_Cost_and_Unit,2,0)* (SUMIFS(Defaults!$W:$W,Defaults!$U:$U,VLOOKUP(E3,FuelCrosswalk,2,FALSE),Defaults!$V:$V,"GGE")/ SUMIFS(Defaults!$W:$W,Defaults!$U:$U,VLOOKUP(E3,FuelCrosswalk,2,FALSE),Defaults!$V:$V,VLOOKUP(VLOOKUP(E3,FuelCrosswalk,2,FALSE),Deployment_Fuel_Type_Cost_and_Unit,3,0))),NA() ))) ->  | G4: PER TRUCK: | O4: Emissions (g/hr) | R4: Fuel
E5: =IF(E11="G","GGE","DGE") -> DGE | G5: Case | H5: NOx | I5: PM2.5 | J5: CO2 | K5: mi/gal | L5: g CO2/kWh | M5: Brake | N5: Tire | O5: NOx | P5: PM2.5 | Q5: CO2 | R5: (gal/hr)
D6: Type of Truck: | E6: =INDEX(Deployment_TruckTypes,1,1) -> Single Unit Short Haul | G6: Baseline | H6: =IFERROR( IF(OR(E3=0,AND(E6<>"Single Unit Short Haul",E11="G"),AND(OR(E3="B20 (Biodiesel)",E3="R100 (Renewable Diesel)"),E11="G"),AND(OR(E6="Single Unit Short Haul",E6="Single Unit Long Haul"),E10="Distribution Center"),AND(E6<>"Combination Unit Short Haul",E10="Port")),0/0, IF(SUMPRODUCT((RRFs!$B$4:$B$35=E3)*OR(RRFs!$C$4:$C$35=E11,RRFs!$C$4:$C$35="A")*INDIRECT(VLOOKUP(E6&" "&H5,RRFs!$AO:$AP,2,FALSE)))=-999999,0/0, SUMPRODUCT((EFs!$A$4:$A$3351=E7)*(EFs!$B$4:$B$3351=VLOOKUP(E6,'Store Inputs'!$F:$G,2,FALSE))*(EFs!$C$4:$C$3351=VLOOKUP(E10,'Store Inputs'!$C:$D,2,FALSE))*(EFs!$D$4:$D$3351>=E8)*(EFs!$D$4:$D$3351<=E9)*(EFs!$E$4:$E$3351=E11)*EFs!$F$4:$F$3351*EFs!$P$4:$P$3351) / SUMPRODUCT((EFs!$A$4:$A$3351=E7)*(EFs!$B$4:$B$3351=VLOOKUP(E6,'Store Inputs'!$F:$G,2,FALSE))*(EFs!$C$4:$C$3351=VLOOKUP(E10,'Store Inputs'!$C:$D,2,FALSE))*(EFs!$D$4:$D$3351>=E8)*(EFs!$D$4:$D$3351<=E9)*(EFs!$E$4:$E$3351=E11)*EFs!$P$4:$P$3351))), 0) -> 1.823352215 | I6: =IFERROR( IF(OR(E3=0,AND(E6<>"Single Unit Short Haul",E11="G"),AND(OR(E3="B20 (Biodiesel)",E3="R100 (Renewable Diesel)"),E11="G"),AND(OR(E6="Single Unit Short Haul",E6="Single Unit Long Haul"),E10="Distribution Center"),AND(E6<>"Combination Unit Short Haul",E10="Port")),0/0, IF(SUMPRODUCT((RRFs!$B$4:$B$35=E3)*OR(RRFs!$C$4:$C$35=E11,RRFs!$C$4:$C$35="A")*INDIRECT(VLOOKUP(E6&" "&I5,RRFs!$AO:$AP,2,FALSE)))=-999999,0/0, SUMPRODUCT((EFs!$A$4:$A$3351=E7)*(EFs!$B$4:$B$3351=VLOOKUP(E6,'Store Inputs'!$F:$G,2,FALSE))*(EFs!$C$4:$C$3351=VLOOKUP(E10,'Store Inputs'!$C:$D,2,FALSE))*(EFs!$D$4:$D$3351>=E8)*(EFs!$D$4:$D$3351<=E9)*(EFs!$E$4:$E$3351=E11)*EFs!$G$4:$G$3351*EFs!$P$4:$P$3351) / SUMPRODUCT((EFs!$A$4:$A$3351=E7)*(EFs!$B$4:$B$3351=VLOOKUP(E6,'Store Inputs'!$F:$G,2,FALSE))*(EFs!$C$4:$C$3351=VLOOKUP(E10,'Store Inputs'!$C:$D,2,FALSE))*(EFs!$D$4:$D$3351>=E8)*(EFs!$D$4:$D$3351<=E9)*(EFs!$E$4:$E$3351=E11)*EFs!$P$4:$P$3351))), 0) -> 0.05678654044 | J6: =IFERROR( IF(OR(E3=0,AND(E6<>"Single Unit Short Haul",E11="G"),AND(OR(E3="B20 (Biodiesel)",E3="R100 (Renewable Diesel)"),E11="G"),AND(OR(E6="Single Unit Short Haul",E6="Single Unit Long Haul"),E10="Distribution Center"),AND(E6<>"Combination Unit Short Haul",E10="Port")),0/0, IF(SUMPRODUCT((RRFs!$B$4:$B$35=E3)*OR(RRFs!$C$4:$C$35=E11,RRFs!$C$4:$C$35="A")*INDIRECT(VLOOKUP(E6&" "&J5,RRFs!$AO:$AP,2,FALSE)))=-999999,0/0, SUMPRODUCT((EFs!$A$4:$A$3351=E7)*(EFs!$B$4:$B$3351=VLOOKUP(E6,'Store Inputs'!$F:$G,2,FALSE))*(EFs!$C$4:$C$3351=VLOOKUP(E10,'Store Inputs'!$C:$D,2,FALSE))*(EFs!$D$4:$D$3351>=E8)*(EFs!$D$4:$D$3351<=E9)*(EFs!$E$4:$E$3351=E11)*EFs!$H$4:$H$3351*EFs!$P$4:$P$3351) / SUMPRODUCT((EFs!$A$4:$A$3351=E7)*(EFs!$B$4:$B$3351=VLOOKUP(E6,'Store Inputs'!$F:$G,2,FALSE))*(EFs!$C$4:$C$3351=VLOOKUP(E10,'Store Inputs'!$C:$D,2,FALSE))*(EFs!$D$4:$D$3351>=E8)*(EFs!$D$4:$D$3351<=E9)*(EFs!$E$4:$E$3351=E11)*EFs!$P$4:$P$3351))), 0) -> 986.868947 | K6: =IFERROR( IF(OR(E3=0,AND(E6<>"Single Unit Short Haul",E11="G"),AND(OR(E3="B20 (Biodiesel)",E3="R100 (Renewable Diesel)"),E11="G"),AND(OR(E6="Single Unit Short Haul",E6="Single Unit Long Haul"),E10="Distribution Center"),AND(E6<>"Combination Unit Short Haul",E10="Port")),0/0, IF(SUMPRODUCT((RRFs!$B$4:$B$35=E3)*OR(RRFs!$C$4:$C$35=E11,RRFs!$C$4:$C$35="A")*INDIRECT(VLOOKUP(E6&" "&K3,RRFs!$AO:$AP,2,FALSE)))=-999999,0/0, SUMPRODUCT((EFs!$A$4:$A$3351=E7)*(EFs!$B$4:$B$3351=VLOOKUP(E6,'Store Inputs'!$F:$G,2,FALSE))*(EFs!$C$4:$C$3351=VLOOKUP(E10,'Store Inputs'!$C:$D,2,FALSE))*(EFs!$D$4:$D$3351>=E8)*(EFs!$D$4:$D$3351<=E9)*(EFs!$E$4:$E$3351=E11)*EFs!$I$4:$I$3351*EFs!$P$4:$P$3351) / SUMPRODUCT((EFs!$A$4:$A$3351=E7)*(EFs!$B$4:$B$3351=VLOOKUP(E6,'Store Inputs'!$F:$G,2,FALSE))*(EFs!$C$4:$C$3351=VLOOKUP(E10,'Store Inputs'!$C:$D,2,FALSE))*(EFs!$D$4:$D$3351>=E8)*(EFs!$D$4:$D$3351<=E9)*(EFs!$E$4:$E$3351=E11)*EFs!$P$4:$P$3351))), 0) -> 10.39632059 | L6: 0 | M6: =IFERROR( IF(OR(E3=0,AND(E6<>"Single Unit Short Haul",E11="G"),AND(OR(E3="B20 (Biodiesel)",E3="R100 (Renewable Diesel)"),E11="G"),AND(OR(E6="Single Unit Short Haul",E6="Single Unit Long Haul"),E10="Distribution Center"),AND(E6<>"Combination Unit Short Haul",E10="Port")),0/0, IF(SUMPRODUCT((RRFs!$B$4:$B$35=E3)*OR(RRFs!$C$4:$C$35=E11,RRFs!$C$4:$C$35="A")*INDIRECT(VLOOKUP(E6&" "&H5,RRFs!$AO:$AP,2,FALSE)))=-999999,0/0, SUMPRODUCT((EFs!$A$4:$A$3351=E7)*(EFs!$B$4:$B$3351=VLOOKUP(E6,'Store Inputs'!$F:$G,2,FALSE))*(EFs!$C$4:$C$3351=VLOOKUP(E10,'Store Inputs'!$C:$D,2,FALSE))*(EFs!$D$4:$D$3351>=E8)*(EFs!$D$4:$D$3351<=E9)*(EFs!$E$4:$E$3351=E11)*EFs!$J$4:$J$3351*EFs!$P$4:$P$3351) / SUMPRODUCT((EFs!$A$4:$A$3351=E7)*(EFs!$B$4:$B$3351=VLOOKUP(E6,'Store Inputs'!$F:$G,2,FALSE))*(EFs!$C$4:$C$3351=VLOOKUP(E10,'Store Inputs'!$C:$D,2,FALSE))*(EFs!$D$4:$D$3351>=E8)*(EFs!$D$4:$D$3351<=E9)*(EFs!$E$4:$E$3351=E11)*EFs!$P$4:$P$3351))), 0) -> 0.01133496621 | N6: =IFERROR( IF(OR(E3=0,AND(E6<>"Single Unit Short Haul",E11="G"),AND(OR(E3="B20 (Biodiesel)",E3="R100 (Renewable Diesel)"),E11="G"),AND(OR(E6="Single Unit Short Haul",E6="Single Unit Long Haul"),E10="Distribution Center"),AND(E6<>"Combination Unit Short Haul",E10="Port")),0/0, IF(SUMPRODUCT((RRFs!$B$4:$B$35=E3)*OR(RRFs!$C$4:$C$35=E11,RRFs!$C$4:$C$35="A")*INDIRECT(VLOOKUP(E6&" "&H5,RRFs!$AO:$AP,2,FALSE)))=-999999,0/0, SUMPRODUCT((EFs!$A$4:$A$3351=E7)*(EFs!$B$4:$B$3351=VLOOKUP(E6,'Store Inputs'!$F:$G,2,FALSE))*(EFs!$C$4:$C$3351=VLOOKUP(E10,'Store Inputs'!$C:$D,2,FALSE))*(EFs!$D$4:$D$3351>=E8)*(EFs!$D$4:$D$3351<=E9)*(EFs!$E$4:$E$3351=E11)*EFs!$K$4:$K$3351*EFs!$P$4:$P$3351) / SUMPRODUCT((EFs!$A$4:$A$3351=E7)*(EFs!$B$4:$B$3351=VLOOKUP(E6,'Store Inputs'!$F:$G,2,FALSE))*(EFs!$C$4:$C$3351=VLOOKUP(E10,'Store Inputs'!$C:$D,2,FALSE))*(EFs!$D$4:$D$3351>=E8)*(EFs!$D$4:$D$3351<=E9)*(EFs!$E$4:$E$3351=E11)*EFs!$P$4:$P$3351))), 0) -> 0.002354889134 | O6: =IFERROR( IF(E16="-",0/0, IF(OR(E3=0,AND(E6<>"Single Unit Short Haul",E11="G"),AND(OR(E3="B20 (Biodiesel)",E3="R100 (Renewable Diesel)"),E11="G"),AND(OR(E6="Single Unit Short Haul",E6="Single Unit Long Haul"),E10="Distribution Center"),AND(E6<>"Combination Unit Short Haul",E10="Port")),0/0, IF(SUMPRODUCT((RRFs!$B$4:$B$35=E3)*OR(RRFs!$C$4:$C$35=E11,RRFs!$C$4:$C$35="A")*INDIRECT(VLOOKUP(E6&" "&O5,RRFs!$AO:$AP,2,FALSE)))=-999999,0/0, SUMPRODUCT((EFs!$A$4:$A$3351=E7)*(EFs!$B$4:$B$3351=VLOOKUP(E6,'Store Inputs'!$F:$G,2,FALSE))*(EFs!$C$4:$C$3351=VLOOKUP(E10,'Store Inputs'!$C:$D,2,FALSE))*(EFs!$D$4:$D$3351>=E8)*(EFs!$D$4:$D$3351<=E9)*(EFs!$E$4:$E$3351=E11)*EFs!$L$4:$L$3351*EFs!$P$4:$P$3351) / SUMPRODUCT((EFs!$A$4:$A$3351=E7)*(EFs!$B$4:$B$3351=VLOOKUP(E6,'Store Inputs'!$F:$G,2,FALSE))*(EFs!$C$4:$C$3351=VLOOKUP(E10,'Store Inputs'!$C:$D,2,FALSE))*(EFs!$D$4:$D$3351>=E8)*(EFs!$D$4:$D$3351<=E9)*(EFs!$E$4:$E$3351=E11)*EFs!$P$4:$P$3351)))), 0) -> 0 | P6: =IFERROR( IF(E16="-",0/0, IF(OR(E3=0,AND(E6<>"Single Unit Short Haul",E11="G"),AND(OR(E3="B20 (Biodiesel)",E3="R100 (Renewable Diesel)"),E11="G"),AND(OR(E6="Single Unit Short Haul",E6="Single Unit Long Haul"),E10="Distribution Center"),AND(E6<>"Combination Unit Short Haul",E10="Port")),0/0, IF(SUMPRODUCT((RRFs!$B$4:$B$35=E3)*OR(RRFs!$C$4:$C$35=E11,RRFs!$C$4:$C$35="A")*INDIRECT(VLOOKUP(E6&" "&P5,RRFs!$AO:$AP,2,FALSE)))=-999999,0/0, SUMPRODUCT((EFs!$A$4:$A$3351=E7)*(EFs!$B$4:$B$3351=VLOOKUP(E6,'Store Inputs'!$F:$G,2,FALSE))*(EFs!$C$4:$C$3351=VLOOKUP(E10,'Store Inputs'!$C:$D,2,FALSE))*(EFs!$D$4:$D$3351>=E8)*(EFs!$D$4:$D$3351<=E9)*(EFs!$E$4:$E$3351=E11)*EFs!$M$4:$M$3351*EFs!$P$4:$P$3351) / SUMPRODUCT((EFs!$A$4:$A$3351=E7)*(EFs!$B$4:$B$3351=VLOOKUP(E6,'Store Inputs'!$F:$G,2,FALSE))*(EFs!$C$4:$C$3351=VLOOKUP(E10,'Store Inputs'!$C:$D,2,FALSE))*(EFs!$D$4:$D$3351>=E8)*(EFs!$D$4:$D$3351<=E9)*(EFs!$E$4:$E$3351=E11)*EFs!$P$4:$P$3351)))), 0) -> 0 | Q6: =IFERROR( IF(E16="-",0/0, IF(OR(E3=0,AND(E6<>"Single Unit Short Haul",E11="G"),AND(OR(E3="B20 (Biodiesel)",E3="R100 (Renewable Diesel)"),E11="G"),AND(OR(E6="Single Unit Short Haul",E6="Single Unit Long Haul"),E10="Distribution Center"),AND(E6<>"Combination Unit Short Haul",E10="Port")),0/0, IF(SUMPRODUCT((RRFs!$B$4:$B$35=E3)*OR(RRFs!$C$4:$C$35=E11,RRFs!$C$4:$C$35="A")*INDIRECT(VLOOKUP(E6&" "&Q5,RRFs!$AO:$AP,2,FALSE)))=-999999,0/0, SUMPRODUCT((EFs!$A$4:$A$3351=E7)*(EFs!$B$4:$B$3351=VLOOKUP(E6,'Store Inputs'!$F:$G,2,FALSE))*(EFs!$C$4:$C$3351=VLOOKUP(E10,'Store Inputs'!$C:$D,2,FALSE))*(EFs!$D$4:$D$3351>=E8)*(EFs!$D$4:$D$3351<=E9)*(EFs!$E$4:$E$3351=E11)*EFs!$N$4:$N$3351*EFs!$P$4:$P$3351) / SUMPRODUCT((EFs!$A$4:$A$3351=E7)*(EFs!$B$4:$B$3351=VLOOKUP(E6,'Store Inputs'!$F:$G,2,FALSE))*(EFs!$C$4:$C$3351=VLOOKUP(E10,'Store Inputs'!$C:$D,2,FALSE))*(EFs!$D$4:$D$3351>=E8)*(EFs!$D$4:$D$3351<=E9)*(EFs!$E$4:$E$3351=E11)*EFs!$P$4:$P$3351)))), 0) -> 0 | R6: =IFERROR( IF(E16="-",0/0, IF(OR(E3=0,AND(E6<>"Single Unit Short Haul",E11="G"),AND(OR(E3="B20 (Biodiesel)",E3="R100 (Renewable Diesel)"),E11="G"),AND(OR(E6="Single Unit Short Haul",E6="Single Unit Long Haul"),E10="Distribution Center"),AND(E6<>"Combination Unit Short Haul",E10="Port")),0/0, IF(SUMPRODUCT((RRFs!$B$4:$B$35=E3)*OR(RRFs!$C$4:$C$35=E11,RRFs!$C$4:$C$35="A")*INDIRECT(VLOOKUP(E6&" "&R4,RRFs!$AO:$AP,2,FALSE)))=-999999,0/0, SUMPRODUCT((EFs!$A$4:$A$3351=E7)*(EFs!$B$4:$B$3351=VLOOKUP(E6,'Store Inputs'!$F:$G,2,FALSE))*(EFs!$C$4:$C$3351=VLOOKUP(E10,'Store Inputs'!$C:$D,2,FALSE))*(EFs!$D$4:$D$3351>=E8)*(EFs!$D$4:$D$3351<=E9)*(EFs!$E$4:$E$3351=E11)*EFs!$O$4:$O$3351*EFs!$P$4:$P$3351) / SUMPRODUCT((EFs!$A$4:$A$3351=E7)*(EFs!$B$4:$B$3351=VLOOKUP(E6,'Store Inputs'!$F:$G,2,FALSE))*(EFs!$C$4:$C$3351=VLOOKUP(E10,'Store Inputs'!$C:$D,2,FALSE))*(EFs!$D$4:$D$3351>=E8)*(EFs!$D$4:$D$3351<=E9)*(EFs!$E$4:$E$3351=E11)*EFs!$P$4:$P$3351)))), 0) -> 0 | S6: 0
D7: Calendar Year: | E7: =Deployment_Year -> 2030 | G7: Modified | H7: =IFERROR( IF(OR(E3=0,AND(E6<>"Single Unit Short Haul",E11="G"),AND(OR(E3="B20 (Biodiesel)",E3="R100 (Renewable Diesel)"),E11="G"),AND(OR(E6="Single Unit Short Haul",E6="Single Unit Long Haul"),E10="Distribution Center"),AND(E6<>"Combination Unit Short Haul",E10="Port")),0/0, IF(SUMPRODUCT((RRFs!$B$4:$B$35=E3)*OR(RRFs!$C$4:$C$35=E11,RRFs!$C$4:$C$35="A")*INDIRECT(VLOOKUP(E6&" "&H5,RRFs!$AO:$AP,2,FALSE)))=-999999,0/0, IF(OR(E3="B20 (Biodiesel)",E3="R100 (Renewable Diesel)"),H6*(1-(SUMPRODUCT((RRFs!$B$4:$B$35=E3)*OR(RRFs!$C$4:$C$35=E11,RRFs!$C$4:$C$35="A")*(INDIRECT(VLOOKUP(E6&" "&H5,RRFs!$AO:$AP,2,FALSE))<>-999999)*INDIRECT(VLOOKUP(E6&" "&H5,RRFs!$AO:$AP,2,FALSE))))), SUMPRODUCT((EFs!$A$4:$A$3351=E7)*(EFs!$B$4:$B$3351=VLOOKUP(E6,'Store Inputs'!$F:$G,2,FALSE))*(EFs!$C$4:$C$3351=VLOOKUP(E10,'Store Inputs'!$C:$D,2,FALSE))*(EFs!$D$4:$D$3351=E7)*(EFs!$E$4:$E$3351=E11)*EFs!$F$4:$F$3351*EFs!$P$4:$P$3351) / SUMPRODUCT((EFs!$A$4:$A$3351=E7)*(EFs!$B$4:$B$3351=VLOOKUP(E6,'Store Inputs'!$F:$G,2,FALSE))*(EFs!$C$4:$C$3351=VLOOKUP(E10,'Store Inputs'!$C:$D,2,FALSE))*(EFs!$D$4:$D$3351=E7)*(EFs!$E$4:$E$3351=E11)*EFs!$P$4:$P$3351) * (1-(SUMPRODUCT((RRFs!$B$4:$B$35=E3)*OR(RRFs!$C$4:$C$35=E11,RRFs!$C$4:$C$35="A")*(INDIRECT(VLOOKUP(E6&" "&H5,RRFs!$AO:$AP,2,FALSE))<>-999999)*INDIRECT(VLOOKUP(E6&" "&H5,RRFs!$AO:$AP,2,FALSE)))))))), 0) -> 0.55911341 | I7: =IFERROR( IF(OR(E3=0,AND(E6<>"Single Unit Short Haul",E11="G"),AND(OR(E3="B20 (Biodiesel)",E3="R100 (Renewable Diesel)"),E11="G"),AND(OR(E6="Single Unit Short Haul",E6="Single Unit Long Haul"),E10="Distribution Center"),AND(E6<>"Combination Unit Short Haul",E10="Port")),0/0, IF(SUMPRODUCT((RRFs!$B$4:$B$35=E3)*OR(RRFs!$C$4:$C$35=E11,RRFs!$C$4:$C$35="A")*INDIRECT(VLOOKUP(E6&" "&I5,RRFs!$AO:$AP,2,FALSE)))=-999999,0/0, IF(OR(E3="B20 (Biodiesel)",E3="R100 (Renewable Diesel)"),I6*(1-(SUMPRODUCT((RRFs!$B$4:$B$35=E3)*OR(RRFs!$C$4:$C$35=E11,RRFs!$C$4:$C$35="A")*(INDIRECT(VLOOKUP(E6&" "&I5,RRFs!$AO:$AP,2,FALSE))<>-999999)*INDIRECT(VLOOKUP(E6&" "&I5,RRFs!$AO:$AP,2,FALSE))))), SUMPRODUCT((EFs!$A$4:$A$3351=E7)*(EFs!$B$4:$B$3351=VLOOKUP(E6,'Store Inputs'!$F:$G,2,FALSE))*(EFs!$C$4:$C$3351=VLOOKUP(E10,'Store Inputs'!$C:$D,2,FALSE))*(EFs!$D$4:$D$3351=E7)*(EFs!$E$4:$E$3351=E11)*EFs!$G$4:$G$3351*EFs!$P$4:$P$3351) / SUMPRODUCT((EFs!$A$4:$A$3351=E7)*(EFs!$B$4:$B$3351=VLOOKUP(E6,'Store Inputs'!$F:$G,2,FALSE))*(EFs!$C$4:$C$3351=VLOOKUP(E10,'Store Inputs'!$C:$D,2,FALSE))*(EFs!$D$4:$D$3351=E7)*(EFs!$E$4:$E$3351=E11)*EFs!$P$4:$P$3351) * (1-(SUMPRODUCT((RRFs!$B$4:$B$35=E3)*OR(RRFs!$C$4:$C$35=E11,RRFs!$C$4:$C$35="A")*(INDIRECT(VLOOKUP(E6&" "&I5,RRFs!$AO:$AP,2,FALSE))<>-999999)*INDIRECT(VLOOKUP(E6&" "&I5,RRFs!$AO:$AP,2,FALSE)))))))), 0) -> 0.007602766519 | J7: =IFERROR( IF(OR(E3=0,AND(E6<>"Single Unit Short Haul",E11="G"),AND(OR(E3="B20 (Biodiesel)",E3="R100 (Renewable Diesel)"),E11="G"),AND(OR(E6="Single Unit Short Haul",E6="Single Unit Long Haul"),E10="Distribution Center"),AND(E6<>"Combination Unit Short Haul",E10="Port")),0/0, IF(SUMPRODUCT((RRFs!$B$4:$B$35=E3)*OR(RRFs!$C$4:$C$35=E11,RRFs!$C$4:$C$35="A")*INDIRECT(VLOOKUP(E6&" "&J5,RRFs!$AO:$AP,2,FALSE)))=-999999,0/0, IF(OR(E3="B20 (Biodiesel)",E3="R100 (Renewable Diesel)"),J6*(1-(SUMPRODUCT((RRFs!$B$4:$B$35=E3)*OR(RRFs!$C$4:$C$35=E11,RRFs!$C$4:$C$35="A")*(INDIRECT(VLOOKUP(E6&" "&J5,RRFs!$AO:$AP,2,FALSE))<>-999999)*INDIRECT(VLOOKUP(E6&" "&J5,RRFs!$AO:$AP,2,FALSE))))), SUMPRODUCT((EFs!$A$4:$A$3351=E7)*(EFs!$B$4:$B$3351=VLOOKUP(E6,'Store Inputs'!$F:$G,2,FALSE))*(EFs!$C$4:$C$3351=VLOOKUP(E10,'Store Inputs'!$C:$D,2,FALSE))*(EFs!$D$4:$D$3351=E7)*(EFs!$E$4:$E$3351=E11)*EFs!$H$4:$H$3351*EFs!$P$4:$P$3351) / SUMPRODUCT((EFs!$A$4:$A$3351=E7)*(EFs!$B$4:$B$3351=VLOOKUP(E6,'Store Inputs'!$F:$G,2,FALSE))*(EFs!$C$4:$C$3351=VLOOKUP(E10,'Store Inputs'!$C:$D,2,FALSE))*(EFs!$D$4:$D$3351=E7)*(EFs!$E$4:$E$3351=E11)*EFs!$P$4:$P$3351) * (1-(SUMPRODUCT((RRFs!$B$4:$B$35=E3)*OR(RRFs!$C$4:$C$35=E11,RRFs!$C$4:$C$35="A")*(INDIRECT(VLOOKUP(E6&" "&J5,RRFs!$AO:$AP,2,FALSE))<>-999999)*INDIRECT(VLOOKUP(E6&" "&J5,RRFs!$AO:$AP,2,FALSE)))))))), 0) -> 901.6021653 | K7: =IFERROR( IF(OR(E3=0,AND(E6<>"Single Unit Short Haul",E11="G"),AND(OR(E3="B20 (Biodiesel)",E3="R100 (Renewable Diesel)"),E11="G"),AND(OR(E6="Single Unit Short Haul",E6="Single Unit Long Haul"),E10="Distribution Center"),AND(E6<>"Combination Unit Short Haul",E10="Port")),0/0, IF(SUMPRODUCT((RRFs!$B$4:$B$35=E3)*OR(RRFs!$C$4:$C$35=E11,RRFs!$C$4:$C$35="A")*INDIRECT(VLOOKUP(E6&" "&K3,RRFs!$AO:$AP,2,FALSE)))=-999999,0/0, IF(OR(E3="B20 (Biodiesel)",E3="R100 (Renewable Diesel)"),K6*(1-(SUMPRODUCT((RRFs!$B$4:$B$35=E3)*OR(RRFs!$C$4:$C$35=E11,RRFs!$C$4:$C$35="A")*(INDIRECT(VLOOKUP(E6&" "&K3,RRFs!$AO:$AP,2,FALSE))<>-999999)*INDIRECT(VLOOKUP(E6&" "&K3,RRFs!$AO:$AP,2,FALSE))))), SUMPRODUCT((EFs!$A$4:$A$3351=E7)*(EFs!$B$4:$B$3351=VLOOKUP(E6,'Store Inputs'!$F:$G,2,FALSE))*(EFs!$C$4:$C$3351=VLOOKUP(E10,'Store Inputs'!$C:$D,2,FALSE))*(EFs!$D$4:$D$3351=E7)*(EFs!$E$4:$E$3351=E11)*EFs!$I$4:$I$3351*EFs!$P$4:$P$3351) / SUMPRODUCT((EFs!$A$4:$A$3351=E7)*(EFs!$B$4:$B$3351=VLOOKUP(E6,'Store Inputs'!$F:$G,2,FALSE))*(EFs!$C$4:$C$3351=VLOOKUP(E10,'Store Inputs'!$C:$D,2,FALSE))*(EFs!$D$4:$D$3351=E7)*(EFs!$E$4:$E$3351=E11)*EFs!$P$4:$P$3351) * (1+(SUMPRODUCT((RRFs!$B$4:$B$35=E3)*OR(RRFs!$C$4:$C$35=E11,RRFs!$C$4:$C$35="A")*(INDIRECT(VLOOKUP(E6&" "&K3,RRFs!$AO:$AP,2,FALSE))<>-999999)*INDIRECT(VLOOKUP(E6&" "&K3,RRFs!$AO:$AP,2,FALSE)))))))), 0) -> 11.35633401 | L7: =IF(E3<>"Electric",0,'1. Deployment, Part 4'!UserElectMixValue_1) -> 0 | M7: =IFERROR( IF(OR(E3=0,AND(E6<>"Single Unit Short Haul",E11="G"),AND(OR(E3="B20 (Biodiesel)",E3="R100 (Renewable Diesel)"),E11="G"),AND(OR(E6="Single Unit Short Haul",E6="Single Unit Long Haul"),E10="Distribution Center"),AND(E6<>"Combination Unit Short Haul",E10="Port")),0/0, IF(SUMPRODUCT((RRFs!$B$4:$B$35=E3)*OR(RRFs!$C$4:$C$35=E11,RRFs!$C$4:$C$35="A")*INDIRECT(VLOOKUP(E6&" "&H5,RRFs!$AO:$AP,2,FALSE)))=-999999,0/0, IF(OR(E3="B20 (Biodiesel)",E3="R100 (Renewable Diesel)"),M6, SUMPRODUCT((EFs!$A$4:$A$3351=E7)*(EFs!$B$4:$B$3351=VLOOKUP(E6,'Store Inputs'!$F:$G,2,FALSE))*(EFs!$C$4:$C$3351=VLOOKUP(E10,'Store Inputs'!$C:$D,2,FALSE))*(EFs!$D$4:$D$3351=E7)*(EFs!$E$4:$E$3351=E11)*EFs!$J$4:$J$3351*EFs!$P$4:$P$3351) / SUMPRODUCT((EFs!$A$4:$A$3351=E7)*(EFs!$B$4:$B$3351=VLOOKUP(E6,'Store Inputs'!$F:$G,2,FALSE))*(EFs!$C$4:$C$3351=VLOOKUP(E10,'Store Inputs'!$C:$D,2,FALSE))*(EFs!$D$4:$D$3351=E7)*(EFs!$E$4:$E$3351=E11)*EFs!$P$4:$P$3351) * IF(OR(E3="Hybrid",E3="Electric"),0.5,1)))), 0) -> 0.01126798655 | N7: =IFERROR( IF(OR(E3=0,AND(E6<>"Single Unit Short Haul",E11="G"),AND(OR(E3="B20 (Biodiesel)",E3="R100 (Renewable Diesel)"),E11="G"),AND(OR(E6="Single Unit Short Haul",E6="Single Unit Long Haul"),E10="Distribution Center"),AND(E6<>"Combination Unit Short Haul",E10="Port")),0/0, IF(SUMPRODUCT((RRFs!$B$4:$B$35=E3)*OR(RRFs!$C$4:$C$35=E11,RRFs!$C$4:$C$35="A")*INDIRECT(VLOOKUP(E6&" "&H5,RRFs!$AO:$AP,2,FALSE)))=-999999,0/0, IF(OR(E3="B20 (Biodiesel)",E3="R100 (Renewable Diesel)"),N6, SUMPRODUCT((EFs!$A$4:$A$3351=E7)*(EFs!$B$4:$B$3351=VLOOKUP(E6,'Store Inputs'!$F:$G,2,FALSE))*(EFs!$C$4:$C$3351=VLOOKUP(E10,'Store Inputs'!$C:$D,2,FALSE))*(EFs!$D$4:$D$3351=E7)*(EFs!$E$4:$E$3351=E11)*EFs!$K$4:$K$3351*EFs!$P$4:$P$3351) / SUMPRODUCT((EFs!$A$4:$A$3351=E7)*(EFs!$B$4:$B$3351=VLOOKUP(E6,'Store Inputs'!$F:$G,2,FALSE))*(EFs!$C$4:$C$3351=VLOOKUP(E10,'Store Inputs'!$C:$D,2,FALSE))*(EFs!$D$4:$D$3351=E7)*(EFs!$E$4:$E$3351=E11)*EFs!$P$4:$P$3351)))), 0) -> 0.002343827404 | O7: =IFERROR( IF(E16="-",0/0, IF(OR(E3=0,AND(E6<>"Single Unit Short Haul",E11="G"),AND(OR(E3="B20 (Biodiesel)",E3="R100 (Renewable Diesel)"),E11="G"),AND(OR(E6="Single Unit Short Haul",E6="Single Unit Long Haul"),E10="Distribution Center"),AND(E6<>"Combination Unit Short Haul",E10="Port")),0/0, IF(SUMPRODUCT((RRFs!$B$4:$B$35=E3)*OR(RRFs!$C$4:$C$35=E11,RRFs!$C$4:$C$35="A")*INDIRECT(VLOOKUP(E6&" "&O5,RRFs!$AO:$AP,2,FALSE)))=-999999,0/0, IF(OR(E3="B20 (Biodiesel)",E3="R100 (Renewable Diesel)"),O6*(1-(SUMPRODUCT((RRFs!$B$4:$B$35=E3)*OR(RRFs!$C$4:$C$35=E11,RRFs!$C$4:$C$35="A")*(INDIRECT(VLOOKUP(E6&" "&O5,RRFs!$AO:$AP,2,FALSE))<>-999999)*INDIRECT(VLOOKUP(E6&" "&O5,RRFs!$AO:$AP,2,FALSE))))), SUMPRODUCT((EFs!$A$4:$A$3351=E7)*(EFs!$B$4:$B$3351=VLOOKUP(E6,'Store Inputs'!$F:$G,2,FALSE))*(EFs!$C$4:$C$3351=VLOOKUP(E10,'Store Inputs'!$C:$D,2,FALSE))*(EFs!$D$4:$D$3351=E7)*(EFs!$E$4:$E$3351=E11)*EFs!$L$4:$L$3351*EFs!$P$4:$P$3351) / SUMPRODUCT((EFs!$A$4:$A$3351=E7)*(EFs!$B$4:$B$3351=VLOOKUP(E6,'Store Inputs'!$F:$G,2,FALSE))*(EFs!$C$4:$C$3351=VLOOKUP(E10,'Store Inputs'!$C:$D,2,FALSE))*(EFs!$D$4:$D$3351=E7)*(EFs!$E$4:$E$3351=E11)*EFs!$P$4:$P$3351) * (1-(SUMPRODUCT((RRFs!$B$4:$B$35=E3)*OR(RRFs!$C$4:$C$35=E11,RRFs!$C$4:$C$35="A")*(INDIRECT(VLOOKUP(E6&" "&O5,RRFs!$AO:$AP,2,FALSE))<>-999999)*INDIRECT(VLOOKUP(E6&" "&O5,RRFs!$AO:$AP,2,FALSE))))))))), 0) -> 0 | P7: =IFERROR( IF(E16="-",0/0, IF(OR(E3=0,AND(E6<>"Single Unit Short Haul",E11="G"),AND(OR(E3="B20 (Biodiesel)",E3="R100 (Renewable Diesel)"),E11="G"),AND(OR(E6="Single Unit Short Haul",E6="Single Unit Long Haul"),E10="Distribution Center"),AND(E6<>"Combination Unit Short Haul",E10="Port")),0/0, IF(SUMPRODUCT((RRFs!$B$4:$B$35=E3)*OR(RRFs!$C$4:$C$35=E11,RRFs!$C$4:$C$35="A")*INDIRECT(VLOOKUP(E6&" "&P5,RRFs!$AO:$AP,2,FALSE)))=-999999,0/0, IF(OR(E3="B20 (Biodiesel)",E3="R100 (Renewable Diesel)"),P6*(1-(SUMPRODUCT((RRFs!$B$4:$B$35=E3)*OR(RRFs!$C$4:$C$35=E11,RRFs!$C$4:$C$35="A")*(INDIRECT(VLOOKUP(E6&" "&P5,RRFs!$AO:$AP,2,FALSE))<>-999999)*INDIRECT(VLOOKUP(E6&" "&P5,RRFs!$AO:$AP,2,FALSE))))), SUMPRODUCT((EFs!$A$4:$A$3351=E7)*(EFs!$B$4:$B$3351=VLOOKUP(E6,'Store Inputs'!$F:$G,2,FALSE))*(EFs!$C$4:$C$3351=VLOOKUP(E10,'Store Inputs'!$C:$D,2,FALSE))*(EFs!$D$4:$D$3351=E7)*(EFs!$E$4:$E$3351=E11)*EFs!$M$4:$M$3351*EFs!$P$4:$P$3351) / SUMPRODUCT((EFs!$A$4:$A$3351=E7)*(EFs!$B$4:$B$3351=VLOOKUP(E6,'Store Inputs'!$F:$G,2,FALSE))*(EFs!$C$4:$C$3351=VLOOKUP(E10,'Store Inputs'!$C:$D,2,FALSE))*(EFs!$D$4:$D$3351=E7)*(EFs!$E$4:$E$3351=E11)*EFs!$P$4:$P$3351) * (1-(SUMPRODUCT((RRFs!$B$4:$B$35=E3)*OR(RRFs!$C$4:$C$35=E11,RRFs!$C$4:$C$35="A")*(INDIRECT(VLOOKUP(E6&" "&P5,RRFs!$AO:$AP,2,FALSE))<>-999999)*INDIRECT(VLOOKUP(E6&" "&P5,RRFs!$AO:$AP,2,FALSE))))))))), 0) -> 0 | Q7: =IFERROR( IF(E16="-",0/0, IF(OR(E3=0,AND(E6<>"Single Unit Short Haul",E11="G"),AND(OR(E3="B20 (Biodiesel)",E3="R100 (Renewable Diesel)"),E11="G"),AND(OR(E6="Single Unit Short Haul",E6="Single Unit Long Haul"),E10="Distribution Center"),AND(E6<>"Combination Unit Short Haul",E10="Port")),0/0, IF(SUMPRODUCT((RRFs!$B$4:$B$35=E3)*OR(RRFs!$C$4:$C$35=E11,RRFs!$C$4:$C$35="A")*INDIRECT(VLOOKUP(E6&" "&Q5,RRFs!$AO:$AP,2,FALSE)))=-999999,0/0, IF(OR(E3="B20 (Biodiesel)",E3="R100 (Renewable Diesel)"),Q6*(1-(SUMPRODUCT((RRFs!$B$4:$B$35=E3)*OR(RRFs!$C$4:$C$35=E11,RRFs!$C$4:$C$35="A")*(INDIRECT(VLOOKUP(E6&" "&Q5,RRFs!$AO:$AP,2,FALSE))<>-999999)*INDIRECT(VLOOKUP(E6&" "&Q5,RRFs!$AO:$AP,2,FALSE))))), SUMPRODUCT((EFs!$A$4:$A$3351=E7)*(EFs!$B$4:$B$3351=VLOOKUP(E6,'Store Inputs'!$F:$G,2,FALSE))*(EFs!$C$4:$C$3351=VLOOKUP(E10,'Store Inputs'!$C:$D,2,FALSE))*(EFs!$D$4:$D$3351=E7)*(EFs!$E$4:$E$3351=E11)*EFs!$N$4:$N$3351*EFs!$P$4:$P$3351) / SUMPRODUCT((EFs!$A$4:$A$3351=E7)*(EFs!$B$4:$B$3351=VLOOKUP(E6,'Store Inputs'!$F:$G,2,FALSE))*(EFs!$C$4:$C$3351=VLOOKUP(E10,'Store Inputs'!$C:$D,2,FALSE))*(EFs!$D$4:$D$3351=E7)*(EFs!$E$4:$E$3351=E11)*EFs!$P$4:$P$3351) * (1-(SUMPRODUCT((RRFs!$B$4:$B$35=E3)*OR(RRFs!$C$4:$C$35=E11,RRFs!$C$4:$C$35="A")*(INDIRECT(VLOOKUP(E6&" "&Q5,RRFs!$AO:$AP,2,FALSE))<>-999999)*INDIRECT(VLOOKUP(E6&" "&Q5,RRFs!$AO:$AP,2,FALSE))))))))), 0) -> 0 | R7: =IFERROR( IF(E16="-",0/0, IF(OR(E3=0,AND(E6<>"Single Unit Short Haul",E11="G"),AND(OR(E3="B20 (Biodiesel)",E3="R100 (Renewable Diesel)"),E11="G"),AND(OR(E6="Single Unit Short Haul",E6="Single Unit Long Haul"),E10="Distribution Center"),AND(E6<>"Combination Unit Short Haul",E10="Port")),0/0, IF(SUMPRODUCT((RRFs!$B$4:$B$35=E3)*OR(RRFs!$C$4:$C$35=E11,RRFs!$C$4:$C$35="A")*INDIRECT(VLOOKUP(E6&" "&R4,RRFs!$AO:$AP,2,FALSE)))=-999999,0/0, IF(OR(E3="B20 (Biodiesel)",E3="R100 (Renewable Diesel)"),R6*(1-(SUMPRODUCT((RRFs!$B$4:$B$35=E3)*OR(RRFs!$C$4:$C$35=E11,RRFs!$C$4:$C$35="A")*(INDIRECT(VLOOKUP(E6&" "&R4,RRFs!$AO:$AP,2,FALSE))<>-999999)*INDIRECT(VLOOKUP(E6&" "&R4,RRFs!$AO:$AP,2,FALSE))))), SUMPRODUCT((EFs!$A$4:$A$3351=E7)*(EFs!$B$4:$B$3351=VLOOKUP(E6,'Store Inputs'!$F:$G,2,FALSE))*(EFs!$C$4:$C$3351=VLOOKUP(E10,'Store Inputs'!$C:$D,2,FALSE))*(EFs!$D$4:$D$3351=E7)*(EFs!$E$4:$E$3351=E11)*EFs!$O$4:$O$3351*EFs!$P$4:$P$3351) / SUMPRODUCT((EFs!$A$4:$A$3351=E7)*(EFs!$B$4:$B$3351=VLOOKUP(E6,'Store Inputs'!$F:$G,2,FALSE))*(EFs!$C$4:$C$3351=VLOOKUP(E10,'Store Inputs'!$C:$D,2,FALSE))*(EFs!$D$4:$D$3351=E7)*(EFs!$E$4:$E$3351=E11)*EFs!$P$4:$P$3351) * (1-(SUMPRODUCT((RRFs!$B$4:$B$35=E3)*OR(RRFs!$C$4:$C$35=E11,RRFs!$C$4:$C$35="A")*(INDIRECT(VLOOKUP(E6&" "&R4,RRFs!$AO:$AP,2,FALSE))<>-999999)*INDIRECT(VLOOKUP(E6&" "&R4,RRFs!$AO:$AP,2,FALSE))))))))), 0) -> 0 | S7: =IFERROR( SUMIFS('1. Deployment, Part 5'!E:E,'1. Deployment, Part 5'!B:B,E6,'1. Deployment, Part 5'!C:C,IF(E11="D","Diesel",IF(E11="G","Gasoline",E11)),'1. Deployment, Part 5'!D:D,E3,'1. Deployment, Part 5'!E:E,"<>'N/A",'1. Deployment, Part 5'!E:E,"<>'-'") + IF(SUMPRODUCT((RRFs!$B$4:$B$35=E3)*OR(RRFs!$C$4:$C$35=IF(E11="D","Diesel",IF(E11="G","Gasoline",E11)),RRFs!$C$4:$C$35="A")*INDIRECT(VLOOKUP(E6&" Inc O&M",RRFs!$AO:$AP,2,FALSE)))=-999999,0/0,SUMPRODUCT((RRFs!$B$4:$B$35=E3)*OR(RRFs!$C$4:$C$35=IF(E11="D","Diesel",IF(E11="G","Gasoline",E11)),RRFs!$C$4:$C$35="A")*INDIRECT(VLOOKUP(E6&" Inc O&M",RRFs!$AO:$AP,2,FALSE)))), 0) -> 800
D8: Model Year Modification Window: | E8: =IF(OR(E3="B20 (Biodiesel)",E3="R100 (Renewable Diesel)"),Deployment_Year-30,INDEX(Deployment_Beginning_Year_of_Modification,1,1)) -> 2000
E9: =IF(OR(E3="B20 (Biodiesel)",E3="R100 (Renewable Diesel)"),Deployment_Year,INDEX(Deployment_End_Year_of_Modification,1,1)) -> 2017 | G9: FLEET: | H9: Short Tons Emiss./Year | K9: Fuel (gal/yr GGE or DGE) | L9: Annual Costs
D10: Area of Interest: | E10: =Deployment_GeographicScale -> State | G10: Case | H10: NOx | I10: PM2.5 | J10: CO2 | L10: Capital | M10: Fuel | N10: Total
D11: Baseline Fuel (D=Diesel, G=Gasoline), Cost and Units: | E11: =INDEX(Deployment_Fuels,1,1) -> D | G11: Baseline | H11: =IFERROR( E14*( (H6*E15) + (IF(E16="-",0,O6*E16)) ) * GramToTon, 0) -> 2.942696339 | I11: =IFERROR( E14*( ((I6+M6+N6)*E15) + (IF(E16="-",0,P6*E16)) ) * GramToTon, 0) -> 0.113741399 | J11: =IFERROR( E14*( (J6*E15) + (IF(E16="-",0,Q6*E16)) ) * GramToTon, 0) -> 1592.701406 | K11: =IFERROR( SUM((1/K6)*E15,(IF(E16="-",0,R6*E16))) * E14, 0) -> 140828.6698 | L11: 0 | M11: =IFERROR( K11*E12, 0) -> 299965.0667 | N11: =SUM(L11:M11) -> 299965.0667
E12: =IF(E11="G",VLOOKUP("Gasoline",Deployment_Fuel_Type_Cost_and_Unit,2,0), IF(E11="D",VLOOKUP("Diesel",Deployment_Fuel_Type_Cost_and_Unit,2,0),NA())) -> 2.13 | G12: Modified | H12: =IFERROR( E14*( (H7*E15) + (IF(E16="-",0,O7*E16)) ) * GramToTon, 0) -> 0.9023495137 | I12: =IFERROR( E14*( ((I7+M7+N7)*E15) + (IF(E16="-",0,P7*E16)) ) * GramToTon, 0) -> 0.03423807412 | J12: =IFERROR( E14*( (J7*E15) + (IF(E16="-",0,Q7*E16)) + IF(L7=0,0,L7*IF(E11="G",kwh_per_GGE,IF(E11="D",kwh_per_DGE,0/0))*(E15/K7)) ) * GramToTon, 0) -> 1455.089899 | K12: =IFERROR( SUM((1/K7)*E15,(IF(E16="-",0,R7*E16))) * E14, 0) -> 128923.6473 | L12: =IFERROR( (S7*E14) / E17, 0) -> 16000 | M12: =IFERROR( K12*E4, 0) -> 0 | N12: =SUM(L12:M12) -> 16000
E13: =IF(E11="G",VLOOKUP("Gasoline",Deployment_Fuel_Type_Cost_and_Unit,3,0), IF(E11="D",VLOOKUP("Diesel",Deployment_Fuel_Type_Cost_and_Unit,3,0),NA())) -> gal | G13: Difference | H13: =IFERROR( IF((SUMPRODUCT((RRFs!$B$4:$B$35=E3)*OR(RRFs!$C$4:$C$35=E11,RRFs!$C$4:$C$35="A")*INDIRECT(VLOOKUP(E6&" "&H5,RRFs!$AO:$AP,2,FALSE))))=-999999,0/0, IFERROR(H12-H11,0)), 0) -> -2.040346825 | I13: =IFERROR( IF((SUMPRODUCT((RRFs!$B$4:$B$35=E3)*OR(RRFs!$C$4:$C$35=E11,RRFs!$C$4:$C$35="A")*INDIRECT(VLOOKUP(E6&" "&H5,RRFs!$AO:$AP,2,FALSE))))=-999999,0/0, IFERROR(I12-I11,0)), 0) -> -0.07950332489 | J13: =IFERROR( IF((SUMPRODUCT((RRFs!$B$4:$B$35=E3)*OR(RRFs!$C$4:$C$35=E11,RRFs!$C$4:$C$35="A")*INDIRECT(VLOOKUP(E6&" "&H5,RRFs!$AO:$AP,2,FALSE))))=-999999,0/0, IFERROR(J12-J11,0)), 0) -> -137.6115071 | K13: =IFERROR(IF((SUMPRODUCT((RRFs!$B$4:$B$35=E3)*OR(RRFs!$C$4:$C$35=E11,RRFs!$C$4:$C$35="A")*INDIRECT(VLOOKUP(E6&" "&H5,RRFs!$AO:$AP,2,FALSE))))=-999999,0,IFERROR(K12-K11,0)),0) -> -11905.02256 | L13: =IFERROR(IF((SUMPRODUCT((RRFs!$B$4:$B$35=E3)*OR(RRFs!$C$4:$C$35=E11,RRFs!$C$4:$C$35="A")*INDIRECT(VLOOKUP(E6&" "&H5,RRFs!$AO:$AP,2,FALSE))))=-999999,0,IFERROR(L12-L11,0)),0) -> 16000 | M13: =IFERROR(IF((SUMPRODUCT((RRFs!$B$4:$B$35=E3)*OR(RRFs!$C$4:$C$35=E11,RRFs!$C$4:$C$35="A")*INDIRECT(VLOOKUP(E6&" "&H5,RRFs!$AO:$AP,2,FALSE))))=-999999,0,IFERROR(M12-M11,0)),0) -> -299965.0667 | N13: =SUM(L13:M13) -> -283965.0667
D14: Number to Modify/Replace: | E14: =VLOOKUP(E6&E11,Deployment_NumberToReplaceByTruckAndFuelType,6,0) -> 100 | G14: Cost Effect ($/short ton) | H14: =IF(H13>0,"Emiss. Increase",IFERROR( (-1*N13)/H13, 0)) -> -139174.9007 | I14: =IF(I13>0,"Emiss. Increase",IFERROR( (-1*N13)/I13, 0)) -> -3571738.252 | J14: =IF(J13>0,"Emiss. Increase",IFERROR( (-1*N13)/J13, 0)) -> -2063.527046
D15: Average Annual Mileage: | E15: =VLOOKUP(E6&E11,Deployment_AverageAnnualMilesByTruckAndFuelType,7,0) -> 14641
D16: Average Annual Idle Hours: | E16: =IF(VLOOKUP(E6&E11,Deployment_Average_Annual_Idle_Hours_by_Truck_and_Fuel_Type,12,0)=0,"-",VLOOKUP(E6&E11,Deployment_Average_Annual_Idle_Hours_by_Truck_and_Fuel_Type,12,0)) -> -
D17: Useful Life of Strategy (years): | E17: =SUMPRODUCT((RRFs!$B$4:$B$35=E3)*OR(RRFs!$C$4:$C$35=E11,RRFs!$C$4:$C$35="A")*INDIRECT(VLOOKUP(E6&" Project Lifetime",RRFs!$AO:$AP,2,FALSE))) -> 5
D18: ="For Further Information refer to page "&VLOOKUP(RIGHT($A$1,LEN($A$1)-14)&VLOOKUP(E3,FuelCrosswalk,2,FALSE)&"1",ModType_Mod_Hyperlinks_and_GuidePgs,4,0)&" of the NCHRP 25-46 Guidance and the following weblinks" -> 
C19: =IFERROR(HYPERLINK(U19,V19),"") ->  | U19: =IFERROR(VLOOKUP(RIGHT($A$1,LEN($A$1)-14)&VLOOKUP(E3,FuelCrosswalk,2,FALSE)&"1",ModType_Mod_Hyperlinks_and_GuidePgs,3,0),"") ->  | V19: =IFERROR( VLOOKUP(RIGHT($A$1,LEN($A$1)-14)&VLOOKUP(E3,FuelCrosswalk,2,FALSE)&"1",ModType_Mod_Hyperlinks_and_GuidePgs,2,0),"") -> 
C20: =IFERROR(HYPERLINK(U20,V20),"") ->  | U20: =IFERROR(VLOOKUP(RIGHT($A$1,LEN($A$1)-14)&VLOOKUP(E3,FuelCrosswalk,2,FALSE)&"2",ModType_Mod_Hyperlinks_and_GuidePgs,3,0),"") ->  | V20: =IFERROR( VLOOKUP(RIGHT($A$1,LEN($A$1)-14)&VLOOKUP(E3,FuelCrosswalk,2,FALSE)&"2",ModType_Mod_Hyperlinks_and_GuidePgs,2,0),"") -> 
C21: =IFERROR(HYPERLINK(U21,V21),"") ->  | U21: =IFERROR(VLOOKUP(RIGHT($A$1,LEN($A$1)-14)&VLOOKUP(E3,FuelCrosswalk,2,FALSE)&"3",ModType_Mod_Hyperlinks_and_GuidePgs,3,0),"") ->  | V21: =IFERROR( VLOOKUP(RIGHT($A$1,LEN($A$1)-14)&VLOOKUP(E3,FuelCrosswalk,2,FALSE)&"3",ModType_Mod_Hyperlinks_and_GuidePgs,2,0),"") -> 
C22: =IFERROR(HYPERLINK(U22,V22),"") ->  | U22: =IFERROR(VLOOKUP(RIGHT($A$1,LEN($A$1)-14)&VLOOKUP(E3,FuelCrosswalk,2,FALSE)&"4",ModType_Mod_Hyperlinks_and_GuidePgs,3,0),"") ->  | V22: =IFERROR( VLOOKUP(RIGHT($A$1,LEN($A$1)-14)&E3&"4",ModType_Mod_Hyperlinks_and_GuidePgs,2,0),"") -> 
D23: Modification: | E23: =INDEX(Deployment_Specific_Modifications,1,1) -> DOC | H23: Running EFs (g/mi) | K23: Fuel | L23: Power Plant EFs for Electric Vehicles | M23: PM2.5 (g/mi) | O23: Extended Idle | S23: Cost
D24: Cost and Units of Alternative Fuel: | E24: =IF(E23="Hybrid", IF(E31="D",VLOOKUP("Diesel",Deployment_Fuel_Type_Cost_and_Unit,2,0), IF(E31="G",VLOOKUP("Gasoline",Deployment_Fuel_Type_Cost_and_Unit,2,0),NA())), IF(VLOOKUP(E26&E31,Deployment_Fuel_by_Truck_and_Fuel_Types,4,0)="D", VLOOKUP(VLOOKUP(E23,FuelCrosswalk,2,FALSE),Deployment_Fuel_Type_Cost_and_Unit,2,0)* (SUMIFS(Defaults!$W:$W,Defaults!$U:$U,VLOOKUP(E23,FuelCrosswalk,2,FALSE),Defaults!$V:$V,"DGE")/ SUMIFS(Defaults!$W:$W,Defaults!$U:$U,VLOOKUP(E23,FuelCrosswalk,2,FALSE),Defaults!$V:$V,VLOOKUP(VLOOKUP(E23,FuelCrosswalk,2,FALSE),Deployment_Fuel_Type_Cost_and_Unit,3,0))), IF(VLOOKUP(E26&E31,Deployment_Fuel_by_Truck_and_Fuel_Types,4,0)="G", VLOOKUP(VLOOKUP(E23,FuelCrosswalk,2,FALSE),Deployment_Fuel_Type_Cost_and_Unit,2,0)* (SUMIFS(Defaults!$W:$W,Defaults!$U:$U,VLOOKUP(E23,FuelCrosswalk,2,FALSE),Defaults!$V:$V,"GGE")/ SUMIFS(Defaults!$W:$W,Defaults!$U:$U,VLOOKUP(E23,FuelCrosswalk,2,FALSE),Defaults!$V:$V,VLOOKUP(VLOOKUP(E23,FuelCrosswalk,2,FALSE),Deployment_Fuel_Type_Cost_and_Unit,3,0))),NA() ))) ->  | G24: PER TRUCK: | O24: Emissions (g/hr) | R24: Fuel
E25: =IF(E31="G","GGE","DGE") -> DGE | G25: Case | H25: NOx | I25: PM2.5 | J25: CO2 | K25: mi/gal | L25: g CO2/kWh | M25: Brake | N25: Tire | O25: NOx | P25: PM2.5 | Q25: CO2 | R25: (gal/hr)
D26: Type of Truck: | E26: =INDEX(Deployment_TruckTypes,2,1) -> Single Unit Long Haul | G26: Baseline | H26: =IFERROR( IF(OR(E23=0,AND(E26<>"Single Unit Short Haul",E31="G"),AND(OR(E23="B20 (Biodiesel)",E23="R100 (Renewable Diesel)"),E31="G"),AND(OR(E26="Single Unit Short Haul",E26="Single Unit Long Haul"),E30="Distribution Center"),AND(E26<>"Combination Unit Short Haul",E30="Port")),0/0, IF(SUMPRODUCT((RRFs!$B$4:$B$35=E23)*OR(RRFs!$C$4:$C$35=E31,RRFs!$C$4:$C$35="A")*INDIRECT(VLOOKUP(E26&" "&H25,RRFs!$AO:$AP,2,FALSE)))=-999999,0/0, SUMPRODUCT((EFs!$A$4:$A$3351=E27)*(EFs!$B$4:$B$3351=VLOOKUP(E26,'Store Inputs'!$F:$G,2,FALSE))*(EFs!$C$4:$C$3351=VLOOKUP(E30,'Store Inputs'!$C:$D,2,FALSE))*(EFs!$D$4:$D$3351>=E28)*(EFs!$D$4:$D$3351<=E29)*(EFs!$E$4:$E$3351=E31)*EFs!$F$4:$F$3351*EFs!$P$4:$P$3351) / SUMPRODUCT((EFs!$A$4:$A$3351=E27)*(EFs!$B$4:$B$3351=VLOOKUP(E26,'Store Inputs'!$F:$G,2,FALSE))*(EFs!$C$4:$C$3351=VLOOKUP(E30,'Store Inputs'!$C:$D,2,FALSE))*(EFs!$D$4:$D$3351>=E28)*(EFs!$D$4:$D$3351<=E29)*(EFs!$E$4:$E$3351=E31)*EFs!$P$4:$P$3351))), 0) -> 1.630178179 | I26: =IFERROR( IF(OR(E23=0,AND(E26<>"Single Unit Short Haul",E31="G"),AND(OR(E23="B20 (Biodiesel)",E23="R100 (Renewable Diesel)"),E31="G"),AND(OR(E26="Single Unit Short Haul",E26="Single Unit Long Haul"),E30="Distribution Center"),AND(E26<>"Combination Unit Short Haul",E30="Port")),0/0, IF(SUMPRODUCT((RRFs!$B$4:$B$35=E23)*OR(RRFs!$C$4:$C$35=E31,RRFs!$C$4:$C$35="A")*INDIRECT(VLOOKUP(E26&" "&I25,RRFs!$AO:$AP,2,FALSE)))=-999999,0/0, SUMPRODUCT((EFs!$A$4:$A$3351=E27)*(EFs!$B$4:$B$3351=VLOOKUP(E26,'Store Inputs'!$F:$G,2,FALSE))*(EFs!$C$4:$C$3351=VLOOKUP(E30,'Store Inputs'!$C:$D,2,FALSE))*(EFs!$D$4:$D$3351>=E28)*(EFs!$D$4:$D$3351<=E29)*(EFs!$E$4:$E$3351=E31)*EFs!$G$4:$G$3351*EFs!$P$4:$P$3351) / SUMPRODUCT((EFs!$A$4:$A$3351=E27)*(EFs!$B$4:$B$3351=VLOOKUP(E26,'Store Inputs'!$F:$G,2,FALSE))*(EFs!$C$4:$C$3351=VLOOKUP(E30,'Store Inputs'!$C:$D,2,FALSE))*(EFs!$D$4:$D$3351>=E28)*(EFs!$D$4:$D$3351<=E29)*(EFs!$E$4:$E$3351=E31)*EFs!$P$4:$P$3351))), 0) -> 0.05824685941 | J26: =IFERROR( IF(OR(E23=0,AND(E26<>"Single Unit Short Haul",E31="G"),AND(OR(E23="B20 (Biodiesel)",E23="R100 (Renewable Diesel)"),E31="G"),AND(OR(E26="Single Unit Short Haul",E26="Single Unit Long Haul"),E30="Distribution Center"),AND(E26<>"Combination Unit Short Haul",E30="Port")),0/0, IF(SUMPRODUCT((RRFs!$B$4:$B$35=E23)*OR(RRFs!$C$4:$C$35=E31,RRFs!$C$4:$C$35="A")*INDIRECT(VLOOKUP(E26&" "&J25,RRFs!$AO:$AP,2,FALSE)))=-999999,0/0, SUMPRODUCT((EFs!$A$4:$A$3351=E27)*(EFs!$B$4:$B$3351=VLOOKUP(E26,'Store Inputs'!$F:$G,2,FALSE))*(EFs!$C$4:$C$3351=VLOOKUP(E30,'Store Inputs'!$C:$D,2,FALSE))*(EFs!$D$4:$D$3351>=E28)*(EFs!$D$4:$D$3351<=E29)*(EFs!$E$4:$E$3351=E31)*EFs!$H$4:$H$3351*EFs!$P$4:$P$3351) / SUMPRODUCT((EFs!$A$4:$A$3351=E27)*(EFs!$B$4:$B$3351=VLOOKUP(E26,'Store Inputs'!$F:$G,2,FALSE))*(EFs!$C$4:$C$3351=VLOOKUP(E30,'Store Inputs'!$C:$D,2,FALSE))*(EFs!$D$4:$D$3351>=E28)*(EFs!$D$4:$D$3351<=E29)*(EFs!$E$4:$E$3351=E31)*EFs!$P$4:$P$3351))), 0) -> 914.0721188 | K26: =IFERROR( IF(OR(E23=0,AND(E26<>"Single Unit Short Haul",E31="G"),AND(OR(E23="B20 (Biodiesel)",E23="R100 (Renewable Diesel)"),E31="G"),AND(OR(E26="Single Unit Short Haul",E26="Single Unit Long Haul"),E30="Distribution Center"),AND(E26<>"Combination Unit Short Haul",E30="Port")),0/0, IF(SUMPRODUCT((RRFs!$B$4:$B$35=E23)*OR(RRFs!$C$4:$C$35=E31,RRFs!$C$4:$C$35="A")*INDIRECT(VLOOKUP(E26&" "&K23,RRFs!$AO:$AP,2,FALSE)))=-999999,0/0, SUMPRODUCT((EFs!$A$4:$A$3351=E27)*(EFs!$B$4:$B$3351=VLOOKUP(E26,'Store Inputs'!$F:$G,2,FALSE))*(EFs!$C$4:$C$3351=VLOOKUP(E30,'Store Inputs'!$C:$D,2,FALSE))*(EFs!$D$4:$D$3351>=E28)*(EFs!$D$4:$D$3351<=E29)*(EFs!$E$4:$E$3351=E31)*EFs!$I$4:$I$3351*EFs!$P$4:$P$3351) / SUMPRODUCT((EFs!$A$4:$A$3351=E27)*(EFs!$B$4:$B$3351=VLOOKUP(E26,'Store Inputs'!$F:$G,2,FALSE))*(EFs!$C$4:$C$3351=VLOOKUP(E30,'Store Inputs'!$C:$D,2,FALSE))*(EFs!$D$4:$D$3351>=E28)*(EFs!$D$4:$D$3351<=E29)*(EFs!$E$4:$E$3351=E31)*EFs!$P$4:$P$3351))), 0) -> 11.21837566 | L26: 0 | M26: =IFERROR( IF(OR(E23=0,AND(E26<>"Single Unit Short Haul",E31="G"),AND(OR(E23="B20 (Biodiesel)",E23="R100 (Renewable Diesel)"),E31="G"),AND(OR(E26="Single Unit Short Haul",E26="Single Unit Long Haul"),E30="Distribution Center"),AND(E26<>"Combination Unit Short Haul",E30="Port")),0/0, IF(SUMPRODUCT((RRFs!$B$4:$B$35=E23)*OR(RRFs!$C$4:$C$35=E31,RRFs!$C$4:$C$35="A")*INDIRECT(VLOOKUP(E26&" "&H25,RRFs!$AO:$AP,2,FALSE)))=-999999,0/0, SUMPRODUCT((EFs!$A$4:$A$3351=E27)*(EFs!$B$4:$B$3351=VLOOKUP(E26,'Store Inputs'!$F:$G,2,FALSE))*(EFs!$C$4:$C$3351=VLOOKUP(E30,'Store Inputs'!$C:$D,2,FALSE))*(EFs!$D$4:$D$3351>=E28)*(EFs!$D$4:$D$3351<=E29)*(EFs!$E$4:$E$3351=E31)*EFs!$J$4:$J$3351*EFs!$P$4:$P$3351) / SUMPRODUCT((EFs!$A$4:$A$3351=E27)*(EFs!$B$4:$B$3351=VLOOKUP(E26,'Store Inputs'!$F:$G,2,FALSE))*(EFs!$C$4:$C$3351=VLOOKUP(E30,'Store Inputs'!$C:$D,2,FALSE))*(EFs!$D$4:$D$3351>=E28)*(EFs!$D$4:$D$3351<=E29)*(EFs!$E$4:$E$3351=E31)*EFs!$P$4:$P$3351))), 0) -> 0.01261084825 | N26: =IFERROR( IF(OR(E23=0,AND(E26<>"Single Unit Short Haul",E31="G"),AND(OR(E23="B20 (Biodiesel)",E23="R100 (Renewable Diesel)"),E31="G"),AND(OR(E26="Single Unit Short Haul",E26="Single Unit Long Haul"),E30="Distribution Center"),AND(E26<>"Combination Unit Short Haul",E30="Port")),0/0, IF(SUMPRODUCT((RRFs!$B$4:$B$35=E23)*OR(RRFs!$C$4:$C$35=E31,RRFs!$C$4:$C$35="A")*INDIRECT(VLOOKUP(E26&" "&H25,RRFs!$AO:$AP,2,FALSE)))=-999999,0/0, SUMPRODUCT((EFs!$A$4:$A$3351=E27)*(EFs!$B$4:$B$3351=VLOOKUP(E26,'Store Inputs'!$F:$G,2,FALSE))*(EFs!$C$4:$C$3351=VLOOKUP(E30,'Store Inputs'!$C:$D,2,FALSE))*(EFs!$D$4:$D$3351>=E28)*(EFs!$D$4:$D$3351<=E29)*(EFs!$E$4:$E$3351=E31)*EFs!$K$4:$K$3351*EFs!$P$4:$P$3351) / SUMPRODUCT((EFs!$A$4:$A$3351=E27)*(EFs!$B$4:$B$3351=VLOOKUP(E26,'Store Inputs'!$F:$G,2,FALSE))*(EFs!$C$4:$C$3351=VLOOKUP(E30,'Store Inputs'!$C:$D,2,FALSE))*(EFs!$D$4:$D$3351>=E28)*(EFs!$D$4:$D$3351<=E29)*(EFs!$E$4:$E$3351=E31)*EFs!$P$4:$P$3351))), 0) -> 0.002634145021 | O26: =IFERROR( IF(E36="-",0/0, IF(OR(E23=0,AND(E26<>"Single Unit Short Haul",E31="G"),AND(OR(E23="B20 (Biodiesel)",E23="R100 (Renewable Diesel)"),E31="G"),AND(OR(E26="Single Unit Short Haul",E26="Single Unit Long Haul"),E30="Distribution Center"),AND(E26<>"Combination Unit Short Haul",E30="Port")),0/0, IF(SUMPRODUCT((RRFs!$B$4:$B$35=E23)*OR(RRFs!$C$4:$C$35=E31,RRFs!$C$4:$C$35="A")*INDIRECT(VLOOKUP(E26&" "&O25,RRFs!$AO:$AP,2,FALSE)))=-999999,0/0, SUMPRODUCT((EFs!$A$4:$A$3351=E27)*(EFs!$B$4:$B$3351=VLOOKUP(E26,'Store Inputs'!$F:$G,2,FALSE))*(EFs!$C$4:$C$3351=VLOOKUP(E30,'Store Inputs'!$C:$D,2,FALSE))*(EFs!$D$4:$D$3351>=E28)*(EFs!$D$4:$D$3351<=E29)*(EFs!$E$4:$E$3351=E31)*EFs!$L$4:$L$3351*EFs!$P$4:$P$3351) / SUMPRODUCT((EFs!$A$4:$A$3351=E27)*(EFs!$B$4:$B$3351=VLOOKUP(E26,'Store Inputs'!$F:$G,2,FALSE))*(EFs!$C$4:$C$3351=VLOOKUP(E30,'Store Inputs'!$C:$D,2,FALSE))*(EFs!$D$4:$D$3351>=E28)*(EFs!$D$4:$D$3351<=E29)*(EFs!$E$4:$E$3351=E31)*EFs!$P$4:$P$3351)))), 0) -> 0 | P26: =IFERROR( IF(E36="-",0/0, IF(OR(E23=0,AND(E26<>"Single Unit Short Haul",E31="G"),AND(OR(E23="B20 (Biodiesel)",E23="R100 (Renewable Diesel)"),E31="G"),AND(OR(E26="Single Unit Short Haul",E26="Single Unit Long Haul"),E30="Distribution Center"),AND(E26<>"Combination Unit Short Haul",E30="Port")),0/0, IF(SUMPRODUCT((RRFs!$B$4:$B$35=E23)*OR(RRFs!$C$4:$C$35=E31,RRFs!$C$4:$C$35="A")*INDIRECT(VLOOKUP(E26&" "&P25,RRFs!$AO:$AP,2,FALSE)))=-999999,0/0, SUMPRODUCT((EFs!$A$4:$A$3351=E27)*(EFs!$B$4:$B$3351=VLOOKUP(E26,'Store Inputs'!$F:$G,2,FALSE))*(EFs!$C$4:$C$3351=VLOOKUP(E30,'Store Inputs'!$C:$D,2,FALSE))*(EFs!$D$4:$D$3351>=E28)*(EFs!$D$4:$D$3351<=E29)*(EFs!$E$4:$E$3351=E31)*EFs!$M$4:$M$3351*EFs!$P$4:$P$3351) / SUMPRODUCT((EFs!$A$4:$A$3351=E27)*(EFs!$B$4:$B$3351=VLOOKUP(E26,'Store Inputs'!$F:$G,2,FALSE))*(EFs!$C$4:$C$3351=VLOOKUP(E30,'Store Inputs'!$C:$D,2,FALSE))*(EFs!$D$4:$D$3351>=E28)*(EFs!$D$4:$D$3351<=E29)*(EFs!$E$4:$E$3351=E31)*EFs!$P$4:$P$3351)))), 0) -> 0 | Q26: =IFERROR( IF(E36="-",0/0, IF(OR(E23=0,AND(E26<>"Single Unit Short Haul",E31="G"),AND(OR(E23="B20 (Biodiesel)",E23="R100 (Renewable Diesel)"),E31="G"),AND(OR(E26="Single Unit Short Haul",E26="Single Unit Long Haul"),E30="Distribution Center"),AND(E26<>"Combination Unit Short Haul",E30="Port")),0/0, IF(SUMPRODUCT((RRFs!$B$4:$B$35=E23)*OR(RRFs!$C$4:$C$35=E31,RRFs!$C$4:$C$35="A")*INDIRECT(VLOOKUP(E26&" "&Q25,RRFs!$AO:$AP,2,FALSE)))=-999999,0/0, SUMPRODUCT((EFs!$A$4:$A$3351=E27)*(EFs!$B$4:$B$3351=VLOOKUP(E26,'Store Inputs'!$F:$G,2,FALSE))*(EFs!$C$4:$C$3351=VLOOKUP(E30,'Store Inputs'!$C:$D,2,FALSE))*(EFs!$D$4:$D$3351>=E28)*(EFs!$D$4:$D$3351<=E29)*(EFs!$E$4:$E$3351=E31)*EFs!$N$4:$N$3351*EFs!$P$4:$P$3351) / SUMPRODUCT((EFs!$A$4:$A$3351=E27)*(EFs!$B$4:$B$3351=VLOOKUP(E26,'Store Inputs'!$F:$G,2,FALSE))*(EFs!$C$4:$C$3351=VLOOKUP(E30,'Store Inputs'!$C:$D,2,FALSE))*(EFs!$D$4:$D$3351>=E28)*(EFs!$D$4:$D$3351<=E29)*(EFs!$E$4:$E$3351=E31)*EFs!$P$4:$P$3351)))), 0) -> 0 | R26: =IFERROR( IF(E36="-",0/0, IF(OR(E23=0,AND(E26<>"Single Unit Short Haul",E31="G"),AND(OR(E23="B20 (Biodiesel)",E23="R100 (Renewable Diesel)"),E31="G"),AND(OR(E26="Single Unit Short Haul",E26="Single Unit Long Haul"),E30="Distribution Center"),AND(E26<>"Combination Unit Short Haul",E30="Port")),0/0, IF(SUMPRODUCT((RRFs!$B$4:$B$35=E23)*OR(RRFs!$C$4:$C$35=E31,RRFs!$C$4:$C$35="A")*INDIRECT(VLOOKUP(E26&" "&R24,RRFs!$AO:$AP,2,FALSE)))=-999999,0/0, SUMPRODUCT((EFs!$A$4:$A$3351=E27)*(EFs!$B$4:$B$3351=VLOOKUP(E26,'Store Inputs'!$F:$G,2,FALSE))*(EFs!$C$4:$C$3351=VLOOKUP(E30,'Store Inputs'!$C:$D,2,FALSE))*(EFs!$D$4:$D$3351>=E28)*(EFs!$D$4:$D$3351<=E29)*(EFs!$E$4:$E$3351=E31)*EFs!$O$4:$O$3351*EFs!$P$4:$P$3351) / SUMPRODUCT((EFs!$A$4:$A$3351=E27)*(EFs!$B$4:$B$3351=VLOOKUP(E26,'Store Inputs'!$F:$G,2,FALSE))*(EFs!$C$4:$C$3351=VLOOKUP(E30,'Store Inputs'!$C:$D,2,FALSE))*(EFs!$D$4:$D$3351>=E28)*(EFs!$D$4:$D$3351<=E29)*(EFs!$E$4:$E$3351=E31)*EFs!$P$4:$P$3351)))), 0) -> 0 | S26: 0
D27: Calendar Year: | E27: =Deployment_Year -> 2030 | G27: Modified | H27: =IFERROR( IF(OR(E23=0,AND(E26<>"Single Unit Short Haul",E31="G"),AND(OR(E23="B20 (Biodiesel)",E23="R100 (Renewable Diesel)"),E31="G"),AND(OR(E26="Single Unit Short Haul",E26="Single Unit Long Haul"),E30="Distribution Center"),AND(E26<>"Combination Unit Short Haul",E30="Port")),0/0, IF(SUMPRODUCT((RRFs!$B$4:$B$35=E23)*OR(RRFs!$C$4:$C$35=E31,RRFs!$C$4:$C$35="A")*INDIRECT(VLOOKUP(E26&" "&H25,RRFs!$AO:$AP,2,FALSE)))=-999999,0/0, IF(OR(E23="B20 (Biodiesel)",E23="R100 (Renewable Diesel)"),H26*(1-(SUMPRODUCT((RRFs!$B$4:$B$35=E23)*OR(RRFs!$C$4:$C$35=E31,RRFs!$C$4:$C$35="A")*(INDIRECT(VLOOKUP(E26&" "&H25,RRFs!$AO:$AP,2,FALSE))<>-999999)*INDIRECT(VLOOKUP(E26&" "&H25,RRFs!$AO:$AP,2,FALSE))))), SUMPRODUCT((EFs!$A$4:$A$3351=E27)*(EFs!$B$4:$B$3351=VLOOKUP(E26,'Store Inputs'!$F:$G,2,FALSE))*(EFs!$C$4:$C$3351=VLOOKUP(E30,'Store Inputs'!$C:$D,2,FALSE))*(EFs!$D$4:$D$3351=E27)*(EFs!$E$4:$E$3351=E31)*EFs!$F$4:$F$3351*EFs!$P$4:$P$3351) / SUMPRODUCT((EFs!$A$4:$A$3351=E27)*(EFs!$B$4:$B$3351=VLOOKUP(E26,'Store Inputs'!$F:$G,2,FALSE))*(EFs!$C$4:$C$3351=VLOOKUP(E30,'Store Inputs'!$C:$D,2,FALSE))*(EFs!$D$4:$D$3351=E27)*(EFs!$E$4:$E$3351=E31)*EFs!$P$4:$P$3351) * (1-(SUMPRODUCT((RRFs!$B$4:$B$35=E23)*OR(RRFs!$C$4:$C$35=E31,RRFs!$C$4:$C$35="A")*(INDIRECT(VLOOKUP(E26&" "&H25,RRFs!$AO:$AP,2,FALSE))<>-999999)*INDIRECT(VLOOKUP(E26&" "&H25,RRFs!$AO:$AP,2,FALSE)))))))), 0) -> 0.5271188253 | I27: =IFERROR( IF(OR(E23=0,AND(E26<>"Single Unit Short Haul",E31="G"),AND(OR(E23="B20 (Biodiesel)",E23="R100 (Renewable Diesel)"),E31="G"),AND(OR(E26="Single Unit Short Haul",E26="Single Unit Long Haul"),E30="Distribution Center"),AND(E26<>"Combination Unit Short Haul",E30="Port")),0/0, IF(SUMPRODUCT((RRFs!$B$4:$B$35=E23)*OR(RRFs!$C$4:$C$35=E31,RRFs!$C$4:$C$35="A")*INDIRECT(VLOOKUP(E26&" "&I25,RRFs!$AO:$AP,2,FALSE)))=-999999,0/0, IF(OR(E23="B20 (Biodiesel)",E23="R100 (Renewable Diesel)"),I26*(1-(SUMPRODUCT((RRFs!$B$4:$B$35=E23)*OR(RRFs!$C$4:$C$35=E31,RRFs!$C$4:$C$35="A")*(INDIRECT(VLOOKUP(E26&" "&I25,RRFs!$AO:$AP,2,FALSE))<>-999999)*INDIRECT(VLOOKUP(E26&" "&I25,RRFs!$AO:$AP,2,FALSE))))), SUMPRODUCT((EFs!$A$4:$A$3351=E27)*(EFs!$B$4:$B$3351=VLOOKUP(E26,'Store Inputs'!$F:$G,2,FALSE))*(EFs!$C$4:$C$3351=VLOOKUP(E30,'Store Inputs'!$C:$D,2,FALSE))*(EFs!$D$4:$D$3351=E27)*(EFs!$E$4:$E$3351=E31)*EFs!$G$4:$G$3351*EFs!$P$4:$P$3351) / SUMPRODUCT((EFs!$A$4:$A$3351=E27)*(EFs!$B$4:$B$3351=VLOOKUP(E26,'Store Inputs'!$F:$G,2,FALSE))*(EFs!$C$4:$C$3351=VLOOKUP(E30,'Store Inputs'!$C:$D,2,FALSE))*(EFs!$D$4:$D$3351=E27)*(EFs!$E$4:$E$3351=E31)*EFs!$P$4:$P$3351) * (1-(SUMPRODUCT((RRFs!$B$4:$B$35=E23)*OR(RRFs!$C$4:$C$35=E31,RRFs!$C$4:$C$35="A")*(INDIRECT(VLOOKUP(E26&" "&I25,RRFs!$AO:$AP,2,FALSE))<>-999999)*INDIRECT(VLOOKUP(E26&" "&I25,RRFs!$AO:$AP,2,FALSE)))))))), 0) -> 0.007691865215 | J27: =IFERROR( IF(OR(E23=0,AND(E26<>"Single Unit Short Haul",E31="G"),AND(OR(E23="B20 (Biodiesel)",E23="R100 (Renewable Diesel)"),E31="G"),AND(OR(E26="Single Unit Short Haul",E26="Single Unit Long Haul"),E30="Distribution Center"),AND(E26<>"Combination Unit Short Haul",E30="Port")),0/0, IF(SUMPRODUCT((RRFs!$B$4:$B$35=E23)*OR(RRFs!$C$4:$C$35=E31,RRFs!$C$4:$C$35="A")*INDIRECT(VLOOKUP(E26&" "&J25,RRFs!$AO:$AP,2,FALSE)))=-999999,0/0, IF(OR(E23="B20 (Biodiesel)",E23="R100 (Renewable Diesel)"),J26*(1-(SUMPRODUCT((RRFs!$B$4:$B$35=E23)*OR(RRFs!$C$4:$C$35=E31,RRFs!$C$4:$C$35="A")*(INDIRECT(VLOOKUP(E26&" "&J25,RRFs!$AO:$AP,2,FALSE))<>-999999)*INDIRECT(VLOOKUP(E26&" "&J25,RRFs!$AO:$AP,2,FALSE))))), SUMPRODUCT((EFs!$A$4:$A$3351=E27)*(EFs!$B$4:$B$3351=VLOOKUP(E26,'Store Inputs'!$F:$G,2,FALSE))*(EFs!$C$4:$C$3351=VLOOKUP(E30,'Store Inputs'!$C:$D,2,FALSE))*(EFs!$D$4:$D$3351=E27)*(EFs!$E$4:$E$3351=E31)*EFs!$H$4:$H$3351*EFs!$P$4:$P$3351) / SUMPRODUCT((EFs!$A$4:$A$3351=E27)*(EFs!$B$4:$B$3351=VLOOKUP(E26,'Store Inputs'!$F:$G,2,FALSE))*(EFs!$C$4:$C$3351=VLOOKUP(E30,'Store Inputs'!$C:$D,2,FALSE))*(EFs!$D$4:$D$3351=E27)*(EFs!$E$4:$E$3351=E31)*EFs!$P$4:$P$3351) * (1-(SUMPRODUCT((RRFs!$B$4:$B$35=E23)*OR(RRFs!$C$4:$C$35=E31,RRFs!$C$4:$C$35="A")*(INDIRECT(VLOOKUP(E26&" "&J25,RRFs!$AO:$AP,2,FALSE))<>-999999)*INDIRECT(VLOOKUP(E26&" "&J25,RRFs!$AO:$AP,2,FALSE)))))))), 0) -> 845.8872079 | K27: =IFERROR( IF(OR(E23=0,AND(E26<>"Single Unit Short Haul",E31="G"),AND(OR(E23="B20 (Biodiesel)",E23="R100 (Renewable Diesel)"),E31="G"),AND(OR(E26="Single Unit Short Haul",E26="Single Unit Long Haul"),E30="Distribution Center"),AND(E26<>"Combination Unit Short Haul",E30="Port")),0/0, IF(SUMPRODUCT((RRFs!$B$4:$B$35=E23)*OR(RRFs!$C$4:$C$35=E31,RRFs!$C$4:$C$35="A")*INDIRECT(VLOOKUP(E26&" "&K23,RRFs!$AO:$AP,2,FALSE)))=-999999,0/0, IF(OR(E23="B20 (Biodiesel)",E23="R100 (Renewable Diesel)"),K26*(1-(SUMPRODUCT((RRFs!$B$4:$B$35=E23)*OR(RRFs!$C$4:$C$35=E31,RRFs!$C$4:$C$35="A")*(INDIRECT(VLOOKUP(E26&" "&K23,RRFs!$AO:$AP,2,FALSE))<>-999999)*INDIRECT(VLOOKUP(E26&" "&K23,RRFs!$AO:$AP,2,FALSE))))), SUMPRODUCT((EFs!$A$4:$A$3351=E27)*(EFs!$B$4:$B$3351=VLOOKUP(E26,'Store Inputs'!$F:$G,2,FALSE))*(EFs!$C$4:$C$3351=VLOOKUP(E30,'Store Inputs'!$C:$D,2,FALSE))*(EFs!$D$4:$D$3351=E27)*(EFs!$E$4:$E$3351=E31)*EFs!$I$4:$I$3351*EFs!$P$4:$P$3351) / SUMPRODUCT((EFs!$A$4:$A$3351=E27)*(EFs!$B$4:$B$3351=VLOOKUP(E26,'Store Inputs'!$F:$G,2,FALSE))*(EFs!$C$4:$C$3351=VLOOKUP(E30,'Store Inputs'!$C:$D,2,FALSE))*(EFs!$D$4:$D$3351=E27)*(EFs!$E$4:$E$3351=E31)*EFs!$P$4:$P$3351) * (1+(SUMPRODUCT((RRFs!$B$4:$B$35=E23)*OR(RRFs!$C$4:$C$35=E31,RRFs!$C$4:$C$35="A")*(INDIRECT(VLOOKUP(E26&" "&K23,RRFs!$AO:$AP,2,FALSE))<>-999999)*INDIRECT(VLOOKUP(E26&" "&K23,RRFs!$AO:$AP,2,FALSE)))))))), 0) -> 12.10432696 | L27: =IF(E23<>"Electric",0,'1. Deployment, Part 4'!UserElectMixValue_1) -> 0 | M27: =IFERROR( IF(OR(E23=0,AND(E26<>"Single Unit Short Haul",E31="G"),AND(OR(E23="B20 (Biodiesel)",E23="R100 (Renewable Diesel)"),E31="G"),AND(OR(E26="Single Unit Short Haul",E26="Single Unit Long Haul"),E30="Distribution Center"),AND(E26<>"Combination Unit Short Haul",E30="Port")),0/0, IF(SUMPRODUCT((RRFs!$B$4:$B$35=E23)*OR(RRFs!$C$4:$C$35=E31,RRFs!$C$4:$C$35="A")*INDIRECT(VLOOKUP(E26&" "&H25,RRFs!$AO:$AP,2,FALSE)))=-999999,0/0, IF(OR(E23="B20 (Biodiesel)",E23="R100 (Renewable Diesel)"),M26, SUMPRODUCT((EFs!$A$4:$A$3351=E27)*(EFs!$B$4:$B$3351=VLOOKUP(E26,'Store Inputs'!$F:$G,2,FALSE))*(EFs!$C$4:$C$3351=VLOOKUP(E30,'Store Inputs'!$C:$D,2,FALSE))*(EFs!$D$4:$D$3351=E27)*(EFs!$E$4:$E$3351=E31)*EFs!$J$4:$J$3351*EFs!$P$4:$P$3351) / SUMPRODUCT((EFs!$A$4:$A$3351=E27)*(EFs!$B$4:$B$3351=VLOOKUP(E26,'Store Inputs'!$F:$G,2,FALSE))*(EFs!$C$4:$C$3351=VLOOKUP(E30,'Store Inputs'!$C:$D,2,FALSE))*(EFs!$D$4:$D$3351=E27)*(EFs!$E$4:$E$3351=E31)*EFs!$P$4:$P$3351) * IF(OR(E23="Hybrid",E23="Electric"),0.5,1)))), 0) -> 0.01257056318 | N27: =IFERROR( IF(OR(E23=0,AND(E26<>"Single Unit Short Haul",E31="G"),AND(OR(E23="B20 (Biodiesel)",E23="R100 (Renewable Diesel)"),E31="G"),AND(OR(E26="Single Unit Short Haul",E26="Single Unit Long Haul"),E30="Distribution Center"),AND(E26<>"Combination Unit Short Haul",E30="Port")),0/0, IF(SUMPRODUCT((RRFs!$B$4:$B$35=E23)*OR(RRFs!$C$4:$C$35=E31,RRFs!$C$4:$C$35="A")*INDIRECT(VLOOKUP(E26&" "&H25,RRFs!$AO:$AP,2,FALSE)))=-999999,0/0, IF(OR(E23="B20 (Biodiesel)",E23="R100 (Renewable Diesel)"),N26, SUMPRODUCT((EFs!$A$4:$A$3351=E27)*(EFs!$B$4:$B$3351=VLOOKUP(E26,'Store Inputs'!$F:$G,2,FALSE))*(EFs!$C$4:$C$3351=VLOOKUP(E30,'Store Inputs'!$C:$D,2,FALSE))*(EFs!$D$4:$D$3351=E27)*(EFs!$E$4:$E$3351=E31)*EFs!$K$4:$K$3351*EFs!$P$4:$P$3351) / SUMPRODUCT((EFs!$A$4:$A$3351=E27)*(EFs!$B$4:$B$3351=VLOOKUP(E26,'Store Inputs'!$F:$G,2,FALSE))*(EFs!$C$4:$C$3351=VLOOKUP(E30,'Store Inputs'!$C:$D,2,FALSE))*(EFs!$D$4:$D$3351=E27)*(EFs!$E$4:$E$3351=E31)*EFs!$P$4:$P$3351)))), 0) -> 0.002628540096 | O27: =IFERROR( IF(E36="-",0/0, IF(OR(E23=0,AND(E26<>"Single Unit Short Haul",E31="G"),AND(OR(E23="B20 (Biodiesel)",E23="R100 (Renewable Diesel)"),E31="G"),AND(OR(E26="Single Unit Short Haul",E26="Single Unit Long Haul"),E30="Distribution Center"),AND(E26<>"Combination Unit Short Haul",E30="Port")),0/0, IF(SUMPRODUCT((RRFs!$B$4:$B$35=E23)*OR(RRFs!$C$4:$C$35=E31,RRFs!$C$4:$C$35="A")*INDIRECT(VLOOKUP(E26&" "&O25,RRFs!$AO:$AP,2,FALSE)))=-999999,0/0, IF(OR(E23="B20 (Biodiesel)",E23="R100 (Renewable Diesel)"),O26*(1-(SUMPRODUCT((RRFs!$B$4:$B$35=E23)*OR(RRFs!$C$4:$C$35=E31,RRFs!$C$4:$C$35="A")*(INDIRECT(VLOOKUP(E26&" "&O25,RRFs!$AO:$AP,2,FALSE))<>-999999)*INDIRECT(VLOOKUP(E26&" "&O25,RRFs!$AO:$AP,2,FALSE))))), SUMPRODUCT((EFs!$A$4:$A$3351=E27)*(EFs!$B$4:$B$3351=VLOOKUP(E26,'Store Inputs'!$F:$G,2,FALSE))*(EFs!$C$4:$C$3351=VLOOKUP(E30,'Store Inputs'!$C:$D,2,FALSE))*(EFs!$D$4:$D$3351=E27)*(EFs!$E$4:$E$3351=E31)*EFs!$L$4:$L$3351*EFs!$P$4:$P$3351) / SUMPRODUCT((EFs!$A$4:$A$3351=E27)*(EFs!$B$4:$B$3351=VLOOKUP(E26,'Store Inputs'!$F:$G,2,FALSE))*(EFs!$C$4:$C$3351=VLOOKUP(E30,'Store Inputs'!$C:$D,2,FALSE))*(EFs!$D$4:$D$3351=E27)*(EFs!$E$4:$E$3351=E31)*EFs!$P$4:$P$3351) * (1-(SUMPRODUCT((RRFs!$B$4:$B$35=E23)*OR(RRFs!$C$4:$C$35=E31,RRFs!$C$4:$C$35="A")*(INDIRECT(VLOOKUP(E26&" "&O25,RRFs!$AO:$AP,2,FALSE))<>-999999)*INDIRECT(VLOOKUP(E26&" "&O25,RRFs!$AO:$AP,2,FALSE))))))))), 0) -> 0 | P27: =IFERROR( IF(E36="-",0/0, IF(OR(E23=0,AND(E26<>"Single Unit Short Haul",E31="G"),AND(OR(E23="B20 (Biodiesel)",E23="R100 (Renewable Diesel)"),E31="G"),AND(OR(E26="Single Unit Short Haul",E26="Single Unit Long Haul"),E30="Distribution Center"),AND(E26<>"Combination Unit Short Haul",E30="Port")),0/0, IF(SUMPRODUCT((RRFs!$B$4:$B$35=E23)*OR(RRFs!$C$4:$C$35=E31,RRFs!$C$4:$C$35="A")*INDIRECT(VLOOKUP(E26&" "&P25,RRFs!$AO:$AP,2,FALSE)))=-999999,0/0, IF(OR(E23="B20 (Biodiesel)",E23="R100 (Renewable Diesel)"),P26*(1-(SUMPRODUCT((RRFs!$B$4:$B$35=E23)*OR(RRFs!$C$4:$C$35=E31,RRFs!$C$4:$C$35="A")*(INDIRECT(VLOOKUP(E26&" "&P25,RRFs!$AO:$AP,2,FALSE))<>-999999)*INDIRECT(VLOOKUP(E26&" "&P25,RRFs!$AO:$AP,2,FALSE))))), SUMPRODUCT((EFs!$A$4:$A$3351=E27)*(EFs!$B$4:$B$3351=VLOOKUP(E26,'Store Inputs'!$F:$G,2,FALSE))*(EFs!$C$4:$C$3351=VLOOKUP(E30,'Store Inputs'!$C:$D,2,FALSE))*(EFs!$D$4:$D$3351=E27)*(EFs!$E$4:$E$3351=E31)*EFs!$M$4:$M$3351*EFs!$P$4:$P$3351) / SUMPRODUCT((EFs!$A$4:$A$3351=E27)*(EFs!$B$4:$B$3351=VLOOKUP(E26,'Store Inputs'!$F:$G,2,FALSE))*(EFs!$C$4:$C$3351=VLOOKUP(E30,'Store Inputs'!$C:$D,2,FALSE))*(EFs!$D$4:$D$3351=E27)*(EFs!$E$4:$E$3351=E31)*EFs!$P$4:$P$3351) * (1-(SUMPRODUCT((RRFs!$B$4:$B$35=E23)*OR(RRFs!$C$4:$C$35=E31,RRFs!$C$4:$C$35="A")*(INDIRECT(VLOOKUP(E26&" "&P25,RRFs!$AO:$AP,2,FALSE))<>-999999)*INDIRECT(VLOOKUP(E26&" "&P25,RRFs!$AO:$AP,2,FALSE))))))))), 0) -> 0 | Q27: =IFERROR( IF(E36="-",0/0, IF(OR(E23=0,AND(E26<>"Single Unit Short Haul",E31="G"),AND(OR(E23="B20 (Biodiesel)",E23="R100 (Renewable Diesel)"),E31="G"),AND(OR(E26="Single Unit Short Haul",E26="Single Unit Long Haul"),E30="Distribution Center"),AND(E26<>"Combination Unit Short Haul",E30="Port")),0/0, IF(SUMPRODUCT((RRFs!$B$4:$B$35=E23)*OR(RRFs!$C$4:$C$35=E31,RRFs!$C$4:$C$35="A")*INDIRECT(VLOOKUP(E26&" "&Q25,RRFs!$AO:$AP,2,FALSE)))=-999999,0/0, IF(OR(E23="B20 (Biodiesel)",E23="R100 (Renewable Diesel)"),Q26*(1-(SUMPRODUCT((RRFs!$B$4:$B$35=E23)*OR(RRFs!$C$4:$C$35=E31,RRFs!$C$4:$C$35="A")*(INDIRECT(VLOOKUP(E26&" "&Q25,RRFs!$AO:$AP,2,FALSE))<>-999999)*INDIRECT(VLOOKUP(E26&" "&Q25,RRFs!$AO:$AP,2,FALSE))))), SUMPRODUCT((EFs!$A$4:$A$3351=E27)*(EFs!$B$4:$B$3351=VLOOKUP(E26,'Store Inputs'!$F:$G,2,FALSE))*(EFs!$C$4:$C$3351=VLOOKUP(E30,'Store Inputs'!$C:$D,2,FALSE))*(EFs!$D$4:$D$3351=E27)*(EFs!$E$4:$E$3351=E31)*EFs!$N$4:$N$3351*EFs!$P$4:$P$3351) / SUMPRODUCT((EFs!$A$4:$A$3351=E27)*(EFs!$B$4:$B$3351=VLOOKUP(E26,'Store Inputs'!$F:$G,2,FALSE))*(EFs!$C$4:$C$3351=VLOOKUP(E30,'Store Inputs'!$C:$D,2,FALSE))*(EFs!$D$4:$D$3351=E27)*(EFs!$E$4:$E$3351=E31)*EFs!$P$4:$P$3351) * (1-(SUMPRODUCT((RRFs!$B$4:$B$35=E23)*OR(RRFs!$C$4:$C$35=E31,RRFs!$C$4:$C$35="A")*(INDIRECT(VLOOKUP(E26&" "&Q25,RRFs!$AO:$AP,2,FALSE))<>-999999)*INDIRECT(VLOOKUP(E26&" "&Q25,RRFs!$AO:$AP,2,FALSE))))))))), 0) -> 0 | R27: =IFERROR( IF(E36="-",0/0, IF(OR(E23=0,AND(E26<>"Single Unit Short Haul",E31="G"),AND(OR(E23="B20 (Biodiesel)",E23="R100 (Renewable Diesel)"),E31="G"),AND(OR(E26="Single Unit Short Haul",E26="Single Unit Long Haul"),E30="Distribution Center"),AND(E26<>"Combination Unit Short Haul",E30="Port")),0/0, IF(SUMPRODUCT((RRFs!$B$4:$B$35=E23)*OR(RRFs!$C$4:$C$35=E31,RRFs!$C$4:$C$35="A")*INDIRECT(VLOOKUP(E26&" "&R24,RRFs!$AO:$AP,2,FALSE)))=-999999,0/0, IF(OR(E23="B20 (Biodiesel)",E23="R100 (Renewable Diesel)"),R26*(1-(SUMPRODUCT((RRFs!$B$4:$B$35=E23)*OR(RRFs!$C$4:$C$35=E31,RRFs!$C$4:$C$35="A")*(INDIRECT(VLOOKUP(E26&" "&R24,RRFs!$AO:$AP,2,FALSE))<>-999999)*INDIRECT(VLOOKUP(E26&" "&R24,RRFs!$AO:$AP,2,FALSE))))), SUMPRODUCT((EFs!$A$4:$A$3351=E27)*(EFs!$B$4:$B$3351=VLOOKUP(E26,'Store Inputs'!$F:$G,2,FALSE))*(EFs!$C$4:$C$3351=VLOOKUP(E30,'Store Inputs'!$C:$D,2,FALSE))*(EFs!$D$4:$D$3351=E27)*(EFs!$E$4:$E$3351=E31)*EFs!$O$4:$O$3351*EFs!$P$4:$P$3351) / SUMPRODUCT((EFs!$A$4:$A$3351=E27)*(EFs!$B$4:$B$3351=VLOOKUP(E26,'Store Inputs'!$F:$G,2,FALSE))*(EFs!$C$4:$C$3351=VLOOKUP(E30,'Store Inputs'!$C:$D,2,FALSE))*(EFs!$D$4:$D$3351=E27)*(EFs!$E$4:$E$3351=E31)*EFs!$P$4:$P$3351) * (1-(SUMPRODUCT((RRFs!$B$4:$B$35=E23)*OR(RRFs!$C$4:$C$35=E31,RRFs!$C$4:$C$35="A")*(INDIRECT(VLOOKUP(E26&" "&R24,RRFs!$AO:$AP,2,FALSE))<>-999999)*INDIRECT(VLOOKUP(E26&" "&R24,RRFs!$AO:$AP,2,FALSE))))))))), 0) -> 0 | S27: =IFERROR( SUMIFS('1. Deployment, Part 5'!E:E,'1. Deployment, Part 5'!B:B,E26,'1. Deployment, Part 5'!C:C,IF(E31="D","Diesel",IF(E31="G","Gasoline",E31)),'1. Deployment, Part 5'!D:D,E23,'1. Deployment, Part 5'!E:E,"<>'N/A",'1. Deployment, Part 5'!E:E,"<>'-'") + IF(SUMPRODUCT((RRFs!$B$4:$B$35=E23)*OR(RRFs!$C$4:$C$35=IF(E31="D","Diesel",IF(E31="G","Gasoline",E31)),RRFs!$C$4:$C$35="A")*INDIRECT(VLOOKUP(E26&" Inc O&M",RRFs!$AO:$AP,2,FALSE)))=-999999,0/0,SUMPRODUCT((RRFs!$B$4:$B$35=E23)*OR(RRFs!$C$4:$C$35=IF(E31="D","Diesel",IF(E31="G","Gasoline",E31)),RRFs!$C$4:$C$35="A")*INDIRECT(VLOOKUP(E26&" Inc O&M",RRFs!$AO:$AP,2,FALSE)))), 0) -> 1000
D28: Model Year Modification Window: | E28: =IF(OR(E23="B20 (Biodiesel)",E23="R100 (Renewable Diesel)"),Deployment_Year-30,INDEX(Deployment_Beginning_Year_of_Modification,2,1)) -> 2000
E29: =IF(OR(E23="B20 (Biodiesel)",E23="R100 (Renewable Diesel)"),Deployment_Year,INDEX(Deployment_End_Year_of_Modification,2,1)) -> 2017 | G29: FLEET: | H29: Short Tons Emiss./Year | K29: Fuel (gal/yr GGE or DGE) | L29: Annual Costs
D30: Area of Interest: | E30: =Deployment_GeographicScale -> State | G30: Case | H30: NOx | I30: PM2.5 | J30: CO2 | L30: Capital | M30: Fuel | N30: Total
D31: Baseline Fuel (D=Diesel, G=Gasoline), Cost and Units: | E31: =INDEX(Deployment_Fuels,2,1) -> D | G31: Baseline | H31: =IFERROR( E34*( (H26*E35) + (IF(E36="-",0,O26*E36)) ) * GramToTon, 0) -> 3.753676701 | I31: =IFERROR( E34*( ((I26+M26+N26)*E35) + (IF(E36="-",0,P26*E36)) ) * GramToTon, 0) -> 0.1692236215 | J31: =IFERROR( E34*( (J26*E35) + (IF(E36="-",0,Q26*E36)) ) * GramToTon, 0) -> 2104.7584 | K31: =IFERROR( SUM((1/K26)*E35,(IF(E36="-",0,R26*E36))) * E34, 0) -> 186203.4275 | L31: 0 | M31: =IFERROR( K31*E32, 0) -> 396613.3007 | N31: =SUM(L31:M31) -> 396613.3007
E32: =IF(E31="G",VLOOKUP("Gasoline",Deployment_Fuel_Type_Cost_and_Unit,2,0), IF(E31="D",VLOOKUP("Diesel",Deployment_Fuel_Type_Cost_and_Unit,2,0),NA())) -> 2.13 | G32: Modified | H32: =IFERROR( E34*( (H27*E35) + (IF(E36="-",0,O27*E36)) ) * GramToTon, 0) -> 1.213752999 | I32: =IFERROR( E34*( ((I27+M27+N27)*E35) + (IF(E36="-",0,P27*E36)) ) * GramToTon, 0) -> 0.05270914322 | J32: =IFERROR( E34*( (J27*E35) + (IF(E36="-",0,Q27*E36)) + IF(L27=0,0,L27*IF(E31="G",kwh_per_GGE,IF(E31="D",kwh_per_DGE,0/0))*(E35/K27)) ) * GramToTon, 0) -> 1947.754635 | K32: =IFERROR( SUM((1/K27)*E35,(IF(E36="-",0,R27*E36))) * E34, 0) -> 172574.651 | L32: =IFERROR( (S27*E34) / E37, 0) -> 20000 | M32: =IFERROR( K32*E24, 0) -> 0 | N32: =SUM(L32:M32) -> 20000
E33: =IF(E31="G",VLOOKUP("Gasoline",Deployment_Fuel_Type_Cost_and_Unit,3,0), IF(E31="D",VLOOKUP("Diesel",Deployment_Fuel_Type_Cost_and_Unit,3,0),NA())) -> gal | G33: Difference | H33: =IFERROR( IF((SUMPRODUCT((RRFs!$B$4:$B$35=E23)*OR(RRFs!$C$4:$C$35=E31,RRFs!$C$4:$C$35="A")*INDIRECT(VLOOKUP(E26&" "&H25,RRFs!$AO:$AP,2,FALSE))))=-999999,0/0, IFERROR(H32-H31,0)), 0) -> -2.539923702 | I33: =IFERROR( IF((SUMPRODUCT((RRFs!$B$4:$B$35=E23)*OR(RRFs!$C$4:$C$35=E31,RRFs!$C$4:$C$35="A")*INDIRECT(VLOOKUP(E26&" "&H25,RRFs!$AO:$AP,2,FALSE))))=-999999,0/0, IFERROR(I32-I31,0)), 0) -> -0.1165144783 | J33: =IFERROR( IF((SUMPRODUCT((RRFs!$B$4:$B$35=E23)*OR(RRFs!$C$4:$C$35=E31,RRFs!$C$4:$C$35="A")*INDIRECT(VLOOKUP(E26&" "&H25,RRFs!$AO:$AP,2,FALSE))))=-999999,0/0, IFERROR(J32-J31,0)), 0) -> -157.0037649 | K33: =IFERROR(IF((SUMPRODUCT((RRFs!$B$4:$B$35=E23)*OR(RRFs!$C$4:$C$35=E31,RRFs!$C$4:$C$35="A")*INDIRECT(VLOOKUP(E26&" "&H25,RRFs!$AO:$AP,2,FALSE))))=-999999,0,IFERROR(K32-K31,0)),0) -> -13628.77657 | L33: =IFERROR(IF((SUMPRODUCT((RRFs!$B$4:$B$35=E23)*OR(RRFs!$C$4:$C$35=E31,RRFs!$C$4:$C$35="A")*INDIRECT(VLOOKUP(E26&" "&H25,RRFs!$AO:$AP,2,FALSE))))=-999999,0,IFERROR(L32-L31,0)),0) -> 20000 | M33: =IFERROR(IF((SUMPRODUCT((RRFs!$B$4:$B$35=E23)*OR(RRFs!$C$4:$C$35=E31,RRFs!$C$4:$C$35="A")*INDIRECT(VLOOKUP(E26&" "&H25,RRFs!$AO:$AP,2,FALSE))))=-999999,0,IFERROR(M32-M31,0)),0) -> -396613.3007 | N33: =SUM(L33:M33) -> -376613.3007
D34: Number to Modify/Replace: | E34: =VLOOKUP(E26&E31,Deployment_NumberToReplaceByTruckAndFuelType,6,0) -> 100 | G34: Cost Effect ($/short ton) | H34: =IF(H33>0,"Emiss. Increase",IFERROR( (-1*N33)/H33, 0)) -> -148277.4071 | I34: =IF(I33>0,"Emiss. Increase",IFERROR( (-1*N33)/I33, 0)) -> -3232330.49 | J34: =IF(J33>0,"Emiss. Increase",IFERROR( (-1*N33)/J33, 0)) -> -2398.753309
D35: Average Annual Mileage: | E35: =VLOOKUP(E26&E31,Deployment_AverageAnnualMilesByTruckAndFuelType,7,0) -> 20889
D36: Average Annual Idle Hours: | E36: =IF(VLOOKUP(E26&E31,Deployment_Average_Annual_Idle_Hours_by_Truck_and_Fuel_Type,12,0)=0,"-",VLOOKUP(E26&E31,Deployment_Average_Annual_Idle_Hours_by_Truck_and_Fuel_Type,12,0)) -> -
D37: Useful Life of Strategy (years): | E37: =SUMPRODUCT((RRFs!$B$4:$B$35=E23)*OR(RRFs!$C$4:$C$35=E31,RRFs!$C$4:$C$35="A")*INDIRECT(VLOOKUP(E26&" Project Lifetime",RRFs!$AO:$AP,2,FALSE))) -> 5
D38: ="For Further Information refer to page "&VLOOKUP(RIGHT($A$1,LEN($A$1)-14)&VLOOKUP(E23,FuelCrosswalk,2,FALSE)&"1",ModType_Mod_Hyperlinks_and_GuidePgs,4,0)&" of the NCHRP 25-46 Guidance and the following weblinks" -> 
C39: =IFERROR(HYPERLINK(U39,V39),"") ->  | U39: =IFERROR(VLOOKUP(RIGHT($A$1,LEN($A$1)-14)&VLOOKUP(E23,FuelCrosswalk,2,FALSE)&"1",ModType_Mod_Hyperlinks_and_GuidePgs,3,0),"") ->  | V39: =IFERROR( VLOOKUP(RIGHT($A$1,LEN($A$1)-14)&VLOOKUP(E23,FuelCrosswalk,2,FALSE)&"1",ModType_Mod_Hyperlinks_and_GuidePgs,2,0),"") -> 
C40: =IFERROR(HYPERLINK(U40,V40),"") ->  | U40: =IFERROR(VLOOKUP(RIGHT($A$1,LEN($A$1)-14)&VLOOKUP(E23,FuelCrosswalk,2,FALSE)&"2",ModType_Mod_Hyperlinks_and_GuidePgs,3,0),"") ->  | V40: =IFERROR( VLOOKUP(RIGHT($A$1,LEN($A$1)-14)&VLOOKUP(E23,FuelCrosswalk,2,FALSE)&"2",ModType_Mod_Hyperlinks_and_GuidePgs,2,0),"") -> 
C41: =IFERROR(HYPERLINK(U41,V41),"") ->  | U41: =IFERROR(VLOOKUP(RIGHT($A$1,LEN($A$1)-14)&VLOOKUP(E23,FuelCrosswalk,2,FALSE)&"3",ModType_Mod_Hyperlinks_and_GuidePgs,3,0),"") ->  | V41: =IFERROR( VLOOKUP(RIGHT($A$1,LEN($A$1)-14)&VLOOKUP(E23,FuelCrosswalk,2,FALSE)&"3",ModType_Mod_Hyperlinks_and_GuidePgs,2,0),"") -> 
C42: =IFERROR(HYPERLINK(U42,V42),"") ->  | U42: =IFERROR(VLOOKUP(RIGHT($A$1,LEN($A$1)-14)&VLOOKUP(E23,FuelCrosswalk,2,FALSE)&"4",ModType_Mod_Hyperlinks_and_GuidePgs,3,0),"") ->  | V42: =IFERROR( VLOOKUP(RIGHT($A$1,LEN($A$1)-14)&E23&"4",ModType_Mod_Hyperlinks_and_GuidePgs,2,0),"") -> 
D43: Modification: | E43: =INDEX(Deployment_Specific_Modifications,1,1) -> DOC | H43: Running EFs (g/mi) | K43: Fuel | L43: Power Plant EFs for Electric Vehicles | M43: PM2.5 (g/mi) | O43: Extended Idle | S43: Cost
D44: Cost and Units of Alternative Fuel: | E44: =IF(E43="Hybrid", IF(E51="D",VLOOKUP("Diesel",Deployment_Fuel_Type_Cost_and_Unit,2,0), IF(E51="G",VLOOKUP("Gasoline",Deployment_Fuel_Type_Cost_and_Unit,2,0),NA())), IF(VLOOKUP(E46&E51,Deployment_Fuel_by_Truck_and_Fuel_Types,4,0)="D", VLOOKUP(VLOOKUP(E43,FuelCrosswalk,2,FALSE),Deployment_Fuel_Type_Cost_and_Unit,2,0)* (SUMIFS(Defaults!$W:$W,Defaults!$U:$U,VLOOKUP(E43,FuelCrosswalk,2,FALSE),Defaults!$V:$V,"DGE")/ SUMIFS(Defaults!$W:$W,Defaults!$U:$U,VLOOKUP(E43,FuelCrosswalk,2,FALSE),Defaults!$V:$V,VLOOKUP(VLOOKUP(E43,FuelCrosswalk,2,FALSE),Deployment_Fuel_Type_Cost_and_Unit,3,0))), IF(VLOOKUP(E46&E51,Deployment_Fuel_by_Truck_and_Fuel_Types,4,0)="G", VLOOKUP(VLOOKUP(E43,FuelCrosswalk,2,FALSE),Deployment_Fuel_Type_Cost_and_Unit,2,0)* (SUMIFS(Defaults!$W:$W,Defaults!$U:$U,VLOOKUP(E43,FuelCrosswalk,2,FALSE),Defaults!$V:$V,"GGE")/ SUMIFS(Defaults!$W:$W,Defaults!$U:$U,VLOOKUP(E43,FuelCrosswalk,2,FALSE),Defaults!$V:$V,VLOOKUP(VLOOKUP(E43,FuelCrosswalk,2,FALSE),Deployment_Fuel_Type_Cost_and_Unit,3,0))),NA() ))) ->  | G44: PER TRUCK: | O44: Emissions (g/hr) | R44: Fuel
E45: =IF(E51="G","GGE","DGE") -> DGE | G45: Case | H45: NOx | I45: PM2.5 | J45: CO2 | K45: mi/gal | L45: g CO2/kWh | M45: Brake | N45: Tire | O45: NOx | P45: PM2.5 | Q45: CO2 | R45: (gal/hr)
D46: Type of Truck: | E46: =INDEX(Deployment_TruckTypes,3,1) -> Combination Unit Short Haul | G46: Baseline | H46: =IFERROR( IF(OR(E43=0,AND(E46<>"Single Unit Short Haul",E51="G"),AND(OR(E43="B20 (Biodiesel)",E43="R100 (Renewable Diesel)"),E51="G"),AND(OR(E46="Single Unit Short Haul",E46="Single Unit Long Haul"),E50="Distribution Center"),AND(E46<>"Combination Unit Short Haul",E50="Port")),0/0, IF(SUMPRODUCT((RRFs!$B$4:$B$35=E43)*OR(RRFs!$C$4:$C$35=E51,RRFs!$C$4:$C$35="A")*INDIRECT(VLOOKUP(E46&" "&H45,RRFs!$AO:$AP,2,FALSE)))=-999999,0/0, SUMPRODUCT((EFs!$A$4:$A$3351=E47)*(EFs!$B$4:$B$3351=VLOOKUP(E46,'Store Inputs'!$F:$G,2,FALSE))*(EFs!$C$4:$C$3351=VLOOKUP(E50,'Store Inputs'!$C:$D,2,FALSE))*(EFs!$D$4:$D$3351>=E48)*(EFs!$D$4:$D$3351<=E49)*(EFs!$E$4:$E$3351=E51)*EFs!$F$4:$F$3351*EFs!$P$4:$P$3351) / SUMPRODUCT((EFs!$A$4:$A$3351=E47)*(EFs!$B$4:$B$3351=VLOOKUP(E46,'Store Inputs'!$F:$G,2,FALSE))*(EFs!$C$4:$C$3351=VLOOKUP(E50,'Store Inputs'!$C:$D,2,FALSE))*(EFs!$D$4:$D$3351>=E48)*(EFs!$D$4:$D$3351<=E49)*(EFs!$E$4:$E$3351=E51)*EFs!$P$4:$P$3351))), 0) -> 3.073953543 | I46: =IFERROR( IF(OR(E43=0,AND(E46<>"Single Unit Short Haul",E51="G"),AND(OR(E43="B20 (Biodiesel)",E43="R100 (Renewable Diesel)"),E51="G"),AND(OR(E46="Single Unit Short Haul",E46="Single Unit Long Haul"),E50="Distribution Center"),AND(E46<>"Combination Unit Short Haul",E50="Port")),0/0, IF(SUMPRODUCT((RRFs!$B$4:$B$35=E43)*OR(RRFs!$C$4:$C$35=E51,RRFs!$C$4:$C$35="A")*INDIRECT(VLOOKUP(E46&" "&I45,RRFs!$AO:$AP,2,FALSE)))=-999999,0/0, SUMPRODUCT((EFs!$A$4:$A$3351=E47)*(EFs!$B$4:$B$3351=VLOOKUP(E46,'Store Inputs'!$F:$G,2,FALSE))*(EFs!$C$4:$C$3351=VLOOKUP(E50,'Store Inputs'!$C:$D,2,FALSE))*(EFs!$D$4:$D$3351>=E48)*(EFs!$D$4:$D$3351<=E49)*(EFs!$E$4:$E$3351=E51)*EFs!$G$4:$G$3351*EFs!$P$4:$P$3351) / SUMPRODUCT((EFs!$A$4:$A$3351=E47)*(EFs!$B$4:$B$3351=VLOOKUP(E46,'Store Inputs'!$F:$G,2,FALSE))*(EFs!$C$4:$C$3351=VLOOKUP(E50,'Store Inputs'!$C:$D,2,FALSE))*(EFs!$D$4:$D$3351>=E48)*(EFs!$D$4:$D$3351<=E49)*(EFs!$E$4:$E$3351=E51)*EFs!$P$4:$P$3351))), 0) -> 0.09932796728 | J46: =IFERROR( IF(OR(E43=0,AND(E46<>"Single Unit Short Haul",E51="G"),AND(OR(E43="B20 (Biodiesel)",E43="R100 (Renewable Diesel)"),E51="G"),AND(OR(E46="Single Unit Short Haul",E46="Single Unit Long Haul"),E50="Distribution Center"),AND(E46<>"Combination Unit Short Haul",E50="Port")),0/0, IF(SUMPRODUCT((RRFs!$B$4:$B$35=E43)*OR(RRFs!$C$4:$C$35=E51,RRFs!$C$4:$C$35="A")*INDIRECT(VLOOKUP(E46&" "&J45,RRFs!$AO:$AP,2,FALSE)))=-999999,0/0, SUMPRODUCT((EFs!$A$4:$A$3351=E47)*(EFs!$B$4:$B$3351=VLOOKUP(E46,'Store Inputs'!$F:$G,2,FALSE))*(EFs!$C$4:$C$3351=VLOOKUP(E50,'Store Inputs'!$C:$D,2,FALSE))*(EFs!$D$4:$D$3351>=E48)*(EFs!$D$4:$D$3351<=E49)*(EFs!$E$4:$E$3351=E51)*EFs!$H$4:$H$3351*EFs!$P$4:$P$3351) / SUMPRODUCT((EFs!$A$4:$A$3351=E47)*(EFs!$B$4:$B$3351=VLOOKUP(E46,'Store Inputs'!$F:$G,2,FALSE))*(EFs!$C$4:$C$3351=VLOOKUP(E50,'Store Inputs'!$C:$D,2,FALSE))*(EFs!$D$4:$D$3351>=E48)*(EFs!$D$4:$D$3351<=E49)*(EFs!$E$4:$E$3351=E51)*EFs!$P$4:$P$3351))), 0) -> 1675.942544 | K46: =IFERROR( IF(OR(E43=0,AND(E46<>"Single Unit Short Haul",E51="G"),AND(OR(E43="B20 (Biodiesel)",E43="R100 (Renewable Diesel)"),E51="G"),AND(OR(E46="Single Unit Short Haul",E46="Single Unit Long Haul"),E50="Distribution Center"),AND(E46<>"Combination Unit Short Haul",E50="Port")),0/0, IF(SUMPRODUCT((RRFs!$B$4:$B$35=E43)*OR(RRFs!$C$4:$C$35=E51,RRFs!$C$4:$C$35="A")*INDIRECT(VLOOKUP(E46&" "&K43,RRFs!$AO:$AP,2,FALSE)))=-999999,0/0, SUMPRODUCT((EFs!$A$4:$A$3351=E47)*(EFs!$B$4:$B$3351=VLOOKUP(E46,'Store Inputs'!$F:$G,2,FALSE))*(EFs!$C$4:$C$3351=VLOOKUP(E50,'Store Inputs'!$C:$D,2,FALSE))*(EFs!$D$4:$D$3351>=E48)*(EFs!$D$4:$D$3351<=E49)*(EFs!$E$4:$E$3351=E51)*EFs!$I$4:$I$3351*EFs!$P$4:$P$3351) / SUMPRODUCT((EFs!$A$4:$A$3351=E47)*(EFs!$B$4:$B$3351=VLOOKUP(E46,'Store Inputs'!$F:$G,2,FALSE))*(EFs!$C$4:$C$3351=VLOOKUP(E50,'Store Inputs'!$C:$D,2,FALSE))*(EFs!$D$4:$D$3351>=E48)*(EFs!$D$4:$D$3351<=E49)*(EFs!$E$4:$E$3351=E51)*EFs!$P$4:$P$3351))), 0) -> 6.122743966 | L46: 0 | M46: =IFERROR( IF(OR(E43=0,AND(E46<>"Single Unit Short Haul",E51="G"),AND(OR(E43="B20 (Biodiesel)",E43="R100 (Renewable Diesel)"),E51="G"),AND(OR(E46="Single Unit Short Haul",E46="Single Unit Long Haul"),E50="Distribution Center"),AND(E46<>"Combination Unit Short Haul",E50="Port")),0/0, IF(SUMPRODUCT((RRFs!$B$4:$B$35=E43)*OR(RRFs!$C$4:$C$35=E51,RRFs!$C$4:$C$35="A")*INDIRECT(VLOOKUP(E46&" "&H45,RRFs!$AO:$AP,2,FALSE)))=-999999,0/0, SUMPRODUCT((EFs!$A$4:$A$3351=E47)*(EFs!$B$4:$B$3351=VLOOKUP(E46,'Store Inputs'!$F:$G,2,FALSE))*(EFs!$C$4:$C$3351=VLOOKUP(E50,'Store Inputs'!$C:$D,2,FALSE))*(EFs!$D$4:$D$3351>=E48)*(EFs!$D$4:$D$3351<=E49)*(EFs!$E$4:$E$3351=E51)*EFs!$J$4:$J$3351*EFs!$P$4:$P$3351) / SUMPRODUCT((EFs!$A$4:$A$3351=E47)*(EFs!$B$4:$B$3351=VLOOKUP(E46,'Store Inputs'!$F:$G,2,FALSE))*(EFs!$C$4:$C$3351=VLOOKUP(E50,'Store Inputs'!$C:$D,2,FALSE))*(EFs!$D$4:$D$3351>=E48)*(EFs!$D$4:$D$3351<=E49)*(EFs!$E$4:$E$3351=E51)*EFs!$P$4:$P$3351))), 0) -> 0.01363637813 | N46: =IFERROR( IF(OR(E43=0,AND(E46<>"Single Unit Short Haul",E51="G"),AND(OR(E43="B20 (Biodiesel)",E43="R100 (Renewable Diesel)"),E51="G"),AND(OR(E46="Single Unit Short Haul",E46="Single Unit Long Haul"),E50="Distribution Center"),AND(E46<>"Combination Unit Short Haul",E50="Port")),0/0, IF(SUMPRODUCT((RRFs!$B$4:$B$35=E43)*OR(RRFs!$C$4:$C$35=E51,RRFs!$C$4:$C$35="A")*INDIRECT(VLOOKUP(E46&" "&H45,RRFs!$AO:$AP,2,FALSE)))=-999999,0/0, SUMPRODUCT((EFs!$A$4:$A$3351=E47)*(EFs!$B$4:$B$3351=VLOOKUP(E46,'Store Inputs'!$F:$G,2,FALSE))*(EFs!$C$4:$C$3351=VLOOKUP(E50,'Store Inputs'!$C:$D,2,FALSE))*(EFs!$D$4:$D$3351>=E48)*(EFs!$D$4:$D$3351<=E49)*(EFs!$E$4:$E$3351=E51)*EFs!$K$4:$K$3351*EFs!$P$4:$P$3351) / SUMPRODUCT((EFs!$A$4:$A$3351=E47)*(EFs!$B$4:$B$3351=VLOOKUP(E46,'Store Inputs'!$F:$G,2,FALSE))*(EFs!$C$4:$C$3351=VLOOKUP(E50,'Store Inputs'!$C:$D,2,FALSE))*(EFs!$D$4:$D$3351>=E48)*(EFs!$D$4:$D$3351<=E49)*(EFs!$E$4:$E$3351=E51)*EFs!$P$4:$P$3351))), 0) -> 0.003957676372 | O46: =IFERROR( IF(E56="-",0/0, IF(OR(E43=0,AND(E46<>"Single Unit Short Haul",E51="G"),AND(OR(E43="B20 (Biodiesel)",E43="R100 (Renewable Diesel)"),E51="G"),AND(OR(E46="Single Unit Short Haul",E46="Single Unit Long Haul"),E50="Distribution Center"),AND(E46<>"Combination Unit Short Haul",E50="Port")),0/0, IF(SUMPRODUCT((RRFs!$B$4:$B$35=E43)*OR(RRFs!$C$4:$C$35=E51,RRFs!$C$4:$C$35="A")*INDIRECT(VLOOKUP(E46&" "&O45,RRFs!$AO:$AP,2,FALSE)))=-999999,0/0, SUMPRODUCT((EFs!$A$4:$A$3351=E47)*(EFs!$B$4:$B$3351=VLOOKUP(E46,'Store Inputs'!$F:$G,2,FALSE))*(EFs!$C$4:$C$3351=VLOOKUP(E50,'Store Inputs'!$C:$D,2,FALSE))*(EFs!$D$4:$D$3351>=E48)*(EFs!$D$4:$D$3351<=E49)*(EFs!$E$4:$E$3351=E51)*EFs!$L$4:$L$3351*EFs!$P$4:$P$3351) / SUMPRODUCT((EFs!$A$4:$A$3351=E47)*(EFs!$B$4:$B$3351=VLOOKUP(E46,'Store Inputs'!$F:$G,2,FALSE))*(EFs!$C$4:$C$3351=VLOOKUP(E50,'Store Inputs'!$C:$D,2,FALSE))*(EFs!$D$4:$D$3351>=E48)*(EFs!$D$4:$D$3351<=E49)*(EFs!$E$4:$E$3351=E51)*EFs!$P$4:$P$3351)))), 0) -> 0 | P46: =IFERROR( IF(E56="-",0/0, IF(OR(E43=0,AND(E46<>"Single Unit Short Haul",E51="G"),AND(OR(E43="B20 (Biodiesel)",E43="R100 (Renewable Diesel)"),E51="G"),AND(OR(E46="Single Unit Short Haul",E46="Single Unit Long Haul"),E50="Distribution Center"),AND(E46<>"Combination Unit Short Haul",E50="Port")),0/0, IF(SUMPRODUCT((RRFs!$B$4:$B$35=E43)*OR(RRFs!$C$4:$C$35=E51,RRFs!$C$4:$C$35="A")*INDIRECT(VLOOKUP(E46&" "&P45,RRFs!$AO:$AP,2,FALSE)))=-999999,0/0, SUMPRODUCT((EFs!$A$4:$A$3351=E47)*(EFs!$B$4:$B$3351=VLOOKUP(E46,'Store Inputs'!$F:$G,2,FALSE))*(EFs!$C$4:$C$3351=VLOOKUP(E50,'Store Inputs'!$C:$D,2,FALSE))*(EFs!$D$4:$D$3351>=E48)*(EFs!$D$4:$D$3351<=E49)*(EFs!$E$4:$E$3351=E51)*EFs!$M$4:$M$3351*EFs!$P$4:$P$3351) / SUMPRODUCT((EFs!$A$4:$A$3351=E47)*(EFs!$B$4:$B$3351=VLOOKUP(E46,'Store Inputs'!$F:$G,2,FALSE))*(EFs!$C$4:$C$3351=VLOOKUP(E50,'Store Inputs'!$C:$D,2,FALSE))*(EFs!$D$4:$D$3351>=E48)*(EFs!$D$4:$D$3351<=E49)*(EFs!$E$4:$E$3351=E51)*EFs!$P$4:$P$3351)))), 0) -> 0 | Q46: =IFERROR( IF(E56="-",0/0, IF(OR(E43=0,AND(E46<>"Single Unit Short Haul",E51="G"),AND(OR(E43="B20 (Biodiesel)",E43="R100 (Renewable Diesel)"),E51="G"),AND(OR(E46="Single Unit Short Haul",E46="Single Unit Long Haul"),E50="Distribution Center"),AND(E46<>"Combination Unit Short Haul",E50="Port")),0/0, IF(SUMPRODUCT((RRFs!$B$4:$B$35=E43)*OR(RRFs!$C$4:$C$35=E51,RRFs!$C$4:$C$35="A")*INDIRECT(VLOOKUP(E46&" "&Q45,RRFs!$AO:$AP,2,FALSE)))=-999999,0/0, SUMPRODUCT((EFs!$A$4:$A$3351=E47)*(EFs!$B$4:$B$3351=VLOOKUP(E46,'Store Inputs'!$F:$G,2,FALSE))*(EFs!$C$4:$C$3351=VLOOKUP(E50,'Store Inputs'!$C:$D,2,FALSE))*(EFs!$D$4:$D$3351>=E48)*(EFs!$D$4:$D$3351<=E49)*(EFs!$E$4:$E$3351=E51)*EFs!$N$4:$N$3351*EFs!$P$4:$P$3351) / SUMPRODUCT((EFs!$A$4:$A$3351=E47)*(EFs!$B$4:$B$3351=VLOOKUP(E46,'Store Inputs'!$F:$G,2,FALSE))*(EFs!$C$4:$C$3351=VLOOKUP(E50,'Store Inputs'!$C:$D,2,FALSE))*(EFs!$D$4:$D$3351>=E48)*(EFs!$D$4:$D$3351<=E49)*(EFs!$E$4:$E$3351=E51)*EFs!$P$4:$P$3351)))), 0) -> 0 | R46: =IFERROR( IF(E56="-",0/0, IF(OR(E43=0,AND(E46<>"Single Unit Short Haul",E51="G"),AND(OR(E43="B20 (Biodiesel)",E43="R100 (Renewable Diesel)"),E51="G"),AND(OR(E46="Single Unit Short Haul",E46="Single Unit Long Haul"),E50="Distribution Center"),AND(E46<>"Combination Unit Short Haul",E50="Port")),0/0, IF(SUMPRODUCT((RRFs!$B$4:$B$35=E43)*OR(RRFs!$C$4:$C$35=E51,RRFs!$C$4:$C$35="A")*INDIRECT(VLOOKUP(E46&" "&R44,RRFs!$AO:$AP,2,FALSE)))=-999999,0/0, SUMPRODUCT((EFs!$A$4:$A$3351=E47)*(EFs!$B$4:$B$3351=VLOOKUP(E46,'Store Inputs'!$F:$G,2,FALSE))*(EFs!$C$4:$C$3351=VLOOKUP(E50,'Store Inputs'!$C:$D,2,FALSE))*(EFs!$D$4:$D$3351>=E48)*(EFs!$D$4:$D$3351<=E49)*(EFs!$E$4:$E$3351=E51)*EFs!$O$4:$O$3351*EFs!$P$4:$P$3351) / SUMPRODUCT((EFs!$A$4:$A$3351=E47)*(EFs!$B$4:$B$3351=VLOOKUP(E46,'Store Inputs'!$F:$G,2,FALSE))*(EFs!$C$4:$C$3351=VLOOKUP(E50,'Store Inputs'!$C:$D,2,FALSE))*(EFs!$D$4:$D$3351>=E48)*(EFs!$D$4:$D$3351<=E49)*(EFs!$E$4:$E$3351=E51)*EFs!$P$4:$P$3351)))), 0) -> 0 | S46: 0
D47: Calendar Year: | E47: =Deployment_Year -> 2030 | G47: Modified | H47: =IFERROR( IF(OR(E43=0,AND(E46<>"Single Unit Short Haul",E51="G"),AND(OR(E43="B20 (Biodiesel)",E43="R100 (Renewable Diesel)"),E51="G"),AND(OR(E46="Single Unit Short Haul",E46="Single Unit Long Haul"),E50="Distribution Center"),AND(E46<>"Combination Unit Short Haul",E50="Port")),0/0, IF(SUMPRODUCT((RRFs!$B$4:$B$35=E43)*OR(RRFs!$C$4:$C$35=E51,RRFs!$C$4:$C$35="A")*INDIRECT(VLOOKUP(E46&" "&H45,RRFs!$AO:$AP,2,FALSE)))=-999999,0/0, IF(OR(E43="B20 (Biodiesel)",E43="R100 (Renewable Diesel)"),H46*(1-(SUMPRODUCT((RRFs!$B$4:$B$35=E43)*OR(RRFs!$C$4:$C$35=E51,RRFs!$C$4:$C$35="A")*(INDIRECT(VLOOKUP(E46&" "&H45,RRFs!$AO:$AP,2,FALSE))<>-999999)*INDIRECT(VLOOKUP(E46&" "&H45,RRFs!$AO:$AP,2,FALSE))))), SUMPRODUCT((EFs!$A$4:$A$3351=E47)*(EFs!$B$4:$B$3351=VLOOKUP(E46,'Store Inputs'!$F:$G,2,FALSE))*(EFs!$C$4:$C$3351=VLOOKUP(E50,'Store Inputs'!$C:$D,2,FALSE))*(EFs!$D$4:$D$3351=E47)*(EFs!$E$4:$E$3351=E51)*EFs!$F$4:$F$3351*EFs!$P$4:$P$3351) / SUMPRODUCT((EFs!$A$4:$A$3351=E47)*(EFs!$B$4:$B$3351=VLOOKUP(E46,'Store Inputs'!$F:$G,2,FALSE))*(EFs!$C$4:$C$3351=VLOOKUP(E50,'Store Inputs'!$C:$D,2,FALSE))*(EFs!$D$4:$D$3351=E47)*(EFs!$E$4:$E$3351=E51)*EFs!$P$4:$P$3351) * (1-(SUMPRODUCT((RRFs!$B$4:$B$35=E43)*OR(RRFs!$C$4:$C$35=E51,RRFs!$C$4:$C$35="A")*(INDIRECT(VLOOKUP(E46&" "&H45,RRFs!$AO:$AP,2,FALSE))<>-999999)*INDIRECT(VLOOKUP(E46&" "&H45,RRFs!$AO:$AP,2,FALSE)))))))), 0) -> 1.020036015 | I47: =IFERROR( IF(OR(E43=0,AND(E46<>"Single Unit Short Haul",E51="G"),AND(OR(E43="B20 (Biodiesel)",E43="R100 (Renewable Diesel)"),E51="G"),AND(OR(E46="Single Unit Short Haul",E46="Single Unit Long Haul"),E50="Distribution Center"),AND(E46<>"Combination Unit Short Haul",E50="Port")),0/0, IF(SUMPRODUCT((RRFs!$B$4:$B$35=E43)*OR(RRFs!$C$4:$C$35=E51,RRFs!$C$4:$C$35="A")*INDIRECT(VLOOKUP(E46&" "&I45,RRFs!$AO:$AP,2,FALSE)))=-999999,0/0, IF(OR(E43="B20 (Biodiesel)",E43="R100 (Renewable Diesel)"),I46*(1-(SUMPRODUCT((RRFs!$B$4:$B$35=E43)*OR(RRFs!$C$4:$C$35=E51,RRFs!$C$4:$C$35="A")*(INDIRECT(VLOOKUP(E46&" "&I45,RRFs!$AO:$AP,2,FALSE))<>-999999)*INDIRECT(VLOOKUP(E46&" "&I45,RRFs!$AO:$AP,2,FALSE))))), SUMPRODUCT((EFs!$A$4:$A$3351=E47)*(EFs!$B$4:$B$3351=VLOOKUP(E46,'Store Inputs'!$F:$G,2,FALSE))*(EFs!$C$4:$C$3351=VLOOKUP(E50,'Store Inputs'!$C:$D,2,FALSE))*(EFs!$D$4:$D$3351=E47)*(EFs!$E$4:$E$3351=E51)*EFs!$G$4:$G$3351*EFs!$P$4:$P$3351) / SUMPRODUCT((EFs!$A$4:$A$3351=E47)*(EFs!$B$4:$B$3351=VLOOKUP(E46,'Store Inputs'!$F:$G,2,FALSE))*(EFs!$C$4:$C$3351=VLOOKUP(E50,'Store Inputs'!$C:$D,2,FALSE))*(EFs!$D$4:$D$3351=E47)*(EFs!$E$4:$E$3351=E51)*EFs!$P$4:$P$3351) * (1-(SUMPRODUCT((RRFs!$B$4:$B$35=E43)*OR(RRFs!$C$4:$C$35=E51,RRFs!$C$4:$C$35="A")*(INDIRECT(VLOOKUP(E46&" "&I45,RRFs!$AO:$AP,2,FALSE))<>-999999)*INDIRECT(VLOOKUP(E46&" "&I45,RRFs!$AO:$AP,2,FALSE)))))))), 0) -> 0.01397839015 | J47: =IFERROR( IF(OR(E43=0,AND(E46<>"Single Unit Short Haul",E51="G"),AND(OR(E43="B20 (Biodiesel)",E43="R100 (Renewable Diesel)"),E51="G"),AND(OR(E46="Single Unit Short Haul",E46="Single Unit Long Haul"),E50="Distribution Center"),AND(E46<>"Combination Unit Short Haul",E50="Port")),0/0, IF(SUMPRODUCT((RRFs!$B$4:$B$35=E43)*OR(RRFs!$C$4:$C$35=E51,RRFs!$C$4:$C$35="A")*INDIRECT(VLOOKUP(E46&" "&J45,RRFs!$AO:$AP,2,FALSE)))=-999999,0/0, IF(OR(E43="B20 (Biodiesel)",E43="R100 (Renewable Diesel)"),J46*(1-(SUMPRODUCT((RRFs!$B$4:$B$35=E43)*OR(RRFs!$C$4:$C$35=E51,RRFs!$C$4:$C$35="A")*(INDIRECT(VLOOKUP(E46&" "&J45,RRFs!$AO:$AP,2,FALSE))<>-999999)*INDIRECT(VLOOKUP(E46&" "&J45,RRFs!$AO:$AP,2,FALSE))))), SUMPRODUCT((EFs!$A$4:$A$3351=E47)*(EFs!$B$4:$B$3351=VLOOKUP(E46,'Store Inputs'!$F:$G,2,FALSE))*(EFs!$C$4:$C$3351=VLOOKUP(E50,'Store Inputs'!$C:$D,2,FALSE))*(EFs!$D$4:$D$3351=E47)*(EFs!$E$4:$E$3351=E51)*EFs!$H$4:$H$3351*EFs!$P$4:$P$3351) / SUMPRODUCT((EFs!$A$4:$A$3351=E47)*(EFs!$B$4:$B$3351=VLOOKUP(E46,'Store Inputs'!$F:$G,2,FALSE))*(EFs!$C$4:$C$3351=VLOOKUP(E50,'Store Inputs'!$C:$D,2,FALSE))*(EFs!$D$4:$D$3351=E47)*(EFs!$E$4:$E$3351=E51)*EFs!$P$4:$P$3351) * (1-(SUMPRODUCT((RRFs!$B$4:$B$35=E43)*OR(RRFs!$C$4:$C$35=E51,RRFs!$C$4:$C$35="A")*(INDIRECT(VLOOKUP(E46&" "&J45,RRFs!$AO:$AP,2,FALSE))<>-999999)*INDIRECT(VLOOKUP(E46&" "&J45,RRFs!$AO:$AP,2,FALSE)))))))), 0) -> 1577.03189 | K47: =IFERROR( IF(OR(E43=0,AND(E46<>"Single Unit Short Haul",E51="G"),AND(OR(E43="B20 (Biodiesel)",E43="R100 (Renewable Diesel)"),E51="G"),AND(OR(E46="Single Unit Short Haul",E46="Single Unit Long Haul"),E50="Distribution Center"),AND(E46<>"Combination Unit Short Haul",E50="Port")),0/0, IF(SUMPRODUCT((RRFs!$B$4:$B$35=E43)*OR(RRFs!$C$4:$C$35=E51,RRFs!$C$4:$C$35="A")*INDIRECT(VLOOKUP(E46&" "&K43,RRFs!$AO:$AP,2,FALSE)))=-999999,0/0, IF(OR(E43="B20 (Biodiesel)",E43="R100 (Renewable Diesel)"),K46*(1-(SUMPRODUCT((RRFs!$B$4:$B$35=E43)*OR(RRFs!$C$4:$C$35=E51,RRFs!$C$4:$C$35="A")*(INDIRECT(VLOOKUP(E46&" "&K43,RRFs!$AO:$AP,2,FALSE))<>-999999)*INDIRECT(VLOOKUP(E46&" "&K43,RRFs!$AO:$AP,2,FALSE))))), SUMPRODUCT((EFs!$A$4:$A$3351=E47)*(EFs!$B$4:$B$3351=VLOOKUP(E46,'Store Inputs'!$F:$G,2,FALSE))*(EFs!$C$4:$C$3351=VLOOKUP(E50,'Store Inputs'!$C:$D,2,FALSE))*(EFs!$D$4:$D$3351=E47)*(EFs!$E$4:$E$3351=E51)*EFs!$I$4:$I$3351*EFs!$P$4:$P$3351) / SUMPRODUCT((EFs!$A$4:$A$3351=E47)*(EFs!$B$4:$B$3351=VLOOKUP(E46,'Store Inputs'!$F:$G,2,FALSE))*(EFs!$C$4:$C$3351=VLOOKUP(E50,'Store Inputs'!$C:$D,2,FALSE))*(EFs!$D$4:$D$3351=E47)*(EFs!$E$4:$E$3351=E51)*EFs!$P$4:$P$3351) * (1+(SUMPRODUCT((RRFs!$B$4:$B$35=E43)*OR(RRFs!$C$4:$C$35=E51,RRFs!$C$4:$C$35="A")*(INDIRECT(VLOOKUP(E46&" "&K43,RRFs!$AO:$AP,2,FALSE))<>-999999)*INDIRECT(VLOOKUP(E46&" "&K43,RRFs!$AO:$AP,2,FALSE)))))))), 0) -> 6.49251001 | L47: =IF(E43<>"Electric",0,'1. Deployment, Part 4'!UserElectMixValue_1) -> 0 | M47: =IFERROR( IF(OR(E43=0,AND(E46<>"Single Unit Short Haul",E51="G"),AND(OR(E43="B20 (Biodiesel)",E43="R100 (Renewable Diesel)"),E51="G"),AND(OR(E46="Single Unit Short Haul",E46="Single Unit Long Haul"),E50="Distribution Center"),AND(E46<>"Combination Unit Short Haul",E50="Port")),0/0, IF(SUMPRODUCT((RRFs!$B$4:$B$35=E43)*OR(RRFs!$C$4:$C$35=E51,RRFs!$C$4:$C$35="A")*INDIRECT(VLOOKUP(E46&" "&H45,RRFs!$AO:$AP,2,FALSE)))=-999999,0/0, IF(OR(E43="B20 (Biodiesel)",E43="R100 (Renewable Diesel)"),M46, SUMPRODUCT((EFs!$A$4:$A$3351=E47)*(EFs!$B$4:$B$3351=VLOOKUP(E46,'Store Inputs'!$F:$G,2,FALSE))*(EFs!$C$4:$C$3351=VLOOKUP(E50,'Store Inputs'!$C:$D,2,FALSE))*(EFs!$D$4:$D$3351=E47)*(EFs!$E$4:$E$3351=E51)*EFs!$J$4:$J$3351*EFs!$P$4:$P$3351) / SUMPRODUCT((EFs!$A$4:$A$3351=E47)*(EFs!$B$4:$B$3351=VLOOKUP(E46,'Store Inputs'!$F:$G,2,FALSE))*(EFs!$C$4:$C$3351=VLOOKUP(E50,'Store Inputs'!$C:$D,2,FALSE))*(EFs!$D$4:$D$3351=E47)*(EFs!$E$4:$E$3351=E51)*EFs!$P$4:$P$3351) * IF(OR(E43="Hybrid",E43="Electric"),0.5,1)))), 0) -> 0.01361956942 | N47: =IFERROR( IF(OR(E43=0,AND(E46<>"Single Unit Short Haul",E51="G"),AND(OR(E43="B20 (Biodiesel)",E43="R100 (Renewable Diesel)"),E51="G"),AND(OR(E46="Single Unit Short Haul",E46="Single Unit Long Haul"),E50="Distribution Center"),AND(E46<>"Combination Unit Short Haul",E50="Port")),0/0, IF(SUMPRODUCT((RRFs!$B$4:$B$35=E43)*OR(RRFs!$C$4:$C$35=E51,RRFs!$C$4:$C$35="A")*INDIRECT(VLOOKUP(E46&" "&H45,RRFs!$AO:$AP,2,FALSE)))=-999999,0/0, IF(OR(E43="B20 (Biodiesel)",E43="R100 (Renewable Diesel)"),N46, SUMPRODUCT((EFs!$A$4:$A$3351=E47)*(EFs!$B$4:$B$3351=VLOOKUP(E46,'Store Inputs'!$F:$G,2,FALSE))*(EFs!$C$4:$C$3351=VLOOKUP(E50,'Store Inputs'!$C:$D,2,FALSE))*(EFs!$D$4:$D$3351=E47)*(EFs!$E$4:$E$3351=E51)*EFs!$K$4:$K$3351*EFs!$P$4:$P$3351) / SUMPRODUCT((EFs!$A$4:$A$3351=E47)*(EFs!$B$4:$B$3351=VLOOKUP(E46,'Store Inputs'!$F:$G,2,FALSE))*(EFs!$C$4:$C$3351=VLOOKUP(E50,'Store Inputs'!$C:$D,2,FALSE))*(EFs!$D$4:$D$3351=E47)*(EFs!$E$4:$E$3351=E51)*EFs!$P$4:$P$3351)))), 0) -> 0.0039502729 | O47: =IFERROR( IF(E56="-",0/0, IF(OR(E43=0,AND(E46<>"Single Unit Short Haul",E51="G"),AND(OR(E43="B20 (Biodiesel)",E43="R100 (Renewable Diesel)"),E51="G"),AND(OR(E46="Single Unit Short Haul",E46="Single Unit Long Haul"),E50="Distribution Center"),AND(E46<>"Combination Unit Short Haul",E50="Port")),0/0, IF(SUMPRODUCT((RRFs!$B$4:$B$35=E43)*OR(RRFs!$C$4:$C$35=E51,RRFs!$C$4:$C$35="A")*INDIRECT(VLOOKUP(E46&" "&O45,RRFs!$AO:$AP,2,FALSE)))=-999999,0/0, IF(OR(E43="B20 (Biodiesel)",E43="R100 (Renewable Diesel)"),O46*(1-(SUMPRODUCT((RRFs!$B$4:$B$35=E43)*OR(RRFs!$C$4:$C$35=E51,RRFs!$C$4:$C$35="A")*(INDIRECT(VLOOKUP(E46&" "&O45,RRFs!$AO:$AP,2,FALSE))<>-999999)*INDIRECT(VLOOKUP(E46&" "&O45,RRFs!$AO:$AP,2,FALSE))))), SUMPRODUCT((EFs!$A$4:$A$3351=E47)*(EFs!$B$4:$B$3351=VLOOKUP(E46,'Store Inputs'!$F:$G,2,FALSE))*(EFs!$C$4:$C$3351=VLOOKUP(E50,'Store Inputs'!$C:$D,2,FALSE))*(EFs!$D$4:$D$3351=E47)*(EFs!$E$4:$E$3351=E51)*EFs!$L$4:$L$3351*EFs!$P$4:$P$3351) / SUMPRODUCT((EFs!$A$4:$A$3351=E47)*(EFs!$B$4:$B$3351=VLOOKUP(E46,'Store Inputs'!$F:$G,2,FALSE))*(EFs!$C$4:$C$3351=VLOOKUP(E50,'Store Inputs'!$C:$D,2,FALSE))*(EFs!$D$4:$D$3351=E47)*(EFs!$E$4:$E$3351=E51)*EFs!$P$4:$P$3351) * (1-(SUMPRODUCT((RRFs!$B$4:$B$35=E43)*OR(RRFs!$C$4:$C$35=E51,RRFs!$C$4:$C$35="A")*(INDIRECT(VLOOKUP(E46&" "&O45,RRFs!$AO:$AP,2,FALSE))<>-999999)*INDIRECT(VLOOKUP(E46&" "&O45,RRFs!$AO:$AP,2,FALSE))))))))), 0) -> 0 | P47: =IFERROR( IF(E56="-",0/0, IF(OR(E43=0,AND(E46<>"Single Unit Short Haul",E51="G"),AND(OR(E43="B20 (Biodiesel)",E43="R100 (Renewable Diesel)"),E51="G"),AND(OR(E46="Single Unit Short Haul",E46="Single Unit Long Haul"),E50="Distribution Center"),AND(E46<>"Combination Unit Short Haul",E50="Port")),0/0, IF(SUMPRODUCT((RRFs!$B$4:$B$35=E43)*OR(RRFs!$C$4:$C$35=E51,RRFs!$C$4:$C$35="A")*INDIRECT(VLOOKUP(E46&" "&P45,RRFs!$AO:$AP,2,FALSE)))=-999999,0/0, IF(OR(E43="B20 (Biodiesel)",E43="R100 (Renewable Diesel)"),P46*(1-(SUMPRODUCT((RRFs!$B$4:$B$35=E43)*OR(RRFs!$C$4:$C$35=E51,RRFs!$C$4:$C$35="A")*(INDIRECT(VLOOKUP(E46&" "&P45,RRFs!$AO:$AP,2,FALSE))<>-999999)*INDIRECT(VLOOKUP(E46&" "&P45,RRFs!$AO:$AP,2,FALSE))))), SUMPRODUCT((EFs!$A$4:$A$3351=E47)*(EFs!$B$4:$B$3351=VLOOKUP(E46,'Store Inputs'!$F:$G,2,FALSE))*(EFs!$C$4:$C$3351=VLOOKUP(E50,'Store Inputs'!$C:$D,2,FALSE))*(EFs!$D$4:$D$3351=E47)*(EFs!$E$4:$E$3351=E51)*EFs!$M$4:$M$3351*EFs!$P$4:$P$3351) / SUMPRODUCT((EFs!$A$4:$A$3351=E47)*(EFs!$B$4:$B$3351=VLOOKUP(E46,'Store Inputs'!$F:$G,2,FALSE))*(EFs!$C$4:$C$3351=VLOOKUP(E50,'Store Inputs'!$C:$D,2,FALSE))*(EFs!$D$4:$D$3351=E47)*(EFs!$E$4:$E$3351=E51)*EFs!$P$4:$P$3351) * (1-(SUMPRODUCT((RRFs!$B$4:$B$35=E43)*OR(RRFs!$C$4:$C$35=E51,RRFs!$C$4:$C$35="A")*(INDIRECT(VLOOKUP(E46&" "&P45,RRFs!$AO:$AP,2,FALSE))<>-999999)*INDIRECT(VLOOKUP(E46&" "&P45,RRFs!$AO:$AP,2,FALSE))))))))), 0) -> 0 | Q47: =IFERROR( IF(E56="-",0/0, IF(OR(E43=0,AND(E46<>"Single Unit Short Haul",E51="G"),AND(OR(E43="B20 (Biodiesel)",E43="R100 (Renewable Diesel)"),E51="G"),AND(OR(E46="Single Unit Short Haul",E46="Single Unit Long Haul"),E50="Distribution Center"),AND(E46<>"Combination Unit Short Haul",E50="Port")),0/0, IF(SUMPRODUCT((RRFs!$B$4:$B$35=E43)*OR(RRFs!$C$4:$C$35=E51,RRFs!$C$4:$C$35="A")*INDIRECT(VLOOKUP(E46&" "&Q45,RRFs!$AO:$AP,2,FALSE)))=-999999,0/0, IF(OR(E43="B20 (Biodiesel)",E43="R100 (Renewable Diesel)"),Q46*(1-(SUMPRODUCT((RRFs!$B$4:$B$35=E43)*OR(RRFs!$C$4:$C$35=E51,RRFs!$C$4:$C$35="A")*(INDIRECT(VLOOKUP(E46&" "&Q45,RRFs!$AO:$AP,2,FALSE))<>-999999)*INDIRECT(VLOOKUP(E46&" "&Q45,RRFs!$AO:$AP,2,FALSE))))), SUMPRODUCT((EFs!$A$4:$A$3351=E47)*(EFs!$B$4:$B$3351=VLOOKUP(E46,'Store Inputs'!$F:$G,2,FALSE))*(EFs!$C$4:$C$3351=VLOOKUP(E50,'Store Inputs'!$C:$D,2,FALSE))*(EFs!$D$4:$D$3351=E47)*(EFs!$E$4:$E$3351=E51)*EFs!$N$4:$N$3351*EFs!$P$4:$P$3351) / SUMPRODUCT((EFs!$A$4:$A$3351=E47)*(EFs!$B$4:$B$3351=VLOOKUP(E46,'Store Inputs'!$F:$G,2,FALSE))*(EFs!$C$4:$C$3351=VLOOKUP(E50,'Store Inputs'!$C:$D,2,FALSE))*(EFs!$D$4:$D$3351=E47)*(EFs!$E$4:$E$3351=E51)*EFs!$P$4:$P$3351) * (1-(SUMPRODUCT((RRFs!$B$4:$B$35=E43)*OR(RRFs!$C$4:$C$35=E51,RRFs!$C$4:$C$35="A")*(INDIRECT(VLOOKUP(E46&" "&Q45,RRFs!$AO:$AP,2,FALSE))<>-999999)*INDIRECT(VLOOKUP(E46&" "&Q45,RRFs!$AO:$AP,2,FALSE))))))))), 0) -> 0 | R47: =IFERROR( IF(E56="-",0/0, IF(OR(E43=0,AND(E46<>"Single Unit Short Haul",E51="G"),AND(OR(E43="B20 (Biodiesel)",E43="R100 (Renewable Diesel)"),E51="G"),AND(OR(E46="Single Unit Short Haul",E46="Single Unit Long Haul"),E50="Distribution Center"),AND(E46<>"Combination Unit Short Haul",E50="Port")),0/0, IF(SUMPRODUCT((RRFs!$B$4:$B$35=E43)*OR(RRFs!$C$4:$C$35=E51,RRFs!$C$4:$C$35="A")*INDIRECT(VLOOKUP(E46&" "&R44,RRFs!$AO:$AP,2,FALSE)))=-999999,0/0, IF(OR(E43="B20 (Biodiesel)",E43="R100 (Renewable Diesel)"),R46*(1-(SUMPRODUCT((RRFs!$B$4:$B$35=E43)*OR(RRFs!$C$4:$C$35=E51,RRFs!$C$4:$C$35="A")*(INDIRECT(VLOOKUP(E46&" "&R44,RRFs!$AO:$AP,2,FALSE))<>-999999)*INDIRECT(VLOOKUP(E46&" "&R44,RRFs!$AO:$AP,2,FALSE))))), SUMPRODUCT((EFs!$A$4:$A$3351=E47)*(EFs!$B$4:$B$3351=VLOOKUP(E46,'Store Inputs'!$F:$G,2,FALSE))*(EFs!$C$4:$C$3351=VLOOKUP(E50,'Store Inputs'!$C:$D,2,FALSE))*(EFs!$D$4:$D$3351=E47)*(EFs!$E$4:$E$3351=E51)*EFs!$O$4:$O$3351*EFs!$P$4:$P$3351) / SUMPRODUCT((EFs!$A$4:$A$3351=E47)*(EFs!$B$4:$B$3351=VLOOKUP(E46,'Store Inputs'!$F:$G,2,FALSE))*(EFs!$C$4:$C$3351=VLOOKUP(E50,'Store Inputs'!$C:$D,2,FALSE))*(EFs!$D$4:$D$3351=E47)*(EFs!$E$4:$E$3351=E51)*EFs!$P$4:$P$3351) * (1-(SUMPRODUCT((RRFs!$B$4:$B$35=E43)*OR(RRFs!$C$4:$C$35=E51,RRFs!$C$4:$C$35="A")*(INDIRECT(VLOOKUP(E46&" "&R44,RRFs!$AO:$AP,2,FALSE))<>-999999)*INDIRECT(VLOOKUP(E46&" "&R44,RRFs!$AO:$AP,2,FALSE))))))))), 0) -> 0 | S47: =IFERROR( SUMIFS('1. Deployment, Part 5'!E:E,'1. Deployment, Part 5'!B:B,E46,'1. Deployment, Part 5'!C:C,IF(E51="D","Diesel",IF(E51="G","Gasoline",E51)),'1. Deployment, Part 5'!D:D,E43,'1. Deployment, Part 5'!E:E,"<>'N/A",'1. Deployment, Part 5'!E:E,"<>'-'") + IF(SUMPRODUCT((RRFs!$B$4:$B$35=E43)*OR(RRFs!$C$4:$C$35=IF(E51="D","Diesel",IF(E51="G","Gasoline",E51)),RRFs!$C$4:$C$35="A")*INDIRECT(VLOOKUP(E46&" Inc O&M",RRFs!$AO:$AP,2,FALSE)))=-999999,0/0,SUMPRODUCT((RRFs!$B$4:$B$35=E43)*OR(RRFs!$C$4:$C$35=IF(E51="D","Diesel",IF(E51="G","Gasoline",E51)),RRFs!$C$4:$C$35="A")*INDIRECT(VLOOKUP(E46&" Inc O&M",RRFs!$AO:$AP,2,FALSE)))), 0) -> 1500
D48: Model Year Modification Window: | E48: =IF(OR(E43="B20 (Biodiesel)",E43="R100 (Renewable Diesel)"),Deployment_Year-30,INDEX(Deployment_Beginning_Year_of_Modification,3,1)) -> 2000
E49: =IF(OR(E43="B20 (Biodiesel)",E43="R100 (Renewable Diesel)"),Deployment_Year,INDEX(Deployment_End_Year_of_Modification,3,1)) -> 2017 | G49: FLEET: | H49: Short Tons Emiss./Year | K49: Fuel (gal/yr GGE or DGE) | L49: Annual Costs
D50: Area of Interest: | E50: =Deployment_GeographicScale -> State | G50: Case | H50: NOx | I50: PM2.5 | J50: CO2 | L50: Capital | M50: Fuel | N50: Total
D51: Baseline Fuel (D=Diesel, G=Gasoline), Cost and Units: | E51: =INDEX(Deployment_Fuels,3,1) -> D | G51: Baseline | H51: =IFERROR( E54*( (H46*E55) + (IF(E56="-",0,O46*E56)) ) * GramToTon, 0) -> 13.4037027 | I51: =IFERROR( E54*( ((I46+M46+N46)*E55) + (IF(E56="-",0,P46*E56)) ) * GramToTon, 0) -> 0.5098281404 | J51: =IFERROR( E54*( (J46*E55) + (IF(E56="-",0,Q46*E56)) ) * GramToTon, 0) -> 7307.799316 | K51: =IFERROR( SUM((1/K46)*E55,(IF(E56="-",0,R46*E56))) * E54, 0) -> 646066.5385 | L51: 0 | M51: =IFERROR( K51*E52, 0) -> 1376121.727 | N51: =SUM(L51:M51) -> 1376121.727
E52: =IF(E51="G",VLOOKUP("Gasoline",Deployment_Fuel_Type_Cost_and_Unit,2,0), IF(E51="D",VLOOKUP("Diesel",Deployment_Fuel_Type_Cost_and_Unit,2,0),NA())) -> 2.13 | G52: Modified | H52: =IFERROR( E54*( (H47*E55) + (IF(E56="-",0,O47*E56)) ) * GramToTon, 0) -> 4.447776876 | I52: =IFERROR( E54*( ((I47+M47+N47)*E55) + (IF(E56="-",0,P47*E56)) ) * GramToTon, 0) -> 0.1375632789 | J52: =IFERROR( E54*( (J47*E55) + (IF(E56="-",0,Q47*E56)) + IF(L47=0,0,L47*IF(E51="G",kwh_per_GGE,IF(E51="D",kwh_per_DGE,0/0))*(E55/K47)) ) * GramToTon, 0) -> 6876.508152 | K52: =IFERROR( SUM((1/K47)*E55,(IF(E56="-",0,R47*E56))) * E54, 0) -> 609271.2978 | L52: =IFERROR( (S47*E54) / E57, 0) -> 30000 | M52: =IFERROR( K52*E44, 0) -> 0 | N52: =SUM(L52:M52) -> 30000
E53: =IF(E51="G",VLOOKUP("Gasoline",Deployment_Fuel_Type_Cost_and_Unit,3,0), IF(E51="D",VLOOKUP("Diesel",Deployment_Fuel_Type_Cost_and_Unit,3,0),NA())) -> gal | G53: Difference | H53: =IFERROR( IF((SUMPRODUCT((RRFs!$B$4:$B$35=E43)*OR(RRFs!$C$4:$C$35=E51,RRFs!$C$4:$C$35="A")*INDIRECT(VLOOKUP(E46&" "&H45,RRFs!$AO:$AP,2,FALSE))))=-999999,0/0, IFERROR(H52-H51,0)), 0) -> -8.955925822 | I53: =IFERROR( IF((SUMPRODUCT((RRFs!$B$4:$B$35=E43)*OR(RRFs!$C$4:$C$35=E51,RRFs!$C$4:$C$35="A")*INDIRECT(VLOOKUP(E46&" "&H45,RRFs!$AO:$AP,2,FALSE))))=-999999,0/0, IFERROR(I52-I51,0)), 0) -> -0.3722648615 | J53: =IFERROR( IF((SUMPRODUCT((RRFs!$B$4:$B$35=E43)*OR(RRFs!$C$4:$C$35=E51,RRFs!$C$4:$C$35="A")*INDIRECT(VLOOKUP(E46&" "&H45,RRFs!$AO:$AP,2,FALSE))))=-999999,0/0, IFERROR(J52-J51,0)), 0) -> -431.2911644 | K53: =IFERROR(IF((SUMPRODUCT((RRFs!$B$4:$B$35=E43)*OR(RRFs!$C$4:$C$35=E51,RRFs!$C$4:$C$35="A")*INDIRECT(VLOOKUP(E46&" "&H45,RRFs!$AO:$AP,2,FALSE))))=-999999,0,IFERROR(K52-K51,0)),0) -> -36795.2407 | L53: =IFERROR(IF((SUMPRODUCT((RRFs!$B$4:$B$35=E43)*OR(RRFs!$C$4:$C$35=E51,RRFs!$C$4:$C$35="A")*INDIRECT(VLOOKUP(E46&" "&H45,RRFs!$AO:$AP,2,FALSE))))=-999999,0,IFERROR(L52-L51,0)),0) -> 30000 | M53: =IFERROR(IF((SUMPRODUCT((RRFs!$B$4:$B$35=E43)*OR(RRFs!$C$4:$C$35=E51,RRFs!$C$4:$C$35="A")*INDIRECT(VLOOKUP(E46&" "&H45,RRFs!$AO:$AP,2,FALSE))))=-999999,0,IFERROR(M52-M51,0)),0) -> -1376121.727 | N53: =SUM(L53:M53) -> -1346121.727
D54: Number to Modify/Replace: | E54: =VLOOKUP(E46&E51,Deployment_NumberToReplaceByTruckAndFuelType,6,0) -> 100 | G54: Cost Effect ($/short ton) | H54: =IF(H53>0,"Emiss. Increase",IFERROR( (-1*N53)/H53, 0)) -> -150305.1447 | I54: =IF(I53>0,"Emiss. Increase",IFERROR( (-1*N53)/I53, 0)) -> -3616032.202 | J54: =IF(J53>0,"Emiss. Increase",IFERROR( (-1*N53)/J53, 0)) -> -3121.143761
D55: Average Annual Mileage: | E55: =VLOOKUP(E46&E51,Deployment_AverageAnnualMilesByTruckAndFuelType,7,0) -> 39557
D56: Average Annual Idle Hours: | E56: =IF(VLOOKUP(E46&E51,Deployment_Average_Annual_Idle_Hours_by_Truck_and_Fuel_Type,12,0)=0,"-",VLOOKUP(E46&E51,Deployment_Average_Annual_Idle_Hours_by_Truck_and_Fuel_Type,12,0)) -> -
D57: Useful Life of Strategy (years): | E57: =SUMPRODUCT((RRFs!$B$4:$B$35=E43)*OR(RRFs!$C$4:$C$35=E51,RRFs!$C$4:$C$35="A")*INDIRECT(VLOOKUP(E46&" Project Lifetime",RRFs!$AO:$AP,2,FALSE))) -> 5
D58: ="For Further Information refer to page "&VLOOKUP(RIGHT($A$1,LEN($A$1)-14)&VLOOKUP(E43,FuelCrosswalk,2,FALSE)&"1",ModType_Mod_Hyperlinks_and_GuidePgs,4,0)&" of the NCHRP 25-46 Guidance and the following weblinks" -> 
C59: =IFERROR(HYPERLINK(U59,V59),"") ->  | U59: =IFERROR(VLOOKUP(RIGHT($A$1,LEN($A$1)-14)&VLOOKUP(E43,FuelCrosswalk,2,FALSE)&"1",ModType_Mod_Hyperlinks_and_GuidePgs,3,0),"") ->  | V59: =IFERROR( VLOOKUP(RIGHT($A$1,LEN($A$1)-14)&VLOOKUP(E43,FuelCrosswalk,2,FALSE)&"1",ModType_Mod_Hyperlinks_and_GuidePgs,2,0),"") -> 
C60: =IFERROR(HYPERLINK(U60,V60),"") ->  | U60: =IFERROR(VLOOKUP(RIGHT($A$1,LEN($A$1)-14)&VLOOKUP(E43,FuelCrosswalk,2,FALSE)&"2",ModType_Mod_Hyperlinks_and_GuidePgs,3,0),"") ->  | V60: =IFERROR( VLOOKUP(RIGHT($A$1,LEN($A$1)-14)&VLOOKUP(E43,FuelCrosswalk,2,FALSE)&"2",ModType_Mod_Hyperlinks_and_GuidePgs,2,0),"") -> 
C61: =IFERROR(HYPERLINK(U61,V61),"") ->  | U61: =IFERROR(VLOOKUP(RIGHT($A$1,LEN($A$1)-14)&VLOOKUP(E43,FuelCrosswalk,2,FALSE)&"3",ModType_Mod_Hyperlinks_and_GuidePgs,3,0),"") ->  | V61: =IFERROR( VLOOKUP(RIGHT($A$1,LEN($A$1)-14)&VLOOKUP(E43,FuelCrosswalk,2,FALSE)&"3",ModType_Mod_Hyperlinks_and_GuidePgs,2,0),"") -> 
C62: =IFERROR(HYPERLINK(U62,V62),"") ->  | U62: =IFERROR(VLOOKUP(RIGHT($A$1,LEN($A$1)-14)&VLOOKUP(E43,FuelCrosswalk,2,FALSE)&"4",ModType_Mod_Hyperlinks_and_GuidePgs,3,0),"") ->  | V62: =IFERROR( VLOOKUP(RIGHT($A$1,LEN($A$1)-14)&E43&"4",ModType_Mod_Hyperlinks_and_GuidePgs,2,0),"") -> 
D63: Modification: | E63: =INDEX(Deployment_Specific_Modifications,1,1) -> DOC | H63: Running EFs (g/mi) | K63: Fuel | L63: Power Plant EFs for Electric Vehicles | M63: PM2.5 (g/mi) | O63: Extended Idle | S63: Cost
D64: Cost and Units of Alternative Fuel: | E64: =IF(E63="Hybrid", IF(E71="D",VLOOKUP("Diesel",Deployment_Fuel_Type_Cost_and_Unit,2,0), IF(E71="G",VLOOKUP("Gasoline",Deployment_Fuel_Type_Cost_and_Unit,2,0),NA())), IF(VLOOKUP(E66&E71,Deployment_Fuel_by_Truck_and_Fuel_Types,4,0)="D", VLOOKUP(VLOOKUP(E63,FuelCrosswalk,2,FALSE),Deployment_Fuel_Type_Cost_and_Unit,2,0)* (SUMIFS(Defaults!$W:$W,Defaults!$U:$U,VLOOKUP(E63,FuelCrosswalk,2,FALSE),Defaults!$V:$V,"DGE")/ SUMIFS(Defaults!$W:$W,Defaults!$U:$U,VLOOKUP(E63,FuelCrosswalk,2,FALSE),Defaults!$V:$V,VLOOKUP(VLOOKUP(E63,FuelCrosswalk,2,FALSE),Deployment_Fuel_Type_Cost_and_Unit,3,0))), IF(VLOOKUP(E66&E71,Deployment_Fuel_by_Truck_and_Fuel_Types,4,0)="G", VLOOKUP(VLOOKUP(E63,FuelCrosswalk,2,FALSE),Deployment_Fuel_Type_Cost_and_Unit,2,0)* (SUMIFS(Defaults!$W:$W,Defaults!$U:$U,VLOOKUP(E63,FuelCrosswalk,2,FALSE),Defaults!$V:$V,"GGE")/ SUMIFS(Defaults!$W:$W,Defaults!$U:$U,VLOOKUP(E63,FuelCrosswalk,2,FALSE),Defaults!$V:$V,VLOOKUP(VLOOKUP(E63,FuelCrosswalk,2,FALSE),Deployment_Fuel_Type_Cost_and_Unit,3,0))),NA() ))) ->  | G64: PER TRUCK: | O64: Emissions (g/hr) | R64: Fuel
E65: =IF(E71="G","GGE","DGE") -> DGE | G65: Case | H65: NOx | I65: PM2.5 | J65: CO2 | K65: mi/gal | L65: g CO2/kWh | M65: Brake | N65: Tire | O65: NOx | P65: PM2.5 | Q65: CO2 | R65: (gal/hr)
D66: Type of Truck: | E66: =INDEX(Deployment_TruckTypes,4,1) -> Combination Unit Long Haul | G66: Baseline | H66: =IFERROR( IF(OR(E63=0,AND(E66<>"Single Unit Short Haul",E71="G"),AND(OR(E63="B20 (Biodiesel)",E63="R100 (Renewable Diesel)"),E71="G"),AND(OR(E66="Single Unit Short Haul",E66="Single Unit Long Haul"),E70="Distribution Center"),AND(E66<>"Combination Unit Short Haul",E70="Port")),0/0, IF(SUMPRODUCT((RRFs!$B$4:$B$35=E63)*OR(RRFs!$C$4:$C$35=E71,RRFs!$C$4:$C$35="A")*INDIRECT(VLOOKUP(E66&" "&H65,RRFs!$AO:$AP,2,FALSE)))=-999999,0/0, SUMPRODUCT((EFs!$A$4:$A$3351=E67)*(EFs!$B$4:$B$3351=VLOOKUP(E66,'Store Inputs'!$F:$G,2,FALSE))*(EFs!$C$4:$C$3351=VLOOKUP(E70,'Store Inputs'!$C:$D,2,FALSE))*(EFs!$D$4:$D$3351>=E68)*(EFs!$D$4:$D$3351<=E69)*(EFs!$E$4:$E$3351=E71)*EFs!$F$4:$F$3351*EFs!$P$4:$P$3351) / SUMPRODUCT((EFs!$A$4:$A$3351=E67)*(EFs!$B$4:$B$3351=VLOOKUP(E66,'Store Inputs'!$F:$G,2,FALSE))*(EFs!$C$4:$C$3351=VLOOKUP(E70,'Store Inputs'!$C:$D,2,FALSE))*(EFs!$D$4:$D$3351>=E68)*(EFs!$D$4:$D$3351<=E69)*(EFs!$E$4:$E$3351=E71)*EFs!$P$4:$P$3351))), 0) -> 4.192564571 | I66: =IFERROR( IF(OR(E63=0,AND(E66<>"Single Unit Short Haul",E71="G"),AND(OR(E63="B20 (Biodiesel)",E63="R100 (Renewable Diesel)"),E71="G"),AND(OR(E66="Single Unit Short Haul",E66="Single Unit Long Haul"),E70="Distribution Center"),AND(E66<>"Combination Unit Short Haul",E70="Port")),0/0, IF(SUMPRODUCT((RRFs!$B$4:$B$35=E63)*OR(RRFs!$C$4:$C$35=E71,RRFs!$C$4:$C$35="A")*INDIRECT(VLOOKUP(E66&" "&I65,RRFs!$AO:$AP,2,FALSE)))=-999999,0/0, SUMPRODUCT((EFs!$A$4:$A$3351=E67)*(EFs!$B$4:$B$3351=VLOOKUP(E66,'Store Inputs'!$F:$G,2,FALSE))*(EFs!$C$4:$C$3351=VLOOKUP(E70,'Store Inputs'!$C:$D,2,FALSE))*(EFs!$D$4:$D$3351>=E68)*(EFs!$D$4:$D$3351<=E69)*(EFs!$E$4:$E$3351=E71)*EFs!$G$4:$G$3351*EFs!$P$4:$P$3351) / SUMPRODUCT((EFs!$A$4:$A$3351=E67)*(EFs!$B$4:$B$3351=VLOOKUP(E66,'Store Inputs'!$F:$G,2,FALSE))*(EFs!$C$4:$C$3351=VLOOKUP(E70,'Store Inputs'!$C:$D,2,FALSE))*(EFs!$D$4:$D$3351>=E68)*(EFs!$D$4:$D$3351<=E69)*(EFs!$E$4:$E$3351=E71)*EFs!$P$4:$P$3351))), 0) -> 0.1555507354 | J66: =IFERROR( IF(OR(E63=0,AND(E66<>"Single Unit Short Haul",E71="G"),AND(OR(E63="B20 (Biodiesel)",E63="R100 (Renewable Diesel)"),E71="G"),AND(OR(E66="Single Unit Short Haul",E66="Single Unit Long Haul"),E70="Distribution Center"),AND(E66<>"Combination Unit Short Haul",E70="Port")),0/0, IF(SUMPRODUCT((RRFs!$B$4:$B$35=E63)*OR(RRFs!$C$4:$C$35=E71,RRFs!$C$4:$C$35="A")*INDIRECT(VLOOKUP(E66&" "&J65,RRFs!$AO:$AP,2,FALSE)))=-999999,0/0, SUMPRODUCT((EFs!$A$4:$A$3351=E67)*(EFs!$B$4:$B$3351=VLOOKUP(E66,'Store Inputs'!$F:$G,2,FALSE))*(EFs!$C$4:$C$3351=VLOOKUP(E70,'Store Inputs'!$C:$D,2,FALSE))*(EFs!$D$4:$D$3351>=E68)*(EFs!$D$4:$D$3351<=E69)*(EFs!$E$4:$E$3351=E71)*EFs!$H$4:$H$3351*EFs!$P$4:$P$3351) / SUMPRODUCT((EFs!$A$4:$A$3351=E67)*(EFs!$B$4:$B$3351=VLOOKUP(E66,'Store Inputs'!$F:$G,2,FALSE))*(EFs!$C$4:$C$3351=VLOOKUP(E70,'Store Inputs'!$C:$D,2,FALSE))*(EFs!$D$4:$D$3351>=E68)*(EFs!$D$4:$D$3351<=E69)*(EFs!$E$4:$E$3351=E71)*EFs!$P$4:$P$3351))), 0) -> 1743.545789 | K66: =IFERROR( IF(OR(E63=0,AND(E66<>"Single Unit Short Haul",E71="G"),AND(OR(E63="B20 (Biodiesel)",E63="R100 (Renewable Diesel)"),E71="G"),AND(OR(E66="Single Unit Short Haul",E66="Single Unit Long Haul"),E70="Distribution Center"),AND(E66<>"Combination Unit Short Haul",E70="Port")),0/0, IF(SUMPRODUCT((RRFs!$B$4:$B$35=E63)*OR(RRFs!$C$4:$C$35=E71,RRFs!$C$4:$C$35="A")*INDIRECT(VLOOKUP(E66&" "&K63,RRFs!$AO:$AP,2,FALSE)))=-999999,0/0, SUMPRODUCT((EFs!$A$4:$A$3351=E67)*(EFs!$B$4:$B$3351=VLOOKUP(E66,'Store Inputs'!$F:$G,2,FALSE))*(EFs!$C$4:$C$3351=VLOOKUP(E70,'Store Inputs'!$C:$D,2,FALSE))*(EFs!$D$4:$D$3351>=E68)*(EFs!$D$4:$D$3351<=E69)*(EFs!$E$4:$E$3351=E71)*EFs!$I$4:$I$3351*EFs!$P$4:$P$3351) / SUMPRODUCT((EFs!$A$4:$A$3351=E67)*(EFs!$B$4:$B$3351=VLOOKUP(E66,'Store Inputs'!$F:$G,2,FALSE))*(EFs!$C$4:$C$3351=VLOOKUP(E70,'Store Inputs'!$C:$D,2,FALSE))*(EFs!$D$4:$D$3351>=E68)*(EFs!$D$4:$D$3351<=E69)*(EFs!$E$4:$E$3351=E71)*EFs!$P$4:$P$3351))), 0) -> 5.889757805 | L66: 0 | M66: =IFERROR( IF(OR(E63=0,AND(E66<>"Single Unit Short Haul",E71="G"),AND(OR(E63="B20 (Biodiesel)",E63="R100 (Renewable Diesel)"),E71="G"),AND(OR(E66="Single Unit Short Haul",E66="Single Unit Long Haul"),E70="Distribution Center"),AND(E66<>"Combination Unit Short Haul",E70="Port")),0/0, IF(SUMPRODUCT((RRFs!$B$4:$B$35=E63)*OR(RRFs!$C$4:$C$35=E71,RRFs!$C$4:$C$35="A")*INDIRECT(VLOOKUP(E66&" "&H65,RRFs!$AO:$AP,2,FALSE)))=-999999,0/0, SUMPRODUCT((EFs!$A$4:$A$3351=E67)*(EFs!$B$4:$B$3351=VLOOKUP(E66,'Store Inputs'!$F:$G,2,FALSE))*(EFs!$C$4:$C$3351=VLOOKUP(E70,'Store Inputs'!$C:$D,2,FALSE))*(EFs!$D$4:$D$3351>=E68)*(EFs!$D$4:$D$3351<=E69)*(EFs!$E$4:$E$3351=E71)*EFs!$J$4:$J$3351*EFs!$P$4:$P$3351) / SUMPRODUCT((EFs!$A$4:$A$3351=E67)*(EFs!$B$4:$B$3351=VLOOKUP(E66,'Store Inputs'!$F:$G,2,FALSE))*(EFs!$C$4:$C$3351=VLOOKUP(E70,'Store Inputs'!$C:$D,2,FALSE))*(EFs!$D$4:$D$3351>=E68)*(EFs!$D$4:$D$3351<=E69)*(EFs!$E$4:$E$3351=E71)*EFs!$P$4:$P$3351))), 0) -> 0.01438142299 | N66: =IFERROR( IF(OR(E63=0,AND(E66<>"Single Unit Short Haul",E71="G"),AND(OR(E63="B20 (Biodiesel)",E63="R100 (Renewable Diesel)"),E71="G"),AND(OR(E66="Single Unit Short Haul",E66="Single Unit Long Haul"),E70="Distribution Center"),AND(E66<>"Combination Unit Short Haul",E70="Port")),0/0, IF(SUMPRODUCT((RRFs!$B$4:$B$35=E63)*OR(RRFs!$C$4:$C$35=E71,RRFs!$C$4:$C$35="A")*INDIRECT(VLOOKUP(E66&" "&H65,RRFs!$AO:$AP,2,FALSE)))=-999999,0/0, SUMPRODUCT((EFs!$A$4:$A$3351=E67)*(EFs!$B$4:$B$3351=VLOOKUP(E66,'Store Inputs'!$F:$G,2,FALSE))*(EFs!$C$4:$C$3351=VLOOKUP(E70,'Store Inputs'!$C:$D,2,FALSE))*(EFs!$D$4:$D$3351>=E68)*(EFs!$D$4:$D$3351<=E69)*(EFs!$E$4:$E$3351=E71)*EFs!$K$4:$K$3351*EFs!$P$4:$P$3351) / SUMPRODUCT((EFs!$A$4:$A$3351=E67)*(EFs!$B$4:$B$3351=VLOOKUP(E66,'Store Inputs'!$F:$G,2,FALSE))*(EFs!$C$4:$C$3351=VLOOKUP(E70,'Store Inputs'!$C:$D,2,FALSE))*(EFs!$D$4:$D$3351>=E68)*(EFs!$D$4:$D$3351<=E69)*(EFs!$E$4:$E$3351=E71)*EFs!$P$4:$P$3351))), 0) -> 0.004408748511 | O66: =IFERROR( IF(E76="-",0/0, IF(OR(E63=0,AND(E66<>"Single Unit Short Haul",E71="G"),AND(OR(E63="B20 (Biodiesel)",E63="R100 (Renewable Diesel)"),E71="G"),AND(OR(E66="Single Unit Short Haul",E66="Single Unit Long Haul"),E70="Distribution Center"),AND(E66<>"Combination Unit Short Haul",E70="Port")),0/0, IF(SUMPRODUCT((RRFs!$B$4:$B$35=E63)*OR(RRFs!$C$4:$C$35=E71,RRFs!$C$4:$C$35="A")*INDIRECT(VLOOKUP(E66&" "&O65,RRFs!$AO:$AP,2,FALSE)))=-999999,0/0, SUMPRODUCT((EFs!$A$4:$A$3351=E67)*(EFs!$B$4:$B$3351=VLOOKUP(E66,'Store Inputs'!$F:$G,2,FALSE))*(EFs!$C$4:$C$3351=VLOOKUP(E70,'Store Inputs'!$C:$D,2,FALSE))*(EFs!$D$4:$D$3351>=E68)*(EFs!$D$4:$D$3351<=E69)*(EFs!$E$4:$E$3351=E71)*EFs!$L$4:$L$3351*EFs!$P$4:$P$3351) / SUMPRODUCT((EFs!$A$4:$A$3351=E67)*(EFs!$B$4:$B$3351=VLOOKUP(E66,'Store Inputs'!$F:$G,2,FALSE))*(EFs!$C$4:$C$3351=VLOOKUP(E70,'Store Inputs'!$C:$D,2,FALSE))*(EFs!$D$4:$D$3351>=E68)*(EFs!$D$4:$D$3351<=E69)*(EFs!$E$4:$E$3351=E71)*EFs!$P$4:$P$3351)))), 0) -> 223.4165866 | P66: =IFERROR( IF(E76="-",0/0, IF(OR(E63=0,AND(E66<>"Single Unit Short Haul",E71="G"),AND(OR(E63="B20 (Biodiesel)",E63="R100 (Renewable Diesel)"),E71="G"),AND(OR(E66="Single Unit Short Haul",E66="Single Unit Long Haul"),E70="Distribution Center"),AND(E66<>"Combination Unit Short Haul",E70="Port")),0/0, IF(SUMPRODUCT((RRFs!$B$4:$B$35=E63)*OR(RRFs!$C$4:$C$35=E71,RRFs!$C$4:$C$35="A")*INDIRECT(VLOOKUP(E66&" "&P65,RRFs!$AO:$AP,2,FALSE)))=-999999,0/0, SUMPRODUCT((EFs!$A$4:$A$3351=E67)*(EFs!$B$4:$B$3351=VLOOKUP(E66,'Store Inputs'!$F:$G,2,FALSE))*(EFs!$C$4:$C$3351=VLOOKUP(E70,'Store Inputs'!$C:$D,2,FALSE))*(EFs!$D$4:$D$3351>=E68)*(EFs!$D$4:$D$3351<=E69)*(EFs!$E$4:$E$3351=E71)*EFs!$M$4:$M$3351*EFs!$P$4:$P$3351) / SUMPRODUCT((EFs!$A$4:$A$3351=E67)*(EFs!$B$4:$B$3351=VLOOKUP(E66,'Store Inputs'!$F:$G,2,FALSE))*(EFs!$C$4:$C$3351=VLOOKUP(E70,'Store Inputs'!$C:$D,2,FALSE))*(EFs!$D$4:$D$3351>=E68)*(EFs!$D$4:$D$3351<=E69)*(EFs!$E$4:$E$3351=E71)*EFs!$P$4:$P$3351)))), 0) -> 1.592256297 | Q66: =IFERROR( IF(E76="-",0/0, IF(OR(E63=0,AND(E66<>"Single Unit Short Haul",E71="G"),AND(OR(E63="B20 (Biodiesel)",E63="R100 (Renewable Diesel)"),E71="G"),AND(OR(E66="Single Unit Short Haul",E66="Single Unit Long Haul"),E70="Distribution Center"),AND(E66<>"Combination Unit Short Haul",E70="Port")),0/0, IF(SUMPRODUCT((RRFs!$B$4:$B$35=E63)*OR(RRFs!$C$4:$C$35=E71,RRFs!$C$4:$C$35="A")*INDIRECT(VLOOKUP(E66&" "&Q65,RRFs!$AO:$AP,2,FALSE)))=-999999,0/0, SUMPRODUCT((EFs!$A$4:$A$3351=E67)*(EFs!$B$4:$B$3351=VLOOKUP(E66,'Store Inputs'!$F:$G,2,FALSE))*(EFs!$C$4:$C$3351=VLOOKUP(E70,'Store Inputs'!$C:$D,2,FALSE))*(EFs!$D$4:$D$3351>=E68)*(EFs!$D$4:$D$3351<=E69)*(EFs!$E$4:$E$3351=E71)*EFs!$N$4:$N$3351*EFs!$P$4:$P$3351) / SUMPRODUCT((EFs!$A$4:$A$3351=E67)*(EFs!$B$4:$B$3351=VLOOKUP(E66,'Store Inputs'!$F:$G,2,FALSE))*(EFs!$C$4:$C$3351=VLOOKUP(E70,'Store Inputs'!$C:$D,2,FALSE))*(EFs!$D$4:$D$3351>=E68)*(EFs!$D$4:$D$3351<=E69)*(EFs!$E$4:$E$3351=E71)*EFs!$P$4:$P$3351)))), 0) -> 9572.047607 | R66: =IFERROR( IF(E76="-",0/0, IF(OR(E63=0,AND(E66<>"Single Unit Short Haul",E71="G"),AND(OR(E63="B20 (Biodiesel)",E63="R100 (Renewable Diesel)"),E71="G"),AND(OR(E66="Single Unit Short Haul",E66="Single Unit Long Haul"),E70="Distribution Center"),AND(E66<>"Combination Unit Short Haul",E70="Port")),0/0, IF(SUMPRODUCT((RRFs!$B$4:$B$35=E63)*OR(RRFs!$C$4:$C$35=E71,RRFs!$C$4:$C$35="A")*INDIRECT(VLOOKUP(E66&" "&R64,RRFs!$AO:$AP,2,FALSE)))=-999999,0/0, SUMPRODUCT((EFs!$A$4:$A$3351=E67)*(EFs!$B$4:$B$3351=VLOOKUP(E66,'Store Inputs'!$F:$G,2,FALSE))*(EFs!$C$4:$C$3351=VLOOKUP(E70,'Store Inputs'!$C:$D,2,FALSE))*(EFs!$D$4:$D$3351>=E68)*(EFs!$D$4:$D$3351<=E69)*(EFs!$E$4:$E$3351=E71)*EFs!$O$4:$O$3351*EFs!$P$4:$P$3351) / SUMPRODUCT((EFs!$A$4:$A$3351=E67)*(EFs!$B$4:$B$3351=VLOOKUP(E66,'Store Inputs'!$F:$G,2,FALSE))*(EFs!$C$4:$C$3351=VLOOKUP(E70,'Store Inputs'!$C:$D,2,FALSE))*(EFs!$D$4:$D$3351>=E68)*(EFs!$D$4:$D$3351<=E69)*(EFs!$E$4:$E$3351=E71)*EFs!$P$4:$P$3351)))), 0) -> 0.9348711258 | S66: 0
D67: Calendar Year: | E67: =Deployment_Year -> 2030 | G67: Modified | H67: =IFERROR( IF(OR(E63=0,AND(E66<>"Single Unit Short Haul",E71="G"),AND(OR(E63="B20 (Biodiesel)",E63="R100 (Renewable Diesel)"),E71="G"),AND(OR(E66="Single Unit Short Haul",E66="Single Unit Long Haul"),E70="Distribution Center"),AND(E66<>"Combination Unit Short Haul",E70="Port")),0/0, IF(SUMPRODUCT((RRFs!$B$4:$B$35=E63)*OR(RRFs!$C$4:$C$35=E71,RRFs!$C$4:$C$35="A")*INDIRECT(VLOOKUP(E66&" "&H65,RRFs!$AO:$AP,2,FALSE)))=-999999,0/0, IF(OR(E63="B20 (Biodiesel)",E63="R100 (Renewable Diesel)"),H66*(1-(SUMPRODUCT((RRFs!$B$4:$B$35=E63)*OR(RRFs!$C$4:$C$35=E71,RRFs!$C$4:$C$35="A")*(INDIRECT(VLOOKUP(E66&" "&H65,RRFs!$AO:$AP,2,FALSE))<>-999999)*INDIRECT(VLOOKUP(E66&" "&H65,RRFs!$AO:$AP,2,FALSE))))), SUMPRODUCT((EFs!$A$4:$A$3351=E67)*(EFs!$B$4:$B$3351=VLOOKUP(E66,'Store Inputs'!$F:$G,2,FALSE))*(EFs!$C$4:$C$3351=VLOOKUP(E70,'Store Inputs'!$C:$D,2,FALSE))*(EFs!$D$4:$D$3351=E67)*(EFs!$E$4:$E$3351=E71)*EFs!$F$4:$F$3351*EFs!$P$4:$P$3351) / SUMPRODUCT((EFs!$A$4:$A$3351=E67)*(EFs!$B$4:$B$3351=VLOOKUP(E66,'Store Inputs'!$F:$G,2,FALSE))*(EFs!$C$4:$C$3351=VLOOKUP(E70,'Store Inputs'!$C:$D,2,FALSE))*(EFs!$D$4:$D$3351=E67)*(EFs!$E$4:$E$3351=E71)*EFs!$P$4:$P$3351) * (1-(SUMPRODUCT((RRFs!$B$4:$B$35=E63)*OR(RRFs!$C$4:$C$35=E71,RRFs!$C$4:$C$35="A")*(INDIRECT(VLOOKUP(E66&" "&H65,RRFs!$AO:$AP,2,FALSE))<>-999999)*INDIRECT(VLOOKUP(E66&" "&H65,RRFs!$AO:$AP,2,FALSE)))))))), 0) -> 1.03928532 | I67: =IFERROR( IF(OR(E63=0,AND(E66<>"Single Unit Short Haul",E71="G"),AND(OR(E63="B20 (Biodiesel)",E63="R100 (Renewable Diesel)"),E71="G"),AND(OR(E66="Single Unit Short Haul",E66="Single Unit Long Haul"),E70="Distribution Center"),AND(E66<>"Combination Unit Short Haul",E70="Port")),0/0, IF(SUMPRODUCT((RRFs!$B$4:$B$35=E63)*OR(RRFs!$C$4:$C$35=E71,RRFs!$C$4:$C$35="A")*INDIRECT(VLOOKUP(E66&" "&I65,RRFs!$AO:$AP,2,FALSE)))=-999999,0/0, IF(OR(E63="B20 (Biodiesel)",E63="R100 (Renewable Diesel)"),I66*(1-(SUMPRODUCT((RRFs!$B$4:$B$35=E63)*OR(RRFs!$C$4:$C$35=E71,RRFs!$C$4:$C$35="A")*(INDIRECT(VLOOKUP(E66&" "&I65,RRFs!$AO:$AP,2,FALSE))<>-999999)*INDIRECT(VLOOKUP(E66&" "&I65,RRFs!$AO:$AP,2,FALSE))))), SUMPRODUCT((EFs!$A$4:$A$3351=E67)*(EFs!$B$4:$B$3351=VLOOKUP(E66,'Store Inputs'!$F:$G,2,FALSE))*(EFs!$C$4:$C$3351=VLOOKUP(E70,'Store Inputs'!$C:$D,2,FALSE))*(EFs!$D$4:$D$3351=E67)*(EFs!$E$4:$E$3351=E71)*EFs!$G$4:$G$3351*EFs!$P$4:$P$3351) / SUMPRODUCT((EFs!$A$4:$A$3351=E67)*(EFs!$B$4:$B$3351=VLOOKUP(E66,'Store Inputs'!$F:$G,2,FALSE))*(EFs!$C$4:$C$3351=VLOOKUP(E70,'Store Inputs'!$C:$D,2,FALSE))*(EFs!$D$4:$D$3351=E67)*(EFs!$E$4:$E$3351=E71)*EFs!$P$4:$P$3351) * (1-(SUMPRODUCT((RRFs!$B$4:$B$35=E63)*OR(RRFs!$C$4:$C$35=E71,RRFs!$C$4:$C$35="A")*(INDIRECT(VLOOKUP(E66&" "&I65,RRFs!$AO:$AP,2,FALSE))<>-999999)*INDIRECT(VLOOKUP(E66&" "&I65,RRFs!$AO:$AP,2,FALSE)))))))), 0) -> 0.01658620239 | J67: =SUMPRODUCT((EFs!$A$4:$A$3351=E67)*(EFs!$B$4:$B$3351=VLOOKUP(E66,'Store Inputs'!$F:$G,2,FALSE))*(EFs!$C$4:$C$3351=VLOOKUP(E70,'Store Inputs'!$C:$D,2,FALSE))*(EFs!$D$4:$D$3351=E67)*(EFs!$E$4:$E$3351=E71)*EFs!$H$4:$H$3351*EFs!$P$4:$P$3351) / SUMPRODUCT((EFs!$A$4:$A$3351=E67)*(EFs!$B$4:$B$3351=VLOOKUP(E66,'Store Inputs'!$F:$G,2,FALSE))*(EFs!$C$4:$C$3351=VLOOKUP(E70,'Store Inputs'!$C:$D,2,FALSE))*(EFs!$D$4:$D$3351=E67)*(EFs!$E$4:$E$3351=E71)*EFs!$P$4:$P$3351) -> 1603.991239 | K67: =IFERROR( IF(OR(E63=0,AND(E66<>"Single Unit Short Haul",E71="G"),AND(OR(E63="B20 (Biodiesel)",E63="R100 (Renewable Diesel)"),E71="G"),AND(OR(E66="Single Unit Short Haul",E66="Single Unit Long Haul"),E70="Distribution Center"),AND(E66<>"Combination Unit Short Haul",E70="Port")),0/0, IF(SUMPRODUCT((RRFs!$B$4:$B$35=E63)*OR(RRFs!$C$4:$C$35=E71,RRFs!$C$4:$C$35="A")*INDIRECT(VLOOKUP(E66&" "&K63,RRFs!$AO:$AP,2,FALSE)))=-999999,0/0, IF(OR(E63="B20 (Biodiesel)",E63="R100 (Renewable Diesel)"),K66*(1-(SUMPRODUCT((RRFs!$B$4:$B$35=E63)*OR(RRFs!$C$4:$C$35=E71,RRFs!$C$4:$C$35="A")*(INDIRECT(VLOOKUP(E66&" "&K63,RRFs!$AO:$AP,2,FALSE))<>-999999)*INDIRECT(VLOOKUP(E66&" "&K63,RRFs!$AO:$AP,2,FALSE))))), SUMPRODUCT((EFs!$A$4:$A$3351=E67)*(EFs!$B$4:$B$3351=VLOOKUP(E66,'Store Inputs'!$F:$G,2,FALSE))*(EFs!$C$4:$C$3351=VLOOKUP(E70,'Store Inputs'!$C:$D,2,FALSE))*(EFs!$D$4:$D$3351=E67)*(EFs!$E$4:$E$3351=E71)*EFs!$I$4:$I$3351*EFs!$P$4:$P$3351) / SUMPRODUCT((EFs!$A$4:$A$3351=E67)*(EFs!$B$4:$B$3351=VLOOKUP(E66,'Store Inputs'!$F:$G,2,FALSE))*(EFs!$C$4:$C$3351=VLOOKUP(E70,'Store Inputs'!$C:$D,2,FALSE))*(EFs!$D$4:$D$3351=E67)*(EFs!$E$4:$E$3351=E71)*EFs!$P$4:$P$3351) * (1+(SUMPRODUCT((RRFs!$B$4:$B$35=E63)*OR(RRFs!$C$4:$C$35=E71,RRFs!$C$4:$C$35="A")*(INDIRECT(VLOOKUP(E66&" "&K63,RRFs!$AO:$AP,2,FALSE))<>-999999)*INDIRECT(VLOOKUP(E66&" "&K63,RRFs!$AO:$AP,2,FALSE)))))))), 0) -> 6.383386073 | L67: =IF(E63<>"Electric",0,'1. Deployment, Part 4'!UserElectMixValue_1) -> 0 | M67: =IFERROR( IF(OR(E63=0,AND(E66<>"Single Unit Short Haul",E71="G"),AND(OR(E63="B20 (Biodiesel)",E63="R100 (Renewable Diesel)"),E71="G"),AND(OR(E66="Single Unit Short Haul",E66="Single Unit Long Haul"),E70="Distribution Center"),AND(E66<>"Combination Unit Short Haul",E70="Port")),0/0, IF(SUMPRODUCT((RRFs!$B$4:$B$35=E63)*OR(RRFs!$C$4:$C$35=E71,RRFs!$C$4:$C$35="A")*INDIRECT(VLOOKUP(E66&" "&H65,RRFs!$AO:$AP,2,FALSE)))=-999999,0/0, IF(OR(E63="B20 (Biodiesel)",E63="R100 (Renewable Diesel)"),M66, SUMPRODUCT((EFs!$A$4:$A$3351=E67)*(EFs!$B$4:$B$3351=VLOOKUP(E66,'Store Inputs'!$F:$G,2,FALSE))*(EFs!$C$4:$C$3351=VLOOKUP(E70,'Store Inputs'!$C:$D,2,FALSE))*(EFs!$D$4:$D$3351=E67)*(EFs!$E$4:$E$3351=E71)*EFs!$J$4:$J$3351*EFs!$P$4:$P$3351) / SUMPRODUCT((EFs!$A$4:$A$3351=E67)*(EFs!$B$4:$B$3351=VLOOKUP(E66,'Store Inputs'!$F:$G,2,FALSE))*(EFs!$C$4:$C$3351=VLOOKUP(E70,'Store Inputs'!$C:$D,2,FALSE))*(EFs!$D$4:$D$3351=E67)*(EFs!$E$4:$E$3351=E71)*EFs!$P$4:$P$3351) * IF(OR(E63="Hybrid",E63="Electric"),0.5,1)))), 0) -> 0.01437838521 | N67: =IFERROR( IF(OR(E63=0,AND(E66<>"Single Unit Short Haul",E71="G"),AND(OR(E63="B20 (Biodiesel)",E63="R100 (Renewable Diesel)"),E71="G"),AND(OR(E66="Single Unit Short Haul",E66="Single Unit Long Haul"),E70="Distribution Center"),AND(E66<>"Combination Unit Short Haul",E70="Port")),0/0, IF(SUMPRODUCT((RRFs!$B$4:$B$35=E63)*OR(RRFs!$C$4:$C$35=E71,RRFs!$C$4:$C$35="A")*INDIRECT(VLOOKUP(E66&" "&H65,RRFs!$AO:$AP,2,FALSE)))=-999999,0/0, IF(OR(E63="B20 (Biodiesel)",E63="R100 (Renewable Diesel)"),N66, SUMPRODUCT((EFs!$A$4:$A$3351=E67)*(EFs!$B$4:$B$3351=VLOOKUP(E66,'Store Inputs'!$F:$G,2,FALSE))*(EFs!$C$4:$C$3351=VLOOKUP(E70,'Store Inputs'!$C:$D,2,FALSE))*(EFs!$D$4:$D$3351=E67)*(EFs!$E$4:$E$3351=E71)*EFs!$K$4:$K$3351*EFs!$P$4:$P$3351) / SUMPRODUCT((EFs!$A$4:$A$3351=E67)*(EFs!$B$4:$B$3351=VLOOKUP(E66,'Store Inputs'!$F:$G,2,FALSE))*(EFs!$C$4:$C$3351=VLOOKUP(E70,'Store Inputs'!$C:$D,2,FALSE))*(EFs!$D$4:$D$3351=E67)*(EFs!$E$4:$E$3351=E71)*EFs!$P$4:$P$3351)))), 0) -> 0.004407375724 | O67: =IFERROR( IF(E76="-",0/0, IF(OR(E63=0,AND(E66<>"Single Unit Short Haul",E71="G"),AND(OR(E63="B20 (Biodiesel)",E63="R100 (Renewable Diesel)"),E71="G"),AND(OR(E66="Single Unit Short Haul",E66="Single Unit Long Haul"),E70="Distribution Center"),AND(E66<>"Combination Unit Short Haul",E70="Port")),0/0, IF(SUMPRODUCT((RRFs!$B$4:$B$35=E63)*OR(RRFs!$C$4:$C$35=E71,RRFs!$C$4:$C$35="A")*INDIRECT(VLOOKUP(E66&" "&O65,RRFs!$AO:$AP,2,FALSE)))=-999999,0/0, IF(OR(E63="B20 (Biodiesel)",E63="R100 (Renewable Diesel)"),O66*(1-(SUMPRODUCT((RRFs!$B$4:$B$35=E63)*OR(RRFs!$C$4:$C$35=E71,RRFs!$C$4:$C$35="A")*(INDIRECT(VLOOKUP(E66&" "&O65,RRFs!$AO:$AP,2,FALSE))<>-999999)*INDIRECT(VLOOKUP(E66&" "&O65,RRFs!$AO:$AP,2,FALSE))))), SUMPRODUCT((EFs!$A$4:$A$3351=E67)*(EFs!$B$4:$B$3351=VLOOKUP(E66,'Store Inputs'!$F:$G,2,FALSE))*(EFs!$C$4:$C$3351=VLOOKUP(E70,'Store Inputs'!$C:$D,2,FALSE))*(EFs!$D$4:$D$3351=E67)*(EFs!$E$4:$E$3351=E71)*EFs!$L$4:$L$3351*EFs!$P$4:$P$3351) / SUMPRODUCT((EFs!$A$4:$A$3351=E67)*(EFs!$B$4:$B$3351=VLOOKUP(E66,'Store Inputs'!$F:$G,2,FALSE))*(EFs!$C$4:$C$3351=VLOOKUP(E70,'Store Inputs'!$C:$D,2,FALSE))*(EFs!$D$4:$D$3351=E67)*(EFs!$E$4:$E$3351=E71)*EFs!$P$4:$P$3351) * (1-(SUMPRODUCT((RRFs!$B$4:$B$35=E63)*OR(RRFs!$C$4:$C$35=E71,RRFs!$C$4:$C$35="A")*(INDIRECT(VLOOKUP(E66&" "&O65,RRFs!$AO:$AP,2,FALSE))<>-999999)*INDIRECT(VLOOKUP(E66&" "&O65,RRFs!$AO:$AP,2,FALSE))))))))), 0) -> 222.4957297 | P67: =IFERROR( IF(E76="-",0/0, IF(OR(E63=0,AND(E66<>"Single Unit Short Haul",E71="G"),AND(OR(E63="B20 (Biodiesel)",E63="R100 (Renewable Diesel)"),E71="G"),AND(OR(E66="Single Unit Short Haul",E66="Single Unit Long Haul"),E70="Distribution Center"),AND(E66<>"Combination Unit Short Haul",E70="Port")),0/0, IF(SUMPRODUCT((RRFs!$B$4:$B$35=E63)*OR(RRFs!$C$4:$C$35=E71,RRFs!$C$4:$C$35="A")*INDIRECT(VLOOKUP(E66&" "&P65,RRFs!$AO:$AP,2,FALSE)))=-999999,0/0, IF(OR(E63="B20 (Biodiesel)",E63="R100 (Renewable Diesel)"),P66*(1-(SUMPRODUCT((RRFs!$B$4:$B$35=E63)*OR(RRFs!$C$4:$C$35=E71,RRFs!$C$4:$C$35="A")*(INDIRECT(VLOOKUP(E66&" "&P65,RRFs!$AO:$AP,2,FALSE))<>-999999)*INDIRECT(VLOOKUP(E66&" "&P65,RRFs!$AO:$AP,2,FALSE))))), SUMPRODUCT((EFs!$A$4:$A$3351=E67)*(EFs!$B$4:$B$3351=VLOOKUP(E66,'Store Inputs'!$F:$G,2,FALSE))*(EFs!$C$4:$C$3351=VLOOKUP(E70,'Store Inputs'!$C:$D,2,FALSE))*(EFs!$D$4:$D$3351=E67)*(EFs!$E$4:$E$3351=E71)*EFs!$M$4:$M$3351*EFs!$P$4:$P$3351) / SUMPRODUCT((EFs!$A$4:$A$3351=E67)*(EFs!$B$4:$B$3351=VLOOKUP(E66,'Store Inputs'!$F:$G,2,FALSE))*(EFs!$C$4:$C$3351=VLOOKUP(E70,'Store Inputs'!$C:$D,2,FALSE))*(EFs!$D$4:$D$3351=E67)*(EFs!$E$4:$E$3351=E71)*EFs!$P$4:$P$3351) * (1-(SUMPRODUCT((RRFs!$B$4:$B$35=E63)*OR(RRFs!$C$4:$C$35=E71,RRFs!$C$4:$C$35="A")*(INDIRECT(VLOOKUP(E66&" "&P65,RRFs!$AO:$AP,2,FALSE))<>-999999)*INDIRECT(VLOOKUP(E66&" "&P65,RRFs!$AO:$AP,2,FALSE))))))))), 0) -> 0.7054350486 | Q67: =IFERROR( IF(E76="-",0/0, IF(OR(E63=0,AND(E66<>"Single Unit Short Haul",E71="G"),AND(OR(E63="B20 (Biodiesel)",E63="R100 (Renewable Diesel)"),E71="G"),AND(OR(E66="Single Unit Short Haul",E66="Single Unit Long Haul"),E70="Distribution Center"),AND(E66<>"Combination Unit Short Haul",E70="Port")),0/0, IF(SUMPRODUCT((RRFs!$B$4:$B$35=E63)*OR(RRFs!$C$4:$C$35=E71,RRFs!$C$4:$C$35="A")*INDIRECT(VLOOKUP(E66&" "&Q65,RRFs!$AO:$AP,2,FALSE)))=-999999,0/0, IF(OR(E63="B20 (Biodiesel)",E63="R100 (Renewable Diesel)"),Q66*(1-(SUMPRODUCT((RRFs!$B$4:$B$35=E63)*OR(RRFs!$C$4:$C$35=E71,RRFs!$C$4:$C$35="A")*(INDIRECT(VLOOKUP(E66&" "&Q65,RRFs!$AO:$AP,2,FALSE))<>-999999)*INDIRECT(VLOOKUP(E66&" "&Q65,RRFs!$AO:$AP,2,FALSE))))), SUMPRODUCT((EFs!$A$4:$A$3351=E67)*(EFs!$B$4:$B$3351=VLOOKUP(E66,'Store Inputs'!$F:$G,2,FALSE))*(EFs!$C$4:$C$3351=VLOOKUP(E70,'Store Inputs'!$C:$D,2,FALSE))*(EFs!$D$4:$D$3351=E67)*(EFs!$E$4:$E$3351=E71)*EFs!$N$4:$N$3351*EFs!$P$4:$P$3351) / SUMPRODUCT((EFs!$A$4:$A$3351=E67)*(EFs!$B$4:$B$3351=VLOOKUP(E66,'Store Inputs'!$F:$G,2,FALSE))*(EFs!$C$4:$C$3351=VLOOKUP(E70,'Store Inputs'!$C:$D,2,FALSE))*(EFs!$D$4:$D$3351=E67)*(EFs!$E$4:$E$3351=E71)*EFs!$P$4:$P$3351) * (1-(SUMPRODUCT((RRFs!$B$4:$B$35=E63)*OR(RRFs!$C$4:$C$35=E71,RRFs!$C$4:$C$35="A")*(INDIRECT(VLOOKUP(E66&" "&Q65,RRFs!$AO:$AP,2,FALSE))<>-999999)*INDIRECT(VLOOKUP(E66&" "&Q65,RRFs!$AO:$AP,2,FALSE))))))))), 0) -> 9865.159522 | R67: =IFERROR( IF(E76="-",0/0, IF(OR(E63=0,AND(E66<>"Single Unit Short Haul",E71="G"),AND(OR(E63="B20 (Biodiesel)",E63="R100 (Renewable Diesel)"),E71="G"),AND(OR(E66="Single Unit Short Haul",E66="Single Unit Long Haul"),E70="Distribution Center"),AND(E66<>"Combination Unit Short Haul",E70="Port")),0/0, IF(SUMPRODUCT((RRFs!$B$4:$B$35=E63)*OR(RRFs!$C$4:$C$35=E71,RRFs!$C$4:$C$35="A")*INDIRECT(VLOOKUP(E66&" "&R64,RRFs!$AO:$AP,2,FALSE)))=-999999,0/0, IF(OR(E63="B20 (Biodiesel)",E63="R100 (Renewable Diesel)"),R66*(1-(SUMPRODUCT((RRFs!$B$4:$B$35=E63)*OR(RRFs!$C$4:$C$35=E71,RRFs!$C$4:$C$35="A")*(INDIRECT(VLOOKUP(E66&" "&R64,RRFs!$AO:$AP,2,FALSE))<>-999999)*INDIRECT(VLOOKUP(E66&" "&R64,RRFs!$AO:$AP,2,FALSE))))), SUMPRODUCT((EFs!$A$4:$A$3351=E67)*(EFs!$B$4:$B$3351=VLOOKUP(E66,'Store Inputs'!$F:$G,2,FALSE))*(EFs!$C$4:$C$3351=VLOOKUP(E70,'Store Inputs'!$C:$D,2,FALSE))*(EFs!$D$4:$D$3351=E67)*(EFs!$E$4:$E$3351=E71)*EFs!$O$4:$O$3351*EFs!$P$4:$P$3351) / SUMPRODUCT((EFs!$A$4:$A$3351=E67)*(EFs!$B$4:$B$3351=VLOOKUP(E66,'Store Inputs'!$F:$G,2,FALSE))*(EFs!$C$4:$C$3351=VLOOKUP(E70,'Store Inputs'!$C:$D,2,FALSE))*(EFs!$D$4:$D$3351=E67)*(EFs!$E$4:$E$3351=E71)*EFs!$P$4:$P$3351) * (1-(SUMPRODUCT((RRFs!$B$4:$B$35=E63)*OR(RRFs!$C$4:$C$35=E71,RRFs!$C$4:$C$35="A")*(INDIRECT(VLOOKUP(E66&" "&R64,RRFs!$AO:$AP,2,FALSE))<>-999999)*INDIRECT(VLOOKUP(E66&" "&R64,RRFs!$AO:$AP,2,FALSE))))))))), 0) -> 0.9634984245 | S67: =IFERROR( SUMIFS('1. Deployment, Part 5'!E:E,'1. Deployment, Part 5'!B:B,E66,'1. Deployment, Part 5'!C:C,IF(E71="D","Diesel",IF(E71="G","Gasoline",E71)),'1. Deployment, Part 5'!D:D,E63,'1. Deployment, Part 5'!E:E,"<>'N/A",'1. Deployment, Part 5'!E:E,"<>'-'") + IF(SUMPRODUCT((RRFs!$B$4:$B$35=E63)*OR(RRFs!$C$4:$C$35=IF(E71="D","Diesel",IF(E71="G","Gasoline",E71)),RRFs!$C$4:$C$35="A")*INDIRECT(VLOOKUP(E66&" Inc O&M",RRFs!$AO:$AP,2,FALSE)))=-999999,0/0,SUMPRODUCT((RRFs!$B$4:$B$35=E63)*OR(RRFs!$C$4:$C$35=IF(E71="D","Diesel",IF(E71="G","Gasoline",E71)),RRFs!$C$4:$C$35="A")*INDIRECT(VLOOKUP(E66&" Inc O&M",RRFs!$AO:$AP,2,FALSE)))), 0) -> 1500
D68: Model Year Modification Window: | E68: =IF(OR(E63="B20 (Biodiesel)",E63="R100 (Renewable Diesel)"),Deployment_Year-30,INDEX(Deployment_Beginning_Year_of_Modification,4,1)) -> 2000
E69: =IF(OR(E63="B20 (Biodiesel)",E63="R100 (Renewable Diesel)"),Deployment_Year,INDEX(Deployment_End_Year_of_Modification,4,1)) -> 2017 | G69: FLEET: | H69: Short Tons Emiss./Year | K69: Fuel (gal/yr GGE or DGE) | L69: Annual Costs
D70: Area of Interest: | E70: =Deployment_GeographicScale -> State | G70: Case | H70: NOx | I70: PM2.5 | J70: CO2 | L70: Capital | M70: Fuel | N70: Total
D71: Baseline Fuel (D=Diesel, G=Gasoline), Cost and Units: | E71: =INDEX(Deployment_Fuels,4,1) -> D | G71: Baseline | H71: =IFERROR( E74*( (H66*E75) + (IF(E76="-",0,O66*E76)) ) * GramToTon, 0) -> 57.43111998 | I71: =IFERROR( E74*( ((I66+M66+N66)*E75) + (IF(E76="-",0,P66*E76)) ) * GramToTon, 0) -> 1.705923534 | J71: =IFERROR( E74*( (J66*E75) + (IF(E76="-",0,Q66*E76)) ) * GramToTon, 0) -> 16497.64294 | K71: =IFERROR( SUM((1/K66)*E75,(IF(E76="-",0,R66*E76))) * E74, 0) -> 1457648.33 | L71: 0 | M71: =IFERROR( K71*E72, 0) -> 3104790.942 | N71: =SUM(L71:M71) -> 3104790.942
E72: =IF(E71="G",VLOOKUP("Gasoline",Deployment_Fuel_Type_Cost_and_Unit,2,0), IF(E71="D",VLOOKUP("Diesel",Deployment_Fuel_Type_Cost_and_Unit,2,0),NA())) -> 2.13 | G72: Modified | H72: =IFERROR( E74*( (H67*E75) + (IF(E76="-",0,O67*E76)) ) * GramToTon, 0) -> 29.04703823 | I72: =IFERROR( E74*( ((I67+M67+N67)*E75) + (IF(E76="-",0,P67*E76)) ) * GramToTon, 0) -> 0.3800031849 | J72: =IFERROR( E74*( (J67*E75) + (IF(E76="-",0,Q67*E76)) + IF(L67=0,0,L67*IF(E71="G",kwh_per_GGE,IF(E71="D",kwh_per_DGE,0/0))*(E75/K67)) ) * GramToTon, 0) -> 15271.03897 | K72: =IFERROR( SUM((1/K67)*E75,(IF(E76="-",0,R67*E76))) * E74, 0) -> 1353042.202 | L72: =IFERROR( (S67*E74) / E77, 0) -> 30000 | M72: =IFERROR( K72*E64, 0) -> 0 | N72: =SUM(L72:M72) -> 30000
E73: =IF(E71="G",VLOOKUP("Gasoline",Deployment_Fuel_Type_Cost_and_Unit,3,0), IF(E71="D",VLOOKUP("Diesel",Deployment_Fuel_Type_Cost_and_Unit,3,0),NA())) -> gal | G73: Difference | H73: =IFERROR( IF((SUMPRODUCT((RRFs!$B$4:$B$35=E63)*OR(RRFs!$C$4:$C$35=E71,RRFs!$C$4:$C$35="A")*INDIRECT(VLOOKUP(E66&" "&H65,RRFs!$AO:$AP,2,FALSE))))=-999999,0/0, IFERROR(H72-H71,0)), 0) -> -28.38408175 | I73: =IFERROR( IF((SUMPRODUCT((RRFs!$B$4:$B$35=E63)*OR(RRFs!$C$4:$C$35=E71,RRFs!$C$4:$C$35="A")*INDIRECT(VLOOKUP(E66&" "&H65,RRFs!$AO:$AP,2,FALSE))))=-999999,0/0, IFERROR(I72-I71,0)), 0) -> -1.325920349 | J73: =IFERROR( IF((SUMPRODUCT((RRFs!$B$4:$B$35=E63)*OR(RRFs!$C$4:$C$35=E71,RRFs!$C$4:$C$35="A")*INDIRECT(VLOOKUP(E66&" "&H65,RRFs!$AO:$AP,2,FALSE))))=-999999,0/0, IFERROR(J72-J71,0)), 0) -> -1226.603972 | K73: =IFERROR(IF((SUMPRODUCT((RRFs!$B$4:$B$35=E63)*OR(RRFs!$C$4:$C$35=E71,RRFs!$C$4:$C$35="A")*INDIRECT(VLOOKUP(E66&" "&H65,RRFs!$AO:$AP,2,FALSE))))=-999999,0,IFERROR(K72-K71,0)),0) -> -104606.128 | L73: =IFERROR(IF((SUMPRODUCT((RRFs!$B$4:$B$35=E63)*OR(RRFs!$C$4:$C$35=E71,RRFs!$C$4:$C$35="A")*INDIRECT(VLOOKUP(E66&" "&H65,RRFs!$AO:$AP,2,FALSE))))=-999999,0,IFERROR(L72-L71,0)),0) -> 30000 | M73: =IFERROR(IF((SUMPRODUCT((RRFs!$B$4:$B$35=E63)*OR(RRFs!$C$4:$C$35=E71,RRFs!$C$4:$C$35="A")*INDIRECT(VLOOKUP(E66&" "&H65,RRFs!$AO:$AP,2,FALSE))))=-999999,0,IFERROR(M72-M71,0)),0) -> -3104790.942 | N73: =SUM(L73:M73) -> -3074790.942
D74: Number to Modify/Replace: | E74: =VLOOKUP(E66&E71,Deployment_NumberToReplaceByTruckAndFuelType,6,0) -> 100 | G74: Cost Effect ($/short ton) | H74: =IF(H73>0,"Emiss. Increase",IFERROR( (-1*N73)/H73, 0)) -> -108328.0047 | I74: =IF(I73>0,"Emiss. Increase",IFERROR( (-1*N73)/I73, 0)) -> -2318986.163 | J74: =IF(J73>0,"Emiss. Increase",IFERROR( (-1*N73)/J73, 0)) -> -2506.751169
D75: Average Annual Mileage: | E75: =VLOOKUP(E66&E71,Deployment_AverageAnnualMilesByTruckAndFuelType,7,0) -> 81425
D76: Average Annual Idle Hours: | E76: =IF(VLOOKUP(E66&E71,Deployment_Average_Annual_Idle_Hours_by_Truck_and_Fuel_Type,12,0)=0,"-",VLOOKUP(E66&E71,Deployment_Average_Annual_Idle_Hours_by_Truck_and_Fuel_Type,12,0)) -> 804
D77: Useful Life of Strategy (years): | E77: =SUMPRODUCT((RRFs!$B$4:$B$35=E63)*OR(RRFs!$C$4:$C$35=E71,RRFs!$C$4:$C$35="A")*INDIRECT(VLOOKUP(E66&" Project Lifetime",RRFs!$AO:$AP,2,FALSE))) -> 5
D78: ="For Further Information refer to page "&VLOOKUP(RIGHT($A$1,LEN($A$1)-14)&VLOOKUP(E63,FuelCrosswalk,2,FALSE)&"1",ModType_Mod_Hyperlinks_and_GuidePgs,4,0)&" of the NCHRP 25-46 Guidance and the following weblinks" -> 
C79: =IFERROR(HYPERLINK(U79,V79),"") ->  | U79: =IFERROR(VLOOKUP(RIGHT($A$1,LEN($A$1)-14)&VLOOKUP(E63,FuelCrosswalk,2,FALSE)&"1",ModType_Mod_Hyperlinks_and_GuidePgs,3,0),"") ->  | V79: =IFERROR( VLOOKUP(RIGHT($A$1,LEN($A$1)-14)&VLOOKUP(E63,FuelCrosswalk,2,FALSE)&"1",ModType_Mod_Hyperlinks_and_GuidePgs,2,0),"") -> 
C80: =IFERROR(HYPERLINK(U80,V80),"") ->  | U80: =IFERROR(VLOOKUP(RIGHT($A$1,LEN($A$1)-14)&VLOOKUP(E63,FuelCrosswalk,2,FALSE)&"2",ModType_Mod_Hyperlinks_and_GuidePgs,3,0),"") ->  | V80: =IFERROR( VLOOKUP(RIGHT($A$1,LEN($A$1)-14)&VLOOKUP(E63,FuelCrosswalk,2,FALSE)&"2",ModType_Mod_Hyperlinks_and_GuidePgs,2,0),"") -> 
C81: =IFERROR(HYPERLINK(U81,V81),"") ->  | U81: =IFERROR(VLOOKUP(RIGHT($A$1,LEN($A$1)-14)&VLOOKUP(E63,FuelCrosswalk,2,FALSE)&"3",ModType_Mod_Hyperlinks_and_GuidePgs,3,0),"") ->  | V81: =IFERROR( VLOOKUP(RIGHT($A$1,LEN($A$1)-14)&VLOOKUP(E63,FuelCrosswalk,2,FALSE)&"3",ModType_Mod_Hyperlinks_and_GuidePgs,2,0),"") -> 
C82: =IFERROR(HYPERLINK(U82,V82),"") ->  | U82: =IFERROR(VLOOKUP(RIGHT($A$1,LEN($A$1)-14)&VLOOKUP(E63,FuelCrosswalk,2,FALSE)&"4",ModType_Mod_Hyperlinks_and_GuidePgs,3,0),"") ->  | V82: =IFERROR( VLOOKUP(RIGHT($A$1,LEN($A$1)-14)&E63&"4",ModType_Mod_Hyperlinks_and_GuidePgs,2,0),"") -> 
D83: Modification: | E83: =INDEX(Deployment_Specific_Modifications,1,1) -> DOC | H83: Running EFs (g/mi) | K83: Fuel | L83: Power Plant EFs for Electric Vehicles | M83: PM2.5 (g/mi) | O83: Extended Idle | S83: Cost
D84: Cost and Units of Alternative Fuel: | E84: =IF(E83="Hybrid", IF(E91="D",VLOOKUP("Diesel",Deployment_Fuel_Type_Cost_and_Unit,2,0), IF(E91="G",VLOOKUP("Gasoline",Deployment_Fuel_Type_Cost_and_Unit,2,0),NA())), IF(VLOOKUP(E86&E91,Deployment_Fuel_by_Truck_and_Fuel_Types,4,0)="D", VLOOKUP(VLOOKUP(E83,FuelCrosswalk,2,FALSE),Deployment_Fuel_Type_Cost_and_Unit,2,0)* (SUMIFS(Defaults!$W:$W,Defaults!$U:$U,VLOOKUP(E83,FuelCrosswalk,2,FALSE),Defaults!$V:$V,"DGE")/ SUMIFS(Defaults!$W:$W,Defaults!$U:$U,VLOOKUP(E83,FuelCrosswalk,2,FALSE),Defaults!$V:$V,VLOOKUP(VLOOKUP(E83,FuelCrosswalk,2,FALSE),Deployment_Fuel_Type_Cost_and_Unit,3,0))), IF(VLOOKUP(E86&E91,Deployment_Fuel_by_Truck_and_Fuel_Types,4,0)="G", VLOOKUP(VLOOKUP(E83,FuelCrosswalk,2,FALSE),Deployment_Fuel_Type_Cost_and_Unit,2,0)* (SUMIFS(Defaults!$W:$W,Defaults!$U:$U,VLOOKUP(E83,FuelCrosswalk,2,FALSE),Defaults!$V:$V,"GGE")/ SUMIFS(Defaults!$W:$W,Defaults!$U:$U,VLOOKUP(E83,FuelCrosswalk,2,FALSE),Defaults!$V:$V,VLOOKUP(VLOOKUP(E83,FuelCrosswalk,2,FALSE),Deployment_Fuel_Type_Cost_and_Unit,3,0))),NA() ))) ->  | G84: PER TRUCK: | O84: Emissions (g/hr) | R84: Fuel
E85: =IF(E91="G","GGE","DGE") -> DGE | G85: Case | H85: NOx | I85: PM2.5 | J85: CO2 | K85: mi/gal | L85: g CO2/kWh | M85: Brake | N85: Tire | O85: NOx | P85: PM2.5 | Q85: CO2 | R85: (gal/hr)
D86: Type of Truck: | E86: =INDEX(Deployment_TruckTypes,5,1) -> 0 | G86: Baseline | H86: =IFERROR( IF(OR(E83=0,AND(E86<>"Single Unit Short Haul",E91="G"),AND(OR(E83="B20 (Biodiesel)",E83="R100 (Renewable Diesel)"),E91="G"),AND(OR(E86="Single Unit Short Haul",E86="Single Unit Long Haul"),E90="Distribution Center"),AND(E86<>"Combination Unit Short Haul",E90="Port")),0/0, IF(SUMPRODUCT((RRFs!$B$4:$B$35=E83)*OR(RRFs!$C$4:$C$35=E91,RRFs!$C$4:$C$35="A")*INDIRECT(VLOOKUP(E86&" "&H85,RRFs!$AO:$AP,2,FALSE)))=-999999,0/0, SUMPRODUCT((EFs!$A$4:$A$3351=E87)*(EFs!$B$4:$B$3351=VLOOKUP(E86,'Store Inputs'!$F:$G,2,FALSE))*(EFs!$C$4:$C$3351=VLOOKUP(E90,'Store Inputs'!$C:$D,2,FALSE))*(EFs!$D$4:$D$3351>=E88)*(EFs!$D$4:$D$3351<=E89)*(EFs!$E$4:$E$3351=E91)*EFs!$F$4:$F$3351*EFs!$P$4:$P$3351) / SUMPRODUCT((EFs!$A$4:$A$3351=E87)*(EFs!$B$4:$B$3351=VLOOKUP(E86,'Store Inputs'!$F:$G,2,FALSE))*(EFs!$C$4:$C$3351=VLOOKUP(E90,'Store Inputs'!$C:$D,2,FALSE))*(EFs!$D$4:$D$3351>=E88)*(EFs!$D$4:$D$3351<=E89)*(EFs!$E$4:$E$3351=E91)*EFs!$P$4:$P$3351))), 0) -> 0 | I86: =IFERROR( IF(OR(E83=0,AND(E86<>"Single Unit Short Haul",E91="G"),AND(OR(E83="B20 (Biodiesel)",E83="R100 (Renewable Diesel)"),E91="G"),AND(OR(E86="Single Unit Short Haul",E86="Single Unit Long Haul"),E90="Distribution Center"),AND(E86<>"Combination Unit Short Haul",E90="Port")),0/0, IF(SUMPRODUCT((RRFs!$B$4:$B$35=E83)*OR(RRFs!$C$4:$C$35=E91,RRFs!$C$4:$C$35="A")*INDIRECT(VLOOKUP(E86&" "&I85,RRFs!$AO:$AP,2,FALSE)))=-999999,0/0, SUMPRODUCT((EFs!$A$4:$A$3351=E87)*(EFs!$B$4:$B$3351=VLOOKUP(E86,'Store Inputs'!$F:$G,2,FALSE))*(EFs!$C$4:$C$3351=VLOOKUP(E90,'Store Inputs'!$C:$D,2,FALSE))*(EFs!$D$4:$D$3351>=E88)*(EFs!$D$4:$D$3351<=E89)*(EFs!$E$4:$E$3351=E91)*EFs!$G$4:$G$3351*EFs!$P$4:$P$3351) / SUMPRODUCT((EFs!$A$4:$A$3351=E87)*(EFs!$B$4:$B$3351=VLOOKUP(E86,'Store Inputs'!$F:$G,2,FALSE))*(EFs!$C$4:$C$3351=VLOOKUP(E90,'Store Inputs'!$C:$D,2,FALSE))*(EFs!$D$4:$D$3351>=E88)*(EFs!$D$4:$D$3351<=E89)*(EFs!$E$4:$E$3351=E91)*EFs!$P$4:$P$3351))), 0) -> 0 | J86: =IFERROR( IF(OR(E83=0,AND(E86<>"Single Unit Short Haul",E91="G"),AND(OR(E83="B20 (Biodiesel)",E83="R100 (Renewable Diesel)"),E91="G"),AND(OR(E86="Single Unit Short Haul",E86="Single Unit Long Haul"),E90="Distribution Center"),AND(E86<>"Combination Unit Short Haul",E90="Port")),0/0, IF(SUMPRODUCT((RRFs!$B$4:$B$35=E83)*OR(RRFs!$C$4:$C$35=E91,RRFs!$C$4:$C$35="A")*INDIRECT(VLOOKUP(E86&" "&J85,RRFs!$AO:$AP,2,FALSE)))=-999999,0/0, SUMPRODUCT((EFs!$A$4:$A$3351=E87)*(EFs!$B$4:$B$3351=VLOOKUP(E86,'Store Inputs'!$F:$G,2,FALSE))*(EFs!$C$4:$C$3351=VLOOKUP(E90,'Store Inputs'!$C:$D,2,FALSE))*(EFs!$D$4:$D$3351>=E88)*(EFs!$D$4:$D$3351<=E89)*(EFs!$E$4:$E$3351=E91)*EFs!$H$4:$H$3351*EFs!$P$4:$P$3351) / SUMPRODUCT((EFs!$A$4:$A$3351=E87)*(EFs!$B$4:$B$3351=VLOOKUP(E86,'Store Inputs'!$F:$G,2,FALSE))*(EFs!$C$4:$C$3351=VLOOKUP(E90,'Store Inputs'!$C:$D,2,FALSE))*(EFs!$D$4:$D$3351>=E88)*(EFs!$D$4:$D$3351<=E89)*(EFs!$E$4:$E$3351=E91)*EFs!$P$4:$P$3351))), 0) -> 0 | K86: =IFERROR( IF(OR(E83=0,AND(E86<>"Single Unit Short Haul",E91="G"),AND(OR(E83="B20 (Biodiesel)",E83="R100 (Renewable Diesel)"),E91="G"),AND(OR(E86="Single Unit Short Haul",E86="Single Unit Long Haul"),E90="Distribution Center"),AND(E86<>"Combination Unit Short Haul",E90="Port")),0/0, IF(SUMPRODUCT((RRFs!$B$4:$B$35=E83)*OR(RRFs!$C$4:$C$35=E91,RRFs!$C$4:$C$35="A")*INDIRECT(VLOOKUP(E86&" "&K83,RRFs!$AO:$AP,2,FALSE)))=-999999,0/0, SUMPRODUCT((EFs!$A$4:$A$3351=E87)*(EFs!$B$4:$B$3351=VLOOKUP(E86,'Store Inputs'!$F:$G,2,FALSE))*(EFs!$C$4:$C$3351=VLOOKUP(E90,'Store Inputs'!$C:$D,2,FALSE))*(EFs!$D$4:$D$3351>=E88)*(EFs!$D$4:$D$3351<=E89)*(EFs!$E$4:$E$3351=E91)*EFs!$I$4:$I$3351*EFs!$P$4:$P$3351) / SUMPRODUCT((EFs!$A$4:$A$3351=E87)*(EFs!$B$4:$B$3351=VLOOKUP(E86,'Store Inputs'!$F:$G,2,FALSE))*(EFs!$C$4:$C$3351=VLOOKUP(E90,'Store Inputs'!$C:$D,2,FALSE))*(EFs!$D$4:$D$3351>=E88)*(EFs!$D$4:$D$3351<=E89)*(EFs!$E$4:$E$3351=E91)*EFs!$P$4:$P$3351))), 0) -> 0 | L86: 0 | M86: =IFERROR( IF(OR(E83=0,AND(E86<>"Single Unit Short Haul",E91="G"),AND(OR(E83="B20 (Biodiesel)",E83="R100 (Renewable Diesel)"),E91="G"),AND(OR(E86="Single Unit Short Haul",E86="Single Unit Long Haul"),E90="Distribution Center"),AND(E86<>"Combination Unit Short Haul",E90="Port")),0/0, IF(SUMPRODUCT((RRFs!$B$4:$B$35=E83)*OR(RRFs!$C$4:$C$35=E91,RRFs!$C$4:$C$35="A")*INDIRECT(VLOOKUP(E86&" "&H85,RRFs!$AO:$AP,2,FALSE)))=-999999,0/0, SUMPRODUCT((EFs!$A$4:$A$3351=E87)*(EFs!$B$4:$B$3351=VLOOKUP(E86,'Store Inputs'!$F:$G,2,FALSE))*(EFs!$C$4:$C$3351=VLOOKUP(E90,'Store Inputs'!$C:$D,2,FALSE))*(EFs!$D$4:$D$3351>=E88)*(EFs!$D$4:$D$3351<=E89)*(EFs!$E$4:$E$3351=E91)*EFs!$J$4:$J$3351*EFs!$P$4:$P$3351) / SUMPRODUCT((EFs!$A$4:$A$3351=E87)*(EFs!$B$4:$B$3351=VLOOKUP(E86,'Store Inputs'!$F:$G,2,FALSE))*(EFs!$C$4:$C$3351=VLOOKUP(E90,'Store Inputs'!$C:$D,2,FALSE))*(EFs!$D$4:$D$3351>=E88)*(EFs!$D$4:$D$3351<=E89)*(EFs!$E$4:$E$3351=E91)*EFs!$P$4:$P$3351))), 0) -> 0 | N86: =IFERROR( IF(OR(E83=0,AND(E86<>"Single Unit Short Haul",E91="G"),AND(OR(E83="B20 (Biodiesel)",E83="R100 (Renewable Diesel)"),E91="G"),AND(OR(E86="Single Unit Short Haul",E86="Single Unit Long Haul"),E90="Distribution Center"),AND(E86<>"Combination Unit Short Haul",E90="Port")),0/0, IF(SUMPRODUCT((RRFs!$B$4:$B$35=E83)*OR(RRFs!$C$4:$C$35=E91,RRFs!$C$4:$C$35="A")*INDIRECT(VLOOKUP(E86&" "&H85,RRFs!$AO:$AP,2,FALSE)))=-999999,0/0, SUMPRODUCT((EFs!$A$4:$A$3351=E87)*(EFs!$B$4:$B$3351=VLOOKUP(E86,'Store Inputs'!$F:$G,2,FALSE))*(EFs!$C$4:$C$3351=VLOOKUP(E90,'Store Inputs'!$C:$D,2,FALSE))*(EFs!$D$4:$D$3351>=E88)*(EFs!$D$4:$D$3351<=E89)*(EFs!$E$4:$E$3351=E91)*EFs!$K$4:$K$3351*EFs!$P$4:$P$3351) / SUMPRODUCT((EFs!$A$4:$A$3351=E87)*(EFs!$B$4:$B$3351=VLOOKUP(E86,'Store Inputs'!$F:$G,2,FALSE))*(EFs!$C$4:$C$3351=VLOOKUP(E90,'Store Inputs'!$C:$D,2,FALSE))*(EFs!$D$4:$D$3351>=E88)*(EFs!$D$4:$D$3351<=E89)*(EFs!$E$4:$E$3351=E91)*EFs!$P$4:$P$3351))), 0) -> 0 | O86: =IFERROR( IF(E96="-",0/0, IF(OR(E83=0,AND(E86<>"Single Unit Short Haul",E91="G"),AND(OR(E83="B20 (Biodiesel)",E83="R100 (Renewable Diesel)"),E91="G"),AND(OR(E86="Single Unit Short Haul",E86="Single Unit Long Haul"),E90="Distribution Center"),AND(E86<>"Combination Unit Short Haul",E90="Port")),0/0, IF(SUMPRODUCT((RRFs!$B$4:$B$35=E83)*OR(RRFs!$C$4:$C$35=E91,RRFs!$C$4:$C$35="A")*INDIRECT(VLOOKUP(E86&" "&O85,RRFs!$AO:$AP,2,FALSE)))=-999999,0/0, SUMPRODUCT((EFs!$A$4:$A$3351=E87)*(EFs!$B$4:$B$3351=VLOOKUP(E86,'Store Inputs'!$F:$G,2,FALSE))*(EFs!$C$4:$C$3351=VLOOKUP(E90,'Store Inputs'!$C:$D,2,FALSE))*(EFs!$D$4:$D$3351>=E88)*(EFs!$D$4:$D$3351<=E89)*(EFs!$E$4:$E$3351=E91)*EFs!$L$4:$L$3351*EFs!$P$4:$P$3351) / SUMPRODUCT((EFs!$A$4:$A$3351=E87)*(EFs!$B$4:$B$3351=VLOOKUP(E86,'Store Inputs'!$F:$G,2,FALSE))*(EFs!$C$4:$C$3351=VLOOKUP(E90,'Store Inputs'!$C:$D,2,FALSE))*(EFs!$D$4:$D$3351>=E88)*(EFs!$D$4:$D$3351<=E89)*(EFs!$E$4:$E$3351=E91)*EFs!$P$4:$P$3351)))), 0) -> 0 | P86: =IFERROR( IF(E96="-",0/0, IF(OR(E83=0,AND(E86<>"Single Unit Short Haul",E91="G"),AND(OR(E83="B20 (Biodiesel)",E83="R100 (Renewable Diesel)"),E91="G"),AND(OR(E86="Single Unit Short Haul",E86="Single Unit Long Haul"),E90="Distribution Center"),AND(E86<>"Combination Unit Short Haul",E90="Port")),0/0, IF(SUMPRODUCT((RRFs!$B$4:$B$35=E83)*OR(RRFs!$C$4:$C$35=E91,RRFs!$C$4:$C$35="A")*INDIRECT(VLOOKUP(E86&" "&P85,RRFs!$AO:$AP,2,FALSE)))=-999999,0/0, SUMPRODUCT((EFs!$A$4:$A$3351=E87)*(EFs!$B$4:$B$3351=VLOOKUP(E86,'Store Inputs'!$F:$G,2,FALSE))*(EFs!$C$4:$C$3351=VLOOKUP(E90,'Store Inputs'!$C:$D,2,FALSE))*(EFs!$D$4:$D$3351>=E88)*(EFs!$D$4:$D$3351<=E89)*(EFs!$E$4:$E$3351=E91)*EFs!$M$4:$M$3351*EFs!$P$4:$P$3351) / SUMPRODUCT((EFs!$A$4:$A$3351=E87)*(EFs!$B$4:$B$3351=VLOOKUP(E86,'Store Inputs'!$F:$G,2,FALSE))*(EFs!$C$4:$C$3351=VLOOKUP(E90,'Store Inputs'!$C:$D,2,FALSE))*(EFs!$D$4:$D$3351>=E88)*(EFs!$D$4:$D$3351<=E89)*(EFs!$E$4:$E$3351=E91)*EFs!$P$4:$P$3351)))), 0) -> 0 | Q86: =IFERROR( IF(E96="-",0/0, IF(OR(E83=0,AND(E86<>"Single Unit Short Haul",E91="G"),AND(OR(E83="B20 (Biodiesel)",E83="R100 (Renewable Diesel)"),E91="G"),AND(OR(E86="Single Unit Short Haul",E86="Single Unit Long Haul"),E90="Distribution Center"),AND(E86<>"Combination Unit Short Haul",E90="Port")),0/0, IF(SUMPRODUCT((RRFs!$B$4:$B$35=E83)*OR(RRFs!$C$4:$C$35=E91,RRFs!$C$4:$C$35="A")*INDIRECT(VLOOKUP(E86&" "&Q85,RRFs!$AO:$AP,2,FALSE)))=-999999,0/0, SUMPRODUCT((EFs!$A$4:$A$3351=E87)*(EFs!$B$4:$B$3351=VLOOKUP(E86,'Store Inputs'!$F:$G,2,FALSE))*(EFs!$C$4:$C$3351=VLOOKUP(E90,'Store Inputs'!$C:$D,2,FALSE))*(EFs!$D$4:$D$3351>=E88)*(EFs!$D$4:$D$3351<=E89)*(EFs!$E$4:$E$3351=E91)*EFs!$N$4:$N$3351*EFs!$P$4:$P$3351) / SUMPRODUCT((EFs!$A$4:$A$3351=E87)*(EFs!$B$4:$B$3351=VLOOKUP(E86,'Store Inputs'!$F:$G,2,FALSE))*(EFs!$C$4:$C$3351=VLOOKUP(E90,'Store Inputs'!$C:$D,2,FALSE))*(EFs!$D$4:$D$3351>=E88)*(EFs!$D$4:$D$3351<=E89)*(EFs!$E$4:$E$3351=E91)*EFs!$P$4:$P$3351)))), 0) -> 0 | R86: =IFERROR( IF(E96="-",0/0, IF(OR(E83=0,AND(E86<>"Single Unit Short Haul",E91="G"),AND(OR(E83="B20 (Biodiesel)",E83="R100 (Renewable Diesel)"),E91="G"),AND(OR(E86="Single Unit Short Haul",E86="Single Unit Long Haul"),E90="Distribution Center"),AND(E86<>"Combination Unit Short Haul",E90="Port")),0/0, IF(SUMPRODUCT((RRFs!$B$4:$B$35=E83)*OR(RRFs!$C$4:$C$35=E91,RRFs!$C$4:$C$35="A")*INDIRECT(VLOOKUP(E86&" "&R84,RRFs!$AO:$AP,2,FALSE)))=-999999,0/0, SUMPRODUCT((EFs!$A$4:$A$3351=E87)*(EFs!$B$4:$B$3351=VLOOKUP(E86,'Store Inputs'!$F:$G,2,FALSE))*(EFs!$C$4:$C$3351=VLOOKUP(E90,'Store Inputs'!$C:$D,2,FALSE))*(EFs!$D$4:$D$3351>=E88)*(EFs!$D$4:$D$3351<=E89)*(EFs!$E$4:$E$3351=E91)*EFs!$O$4:$O$3351*EFs!$P$4:$P$3351) / SUMPRODUCT((EFs!$A$4:$A$3351=E87)*(EFs!$B$4:$B$3351=VLOOKUP(E86,'Store Inputs'!$F:$G,2,FALSE))*(EFs!$C$4:$C$3351=VLOOKUP(E90,'Store Inputs'!$C:$D,2,FALSE))*(EFs!$D$4:$D$3351>=E88)*(EFs!$D$4:$D$3351<=E89)*(EFs!$E$4:$E$3351=E91)*EFs!$P$4:$P$3351)))), 0) -> 0 | S86: 0
D87: Calendar Year: | E87: =Deployment_Year -> 2030 | G87: Modified | H87: =IFERROR( IF(OR(E83=0,AND(E86<>"Single Unit Short Haul",E91="G"),AND(OR(E83="B20 (Biodiesel)",E83="R100 (Renewable Diesel)"),E91="G"),AND(OR(E86="Single Unit Short Haul",E86="Single Unit Long Haul"),E90="Distribution Center"),AND(E86<>"Combination Unit Short Haul",E90="Port")),0/0, IF(SUMPRODUCT((RRFs!$B$4:$B$35=E83)*OR(RRFs!$C$4:$C$35=E91,RRFs!$C$4:$C$35="A")*INDIRECT(VLOOKUP(E86&" "&H85,RRFs!$AO:$AP,2,FALSE)))=-999999,0/0, IF(OR(E83="B20 (Biodiesel)",E83="R100 (Renewable Diesel)"),H86*(1-(SUMPRODUCT((RRFs!$B$4:$B$35=E83)*OR(RRFs!$C$4:$C$35=E91,RRFs!$C$4:$C$35="A")*(INDIRECT(VLOOKUP(E86&" "&H85,RRFs!$AO:$AP,2,FALSE))<>-999999)*INDIRECT(VLOOKUP(E86&" "&H85,RRFs!$AO:$AP,2,FALSE))))), SUMPRODUCT((EFs!$A$4:$A$3351=E87)*(EFs!$B$4:$B$3351=VLOOKUP(E86,'Store Inputs'!$F:$G,2,FALSE))*(EFs!$C$4:$C$3351=VLOOKUP(E90,'Store Inputs'!$C:$D,2,FALSE))*(EFs!$D$4:$D$3351=E87)*(EFs!$E$4:$E$3351=E91)*EFs!$F$4:$F$3351*EFs!$P$4:$P$3351) / SUMPRODUCT((EFs!$A$4:$A$3351=E87)*(EFs!$B$4:$B$3351=VLOOKUP(E86,'Store Inputs'!$F:$G,2,FALSE))*(EFs!$C$4:$C$3351=VLOOKUP(E90,'Store Inputs'!$C:$D,2,FALSE))*(EFs!$D$4:$D$3351=E87)*(EFs!$E$4:$E$3351=E91)*EFs!$P$4:$P$3351) * (1-(SUMPRODUCT((RRFs!$B$4:$B$35=E83)*OR(RRFs!$C$4:$C$35=E91,RRFs!$C$4:$C$35="A")*(INDIRECT(VLOOKUP(E86&" "&H85,RRFs!$AO:$AP,2,FALSE))<>-999999)*INDIRECT(VLOOKUP(E86&" "&H85,RRFs!$AO:$AP,2,FALSE)))))))), 0) -> 0 | I87: =IFERROR( IF(OR(E83=0,AND(E86<>"Single Unit Short Haul",E91="G"),AND(OR(E83="B20 (Biodiesel)",E83="R100 (Renewable Diesel)"),E91="G"),AND(OR(E86="Single Unit Short Haul",E86="Single Unit Long Haul"),E90="Distribution Center"),AND(E86<>"Combination Unit Short Haul",E90="Port")),0/0, IF(SUMPRODUCT((RRFs!$B$4:$B$35=E83)*OR(RRFs!$C$4:$C$35=E91,RRFs!$C$4:$C$35="A")*INDIRECT(VLOOKUP(E86&" "&I85,RRFs!$AO:$AP,2,FALSE)))=-999999,0/0, IF(OR(E83="B20 (Biodiesel)",E83="R100 (Renewable Diesel)"),I86*(1-(SUMPRODUCT((RRFs!$B$4:$B$35=E83)*OR(RRFs!$C$4:$C$35=E91,RRFs!$C$4:$C$35="A")*(INDIRECT(VLOOKUP(E86&" "&I85,RRFs!$AO:$AP,2,FALSE))<>-999999)*INDIRECT(VLOOKUP(E86&" "&I85,RRFs!$AO:$AP,2,FALSE))))), SUMPRODUCT((EFs!$A$4:$A$3351=E87)*(EFs!$B$4:$B$3351=VLOOKUP(E86,'Store Inputs'!$F:$G,2,FALSE))*(EFs!$C$4:$C$3351=VLOOKUP(E90,'Store Inputs'!$C:$D,2,FALSE))*(EFs!$D$4:$D$3351=E87)*(EFs!$E$4:$E$3351=E91)*EFs!$G$4:$G$3351*EFs!$P$4:$P$3351) / SUMPRODUCT((EFs!$A$4:$A$3351=E87)*(EFs!$B$4:$B$3351=VLOOKUP(E86,'Store Inputs'!$F:$G,2,FALSE))*(EFs!$C$4:$C$3351=VLOOKUP(E90,'Store Inputs'!$C:$D,2,FALSE))*(EFs!$D$4:$D$3351=E87)*(EFs!$E$4:$E$3351=E91)*EFs!$P$4:$P$3351) * (1-(SUMPRODUCT((RRFs!$B$4:$B$35=E83)*OR(RRFs!$C$4:$C$35=E91,RRFs!$C$4:$C$35="A")*(INDIRECT(VLOOKUP(E86&" "&I85,RRFs!$AO:$AP,2,FALSE))<>-999999)*INDIRECT(VLOOKUP(E86&" "&I85,RRFs!$AO:$AP,2,FALSE)))))))), 0) -> 0 | J87: =IFERROR( IF(OR(E83=0,AND(E86<>"Single Unit Short Haul",E91="G"),AND(OR(E83="B20 (Biodiesel)",E83="R100 (Renewable Diesel)"),E91="G"),AND(OR(E86="Single Unit Short Haul",E86="Single Unit Long Haul"),E90="Distribution Center"),AND(E86<>"Combination Unit Short Haul",E90="Port")),0/0, IF(SUMPRODUCT((RRFs!$B$4:$B$35=E83)*OR(RRFs!$C$4:$C$35=E91,RRFs!$C$4:$C$35="A")*INDIRECT(VLOOKUP(E86&" "&J85,RRFs!$AO:$AP,2,FALSE)))=-999999,0/0, IF(OR(E83="B20 (Biodiesel)",E83="R100 (Renewable Diesel)"),J86*(1-(SUMPRODUCT((RRFs!$B$4:$B$35=E83)*OR(RRFs!$C$4:$C$35=E91,RRFs!$C$4:$C$35="A")*(INDIRECT(VLOOKUP(E86&" "&J85,RRFs!$AO:$AP,2,FALSE))<>-999999)*INDIRECT(VLOOKUP(E86&" "&J85,RRFs!$AO:$AP,2,FALSE))))), SUMPRODUCT((EFs!$A$4:$A$3351=E87)*(EFs!$B$4:$B$3351=VLOOKUP(E86,'Store Inputs'!$F:$G,2,FALSE))*(EFs!$C$4:$C$3351=VLOOKUP(E90,'Store Inputs'!$C:$D,2,FALSE))*(EFs!$D$4:$D$3351=E87)*(EFs!$E$4:$E$3351=E91)*EFs!$H$4:$H$3351*EFs!$P$4:$P$3351) / SUMPRODUCT((EFs!$A$4:$A$3351=E87)*(EFs!$B$4:$B$3351=VLOOKUP(E86,'Store Inputs'!$F:$G,2,FALSE))*(EFs!$C$4:$C$3351=VLOOKUP(E90,'Store Inputs'!$C:$D,2,FALSE))*(EFs!$D$4:$D$3351=E87)*(EFs!$E$4:$E$3351=E91)*EFs!$P$4:$P$3351) * (1-(SUMPRODUCT((RRFs!$B$4:$B$35=E83)*OR(RRFs!$C$4:$C$35=E91,RRFs!$C$4:$C$35="A")*(INDIRECT(VLOOKUP(E86&" "&J85,RRFs!$AO:$AP,2,FALSE))<>-999999)*INDIRECT(VLOOKUP(E86&" "&J85,RRFs!$AO:$AP,2,FALSE)))))))), 0) -> 0 | K87: =IFERROR( IF(OR(E83=0,AND(E86<>"Single Unit Short Haul",E91="G"),AND(OR(E83="B20 (Biodiesel)",E83="R100 (Renewable Diesel)"),E91="G"),AND(OR(E86="Single Unit Short Haul",E86="Single Unit Long Haul"),E90="Distribution Center"),AND(E86<>"Combination Unit Short Haul",E90="Port")),0/0, IF(SUMPRODUCT((RRFs!$B$4:$B$35=E83)*OR(RRFs!$C$4:$C$35=E91,RRFs!$C$4:$C$35="A")*INDIRECT(VLOOKUP(E86&" "&K83,RRFs!$AO:$AP,2,FALSE)))=-999999,0/0, IF(OR(E83="B20 (Biodiesel)",E83="R100 (Renewable Diesel)"),K86*(1-(SUMPRODUCT((RRFs!$B$4:$B$35=E83)*OR(RRFs!$C$4:$C$35=E91,RRFs!$C$4:$C$35="A")*(INDIRECT(VLOOKUP(E86&" "&K83,RRFs!$AO:$AP,2,FALSE))<>-999999)*INDIRECT(VLOOKUP(E86&" "&K83,RRFs!$AO:$AP,2,FALSE))))), SUMPRODUCT((EFs!$A$4:$A$3351=E87)*(EFs!$B$4:$B$3351=VLOOKUP(E86,'Store Inputs'!$F:$G,2,FALSE))*(EFs!$C$4:$C$3351=VLOOKUP(E90,'Store Inputs'!$C:$D,2,FALSE))*(EFs!$D$4:$D$3351=E87)*(EFs!$E$4:$E$3351=E91)*EFs!$I$4:$I$3351*EFs!$P$4:$P$3351) / SUMPRODUCT((EFs!$A$4:$A$3351=E87)*(EFs!$B$4:$B$3351=VLOOKUP(E86,'Store Inputs'!$F:$G,2,FALSE))*(EFs!$C$4:$C$3351=VLOOKUP(E90,'Store Inputs'!$C:$D,2,FALSE))*(EFs!$D$4:$D$3351=E87)*(EFs!$E$4:$E$3351=E91)*EFs!$P$4:$P$3351) * (1+(SUMPRODUCT((RRFs!$B$4:$B$35=E83)*OR(RRFs!$C$4:$C$35=E91,RRFs!$C$4:$C$35="A")*(INDIRECT(VLOOKUP(E86&" "&K83,RRFs!$AO:$AP,2,FALSE))<>-999999)*INDIRECT(VLOOKUP(E86&" "&K83,RRFs!$AO:$AP,2,FALSE)))))))), 0) -> 0 | L87: =IF(E83<>"Electric",0,'1. Deployment, Part 4'!UserElectMixValue_1) -> 0 | M87: =IFERROR( IF(OR(E83=0,AND(E86<>"Single Unit Short Haul",E91="G"),AND(OR(E83="B20 (Biodiesel)",E83="R100 (Renewable Diesel)"),E91="G"),AND(OR(E86="Single Unit Short Haul",E86="Single Unit Long Haul"),E90="Distribution Center"),AND(E86<>"Combination Unit Short Haul",E90="Port")),0/0, IF(SUMPRODUCT((RRFs!$B$4:$B$35=E83)*OR(RRFs!$C$4:$C$35=E91,RRFs!$C$4:$C$35="A")*INDIRECT(VLOOKUP(E86&" "&H85,RRFs!$AO:$AP,2,FALSE)))=-999999,0/0, IF(OR(E83="B20 (Biodiesel)",E83="R100 (Renewable Diesel)"),M86, SUMPRODUCT((EFs!$A$4:$A$3351=E87)*(EFs!$B$4:$B$3351=VLOOKUP(E86,'Store Inputs'!$F:$G,2,FALSE))*(EFs!$C$4:$C$3351=VLOOKUP(E90,'Store Inputs'!$C:$D,2,FALSE))*(EFs!$D$4:$D$3351=E87)*(EFs!$E$4:$E$3351=E91)*EFs!$J$4:$J$3351*EFs!$P$4:$P$3351) / SUMPRODUCT((EFs!$A$4:$A$3351=E87)*(EFs!$B$4:$B$3351=VLOOKUP(E86,'Store Inputs'!$F:$G,2,FALSE))*(EFs!$C$4:$C$3351=VLOOKUP(E90,'Store Inputs'!$C:$D,2,FALSE))*(EFs!$D$4:$D$3351=E87)*(EFs!$E$4:$E$3351=E91)*EFs!$P$4:$P$3351) * IF(OR(E83="Hybrid",E83="Electric"),0.5,1)))), 0) -> 0 | N87: =IFERROR( IF(OR(E83=0,AND(E86<>"Single Unit Short Haul",E91="G"),AND(OR(E83="B20 (Biodiesel)",E83="R100 (Renewable Diesel)"),E91="G"),AND(OR(E86="Single Unit Short Haul",E86="Single Unit Long Haul"),E90="Distribution Center"),AND(E86<>"Combination Unit Short Haul",E90="Port")),0/0, IF(SUMPRODUCT((RRFs!$B$4:$B$35=E83)*OR(RRFs!$C$4:$C$35=E91,RRFs!$C$4:$C$35="A")*INDIRECT(VLOOKUP(E86&" "&H85,RRFs!$AO:$AP,2,FALSE)))=-999999,0/0, IF(OR(E83="B20 (Biodiesel)",E83="R100 (Renewable Diesel)"),N86, SUMPRODUCT((EFs!$A$4:$A$3351=E87)*(EFs!$B$4:$B$3351=VLOOKUP(E86,'Store Inputs'!$F:$G,2,FALSE))*(EFs!$C$4:$C$3351=VLOOKUP(E90,'Store Inputs'!$C:$D,2,FALSE))*(EFs!$D$4:$D$3351=E87)*(EFs!$E$4:$E$3351=E91)*EFs!$K$4:$K$3351*EFs!$P$4:$P$3351) / SUMPRODUCT((EFs!$A$4:$A$3351=E87)*(EFs!$B$4:$B$3351=VLOOKUP(E86,'Store Inputs'!$F:$G,2,FALSE))*(EFs!$C$4:$C$3351=VLOOKUP(E90,'Store Inputs'!$C:$D,2,FALSE))*(EFs!$D$4:$D$3351=E87)*(EFs!$E$4:$E$3351=E91)*EFs!$P$4:$P$3351)))), 0) -> 0 | O87: =IFERROR( IF(E96="-",0/0, IF(OR(E83=0,AND(E86<>"Single Unit Short Haul",E91="G"),AND(OR(E83="B20 (Biodiesel)",E83="R100 (Renewable Diesel)"),E91="G"),AND(OR(E86="Single Unit Short Haul",E86="Single Unit Long Haul"),E90="Distribution Center"),AND(E86<>"Combination Unit Short Haul",E90="Port")),0/0, IF(SUMPRODUCT((RRFs!$B$4:$B$35=E83)*OR(RRFs!$C$4:$C$35=E91,RRFs!$C$4:$C$35="A")*INDIRECT(VLOOKUP(E86&" "&O85,RRFs!$AO:$AP,2,FALSE)))=-999999,0/0, IF(OR(E83="B20 (Biodiesel)",E83="R100 (Renewable Diesel)"),O86*(1-(SUMPRODUCT((RRFs!$B$4:$B$35=E83)*OR(RRFs!$C$4:$C$35=E91,RRFs!$C$4:$C$35="A")*(INDIRECT(VLOOKUP(E86&" "&O85,RRFs!$AO:$AP,2,FALSE))<>-999999)*INDIRECT(VLOOKUP(E86&" "&O85,RRFs!$AO:$AP,2,FALSE))))), SUMPRODUCT((EFs!$A$4:$A$3351=E87)*(EFs!$B$4:$B$3351=VLOOKUP(E86,'Store Inputs'!$F:$G,2,FALSE))*(EFs!$C$4:$C$3351=VLOOKUP(E90,'Store Inputs'!$C:$D,2,FALSE))*(EFs!$D$4:$D$3351=E87)*(EFs!$E$4:$E$3351=E91)*EFs!$L$4:$L$3351*EFs!$P$4:$P$3351) / SUMPRODUCT((EFs!$A$4:$A$3351=E87)*(EFs!$B$4:$B$3351=VLOOKUP(E86,'Store Inputs'!$F:$G,2,FALSE))*(EFs!$C$4:$C$3351=VLOOKUP(E90,'Store Inputs'!$C:$D,2,FALSE))*(EFs!$D$4:$D$3351=E87)*(EFs!$E$4:$E$3351=E91)*EFs!$P$4:$P$3351) * (1-(SUMPRODUCT((RRFs!$B$4:$B$35=E83)*OR(RRFs!$C$4:$C$35=E91,RRFs!$C$4:$C$35="A")*(INDIRECT(VLOOKUP(E86&" "&O85,RRFs!$AO:$AP,2,FALSE))<>-999999)*INDIRECT(VLOOKUP(E86&" "&O85,RRFs!$AO:$AP,2,FALSE))))))))), 0) -> 0 | P87: =IFERROR( IF(E96="-",0/0, IF(OR(E83=0,AND(E86<>"Single Unit Short Haul",E91="G"),AND(OR(E83="B20 (Biodiesel)",E83="R100 (Renewable Diesel)"),E91="G"),AND(OR(E86="Single Unit Short Haul",E86="Single Unit Long Haul"),E90="Distribution Center"),AND(E86<>"Combination Unit Short Haul",E90="Port")),0/0, IF(SUMPRODUCT((RRFs!$B$4:$B$35=E83)*OR(RRFs!$C$4:$C$35=E91,RRFs!$C$4:$C$35="A")*INDIRECT(VLOOKUP(E86&" "&P85,RRFs!$AO:$AP,2,FALSE)))=-999999,0/0, IF(OR(E83="B20 (Biodiesel)",E83="R100 (Renewable Diesel)"),P86*(1-(SUMPRODUCT((RRFs!$B$4:$B$35=E83)*OR(RRFs!$C$4:$C$35=E91,RRFs!$C$4:$C$35="A")*(INDIRECT(VLOOKUP(E86&" "&P85,RRFs!$AO:$AP,2,FALSE))<>-999999)*INDIRECT(VLOOKUP(E86&" "&P85,RRFs!$AO:$AP,2,FALSE))))), SUMPRODUCT((EFs!$A$4:$A$3351=E87)*(EFs!$B$4:$B$3351=VLOOKUP(E86,'Store Inputs'!$F:$G,2,FALSE))*(EFs!$C$4:$C$3351=VLOOKUP(E90,'Store Inputs'!$C:$D,2,FALSE))*(EFs!$D$4:$D$3351=E87)*(EFs!$E$4:$E$3351=E91)*EFs!$M$4:$M$3351*EFs!$P$4:$P$3351) / SUMPRODUCT((EFs!$A$4:$A$3351=E87)*(EFs!$B$4:$B$3351=VLOOKUP(E86,'Store Inputs'!$F:$G,2,FALSE))*(EFs!$C$4:$C$3351=VLOOKUP(E90,'Store Inputs'!$C:$D,2,FALSE))*(EFs!$D$4:$D$3351=E87)*(EFs!$E$4:$E$3351=E91)*EFs!$P$4:$P$3351) * (1-(SUMPRODUCT((RRFs!$B$4:$B$35=E83)*OR(RRFs!$C$4:$C$35=E91,RRFs!$C$4:$C$35="A")*(INDIRECT(VLOOKUP(E86&" "&P85,RRFs!$AO:$AP,2,FALSE))<>-999999)*INDIRECT(VLOOKUP(E86&" "&P85,RRFs!$AO:$AP,2,FALSE))))))))), 0) -> 0 | Q87: =IFERROR( IF(E96="-",0/0, IF(OR(E83=0,AND(E86<>"Single Unit Short Haul",E91="G"),AND(OR(E83="B20 (Biodiesel)",E83="R100 (Renewable Diesel)"),E91="G"),AND(OR(E86="Single Unit Short Haul",E86="Single Unit Long Haul"),E90="Distribution Center"),AND(E86<>"Combination Unit Short Haul",E90="Port")),0/0, IF(SUMPRODUCT((RRFs!$B$4:$B$35=E83)*OR(RRFs!$C$4:$C$35=E91,RRFs!$C$4:$C$35="A")*INDIRECT(VLOOKUP(E86&" "&Q85,RRFs!$AO:$AP,2,FALSE)))=-999999,0/0, IF(OR(E83="B20 (Biodiesel)",E83="R100 (Renewable Diesel)"),Q86*(1-(SUMPRODUCT((RRFs!$B$4:$B$35=E83)*OR(RRFs!$C$4:$C$35=E91,RRFs!$C$4:$C$35="A")*(INDIRECT(VLOOKUP(E86&" "&Q85,RRFs!$AO:$AP,2,FALSE))<>-999999)*INDIRECT(VLOOKUP(E86&" "&Q85,RRFs!$AO:$AP,2,FALSE))))), SUMPRODUCT((EFs!$A$4:$A$3351=E87)*(EFs!$B$4:$B$3351=VLOOKUP(E86,'Store Inputs'!$F:$G,2,FALSE))*(EFs!$C$4:$C$3351=VLOOKUP(E90,'Store Inputs'!$C:$D,2,FALSE))*(EFs!$D$4:$D$3351=E87)*(EFs!$E$4:$E$3351=E91)*EFs!$N$4:$N$3351*EFs!$P$4:$P$3351) / SUMPRODUCT((EFs!$A$4:$A$3351=E87)*(EFs!$B$4:$B$3351=VLOOKUP(E86,'Store Inputs'!$F:$G,2,FALSE))*(EFs!$C$4:$C$3351=VLOOKUP(E90,'Store Inputs'!$C:$D,2,FALSE))*(EFs!$D$4:$D$3351=E87)*(EFs!$E$4:$E$3351=E91)*EFs!$P$4:$P$3351) * (1-(SUMPRODUCT((RRFs!$B$4:$B$35=E83)*OR(RRFs!$C$4:$C$35=E91,RRFs!$C$4:$C$35="A")*(INDIRECT(VLOOKUP(E86&" "&Q85,RRFs!$AO:$AP,2,FALSE))<>-999999)*INDIRECT(VLOOKUP(E86&" "&Q85,RRFs!$AO:$AP,2,FALSE))))))))), 0) -> 0 | R87: =IFERROR( IF(E96="-",0/0, IF(OR(E83=0,AND(E86<>"Single Unit Short Haul",E91="G"),AND(OR(E83="B20 (Biodiesel)",E83="R100 (Renewable Diesel)"),E91="G"),AND(OR(E86="Single Unit Short Haul",E86="Single Unit Long Haul"),E90="Distribution Center"),AND(E86<>"Combination Unit Short Haul",E90="Port")),0/0, IF(SUMPRODUCT((RRFs!$B$4:$B$35=E83)*OR(RRFs!$C$4:$C$35=E91,RRFs!$C$4:$C$35="A")*INDIRECT(VLOOKUP(E86&" "&R84,RRFs!$AO:$AP,2,FALSE)))=-999999,0/0, IF(OR(E83="B20 (Biodiesel)",E83="R100 (Renewable Diesel)"),R86*(1-(SUMPRODUCT((RRFs!$B$4:$B$35=E83)*OR(RRFs!$C$4:$C$35=E91,RRFs!$C$4:$C$35="A")*(INDIRECT(VLOOKUP(E86&" "&R84,RRFs!$AO:$AP,2,FALSE))<>-999999)*INDIRECT(VLOOKUP(E86&" "&R84,RRFs!$AO:$AP,2,FALSE))))), SUMPRODUCT((EFs!$A$4:$A$3351=E87)*(EFs!$B$4:$B$3351=VLOOKUP(E86,'Store Inputs'!$F:$G,2,FALSE))*(EFs!$C$4:$C$3351=VLOOKUP(E90,'Store Inputs'!$C:$D,2,FALSE))*(EFs!$D$4:$D$3351=E87)*(EFs!$E$4:$E$3351=E91)*EFs!$O$4:$O$3351*EFs!$P$4:$P$3351) / SUMPRODUCT((EFs!$A$4:$A$3351=E87)*(EFs!$B$4:$B$3351=VLOOKUP(E86,'Store Inputs'!$F:$G,2,FALSE))*(EFs!$C$4:$C$3351=VLOOKUP(E90,'Store Inputs'!$C:$D,2,FALSE))*(EFs!$D$4:$D$3351=E87)*(EFs!$E$4:$E$3351=E91)*EFs!$P$4:$P$3351) * (1-(SUMPRODUCT((RRFs!$B$4:$B$35=E83)*OR(RRFs!$C$4:$C$35=E91,RRFs!$C$4:$C$35="A")*(INDIRECT(VLOOKUP(E86&" "&R84,RRFs!$AO:$AP,2,FALSE))<>-999999)*INDIRECT(VLOOKUP(E86&" "&R84,RRFs!$AO:$AP,2,FALSE))))))))), 0) -> 0 | S87: =IFERROR( SUMIFS('1. Deployment, Part 5'!E:E,'1. Deployment, Part 5'!B:B,E86,'1. Deployment, Part 5'!C:C,IF(E91="D","Diesel",IF(E91="G","Gasoline",E91)),'1. Deployment, Part 5'!D:D,E83,'1. Deployment, Part 5'!E:E,"<>'N/A",'1. Deployment, Part 5'!E:E,"<>'-'") + IF(SUMPRODUCT((RRFs!$B$4:$B$35=E83)*OR(RRFs!$C$4:$C$35=IF(E91="D","Diesel",IF(E91="G","Gasoline",E91)),RRFs!$C$4:$C$35="A")*INDIRECT(VLOOKUP(E86&" Inc O&M",RRFs!$AO:$AP,2,FALSE)))=-999999,0/0,SUMPRODUCT((RRFs!$B$4:$B$35=E83)*OR(RRFs!$C$4:$C$35=IF(E91="D","Diesel",IF(E91="G","Gasoline",E91)),RRFs!$C$4:$C$35="A")*INDIRECT(VLOOKUP(E86&" Inc O&M",RRFs!$AO:$AP,2,FALSE)))), 0) -> 0
D88: Model Year Modification Window: | E88: =IF(OR(E83="B20 (Biodiesel)",E83="R100 (Renewable Diesel)"),Deployment_Year-30,INDEX(Deployment_Beginning_Year_of_Modification,5,1)) -> 0
E89: =IF(OR(E83="B20 (Biodiesel)",E83="R100 (Renewable Diesel)"),Deployment_Year,INDEX(Deployment_End_Year_of_Modification,5,1)) -> 0 | G89: FLEET: | H89: Short Tons Emiss./Year | K89: Fuel (gal/yr GGE or DGE) | L89: Annual Costs
D90: Area of Interest: | E90: =Deployment_GeographicScale -> State | G90: Case | H90: NOx | I90: PM2.5 | J90: CO2 | L90: Capital | M90: Fuel | N90: Total
D91: Baseline Fuel (D=Diesel, G=Gasoline), Cost and Units: | E91: =INDEX(Deployment_Fuels,5,1) -> 0 | G91: Baseline | H91: =IFERROR( E94*( (H86*E95) + (IF(E96="-",0,O86*E96)) ) * GramToTon, 0) -> 0 | I91: =IFERROR( E94*( ((I86+M86+N86)*E95) + (IF(E96="-",0,P86*E96)) ) * GramToTon, 0) -> 0 | J91: =IFERROR( E94*( (J86*E95) + (IF(E96="-",0,Q86*E96)) ) * GramToTon, 0) -> 0 | K91: =IFERROR( SUM((1/K86)*E95,(IF(E96="-",0,R86*E96))) * E94, 0) -> 0 | L91: 0 | M91: =IFERROR( K91*E92, 0) -> 0 | N91: =SUM(L91:M91) -> 0
E92: =IF(E91="G",VLOOKUP("Gasoline",Deployment_Fuel_Type_Cost_and_Unit,2,0), IF(E91="D",VLOOKUP("Diesel",Deployment_Fuel_Type_Cost_and_Unit,2,0),NA())) ->  | G92: Modified | H92: =IFERROR( E94*( (H87*E95) + (IF(E96="-",0,O87*E96)) ) * GramToTon, 0) -> 0 | I92: =IFERROR( E94*( ((I87+M87+N87)*E95) + (IF(E96="-",0,P87*E96)) ) * GramToTon, 0) -> 0 | J92: =IFERROR( E94*( (J87*E95) + (IF(E96="-",0,Q87*E96)) + IF(L87=0,0,L87*IF(E91="G",kwh_per_GGE,IF(E91="D",kwh_per_DGE,0/0))*(E95/K87)) ) * GramToTon, 0) -> 0 | K92: =IFERROR( SUM((1/K87)*E95,(IF(E96="-",0,R87*E96))) * E94, 0) -> 0 | L92: =IFERROR( (S87*E94) / E97, 0) -> 0 | M92: =IFERROR( K92*E84, 0) -> 0 | N92: =SUM(L92:M92) -> 0
E93: =IF(E91="G",VLOOKUP("Gasoline",Deployment_Fuel_Type_Cost_and_Unit,3,0), IF(E91="D",VLOOKUP("Diesel",Deployment_Fuel_Type_Cost_and_Unit,3,0),NA())) ->  | G93: Difference | H93: =IFERROR( IF((SUMPRODUCT((RRFs!$B$4:$B$35=E83)*OR(RRFs!$C$4:$C$35=E91,RRFs!$C$4:$C$35="A")*INDIRECT(VLOOKUP(E86&" "&H85,RRFs!$AO:$AP,2,FALSE))))=-999999,0/0, IFERROR(H92-H91,0)), 0) -> 0 | I93: =IFERROR( IF((SUMPRODUCT((RRFs!$B$4:$B$35=E83)*OR(RRFs!$C$4:$C$35=E91,RRFs!$C$4:$C$35="A")*INDIRECT(VLOOKUP(E86&" "&H85,RRFs!$AO:$AP,2,FALSE))))=-999999,0/0, IFERROR(I92-I91,0)), 0) -> 0 | J93: =IFERROR( IF((SUMPRODUCT((RRFs!$B$4:$B$35=E83)*OR(RRFs!$C$4:$C$35=E91,RRFs!$C$4:$C$35="A")*INDIRECT(VLOOKUP(E86&" "&H85,RRFs!$AO:$AP,2,FALSE))))=-999999,0/0, IFERROR(J92-J91,0)), 0) -> 0 | K93: =IFERROR(IF((SUMPRODUCT((RRFs!$B$4:$B$35=E83)*OR(RRFs!$C$4:$C$35=E91,RRFs!$C$4:$C$35="A")*INDIRECT(VLOOKUP(E86&" "&H85,RRFs!$AO:$AP,2,FALSE))))=-999999,0,IFERROR(K92-K91,0)),0) -> 0 | L93: =IFERROR(IF((SUMPRODUCT((RRFs!$B$4:$B$35=E83)*OR(RRFs!$C$4:$C$35=E91,RRFs!$C$4:$C$35="A")*INDIRECT(VLOOKUP(E86&" "&H85,RRFs!$AO:$AP,2,FALSE))))=-999999,0,IFERROR(L92-L91,0)),0) -> 0 | M93: =IFERROR(IF((SUMPRODUCT((RRFs!$B$4:$B$35=E83)*OR(RRFs!$C$4:$C$35=E91,RRFs!$C$4:$C$35="A")*INDIRECT(VLOOKUP(E86&" "&H85,RRFs!$AO:$AP,2,FALSE))))=-999999,0,IFERROR(M92-M91,0)),0) -> 0 | N93: =SUM(L93:M93) -> 0
D94: Number to Modify/Replace: | E94: =VLOOKUP(E86&E91,Deployment_NumberToReplaceByTruckAndFuelType,6,0) ->  | G94: Cost Effect ($/short ton) | H94: =IF(H93>0,"Emiss. Increase",IFERROR( (-1*N93)/H93, 0)) -> 0 | I94: =IF(I93>0,"Emiss. Increase",IFERROR( (-1*N93)/I93, 0)) -> 0 | J94: =IF(J93>0,"Emiss. Increase",IFERROR( (-1*N93)/J93, 0)) -> 0
D95: Average Annual Mileage: | E95: =VLOOKUP(E86&E91,Deployment_AverageAnnualMilesByTruckAndFuelType,7,0) -> 
D96: Average Annual Idle Hours: | E96: =IF(VLOOKUP(E86&E91,Deployment_Average_Annual_Idle_Hours_by_Truck_and_Fuel_Type,12,0)=0,"-",VLOOKUP(E86&E91,Deployment_Average_Annual_Idle_Hours_by_Truck_and_Fuel_Type,12,0)) -> 
D97: Useful Life of Strategy (years): | E97: =SUMPRODUCT((RRFs!$B$4:$B$35=E83)*OR(RRFs!$C$4:$C$35=E91,RRFs!$C$4:$C$35="A")*INDIRECT(VLOOKUP(E86&" Project Lifetime",RRFs!$AO:$AP,2,FALSE))) -> 
D98: ="For Further Information refer to page "&VLOOKUP(RIGHT($A$1,LEN($A$1)-14)&VLOOKUP(E83,FuelCrosswalk,2,FALSE)&"1",ModType_Mod_Hyperlinks_and_GuidePgs,4,0)&" of the NCHRP 25-46 Guidance and the following weblinks" -> 
C99: =IFERROR(HYPERLINK(U99,V99),"") ->  | U99: =IFERROR(VLOOKUP(RIGHT($A$1,LEN($A$1)-14)&VLOOKUP(E83,FuelCrosswalk,2,FALSE)&"1",ModType_Mod_Hyperlinks_and_GuidePgs,3,0),"") ->  | V99: =IFERROR( VLOOKUP(RIGHT($A$1,LEN($A$1)-14)&VLOOKUP(E83,FuelCrosswalk,2,FALSE)&"1",ModType_Mod_Hyperlinks_and_GuidePgs,2,0),"") -> 
C100: =IFERROR(HYPERLINK(U100,V100),"") ->  | U100: =IFERROR(VLOOKUP(RIGHT($A$1,LEN($A$1)-14)&VLOOKUP(E83,FuelCrosswalk,2,FALSE)&"2",ModType_Mod_Hyperlinks_and_GuidePgs,3,0),"") ->  | V100: =IFERROR( VLOOKUP(RIGHT($A$1,LEN($A$1)-14)&VLOOKUP(E83,FuelCrosswalk,2,FALSE)&"2",ModType_Mod_Hyperlinks_and_GuidePgs,2,0),"") -> 
C101: =IFERROR(HYPERLINK(U101,V101),"") ->  | U101: =IFERROR(VLOOKUP(RIGHT($A$1,LEN($A$1)-14)&VLOOKUP(E83,FuelCrosswalk,2,FALSE)&"3",ModType_Mod_Hyperlinks_and_GuidePgs,3,0),"") ->  | V101: =IFERROR( VLOOKUP(RIGHT($A$1,LEN($A$1)-14)&VLOOKUP(E83,FuelCrosswalk,2,FALSE)&"3",ModType_Mod_Hyperlinks_and_GuidePgs,2,0),"") -> 
C102: =IFERROR(HYPERLINK(U102,V102),"") ->  | U102: =IFERROR(VLOOKUP(RIGHT($A$1,LEN($A$1)-14)&VLOOKUP(E83,FuelCrosswalk,2,FALSE)&"4",ModType_Mod_Hyperlinks_and_GuidePgs,3,0),"") ->  | V102: =IFERROR( VLOOKUP(RIGHT($A$1,LEN($A$1)-14)&E83&"4",ModType_Mod_Hyperlinks_and_GuidePgs,2,0),"") -> 
D103: Modification: | E103: =INDEX(Deployment_Specific_Modifications,2,1) -> DPF | H103: Running EFs (g/mi) | K103: Fuel | L103: Power Plant EFs for Electric Vehicles | M103: PM2.5 (g/mi) | O103: Extended Idle | S103: Cost
D104: Cost and Units of Alternative Fuel: | E104: =IF(E103="Hybrid", IF(E111="D",VLOOKUP("Diesel",Deployment_Fuel_Type_Cost_and_Unit,2,0), IF(E111="G",VLOOKUP("Gasoline",Deployment_Fuel_Type_Cost_and_Unit,2,0),NA())), IF(VLOOKUP(E106&E111,Deployment_Fuel_by_Truck_and_Fuel_Types,4,0)="D", VLOOKUP(VLOOKUP(E103,FuelCrosswalk,2,FALSE),Deployment_Fuel_Type_Cost_and_Unit,2,0)* (SUMIFS(Defaults!$W:$W,Defaults!$U:$U,VLOOKUP(E103,FuelCrosswalk,2,FALSE),Defaults!$V:$V,"DGE")/ SUMIFS(Defaults!$W:$W,Defaults!$U:$U,VLOOKUP(E103,FuelCrosswalk,2,FALSE),Defaults!$V:$V,VLOOKUP(VLOOKUP(E103,FuelCrosswalk,2,FALSE),Deployment_Fuel_Type_Cost_and_Unit,3,0))), IF(VLOOKUP(E106&E111,Deployment_Fuel_by_Truck_and_Fuel_Types,4,0)="G", VLOOKUP(VLOOKUP(E103,FuelCrosswalk,2,FALSE),Deployment_Fuel_Type_Cost_and_Unit,2,0)* (SUMIFS(Defaults!$W:$W,Defaults!$U:$U,VLOOKUP(E103,FuelCrosswalk,2,FALSE),Defaults!$V:$V,"GGE")/ SUMIFS(Defaults!$W:$W,Defaults!$U:$U,VLOOKUP(E103,FuelCrosswalk,2,FALSE),Defaults!$V:$V,VLOOKUP(VLOOKUP(E103,FuelCrosswalk,2,FALSE),Deployment_Fuel_Type_Cost_and_Unit,3,0))),NA() ))) ->  | G104: PER TRUCK: | O104: Emissions (g/hr) | R104: Fuel
E105: =IF(E111="G","GGE","DGE") -> DGE | G105: Case | H105: NOx | I105: PM2.5 | J105: CO2 | K105: mi/gal | L105: g CO2/kWh | M105: Brake | N105: Tire | O105: NOx | P105: PM2.5 | Q105: CO2 | R105: (gal/hr)
D106: Type of Truck: | E106: =INDEX(Deployment_TruckTypes,1,1) -> Single Unit Short Haul | G106: Baseline | H106: =IFERROR( IF(OR(E103=0,AND(E106<>"Single Unit Short Haul",E111="G"),AND(OR(E103="B20 (Biodiesel)",E103="R100 (Renewable Diesel)"),E111="G"),AND(OR(E106="Single Unit Short Haul",E106="Single Unit Long Haul"),E110="Distribution Center"),AND(E106<>"Combination Unit Short Haul",E110="Port")),0/0, IF(SUMPRODUCT((RRFs!$B$4:$B$35=E103)*OR(RRFs!$C$4:$C$35=E111,RRFs!$C$4:$C$35="A")*INDIRECT(VLOOKUP(E106&" "&H105,RRFs!$AO:$AP,2,FALSE)))=-999999,0/0, SUMPRODUCT((EFs!$A$4:$A$3351=E107)*(EFs!$B$4:$B$3351=VLOOKUP(E106,'Store Inputs'!$F:$G,2,FALSE))*(EFs!$C$4:$C$3351=VLOOKUP(E110,'Store Inputs'!$C:$D,2,FALSE))*(EFs!$D$4:$D$3351>=E108)*(EFs!$D$4:$D$3351<=E109)*(EFs!$E$4:$E$3351=E111)*EFs!$F$4:$F$3351*EFs!$P$4:$P$3351) / SUMPRODUCT((EFs!$A$4:$A$3351=E107)*(EFs!$B$4:$B$3351=VLOOKUP(E106,'Store Inputs'!$F:$G,2,FALSE))*(EFs!$C$4:$C$3351=VLOOKUP(E110,'Store Inputs'!$C:$D,2,FALSE))*(EFs!$D$4:$D$3351>=E108)*(EFs!$D$4:$D$3351<=E109)*(EFs!$E$4:$E$3351=E111)*EFs!$P$4:$P$3351))), 0) -> 1.823352215 | I106: =IFERROR( IF(OR(E103=0,AND(E106<>"Single Unit Short Haul",E111="G"),AND(OR(E103="B20 (Biodiesel)",E103="R100 (Renewable Diesel)"),E111="G"),AND(OR(E106="Single Unit Short Haul",E106="Single Unit Long Haul"),E110="Distribution Center"),AND(E106<>"Combination Unit Short Haul",E110="Port")),0/0, IF(SUMPRODUCT((RRFs!$B$4:$B$35=E103)*OR(RRFs!$C$4:$C$35=E111,RRFs!$C$4:$C$35="A")*INDIRECT(VLOOKUP(E106&" "&I105,RRFs!$AO:$AP,2,FALSE)))=-999999,0/0, SUMPRODUCT((EFs!$A$4:$A$3351=E107)*(EFs!$B$4:$B$3351=VLOOKUP(E106,'Store Inputs'!$F:$G,2,FALSE))*(EFs!$C$4:$C$3351=VLOOKUP(E110,'Store Inputs'!$C:$D,2,FALSE))*(EFs!$D$4:$D$3351>=E108)*(EFs!$D$4:$D$3351<=E109)*(EFs!$E$4:$E$3351=E111)*EFs!$G$4:$G$3351*EFs!$P$4:$P$3351) / SUMPRODUCT((EFs!$A$4:$A$3351=E107)*(EFs!$B$4:$B$3351=VLOOKUP(E106,'Store Inputs'!$F:$G,2,FALSE))*(EFs!$C$4:$C$3351=VLOOKUP(E110,'Store Inputs'!$C:$D,2,FALSE))*(EFs!$D$4:$D$3351>=E108)*(EFs!$D$4:$D$3351<=E109)*(EFs!$E$4:$E$3351=E111)*EFs!$P$4:$P$3351))), 0) -> 0.05678654044 | J106: =IFERROR( IF(OR(E103=0,AND(E106<>"Single Unit Short Haul",E111="G"),AND(OR(E103="B20 (Biodiesel)",E103="R100 (Renewable Diesel)"),E111="G"),AND(OR(E106="Single Unit Short Haul",E106="Single Unit Long Haul"),E110="Distribution Center"),AND(E106<>"Combination Unit Short Haul",E110="Port")),0/0, IF(SUMPRODUCT((RRFs!$B$4:$B$35=E103)*OR(RRFs!$C$4:$C$35=E111,RRFs!$C$4:$C$35="A")*INDIRECT(VLOOKUP(E106&" "&J105,RRFs!$AO:$AP,2,FALSE)))=-999999,0/0, SUMPRODUCT((EFs!$A$4:$A$3351=E107)*(EFs!$B$4:$B$3351=VLOOKUP(E106,'Store Inputs'!$F:$G,2,FALSE))*(EFs!$C$4:$C$3351=VLOOKUP(E110,'Store Inputs'!$C:$D,2,FALSE))*(EFs!$D$4:$D$3351>=E108)*(EFs!$D$4:$D$3351<=E109)*(EFs!$E$4:$E$3351=E111)*EFs!$H$4:$H$3351*EFs!$P$4:$P$3351) / SUMPRODUCT((EFs!$A$4:$A$3351=E107)*(EFs!$B$4:$B$3351=VLOOKUP(E106,'Store Inputs'!$F:$G,2,FALSE))*(EFs!$C$4:$C$3351=VLOOKUP(E110,'Store Inputs'!$C:$D,2,FALSE))*(EFs!$D$4:$D$3351>=E108)*(EFs!$D$4:$D$3351<=E109)*(EFs!$E$4:$E$3351=E111)*EFs!$P$4:$P$3351))), 0) -> 986.868947 | K106: =IFERROR( IF(OR(E103=0,AND(E106<>"Single Unit Short Haul",E111="G"),AND(OR(E103="B20 (Biodiesel)",E103="R100 (Renewable Diesel)"),E111="G"),AND(OR(E106="Single Unit Short Haul",E106="Single Unit Long Haul"),E110="Distribution Center"),AND(E106<>"Combination Unit Short Haul",E110="Port")),0/0, IF(SUMPRODUCT((RRFs!$B$4:$B$35=E103)*OR(RRFs!$C$4:$C$35=E111,RRFs!$C$4:$C$35="A")*INDIRECT(VLOOKUP(E106&" "&K103,RRFs!$AO:$AP,2,FALSE)))=-999999,0/0, SUMPRODUCT((EFs!$A$4:$A$3351=E107)*(EFs!$B$4:$B$3351=VLOOKUP(E106,'Store Inputs'!$F:$G,2,FALSE))*(EFs!$C$4:$C$3351=VLOOKUP(E110,'Store Inputs'!$C:$D,2,FALSE))*(EFs!$D$4:$D$3351>=E108)*(EFs!$D$4:$D$3351<=E109)*(EFs!$E$4:$E$3351=E111)*EFs!$I$4:$I$3351*EFs!$P$4:$P$3351) / SUMPRODUCT((EFs!$A$4:$A$3351=E107)*(EFs!$B$4:$B$3351=VLOOKUP(E106,'Store Inputs'!$F:$G,2,FALSE))*(EFs!$C$4:$C$3351=VLOOKUP(E110,'Store Inputs'!$C:$D,2,FALSE))*(EFs!$D$4:$D$3351>=E108)*(EFs!$D$4:$D$3351<=E109)*(EFs!$E$4:$E$3351=E111)*EFs!$P$4:$P$3351))), 0) -> 10.39632059 | L106: 0 | M106: =IFERROR( IF(OR(E103=0,AND(E106<>"Single Unit Short Haul",E111="G"),AND(OR(E103="B20 (Biodiesel)",E103="R100 (Renewable Diesel)"),E111="G"),AND(OR(E106="Single Unit Short Haul",E106="Single Unit Long Haul"),E110="Distribution Center"),AND(E106<>"Combination Unit Short Haul",E110="Port")),0/0, IF(SUMPRODUCT((RRFs!$B$4:$B$35=E103)*OR(RRFs!$C$4:$C$35=E111,RRFs!$C$4:$C$35="A")*INDIRECT(VLOOKUP(E106&" "&H105,RRFs!$AO:$AP,2,FALSE)))=-999999,0/0, SUMPRODUCT((EFs!$A$4:$A$3351=E107)*(EFs!$B$4:$B$3351=VLOOKUP(E106,'Store Inputs'!$F:$G,2,FALSE))*(EFs!$C$4:$C$3351=VLOOKUP(E110,'Store Inputs'!$C:$D,2,FALSE))*(EFs!$D$4:$D$3351>=E108)*(EFs!$D$4:$D$3351<=E109)*(EFs!$E$4:$E$3351=E111)*EFs!$J$4:$J$3351*EFs!$P$4:$P$3351) / SUMPRODUCT((EFs!$A$4:$A$3351=E107)*(EFs!$B$4:$B$3351=VLOOKUP(E106,'Store Inputs'!$F:$G,2,FALSE))*(EFs!$C$4:$C$3351=VLOOKUP(E110,'Store Inputs'!$C:$D,2,FALSE))*(EFs!$D$4:$D$3351>=E108)*(EFs!$D$4:$D$3351<=E109)*(EFs!$E$4:$E$3351=E111)*EFs!$P$4:$P$3351))), 0) -> 0.01133496621 | N106: =IFERROR( IF(OR(E103=0,AND(E106<>"Single Unit Short Haul",E111="G"),AND(OR(E103="B20 (Biodiesel)",E103="R100 (Renewable Diesel)"),E111="G"),AND(OR(E106="Single Unit Short Haul",E106="Single Unit Long Haul"),E110="Distribution Center"),AND(E106<>"Combination Unit Short Haul",E110="Port")),0/0, IF(SUMPRODUCT((RRFs!$B$4:$B$35=E103)*OR(RRFs!$C$4:$C$35=E111,RRFs!$C$4:$C$35="A")*INDIRECT(VLOOKUP(E106&" "&H105,RRFs!$AO:$AP,2,FALSE)))=-999999,0/0, SUMPRODUCT((EFs!$A$4:$A$3351=E107)*(EFs!$B$4:$B$3351=VLOOKUP(E106,'Store Inputs'!$F:$G,2,FALSE))*(EFs!$C$4:$C$3351=VLOOKUP(E110,'Store Inputs'!$C:$D,2,FALSE))*(EFs!$D$4:$D$3351>=E108)*(EFs!$D$4:$D$3351<=E109)*(EFs!$E$4:$E$3351=E111)*EFs!$K$4:$K$3351*EFs!$P$4:$P$3351) / SUMPRODUCT((EFs!$A$4:$A$3351=E107)*(EFs!$B$4:$B$3351=VLOOKUP(E106,'Store Inputs'!$F:$G,2,FALSE))*(EFs!$C$4:$C$3351=VLOOKUP(E110,'Store Inputs'!$C:$D,2,FALSE))*(EFs!$D$4:$D$3351>=E108)*(EFs!$D$4:$D$3351<=E109)*(EFs!$E$4:$E$3351=E111)*EFs!$P$4:$P$3351))), 0) -> 0.002354889134 | O106: =IFERROR( IF(E116="-",0/0, IF(OR(E103=0,AND(E106<>"Single Unit Short Haul",E111="G"),AND(OR(E103="B20 (Biodiesel)",E103="R100 (Renewable Diesel)"),E111="G"),AND(OR(E106="Single Unit Short Haul",E106="Single Unit Long Haul"),E110="Distribution Center"),AND(E106<>"Combination Unit Short Haul",E110="Port")),0/0, IF(SUMPRODUCT((RRFs!$B$4:$B$35=E103)*OR(RRFs!$C$4:$C$35=E111,RRFs!$C$4:$C$35="A")*INDIRECT(VLOOKUP(E106&" "&O105,RRFs!$AO:$AP,2,FALSE)))=-999999,0/0, SUMPRODUCT((EFs!$A$4:$A$3351=E107)*(EFs!$B$4:$B$3351=VLOOKUP(E106,'Store Inputs'!$F:$G,2,FALSE))*(EFs!$C$4:$C$3351=VLOOKUP(E110,'Store Inputs'!$C:$D,2,FALSE))*(EFs!$D$4:$D$3351>=E108)*(EFs!$D$4:$D$3351<=E109)*(EFs!$E$4:$E$3351=E111)*EFs!$L$4:$L$3351*EFs!$P$4:$P$3351) / SUMPRODUCT((EFs!$A$4:$A$3351=E107)*(EFs!$B$4:$B$3351=VLOOKUP(E106,'Store Inputs'!$F:$G,2,FALSE))*(EFs!$C$4:$C$3351=VLOOKUP(E110,'Store Inputs'!$C:$D,2,FALSE))*(EFs!$D$4:$D$3351>=E108)*(EFs!$D$4:$D$3351<=E109)*(EFs!$E$4:$E$3351=E111)*EFs!$P$4:$P$3351)))), 0) -> 0 | P106: =IFERROR( IF(E116="-",0/0, IF(OR(E103=0,AND(E106<>"Single Unit Short Haul",E111="G"),AND(OR(E103="B20 (Biodiesel)",E103="R100 (Renewable Diesel)"),E111="G"),AND(OR(E106="Single Unit Short Haul",E106="Single Unit Long Haul"),E110="Distribution Center"),AND(E106<>"Combination Unit Short Haul",E110="Port")),0/0, IF(SUMPRODUCT((RRFs!$B$4:$B$35=E103)*OR(RRFs!$C$4:$C$35=E111,RRFs!$C$4:$C$35="A")*INDIRECT(VLOOKUP(E106&" "&P105,RRFs!$AO:$AP,2,FALSE)))=-999999,0/0, SUMPRODUCT((EFs!$A$4:$A$3351=E107)*(EFs!$B$4:$B$3351=VLOOKUP(E106,'Store Inputs'!$F:$G,2,FALSE))*(EFs!$C$4:$C$3351=VLOOKUP(E110,'Store Inputs'!$C:$D,2,FALSE))*(EFs!$D$4:$D$3351>=E108)*(EFs!$D$4:$D$3351<=E109)*(EFs!$E$4:$E$3351=E111)*EFs!$M$4:$M$3351*EFs!$P$4:$P$3351) / SUMPRODUCT((EFs!$A$4:$A$3351=E107)*(EFs!$B$4:$B$3351=VLOOKUP(E106,'Store Inputs'!$F:$G,2,FALSE))*(EFs!$C$4:$C$3351=VLOOKUP(E110,'Store Inputs'!$C:$D,2,FALSE))*(EFs!$D$4:$D$3351>=E108)*(EFs!$D$4:$D$3351<=E109)*(EFs!$E$4:$E$3351=E111)*EFs!$P$4:$P$3351)))), 0) -> 0 | Q106: =IFERROR( IF(E116="-",0/0, IF(OR(E103=0,AND(E106<>"Single Unit Short Haul",E111="G"),AND(OR(E103="B20 (Biodiesel)",E103="R100 (Renewable Diesel)"),E111="G"),AND(OR(E106="Single Unit Short Haul",E106="Single Unit Long Haul"),E110="Distribution Center"),AND(E106<>"Combination Unit Short Haul",E110="Port")),0/0, IF(SUMPRODUCT((RRFs!$B$4:$B$35=E103)*OR(RRFs!$C$4:$C$35=E111,RRFs!$C$4:$C$35="A")*INDIRECT(VLOOKUP(E106&" "&Q105,RRFs!$AO:$AP,2,FALSE)))=-999999,0/0, SUMPRODUCT((EFs!$A$4:$A$3351=E107)*(EFs!$B$4:$B$3351=VLOOKUP(E106,'Store Inputs'!$F:$G,2,FALSE))*(EFs!$C$4:$C$3351=VLOOKUP(E110,'Store Inputs'!$C:$D,2,FALSE))*(EFs!$D$4:$D$3351>=E108)*(EFs!$D$4:$D$3351<=E109)*(EFs!$E$4:$E$3351=E111)*EFs!$N$4:$N$3351*EFs!$P$4:$P$3351) / SUMPRODUCT((EFs!$A$4:$A$3351=E107)*(EFs!$B$4:$B$3351=VLOOKUP(E106,'Store Inputs'!$F:$G,2,FALSE))*(EFs!$C$4:$C$3351=VLOOKUP(E110,'Store Inputs'!$C:$D,2,FALSE))*(EFs!$D$4:$D$3351>=E108)*(EFs!$D$4:$D$3351<=E109)*(EFs!$E$4:$E$3351=E111)*EFs!$P$4:$P$3351)))), 0) -> 0 | R106: =IFERROR( IF(E116="-",0/0, IF(OR(E103=0,AND(E106<>"Single Unit Short Haul",E111="G"),AND(OR(E103="B20 (Biodiesel)",E103="R100 (Renewable Diesel)"),E111="G"),AND(OR(E106="Single Unit Short Haul",E106="Single Unit Long Haul"),E110="Distribution Center"),AND(E106<>"Combination Unit Short Haul",E110="Port")),0/0, IF(SUMPRODUCT((RRFs!$B$4:$B$35=E103)*OR(RRFs!$C$4:$C$35=E111,RRFs!$C$4:$C$35="A")*INDIRECT(VLOOKUP(E106&" "&R104,RRFs!$AO:$AP,2,FALSE)))=-999999,0/0, SUMPRODUCT((EFs!$A$4:$A$3351=E107)*(EFs!$B$4:$B$3351=VLOOKUP(E106,'Store Inputs'!$F:$G,2,FALSE))*(EFs!$C$4:$C$3351=VLOOKUP(E110,'Store Inputs'!$C:$D,2,FALSE))*(EFs!$D$4:$D$3351>=E108)*(EFs!$D$4:$D$3351<=E109)*(EFs!$E$4:$E$3351=E111)*EFs!$O$4:$O$3351*EFs!$P$4:$P$3351) / SUMPRODUCT((EFs!$A$4:$A$3351=E107)*(EFs!$B$4:$B$3351=VLOOKUP(E106,'Store Inputs'!$F:$G,2,FALSE))*(EFs!$C$4:$C$3351=VLOOKUP(E110,'Store Inputs'!$C:$D,2,FALSE))*(EFs!$D$4:$D$3351>=E108)*(EFs!$D$4:$D$3351<=E109)*(EFs!$E$4:$E$3351=E111)*EFs!$P$4:$P$3351)))), 0) -> 0 | S106: 0
D107: Calendar Year: | E107: =Deployment_Year -> 2030 | G107: Modified | H107: =IFERROR( IF(OR(E103=0,AND(E106<>"Single Unit Short Haul",E111="G"),AND(OR(E103="B20 (Biodiesel)",E103="R100 (Renewable Diesel)"),E111="G"),AND(OR(E106="Single Unit Short Haul",E106="Single Unit Long Haul"),E110="Distribution Center"),AND(E106<>"Combination Unit Short Haul",E110="Port")),0/0, IF(SUMPRODUCT((RRFs!$B$4:$B$35=E103)*OR(RRFs!$C$4:$C$35=E111,RRFs!$C$4:$C$35="A")*INDIRECT(VLOOKUP(E106&" "&H105,RRFs!$AO:$AP,2,FALSE)))=-999999,0/0, IF(OR(E103="B20 (Biodiesel)",E103="R100 (Renewable Diesel)"),H106*(1-(SUMPRODUCT((RRFs!$B$4:$B$35=E103)*OR(RRFs!$C$4:$C$35=E111,RRFs!$C$4:$C$35="A")*(INDIRECT(VLOOKUP(E106&" "&H105,RRFs!$AO:$AP,2,FALSE))<>-999999)*INDIRECT(VLOOKUP(E106&" "&H105,RRFs!$AO:$AP,2,FALSE))))), SUMPRODUCT((EFs!$A$4:$A$3351=E107)*(EFs!$B$4:$B$3351=VLOOKUP(E106,'Store Inputs'!$F:$G,2,FALSE))*(EFs!$C$4:$C$3351=VLOOKUP(E110,'Store Inputs'!$C:$D,2,FALSE))*(EFs!$D$4:$D$3351=E107)*(EFs!$E$4:$E$3351=E111)*EFs!$F$4:$F$3351*EFs!$P$4:$P$3351) / SUMPRODUCT((EFs!$A$4:$A$3351=E107)*(EFs!$B$4:$B$3351=VLOOKUP(E106,'Store Inputs'!$F:$G,2,FALSE))*(EFs!$C$4:$C$3351=VLOOKUP(E110,'Store Inputs'!$C:$D,2,FALSE))*(EFs!$D$4:$D$3351=E107)*(EFs!$E$4:$E$3351=E111)*EFs!$P$4:$P$3351) * (1-(SUMPRODUCT((RRFs!$B$4:$B$35=E103)*OR(RRFs!$C$4:$C$35=E111,RRFs!$C$4:$C$35="A")*(INDIRECT(VLOOKUP(E106&" "&H105,RRFs!$AO:$AP,2,FALSE))<>-999999)*INDIRECT(VLOOKUP(E106&" "&H105,RRFs!$AO:$AP,2,FALSE)))))))), 0) -> 0.55911341 | I107: =IFERROR( IF(OR(E103=0,AND(E106<>"Single Unit Short Haul",E111="G"),AND(OR(E103="B20 (Biodiesel)",E103="R100 (Renewable Diesel)"),E111="G"),AND(OR(E106="Single Unit Short Haul",E106="Single Unit Long Haul"),E110="Distribution Center"),AND(E106<>"Combination Unit Short Haul",E110="Port")),0/0, IF(SUMPRODUCT((RRFs!$B$4:$B$35=E103)*OR(RRFs!$C$4:$C$35=E111,RRFs!$C$4:$C$35="A")*INDIRECT(VLOOKUP(E106&" "&I105,RRFs!$AO:$AP,2,FALSE)))=-999999,0/0, IF(OR(E103="B20 (Biodiesel)",E103="R100 (Renewable Diesel)"),I106*(1-(SUMPRODUCT((RRFs!$B$4:$B$35=E103)*OR(RRFs!$C$4:$C$35=E111,RRFs!$C$4:$C$35="A")*(INDIRECT(VLOOKUP(E106&" "&I105,RRFs!$AO:$AP,2,FALSE))<>-999999)*INDIRECT(VLOOKUP(E106&" "&I105,RRFs!$AO:$AP,2,FALSE))))), SUMPRODUCT((EFs!$A$4:$A$3351=E107)*(EFs!$B$4:$B$3351=VLOOKUP(E106,'Store Inputs'!$F:$G,2,FALSE))*(EFs!$C$4:$C$3351=VLOOKUP(E110,'Store Inputs'!$C:$D,2,FALSE))*(EFs!$D$4:$D$3351=E107)*(EFs!$E$4:$E$3351=E111)*EFs!$G$4:$G$3351*EFs!$P$4:$P$3351) / SUMPRODUCT((EFs!$A$4:$A$3351=E107)*(EFs!$B$4:$B$3351=VLOOKUP(E106,'Store Inputs'!$F:$G,2,FALSE))*(EFs!$C$4:$C$3351=VLOOKUP(E110,'Store Inputs'!$C:$D,2,FALSE))*(EFs!$D$4:$D$3351=E107)*(EFs!$E$4:$E$3351=E111)*EFs!$P$4:$P$3351) * (1-(SUMPRODUCT((RRFs!$B$4:$B$35=E103)*OR(RRFs!$C$4:$C$35=E111,RRFs!$C$4:$C$35="A")*(INDIRECT(VLOOKUP(E106&" "&I105,RRFs!$AO:$AP,2,FALSE))<>-999999)*INDIRECT(VLOOKUP(E106&" "&I105,RRFs!$AO:$AP,2,FALSE)))))))), 0) -> 0.001520553304 | J107: =IFERROR( IF(OR(E103=0,AND(E106<>"Single Unit Short Haul",E111="G"),AND(OR(E103="B20 (Biodiesel)",E103="R100 (Renewable Diesel)"),E111="G"),AND(OR(E106="Single Unit Short Haul",E106="Single Unit Long Haul"),E110="Distribution Center"),AND(E106<>"Combination Unit Short Haul",E110="Port")),0/0, IF(SUMPRODUCT((RRFs!$B$4:$B$35=E103)*OR(RRFs!$C$4:$C$35=E111,RRFs!$C$4:$C$35="A")*INDIRECT(VLOOKUP(E106&" "&J105,RRFs!$AO:$AP,2,FALSE)))=-999999,0/0, IF(OR(E103="B20 (Biodiesel)",E103="R100 (Renewable Diesel)"),J106*(1-(SUMPRODUCT((RRFs!$B$4:$B$35=E103)*OR(RRFs!$C$4:$C$35=E111,RRFs!$C$4:$C$35="A")*(INDIRECT(VLOOKUP(E106&" "&J105,RRFs!$AO:$AP,2,FALSE))<>-999999)*INDIRECT(VLOOKUP(E106&" "&J105,RRFs!$AO:$AP,2,FALSE))))), SUMPRODUCT((EFs!$A$4:$A$3351=E107)*(EFs!$B$4:$B$3351=VLOOKUP(E106,'Store Inputs'!$F:$G,2,FALSE))*(EFs!$C$4:$C$3351=VLOOKUP(E110,'Store Inputs'!$C:$D,2,FALSE))*(EFs!$D$4:$D$3351=E107)*(EFs!$E$4:$E$3351=E111)*EFs!$H$4:$H$3351*EFs!$P$4:$P$3351) / SUMPRODUCT((EFs!$A$4:$A$3351=E107)*(EFs!$B$4:$B$3351=VLOOKUP(E106,'Store Inputs'!$F:$G,2,FALSE))*(EFs!$C$4:$C$3351=VLOOKUP(E110,'Store Inputs'!$C:$D,2,FALSE))*(EFs!$D$4:$D$3351=E107)*(EFs!$E$4:$E$3351=E111)*EFs!$P$4:$P$3351) * (1-(SUMPRODUCT((RRFs!$B$4:$B$35=E103)*OR(RRFs!$C$4:$C$35=E111,RRFs!$C$4:$C$35="A")*(INDIRECT(VLOOKUP(E106&" "&J105,RRFs!$AO:$AP,2,FALSE))<>-999999)*INDIRECT(VLOOKUP(E106&" "&J105,RRFs!$AO:$AP,2,FALSE)))))))), 0) -> 901.6021653 | K107: =IFERROR( IF(OR(E103=0,AND(E106<>"Single Unit Short Haul",E111="G"),AND(OR(E103="B20 (Biodiesel)",E103="R100 (Renewable Diesel)"),E111="G"),AND(OR(E106="Single Unit Short Haul",E106="Single Unit Long Haul"),E110="Distribution Center"),AND(E106<>"Combination Unit Short Haul",E110="Port")),0/0, IF(SUMPRODUCT((RRFs!$B$4:$B$35=E103)*OR(RRFs!$C$4:$C$35=E111,RRFs!$C$4:$C$35="A")*INDIRECT(VLOOKUP(E106&" "&K103,RRFs!$AO:$AP,2,FALSE)))=-999999,0/0, IF(OR(E103="B20 (Biodiesel)",E103="R100 (Renewable Diesel)"),K106*(1-(SUMPRODUCT((RRFs!$B$4:$B$35=E103)*OR(RRFs!$C$4:$C$35=E111,RRFs!$C$4:$C$35="A")*(INDIRECT(VLOOKUP(E106&" "&K103,RRFs!$AO:$AP,2,FALSE))<>-999999)*INDIRECT(VLOOKUP(E106&" "&K103,RRFs!$AO:$AP,2,FALSE))))), SUMPRODUCT((EFs!$A$4:$A$3351=E107)*(EFs!$B$4:$B$3351=VLOOKUP(E106,'Store Inputs'!$F:$G,2,FALSE))*(EFs!$C$4:$C$3351=VLOOKUP(E110,'Store Inputs'!$C:$D,2,FALSE))*(EFs!$D$4:$D$3351=E107)*(EFs!$E$4:$E$3351=E111)*EFs!$I$4:$I$3351*EFs!$P$4:$P$3351) / SUMPRODUCT((EFs!$A$4:$A$3351=E107)*(EFs!$B$4:$B$3351=VLOOKUP(E106,'Store Inputs'!$F:$G,2,FALSE))*(EFs!$C$4:$C$3351=VLOOKUP(E110,'Store Inputs'!$C:$D,2,FALSE))*(EFs!$D$4:$D$3351=E107)*(EFs!$E$4:$E$3351=E111)*EFs!$P$4:$P$3351) * (1+(SUMPRODUCT((RRFs!$B$4:$B$35=E103)*OR(RRFs!$C$4:$C$35=E111,RRFs!$C$4:$C$35="A")*(INDIRECT(VLOOKUP(E106&" "&K103,RRFs!$AO:$AP,2,FALSE))<>-999999)*INDIRECT(VLOOKUP(E106&" "&K103,RRFs!$AO:$AP,2,FALSE)))))))), 0) -> 11.35633401 | L107: =IF(E103<>"Electric",0,'1. Deployment, Part 4'!UserElectMixValue_1) -> 0 | M107: =IFERROR( IF(OR(E103=0,AND(E106<>"Single Unit Short Haul",E111="G"),AND(OR(E103="B20 (Biodiesel)",E103="R100 (Renewable Diesel)"),E111="G"),AND(OR(E106="Single Unit Short Haul",E106="Single Unit Long Haul"),E110="Distribution Center"),AND(E106<>"Combination Unit Short Haul",E110="Port")),0/0, IF(SUMPRODUCT((RRFs!$B$4:$B$35=E103)*OR(RRFs!$C$4:$C$35=E111,RRFs!$C$4:$C$35="A")*INDIRECT(VLOOKUP(E106&" "&H105,RRFs!$AO:$AP,2,FALSE)))=-999999,0/0, IF(OR(E103="B20 (Biodiesel)",E103="R100 (Renewable Diesel)"),M106, SUMPRODUCT((EFs!$A$4:$A$3351=E107)*(EFs!$B$4:$B$3351=VLOOKUP(E106,'Store Inputs'!$F:$G,2,FALSE))*(EFs!$C$4:$C$3351=VLOOKUP(E110,'Store Inputs'!$C:$D,2,FALSE))*(EFs!$D$4:$D$3351=E107)*(EFs!$E$4:$E$3351=E111)*EFs!$J$4:$J$3351*EFs!$P$4:$P$3351) / SUMPRODUCT((EFs!$A$4:$A$3351=E107)*(EFs!$B$4:$B$3351=VLOOKUP(E106,'Store Inputs'!$F:$G,2,FALSE))*(EFs!$C$4:$C$3351=VLOOKUP(E110,'Store Inputs'!$C:$D,2,FALSE))*(EFs!$D$4:$D$3351=E107)*(EFs!$E$4:$E$3351=E111)*EFs!$P$4:$P$3351) * IF(OR(E103="Hybrid",E103="Electric"),0.5,1)))), 0) -> 0.01126798655 | N107: =IFERROR( IF(OR(E103=0,AND(E106<>"Single Unit Short Haul",E111="G"),AND(OR(E103="B20 (Biodiesel)",E103="R100 (Renewable Diesel)"),E111="G"),AND(OR(E106="Single Unit Short Haul",E106="Single Unit Long Haul"),E110="Distribution Center"),AND(E106<>"Combination Unit Short Haul",E110="Port")),0/0, IF(SUMPRODUCT((RRFs!$B$4:$B$35=E103)*OR(RRFs!$C$4:$C$35=E111,RRFs!$C$4:$C$35="A")*INDIRECT(VLOOKUP(E106&" "&H105,RRFs!$AO:$AP,2,FALSE)))=-999999,0/0, IF(OR(E103="B20 (Biodiesel)",E103="R100 (Renewable Diesel)"),N106, SUMPRODUCT((EFs!$A$4:$A$3351=E107)*(EFs!$B$4:$B$3351=VLOOKUP(E106,'Store Inputs'!$F:$G,2,FALSE))*(EFs!$C$4:$C$3351=VLOOKUP(E110,'Store Inputs'!$C:$D,2,FALSE))*(EFs!$D$4:$D$3351=E107)*(EFs!$E$4:$E$3351=E111)*EFs!$K$4:$K$3351*EFs!$P$4:$P$3351) / SUMPRODUCT((EFs!$A$4:$A$3351=E107)*(EFs!$B$4:$B$3351=VLOOKUP(E106,'Store Inputs'!$F:$G,2,FALSE))*(EFs!$C$4:$C$3351=VLOOKUP(E110,'Store Inputs'!$C:$D,2,FALSE))*(EFs!$D$4:$D$3351=E107)*(EFs!$E$4:$E$3351=E111)*EFs!$P$4:$P$3351)))), 0) -> 0.002343827404 | O107: =IFERROR( IF(E116="-",0/0, IF(OR(E103=0,AND(E106<>"Single Unit Short Haul",E111="G"),AND(OR(E103="B20 (Biodiesel)",E103="R100 (Renewable Diesel)"),E111="G"),AND(OR(E106="Single Unit Short Haul",E106="Single Unit Long Haul"),E110="Distribution Center"),AND(E106<>"Combination Unit Short Haul",E110="Port")),0/0, IF(SUMPRODUCT((RRFs!$B$4:$B$35=E103)*OR(RRFs!$C$4:$C$35=E111,RRFs!$C$4:$C$35="A")*INDIRECT(VLOOKUP(E106&" "&O105,RRFs!$AO:$AP,2,FALSE)))=-999999,0/0, IF(OR(E103="B20 (Biodiesel)",E103="R100 (Renewable Diesel)"),O106*(1-(SUMPRODUCT((RRFs!$B$4:$B$35=E103)*OR(RRFs!$C$4:$C$35=E111,RRFs!$C$4:$C$35="A")*(INDIRECT(VLOOKUP(E106&" "&O105,RRFs!$AO:$AP,2,FALSE))<>-999999)*INDIRECT(VLOOKUP(E106&" "&O105,RRFs!$AO:$AP,2,FALSE))))), SUMPRODUCT((EFs!$A$4:$A$3351=E107)*(EFs!$B$4:$B$3351=VLOOKUP(E106,'Store Inputs'!$F:$G,2,FALSE))*(EFs!$C$4:$C$3351=VLOOKUP(E110,'Store Inputs'!$C:$D,2,FALSE))*(EFs!$D$4:$D$3351=E107)*(EFs!$E$4:$E$3351=E111)*EFs!$L$4:$L$3351*EFs!$P$4:$P$3351) / SUMPRODUCT((EFs!$A$4:$A$3351=E107)*(EFs!$B$4:$B$3351=VLOOKUP(E106,'Store Inputs'!$F:$G,2,FALSE))*(EFs!$C$4:$C$3351=VLOOKUP(E110,'Store Inputs'!$C:$D,2,FALSE))*(EFs!$D$4:$D$3351=E107)*(EFs!$E$4:$E$3351=E111)*EFs!$P$4:$P$3351) * (1-(SUMPRODUCT((RRFs!$B$4:$B$35=E103)*OR(RRFs!$C$4:$C$35=E111,RRFs!$C$4:$C$35="A")*(INDIRECT(VLOOKUP(E106&" "&O105,RRFs!$AO:$AP,2,FALSE))<>-999999)*INDIRECT(VLOOKUP(E106&" "&O105,RRFs!$AO:$AP,2,FALSE))))))))), 0) -> 0 | P107: =IFERROR( IF(E116="-",0/0, IF(OR(E103=0,AND(E106<>"Single Unit Short Haul",E111="G"),AND(OR(E103="B20 (Biodiesel)",E103="R100 (Renewable Diesel)"),E111="G"),AND(OR(E106="Single Unit Short Haul",E106="Single Unit Long Haul"),E110="Distribution Center"),AND(E106<>"Combination Unit Short Haul",E110="Port")),0/0, IF(SUMPRODUCT((RRFs!$B$4:$B$35=E103)*OR(RRFs!$C$4:$C$35=E111,RRFs!$C$4:$C$35="A")*INDIRECT(VLOOKUP(E106&" "&P105,RRFs!$AO:$AP,2,FALSE)))=-999999,0/0, IF(OR(E103="B20 (Biodiesel)",E103="R100 (Renewable Diesel)"),P106*(1-(SUMPRODUCT((RRFs!$B$4:$B$35=E103)*OR(RRFs!$C$4:$C$35=E111,RRFs!$C$4:$C$35="A")*(INDIRECT(VLOOKUP(E106&" "&P105,RRFs!$AO:$AP,2,FALSE))<>-999999)*INDIRECT(VLOOKUP(E106&" "&P105,RRFs!$AO:$AP,2,FALSE))))), SUMPRODUCT((EFs!$A$4:$A$3351=E107)*(EFs!$B$4:$B$3351=VLOOKUP(E106,'Store Inputs'!$F:$G,2,FALSE))*(EFs!$C$4:$C$3351=VLOOKUP(E110,'Store Inputs'!$C:$D,2,FALSE))*(EFs!$D$4:$D$3351=E107)*(EFs!$E$4:$E$3351=E111)*EFs!$M$4:$M$3351*EFs!$P$4:$P$3351) / SUMPRODUCT((EFs!$A$4:$A$3351=E107)*(EFs!$B$4:$B$3351=VLOOKUP(E106,'Store Inputs'!$F:$G,2,FALSE))*(EFs!$C$4:$C$3351=VLOOKUP(E110,'Store Inputs'!$C:$D,2,FALSE))*(EFs!$D$4:$D$3351=E107)*(EFs!$E$4:$E$3351=E111)*EFs!$P$4:$P$3351) * (1-(SUMPRODUCT((RRFs!$B$4:$B$35=E103)*OR(RRFs!$C$4:$C$35=E111,RRFs!$C$4:$C$35="A")*(INDIRECT(VLOOKUP(E106&" "&P105,RRFs!$AO:$AP,2,FALSE))<>-999999)*INDIRECT(VLOOKUP(E106&" "&P105,RRFs!$AO:$AP,2,FALSE))))))))), 0) -> 0 | Q107: =IFERROR( IF(E116="-",0/0, IF(OR(E103=0,AND(E106<>"Single Unit Short Haul",E111="G"),AND(OR(E103="B20 (Biodiesel)",E103="R100 (Renewable Diesel)"),E111="G"),AND(OR(E106="Single Unit Short Haul",E106="Single Unit Long Haul"),E110="Distribution Center"),AND(E106<>"Combination Unit Short Haul",E110="Port")),0/0, IF(SUMPRODUCT((RRFs!$B$4:$B$35=E103)*OR(RRFs!$C$4:$C$35=E111,RRFs!$C$4:$C$35="A")*INDIRECT(VLOOKUP(E106&" "&Q105,RRFs!$AO:$AP,2,FALSE)))=-999999,0/0, IF(OR(E103="B20 (Biodiesel)",E103="R100 (Renewable Diesel)"),Q106*(1-(SUMPRODUCT((RRFs!$B$4:$B$35=E103)*OR(RRFs!$C$4:$C$35=E111,RRFs!$C$4:$C$35="A")*(INDIRECT(VLOOKUP(E106&" "&Q105,RRFs!$AO:$AP,2,FALSE))<>-999999)*INDIRECT(VLOOKUP(E106&" "&Q105,RRFs!$AO:$AP,2,FALSE))))), SUMPRODUCT((EFs!$A$4:$A$3351=E107)*(EFs!$B$4:$B$3351=VLOOKUP(E106,'Store Inputs'!$F:$G,2,FALSE))*(EFs!$C$4:$C$3351=VLOOKUP(E110,'Store Inputs'!$C:$D,2,FALSE))*(EFs!$D$4:$D$3351=E107)*(EFs!$E$4:$E$3351=E111)*EFs!$N$4:$N$3351*EFs!$P$4:$P$3351) / SUMPRODUCT((EFs!$A$4:$A$3351=E107)*(EFs!$B$4:$B$3351=VLOOKUP(E106,'Store Inputs'!$F:$G,2,FALSE))*(EFs!$C$4:$C$3351=VLOOKUP(E110,'Store Inputs'!$C:$D,2,FALSE))*(EFs!$D$4:$D$3351=E107)*(EFs!$E$4:$E$3351=E111)*EFs!$P$4:$P$3351) * (1-(SUMPRODUCT((RRFs!$B$4:$B$35=E103)*OR(RRFs!$C$4:$C$35=E111,RRFs!$C$4:$C$35="A")*(INDIRECT(VLOOKUP(E106&" "&Q105,RRFs!$AO:$AP,2,FALSE))<>-999999)*INDIRECT(VLOOKUP(E106&" "&Q105,RRFs!$AO:$AP,2,FALSE))))))))), 0) -> 0 | R107: =IFERROR( IF(E116="-",0/0, IF(OR(E103=0,AND(E106<>"Single Unit Short Haul",E111="G"),AND(OR(E103="B20 (Biodiesel)",E103="R100 (Renewable Diesel)"),E111="G"),AND(OR(E106="Single Unit Short Haul",E106="Single Unit Long Haul"),E110="Distribution Center"),AND(E106<>"Combination Unit Short Haul",E110="Port")),0/0, IF(SUMPRODUCT((RRFs!$B$4:$B$35=E103)*OR(RRFs!$C$4:$C$35=E111,RRFs!$C$4:$C$35="A")*INDIRECT(VLOOKUP(E106&" "&R104,RRFs!$AO:$AP,2,FALSE)))=-999999,0/0, IF(OR(E103="B20 (Biodiesel)",E103="R100 (Renewable Diesel)"),R106*(1-(SUMPRODUCT((RRFs!$B$4:$B$35=E103)*OR(RRFs!$C$4:$C$35=E111,RRFs!$C$4:$C$35="A")*(INDIRECT(VLOOKUP(E106&" "&R104,RRFs!$AO:$AP,2,FALSE))<>-999999)*INDIRECT(VLOOKUP(E106&" "&R104,RRFs!$AO:$AP,2,FALSE))))), SUMPRODUCT((EFs!$A$4:$A$3351=E107)*(EFs!$B$4:$B$3351=VLOOKUP(E106,'Store Inputs'!$F:$G,2,FALSE))*(EFs!$C$4:$C$3351=VLOOKUP(E110,'Store Inputs'!$C:$D,2,FALSE))*(EFs!$D$4:$D$3351=E107)*(EFs!$E$4:$E$3351=E111)*EFs!$O$4:$O$3351*EFs!$P$4:$P$3351) / SUMPRODUCT((EFs!$A$4:$A$3351=E107)*(EFs!$B$4:$B$3351=VLOOKUP(E106,'Store Inputs'!$F:$G,2,FALSE))*(EFs!$C$4:$C$3351=VLOOKUP(E110,'Store Inputs'!$C:$D,2,FALSE))*(EFs!$D$4:$D$3351=E107)*(EFs!$E$4:$E$3351=E111)*EFs!$P$4:$P$3351) * (1-(SUMPRODUCT((RRFs!$B$4:$B$35=E103)*OR(RRFs!$C$4:$C$35=E111,RRFs!$C$4:$C$35="A")*(INDIRECT(VLOOKUP(E106&" "&R104,RRFs!$AO:$AP,2,FALSE))<>-999999)*INDIRECT(VLOOKUP(E106&" "&R104,RRFs!$AO:$AP,2,FALSE))))))))), 0) -> 0 | S107: =IFERROR( SUMIFS('1. Deployment, Part 5'!E:E,'1. Deployment, Part 5'!B:B,E106,'1. Deployment, Part 5'!C:C,IF(E111="D","Diesel",IF(E111="G","Gasoline",E111)),'1. Deployment, Part 5'!D:D,E103,'1. Deployment, Part 5'!E:E,"<>'N/A",'1. Deployment, Part 5'!E:E,"<>'-'") + IF(SUMPRODUCT((RRFs!$B$4:$B$35=E103)*OR(RRFs!$C$4:$C$35=IF(E111="D","Diesel",IF(E111="G","Gasoline",E111)),RRFs!$C$4:$C$35="A")*INDIRECT(VLOOKUP(E106&" Inc O&M",RRFs!$AO:$AP,2,FALSE)))=-999999,0/0,SUMPRODUCT((RRFs!$B$4:$B$35=E103)*OR(RRFs!$C$4:$C$35=IF(E111="D","Diesel",IF(E111="G","Gasoline",E111)),RRFs!$C$4:$C$35="A")*INDIRECT(VLOOKUP(E106&" Inc O&M",RRFs!$AO:$AP,2,FALSE)))), 0) -> 8300
D108: Model Year Modification Window: | E108: =IF(OR(E103="B20 (Biodiesel)",E103="R100 (Renewable Diesel)"),Deployment_Year-30,INDEX(Deployment_Beginning_Year_of_Modification,1,1)) -> 2000
E109: =IF(OR(E103="B20 (Biodiesel)",E103="R100 (Renewable Diesel)"),Deployment_Year,INDEX(Deployment_End_Year_of_Modification,1,1)) -> 2017 | G109: FLEET: | H109: Short Tons Emiss./Year | K109: Fuel (gal/yr GGE or DGE) | L109: Annual Costs
D110: Area of Interest: | E110: =Deployment_GeographicScale -> State | G110: Case | H110: NOx | I110: PM2.5 | J110: CO2 | L110: Capital | M110: Fuel | N110: Total
D111: Baseline Fuel (D=Diesel, G=Gasoline), Cost and Units: | E111: =INDEX(Deployment_Fuels,1,1) -> D | G111: Baseline | H111: =IFERROR( E114*( (H106*E115) + (IF(E116="-",0,O106*E116)) ) * GramToTon, 0) -> 2.942696339 | I111: =IFERROR( E114*( ((I106+M106+N106)*E115) + (IF(E116="-",0,P106*E116)) ) * GramToTon, 0) -> 0.113741399 | J111: =IFERROR( E114*( (J106*E115) + (IF(E116="-",0,Q106*E116)) ) * GramToTon, 0) -> 1592.701406 | K111: =IFERROR( SUM((1/K106)*E115,(IF(E116="-",0,R106*E116))) * E114, 0) -> 140828.6698 | L111: 0 | M111: =IFERROR( K111*E112, 0) -> 299965.0667 | N111: =SUM(L111:M111) -> 299965.0667
E112: =IF(E111="G",VLOOKUP("Gasoline",Deployment_Fuel_Type_Cost_and_Unit,2,0), IF(E111="D",VLOOKUP("Diesel",Deployment_Fuel_Type_Cost_and_Unit,2,0),NA())) -> 2.13 | G112: Modified | H112: =IFERROR( E114*( (H107*E115) + (IF(E116="-",0,O107*E116)) ) * GramToTon, 0) -> 0.9023495137 | I112: =IFERROR( E114*( ((I107+M107+N107)*E115) + (IF(E116="-",0,P107*E116)) ) * GramToTon, 0) -> 0.02442202958 | J112: =IFERROR( E114*( (J107*E115) + (IF(E116="-",0,Q107*E116)) + IF(L107=0,0,L107*IF(E111="G",kwh_per_GGE,IF(E111="D",kwh_per_DGE,0/0))*(E115/K107)) ) * GramToTon, 0) -> 1455.089899 | K112: =IFERROR( SUM((1/K107)*E115,(IF(E116="-",0,R107*E116))) * E114, 0) -> 128923.6473 | L112: =IFERROR( (S107*E114) / E117, 0) -> 166000 | M112: =IFERROR( K112*E104, 0) -> 0 | N112: =SUM(L112:M112) -> 166000
E113: =IF(E111="G",VLOOKUP("Gasoline",Deployment_Fuel_Type_Cost_and_Unit,3,0), IF(E111="D",VLOOKUP("Diesel",Deployment_Fuel_Type_Cost_and_Unit,3,0),NA())) -> gal | G113: Difference | H113: =IFERROR( IF((SUMPRODUCT((RRFs!$B$4:$B$35=E103)*OR(RRFs!$C$4:$C$35=E111,RRFs!$C$4:$C$35="A")*INDIRECT(VLOOKUP(E106&" "&H105,RRFs!$AO:$AP,2,FALSE))))=-999999,0/0, IFERROR(H112-H111,0)), 0) -> -2.040346825 | I113: =IFERROR( IF((SUMPRODUCT((RRFs!$B$4:$B$35=E103)*OR(RRFs!$C$4:$C$35=E111,RRFs!$C$4:$C$35="A")*INDIRECT(VLOOKUP(E106&" "&H105,RRFs!$AO:$AP,2,FALSE))))=-999999,0/0, IFERROR(I112-I111,0)), 0) -> -0.08931936943 | J113: =IFERROR( IF((SUMPRODUCT((RRFs!$B$4:$B$35=E103)*OR(RRFs!$C$4:$C$35=E111,RRFs!$C$4:$C$35="A")*INDIRECT(VLOOKUP(E106&" "&H105,RRFs!$AO:$AP,2,FALSE))))=-999999,0/0, IFERROR(J112-J111,0)), 0) -> -137.6115071 | K113: =IFERROR(IF((SUMPRODUCT((RRFs!$B$4:$B$35=E103)*OR(RRFs!$C$4:$C$35=E111,RRFs!$C$4:$C$35="A")*INDIRECT(VLOOKUP(E106&" "&H105,RRFs!$AO:$AP,2,FALSE))))=-999999,0,IFERROR(K112-K111,0)),0) -> -11905.02256 | L113: =IFERROR(IF((SUMPRODUCT((RRFs!$B$4:$B$35=E103)*OR(RRFs!$C$4:$C$35=E111,RRFs!$C$4:$C$35="A")*INDIRECT(VLOOKUP(E106&" "&H105,RRFs!$AO:$AP,2,FALSE))))=-999999,0,IFERROR(L112-L111,0)),0) -> 166000 | M113: =IFERROR(IF((SUMPRODUCT((RRFs!$B$4:$B$35=E103)*OR(RRFs!$C$4:$C$35=E111,RRFs!$C$4:$C$35="A")*INDIRECT(VLOOKUP(E106&" "&H105,RRFs!$AO:$AP,2,FALSE))))=-999999,0,IFERROR(M112-M111,0)),0) -> -299965.0667 | N113: =SUM(L113:M113) -> -133965.0667
D114: Number to Modify/Replace: | E114: =VLOOKUP(E106&E111,Deployment_NumberToReplaceByTruckAndFuelType,6,0) -> 100 | G114: Cost Effect ($/short ton) | H114: =IF(H113>0,"Emiss. Increase",IFERROR( (-1*N113)/H113, 0)) -> -65657.98769 | I114: =IF(I113>0,"Emiss. Increase",IFERROR( (-1*N113)/I113, 0)) -> -1499843.4 | J114: =IF(J113>0,"Emiss. Increase",IFERROR( (-1*N113)/J113, 0)) -> -973.5019225
D115: Average Annual Mileage: | E115: =VLOOKUP(E106&E111,Deployment_AverageAnnualMilesByTruckAndFuelType,7,0) -> 14641
D116: Average Annual Idle Hours: | E116: =IF(VLOOKUP(E106&E111,Deployment_Average_Annual_Idle_Hours_by_Truck_and_Fuel_Type,12,0)=0,"-",VLOOKUP(E106&E111,Deployment_Average_Annual_Idle_Hours_by_Truck_and_Fuel_Type,12,0)) -> -
D117: Useful Life of Strategy (years): | E117: =SUMPRODUCT((RRFs!$B$4:$B$35=E103)*OR(RRFs!$C$4:$C$35=E111,RRFs!$C$4:$C$35="A")*INDIRECT(VLOOKUP(E106&" Project Lifetime",RRFs!$AO:$AP,2,FALSE))) -> 5
D118: ="For Further Information refer to page "&VLOOKUP(RIGHT($A$1,LEN($A$1)-14)&VLOOKUP(E103,FuelCrosswalk,2,FALSE)&"1",ModType_Mod_Hyperlinks_and_GuidePgs,4,0)&" of the NCHRP 25-46 Guidance and the following weblinks" -> 
C119: =IFERROR(HYPERLINK(U119,V119),"") ->  | U119: =IFERROR(VLOOKUP(RIGHT($A$1,LEN($A$1)-14)&VLOOKUP(E103,FuelCrosswalk,2,FALSE)&"1",ModType_Mod_Hyperlinks_and_GuidePgs,3,0),"") ->  | V119: =IFERROR( VLOOKUP(RIGHT($A$1,LEN($A$1)-14)&VLOOKUP(E103,FuelCrosswalk,2,FALSE)&"1",ModType_Mod_Hyperlinks_and_GuidePgs,2,0),"") -> 
C120: =IFERROR(HYPERLINK(U120,V120),"") ->  | U120: =IFERROR(VLOOKUP(RIGHT($A$1,LEN($A$1)-14)&VLOOKUP(E103,FuelCrosswalk,2,FALSE)&"2",ModType_Mod_Hyperlinks_and_GuidePgs,3,0),"") ->  | V120: =IFERROR( VLOOKUP(RIGHT($A$1,LEN($A$1)-14)&VLOOKUP(E103,FuelCrosswalk,2,FALSE)&"2",ModType_Mod_Hyperlinks_and_GuidePgs,2,0),"") -> 
C121: =IFERROR(HYPERLINK(U121,V121),"") ->  | U121: =IFERROR(VLOOKUP(RIGHT($A$1,LEN($A$1)-14)&VLOOKUP(E103,FuelCrosswalk,2,FALSE)&"3",ModType_Mod_Hyperlinks_and_GuidePgs,3,0),"") ->  | V121: =IFERROR( VLOOKUP(RIGHT($A$1,LEN($A$1)-14)&VLOOKUP(E103,FuelCrosswalk,2,FALSE)&"3",ModType_Mod_Hyperlinks_and_GuidePgs,2,0),"") -> 
C122: =IFERROR(HYPERLINK(U122,V122),"") ->  | U122: =IFERROR(VLOOKUP(RIGHT($A$1,LEN($A$1)-14)&VLOOKUP(E103,FuelCrosswalk,2,FALSE)&"4",ModType_Mod_Hyperlinks_and_GuidePgs,3,0),"") ->  | V122: =IFERROR( VLOOKUP(RIGHT($A$1,LEN($A$1)-14)&E103&"4",ModType_Mod_Hyperlinks_and_GuidePgs,2,0),"") -> 
D123: Modification: | E123: =INDEX(Deployment_Specific_Modifications,2,1) -> DPF | H123: Running EFs (g/mi) | K123: Fuel | L123: Power Plant EFs for Electric Vehicles | M123: PM2.5 (g/mi) | O123: Extended Idle | S123: Cost
D124: Cost and Units of Alternative Fuel: | E124: =IF(E123="Hybrid", IF(E131="D",VLOOKUP("Diesel",Deployment_Fuel_Type_Cost_and_Unit,2,0), IF(E131="G",VLOOKUP("Gasoline",Deployment_Fuel_Type_Cost_and_Unit,2,0),NA())), IF(VLOOKUP(E126&E131,Deployment_Fuel_by_Truck_and_Fuel_Types,4,0)="D", VLOOKUP(VLOOKUP(E123,FuelCrosswalk,2,FALSE),Deployment_Fuel_Type_Cost_and_Unit,2,0)* (SUMIFS(Defaults!$W:$W,Defaults!$U:$U,VLOOKUP(E123,FuelCrosswalk,2,FALSE),Defaults!$V:$V,"DGE")/ SUMIFS(Defaults!$W:$W,Defaults!$U:$U,VLOOKUP(E123,FuelCrosswalk,2,FALSE),Defaults!$V:$V,VLOOKUP(VLOOKUP(E123,FuelCrosswalk,2,FALSE),Deployment_Fuel_Type_Cost_and_Unit,3,0))), IF(VLOOKUP(E126&E131,Deployment_Fuel_by_Truck_and_Fuel_Types,4,0)="G", VLOOKUP(VLOOKUP(E123,FuelCrosswalk,2,FALSE),Deployment_Fuel_Type_Cost_and_Unit,2,0)* (SUMIFS(Defaults!$W:$W,Defaults!$U:$U,VLOOKUP(E123,FuelCrosswalk,2,FALSE),Defaults!$V:$V,"GGE")/ SUMIFS(Defaults!$W:$W,Defaults!$U:$U,VLOOKUP(E123,FuelCrosswalk,2,FALSE),Defaults!$V:$V,VLOOKUP(VLOOKUP(E123,FuelCrosswalk,2,FALSE),Deployment_Fuel_Type_Cost_and_Unit,3,0))),NA() ))) ->  | G124: PER TRUCK: | O124: Emissions (g/hr) | R124: Fuel
E125: =IF(E131="G","GGE","DGE") -> DGE | G125: Case | H125: NOx | I125: PM2.5 | J125: CO2 | K125: mi/gal | L125: g CO2/kWh | M125: Brake | N125: Tire | O125: NOx | P125: PM2.5 | Q125: CO2 | R125: (gal/hr)
D126: Type of Truck: | E126: =INDEX(Deployment_TruckTypes,2,1) -> Single Unit Long Haul | G126: Baseline | H126: =IFERROR( IF(OR(E123=0,AND(E126<>"Single Unit Short Haul",E131="G"),AND(OR(E123="B20 (Biodiesel)",E123="R100 (Renewable Diesel)"),E131="G"),AND(OR(E126="Single Unit Short Haul",E126="Single Unit Long Haul"),E130="Distribution Center"),AND(E126<>"Combination Unit Short Haul",E130="Port")),0/0, IF(SUMPRODUCT((RRFs!$B$4:$B$35=E123)*OR(RRFs!$C$4:$C$35=E131,RRFs!$C$4:$C$35="A")*INDIRECT(VLOOKUP(E126&" "&H125,RRFs!$AO:$AP,2,FALSE)))=-999999,0/0, SUMPRODUCT((EFs!$A$4:$A$3351=E127)*(EFs!$B$4:$B$3351=VLOOKUP(E126,'Store Inputs'!$F:$G,2,FALSE))*(EFs!$C$4:$C$3351=VLOOKUP(E130,'Store Inputs'!$C:$D,2,FALSE))*(EFs!$D$4:$D$3351>=E128)*(EFs!$D$4:$D$3351<=E129)*(EFs!$E$4:$E$3351=E131)*EFs!$F$4:$F$3351*EFs!$P$4:$P$3351) / SUMPRODUCT((EFs!$A$4:$A$3351=E127)*(EFs!$B$4:$B$3351=VLOOKUP(E126,'Store Inputs'!$F:$G,2,FALSE))*(EFs!$C$4:$C$3351=VLOOKUP(E130,'Store Inputs'!$C:$D,2,FALSE))*(EFs!$D$4:$D$3351>=E128)*(EFs!$D$4:$D$3351<=E129)*(EFs!$E$4:$E$3351=E131)*EFs!$P$4:$P$3351))), 0) -> 1.630178179 | I126: =IFERROR( IF(OR(E123=0,AND(E126<>"Single Unit Short Haul",E131="G"),AND(OR(E123="B20 (Biodiesel)",E123="R100 (Renewable Diesel)"),E131="G"),AND(OR(E126="Single Unit Short Haul",E126="Single Unit Long Haul"),E130="Distribution Center"),AND(E126<>"Combination Unit Short Haul",E130="Port")),0/0, IF(SUMPRODUCT((RRFs!$B$4:$B$35=E123)*OR(RRFs!$C$4:$C$35=E131,RRFs!$C$4:$C$35="A")*INDIRECT(VLOOKUP(E126&" "&I125,RRFs!$AO:$AP,2,FALSE)))=-999999,0/0, SUMPRODUCT((EFs!$A$4:$A$3351=E127)*(EFs!$B$4:$B$3351=VLOOKUP(E126,'Store Inputs'!$F:$G,2,FALSE))*(EFs!$C$4:$C$3351=VLOOKUP(E130,'Store Inputs'!$C:$D,2,FALSE))*(EFs!$D$4:$D$3351>=E128)*(EFs!$D$4:$D$3351<=E129)*(EFs!$E$4:$E$3351=E131)*EFs!$G$4:$G$3351*EFs!$P$4:$P$3351) / SUMPRODUCT((EFs!$A$4:$A$3351=E127)*(EFs!$B$4:$B$3351=VLOOKUP(E126,'Store Inputs'!$F:$G,2,FALSE))*(EFs!$C$4:$C$3351=VLOOKUP(E130,'Store Inputs'!$C:$D,2,FALSE))*(EFs!$D$4:$D$3351>=E128)*(EFs!$D$4:$D$3351<=E129)*(EFs!$E$4:$E$3351=E131)*EFs!$P$4:$P$3351))), 0) -> 0.05824685941 | J126: =IFERROR( IF(OR(E123=0,AND(E126<>"Single Unit Short Haul",E131="G"),AND(OR(E123="B20 (Biodiesel)",E123="R100 (Renewable Diesel)"),E131="G"),AND(OR(E126="Single Unit Short Haul",E126="Single Unit Long Haul"),E130="Distribution Center"),AND(E126<>"Combination Unit Short Haul",E130="Port")),0/0, IF(SUMPRODUCT((RRFs!$B$4:$B$35=E123)*OR(RRFs!$C$4:$C$35=E131,RRFs!$C$4:$C$35="A")*INDIRECT(VLOOKUP(E126&" "&J125,RRFs!$AO:$AP,2,FALSE)))=-999999,0/0, SUMPRODUCT((EFs!$A$4:$A$3351=E127)*(EFs!$B$4:$B$3351=VLOOKUP(E126,'Store Inputs'!$F:$G,2,FALSE))*(EFs!$C$4:$C$3351=VLOOKUP(E130,'Store Inputs'!$C:$D,2,FALSE))*(EFs!$D$4:$D$3351>=E128)*(EFs!$D$4:$D$3351<=E129)*(EFs!$E$4:$E$3351=E131)*EFs!$H$4:$H$3351*EFs!$P$4:$P$3351) / SUMPRODUCT((EFs!$A$4:$A$3351=E127)*(EFs!$B$4:$B$3351=VLOOKUP(E126,'Store Inputs'!$F:$G,2,FALSE))*(EFs!$C$4:$C$3351=VLOOKUP(E130,'Store Inputs'!$C:$D,2,FALSE))*(EFs!$D$4:$D$3351>=E128)*(EFs!$D$4:$D$3351<=E129)*(EFs!$E$4:$E$3351=E131)*EFs!$P$4:$P$3351))), 0) -> 914.0721188 | K126: =IFERROR( IF(OR(E123=0,AND(E126<>"Single Unit Short Haul",E131="G"),AND(OR(E123="B20 (Biodiesel)",E123="R100 (Renewable Diesel)"),E131="G"),AND(OR(E126="Single Unit Short Haul",E126="Single Unit Long Haul"),E130="Distribution Center"),AND(E126<>"Combination Unit Short Haul",E130="Port")),0/0, IF(SUMPRODUCT((RRFs!$B$4:$B$35=E123)*OR(RRFs!$C$4:$C$35=E131,RRFs!$C$4:$C$35="A")*INDIRECT(VLOOKUP(E126&" "&K123,RRFs!$AO:$AP,2,FALSE)))=-999999,0/0, SUMPRODUCT((EFs!$A$4:$A$3351=E127)*(EFs!$B$4:$B$3351=VLOOKUP(E126,'Store Inputs'!$F:$G,2,FALSE))*(EFs!$C$4:$C$3351=VLOOKUP(E130,'Store Inputs'!$C:$D,2,FALSE))*(EFs!$D$4:$D$3351>=E128)*(EFs!$D$4:$D$3351<=E129)*(EFs!$E$4:$E$3351=E131)*EFs!$I$4:$I$3351*EFs!$P$4:$P$3351) / SUMPRODUCT((EFs!$A$4:$A$3351=E127)*(EFs!$B$4:$B$3351=VLOOKUP(E126,'Store Inputs'!$F:$G,2,FALSE))*(EFs!$C$4:$C$3351=VLOOKUP(E130,'Store Inputs'!$C:$D,2,FALSE))*(EFs!$D$4:$D$3351>=E128)*(EFs!$D$4:$D$3351<=E129)*(EFs!$E$4:$E$3351=E131)*EFs!$P$4:$P$3351))), 0) -> 11.21837566 | L126: 0 | M126: =IFERROR( IF(OR(E123=0,AND(E126<>"Single Unit Short Haul",E131="G"),AND(OR(E123="B20 (Biodiesel)",E123="R100 (Renewable Diesel)"),E131="G"),AND(OR(E126="Single Unit Short Haul",E126="Single Unit Long Haul"),E130="Distribution Center"),AND(E126<>"Combination Unit Short Haul",E130="Port")),0/0, IF(SUMPRODUCT((RRFs!$B$4:$B$35=E123)*OR(RRFs!$C$4:$C$35=E131,RRFs!$C$4:$C$35="A")*INDIRECT(VLOOKUP(E126&" "&H125,RRFs!$AO:$AP,2,FALSE)))=-999999,0/0, SUMPRODUCT((EFs!$A$4:$A$3351=E127)*(EFs!$B$4:$B$3351=VLOOKUP(E126,'Store Inputs'!$F:$G,2,FALSE))*(EFs!$C$4:$C$3351=VLOOKUP(E130,'Store Inputs'!$C:$D,2,FALSE))*(EFs!$D$4:$D$3351>=E128)*(EFs!$D$4:$D$3351<=E129)*(EFs!$E$4:$E$3351=E131)*EFs!$J$4:$J$3351*EFs!$P$4:$P$3351) / SUMPRODUCT((EFs!$A$4:$A$3351=E127)*(EFs!$B$4:$B$3351=VLOOKUP(E126,'Store Inputs'!$F:$G,2,FALSE))*(EFs!$C$4:$C$3351=VLOOKUP(E130,'Store Inputs'!$C:$D,2,FALSE))*(EFs!$D$4:$D$3351>=E128)*(EFs!$D$4:$D$3351<=E129)*(EFs!$E$4:$E$3351=E131)*EFs!$P$4:$P$3351))), 0) -> 0.01261084825 | N126: =IFERROR( IF(OR(E123=0,AND(E126<>"Single Unit Short Haul",E131="G"),AND(OR(E123="B20 (Biodiesel)",E123="R100 (Renewable Diesel)"),E131="G"),AND(OR(E126="Single Unit Short Haul",E126="Single Unit Long Haul"),E130="Distribution Center"),AND(E126<>"Combination Unit Short Haul",E130="Port")),0/0, IF(SUMPRODUCT((RRFs!$B$4:$B$35=E123)*OR(RRFs!$C$4:$C$35=E131,RRFs!$C$4:$C$35="A")*INDIRECT(VLOOKUP(E126&" "&H125,RRFs!$AO:$AP,2,FALSE)))=-999999,0/0, SUMPRODUCT((EFs!$A$4:$A$3351=E127)*(EFs!$B$4:$B$3351=VLOOKUP(E126,'Store Inputs'!$F:$G,2,FALSE))*(EFs!$C$4:$C$3351=VLOOKUP(E130,'Store Inputs'!$C:$D,2,FALSE))*(EFs!$D$4:$D$3351>=E128)*(EFs!$D$4:$D$3351<=E129)*(EFs!$E$4:$E$3351=E131)*EFs!$K$4:$K$3351*EFs!$P$4:$P$3351) / SUMPRODUCT((EFs!$A$4:$A$3351=E127)*(EFs!$B$4:$B$3351=VLOOKUP(E126,'Store Inputs'!$F:$G,2,FALSE))*(EFs!$C$4:$C$3351=VLOOKUP(E130,'Store Inputs'!$C:$D,2,FALSE))*(EFs!$D$4:$D$3351>=E128)*(EFs!$D$4:$D$3351<=E129)*(EFs!$E$4:$E$3351=E131)*EFs!$P$4:$P$3351))), 0) -> 0.002634145021 | O126: =IFERROR( IF(E136="-",0/0, IF(OR(E123=0,AND(E126<>"Single Unit Short Haul",E131="G"),AND(OR(E123="B20 (Biodiesel)",E123="R100 (Renewable Diesel)"),E131="G"),AND(OR(E126="Single Unit Short Haul",E126="Single Unit Long Haul"),E130="Distribution Center"),AND(E126<>"Combination Unit Short Haul",E130="Port")),0/0, IF(SUMPRODUCT((RRFs!$B$4:$B$35=E123)*OR(RRFs!$C$4:$C$35=E131,RRFs!$C$4:$C$35="A")*INDIRECT(VLOOKUP(E126&" "&O125,RRFs!$AO:$AP,2,FALSE)))=-999999,0/0, SUMPRODUCT((EFs!$A$4:$A$3351=E127)*(EFs!$B$4:$B$3351=VLOOKUP(E126,'Store Inputs'!$F:$G,2,FALSE))*(EFs!$C$4:$C$3351=VLOOKUP(E130,'Store Inputs'!$C:$D,2,FALSE))*(EFs!$D$4:$D$3351>=E128)*(EFs!$D$4:$D$3351<=E129)*(EFs!$E$4:$E$3351=E131)*EFs!$L$4:$L$3351*EFs!$P$4:$P$3351) / SUMPRODUCT((EFs!$A$4:$A$3351=E127)*(EFs!$B$4:$B$3351=VLOOKUP(E126,'Store Inputs'!$F:$G,2,FALSE))*(EFs!$C$4:$C$3351=VLOOKUP(E130,'Store Inputs'!$C:$D,2,FALSE))*(EFs!$D$4:$D$3351>=E128)*(EFs!$D$4:$D$3351<=E129)*(EFs!$E$4:$E$3351=E131)*EFs!$P$4:$P$3351)))), 0) -> 0 | P126: =IFERROR( IF(E136="-",0/0, IF(OR(E123=0,AND(E126<>"Single Unit Short Haul",E131="G"),AND(OR(E123="B20 (Biodiesel)",E123="R100 (Renewable Diesel)"),E131="G"),AND(OR(E126="Single Unit Short Haul",E126="Single Unit Long Haul"),E130="Distribution Center"),AND(E126<>"Combination Unit Short Haul",E130="Port")),0/0, IF(SUMPRODUCT((RRFs!$B$4:$B$35=E123)*OR(RRFs!$C$4:$C$35=E131,RRFs!$C$4:$C$35="A")*INDIRECT(VLOOKUP(E126&" "&P125,RRFs!$AO:$AP,2,FALSE)))=-999999,0/0, SUMPRODUCT((EFs!$A$4:$A$3351=E127)*(EFs!$B$4:$B$3351=VLOOKUP(E126,'Store Inputs'!$F:$G,2,FALSE))*(EFs!$C$4:$C$3351=VLOOKUP(E130,'Store Inputs'!$C:$D,2,FALSE))*(EFs!$D$4:$D$3351>=E128)*(EFs!$D$4:$D$3351<=E129)*(EFs!$E$4:$E$3351=E131)*EFs!$M$4:$M$3351*EFs!$P$4:$P$3351) / SUMPRODUCT((EFs!$A$4:$A$3351=E127)*(EFs!$B$4:$B$3351=VLOOKUP(E126,'Store Inputs'!$F:$G,2,FALSE))*(EFs!$C$4:$C$3351=VLOOKUP(E130,'Store Inputs'!$C:$D,2,FALSE))*(EFs!$D$4:$D$3351>=E128)*(EFs!$D$4:$D$3351<=E129)*(EFs!$E$4:$E$3351=E131)*EFs!$P$4:$P$3351)))), 0) -> 0 | Q126: =IFERROR( IF(E136="-",0/0, IF(OR(E123=0,AND(E126<>"Single Unit Short Haul",E131="G"),AND(OR(E123="B20 (Biodiesel)",E123="R100 (Renewable Diesel)"),E131="G"),AND(OR(E126="Single Unit Short Haul",E126="Single Unit Long Haul"),E130="Distribution Center"),AND(E126<>"Combination Unit Short Haul",E130="Port")),0/0, IF(SUMPRODUCT((RRFs!$B$4:$B$35=E123)*OR(RRFs!$C$4:$C$35=E131,RRFs!$C$4:$C$35="A")*INDIRECT(VLOOKUP(E126&" "&Q125,RRFs!$AO:$AP,2,FALSE)))=-999999,0/0, SUMPRODUCT((EFs!$A$4:$A$3351=E127)*(EFs!$B$4:$B$3351=VLOOKUP(E126,'Store Inputs'!$F:$G,2,FALSE))*(EFs!$C$4:$C$3351=VLOOKUP(E130,'Store Inputs'!$C:$D,2,FALSE))*(EFs!$D$4:$D$3351>=E128)*(EFs!$D$4:$D$3351<=E129)*(EFs!$E$4:$E$3351=E131)*EFs!$N$4:$N$3351*EFs!$P$4:$P$3351) / SUMPRODUCT((EFs!$A$4:$A$3351=E127)*(EFs!$B$4:$B$3351=VLOOKUP(E126,'Store Inputs'!$F:$G,2,FALSE))*(EFs!$C$4:$C$3351=VLOOKUP(E130,'Store Inputs'!$C:$D,2,FALSE))*(EFs!$D$4:$D$3351>=E128)*(EFs!$D$4:$D$3351<=E129)*(EFs!$E$4:$E$3351=E131)*EFs!$P$4:$P$3351)))), 0) -> 0 | R126: =IFERROR( IF(E136="-",0/0, IF(OR(E123=0,AND(E126<>"Single Unit Short Haul",E131="G"),AND(OR(E123="B20 (Biodiesel)",E123="R100 (Renewable Diesel)"),E131="G"),AND(OR(E126="Single Unit Short Haul",E126="Single Unit Long Haul"),E130="Distribution Center"),AND(E126<>"Combination Unit Short Haul",E130="Port")),0/0, IF(SUMPRODUCT((RRFs!$B$4:$B$35=E123)*OR(RRFs!$C$4:$C$35=E131,RRFs!$C$4:$C$35="A")*INDIRECT(VLOOKUP(E126&" "&R124,RRFs!$AO:$AP,2,FALSE)))=-999999,0/0, SUMPRODUCT((EFs!$A$4:$A$3351=E127)*(EFs!$B$4:$B$3351=VLOOKUP(E126,'Store Inputs'!$F:$G,2,FALSE))*(EFs!$C$4:$C$3351=VLOOKUP(E130,'Store Inputs'!$C:$D,2,FALSE))*(EFs!$D$4:$D$3351>=E128)*(EFs!$D$4:$D$3351<=E129)*(EFs!$E$4:$E$3351=E131)*EFs!$O$4:$O$3351*EFs!$P$4:$P$3351) / SUMPRODUCT((EFs!$A$4:$A$3351=E127)*(EFs!$B$4:$B$3351=VLOOKUP(E126,'Store Inputs'!$F:$G,2,FALSE))*(EFs!$C$4:$C$3351=VLOOKUP(E130,'Store Inputs'!$C:$D,2,FALSE))*(EFs!$D$4:$D$3351>=E128)*(EFs!$D$4:$D$3351<=E129)*(EFs!$E$4:$E$3351=E131)*EFs!$P$4:$P$3351)))), 0) -> 0 | S126: 0
